Workbook

Sheet Waveglider
A1: Calibration data | C1: 2012-07-11 | E1: Batch 115
A2: R | B2: 8.31451
A3: F | B3: 96487
A4: pH_Standard | B4: 7.989 | C4: pH of standard
A5: Ts | B5: =273.15+21.96 -> 295.11 | C5: temperature of calibration | F5: 21.96
A6: Vout | B6: 0.0471 | C6: voltage output (Voltage#1)
A7: Eo | B7: =B6-B4*B2*B5*LN(10)/B3 -> -0.42069965
A10: Calibration data | C10: 2012-08-30 | E10: Batch 111
A11: R | B11: 8.31451
A12: F | B12: 96487
A13: pH_Standard | B13: 7.896 | C13: pH of standard
A14: Ts | B14: =273.15+20.19 -> 293.34 | C14: temperature of calibration | F14: 20.29 | G14: temp= 0.9955X-0.00498
A15: Vout | B15: 0.0408 | C15: voltage output (Voltage#1) | F15: =0.9955*F14-0.00498 -> 20.193715
A16: Eo | B16: =B15-B13*B11*B14*LN(10)/B12 -> -0.4187809014
A19: Calibration data | C19: 2012-10-02 | E19: Batch 115
A20: R | B20: 8.31451
A21: F | B21: 96487
A22: pH_Standard | B22: 8.012 | C22: pH of standard (CRM Batch 115 using Seawater scale)
A23: Ts | B23: 293.59 | C23: temperature of calibration | F23: 20.44 | H23: 293.59
A24: Vout | B24: 0.05034 | C24: voltage output (Voltage#1)
A25: Eo | B25: -0.41639003
A27: Calibration data | C27: 2013-01-09 | E27: Batch 115 | G27: NEW ELECTRODE
A28: R | B28: 8.31451
A29: F | B29: 96487
A30: pH_Standard | B30: 8.012 | C30: pH of standard
A31: Ts | B31: =273.15+20.32 -> 293.47 | C31: temperature of calibration | F31: 20.42 | G31: temp= 0.9955X-0.00498
A32: Vout | B32: 0.07985 | C32: voltage output (Voltage#1) | F32: =0.9955*F31-0.00498 -> 20.32313
A33: Eo | B33: =B32-B30*B28*B31*LN(10)/B29 -> -0.3866892619
A36: Calibration data | C36: 2013-06-24 | E36: Batch 126
A37: R | B37: 8.31451
A38: F | B38: 96487
A39: pH_Standard | B39: 7.999 | C39: pH of standard | F39: 20.77
A40: Ts | B40: =273.15+F40 -> 293.821555 | C40: temperature of calibration | F40: =0.9955*F39-0.00498 -> 20.671555 | G40: temp= 0.9955X-0.00498
A41: Vout | B41: 0.0793 | C41: voltage output (Voltage#1)
A42: Eo | B42: =B41-B39*B37*B40*LN(10)/B38 -> -0.3870402432
A45: Calibration data | C45: 2013-09-10 | E45: Batch 126
A46: R | B46: 8.31451
A47: F | B47: 96487
A48: pH_Standard | B48: 7.991 | C48: pH of standard | F48: 21.3
A49: Ts | B49: =273.15+F49 -> 294.34917 | C49: temperature of calibration | F49: =0.9955*F48-0.00498 -> 21.19917 | G49: temp= 0.9955X-0.00498
A50: Vout | B50: 0.0729 | C50: voltage output (Voltage#1)
A51: Eo | B51: =B50-B48*B46*B49*LN(10)/B47 -> -0.3938104138
A53: Calibration data 08/21/2014 | D53: JS: We think this was the new pH sensor that went on SV3 for the first time in May-June 2014, not the same pH sensor as the previous cal's are for.
A54: R | B54: 8.31451 | D54: Because the OA WG was out of the water for a long time in 2014, and the OA WG CO2 system was swapped to SV3 thus OA could no longer have a pH sensor.
A55: F | B55: 96487 | D55: But, using these values for SV3 deployment May-June 2014 gives pH~7.00, obviously way low.
A56: pH_Standard | B56: 8.199 | C56: pH of standard | F56: 7.61
A57: Ts | B57: =273.15+F57 -> 280.720775 | C57: temperature of calibration | F57: =0.9955*F56-0.00498 -> 7.570775 | G57: temp= 0.9955X-0.00498
A58: Vout | B58: 0.06462 | C58: voltage output (Voltage#1)
A59: Eo | B59: =B58-B56*B54*B57*LN(10)/B55 -> -0.392067354
A63: Calibration data | C63: 2015-06-02 | E63: Batch 136 | G63: fet:1237Y200000021846
A64: R | B64: 8.31451
A65: F | B65: 96487
A66: pH_Standard | B66: 8.226107597 | C66: pH of standard | F66: 5.91
A67: Ts | B67: =273.15+F67 -> 279.028425 | C67: temperature of calibration | F67: =0.9955*F66-0.00498 -> 5.878425 | G67: temp= 0.9955X-0.00498
A68: Vout | B68: 0.08688 | C68: voltage output (Voltage#1)
A69: Eo | B69: =B68-B66*B64*B67*LN(10)/B65 -> -0.3685549746
A73: Calibration data | C73: 2015-09-15
A74: R | B74: 8.31451 | E74: Batch 144
A75: F | B75: 96487
A76: pH_Standard | B76: 8.187832832 | C76: pH of standard | F76: 6.02
A77: Ts | B77: =273.15+F77 -> 279.13793 | C77: temperature of calibration | F77: =0.9955*F76-0.00498 -> 5.98793 | G77: temp= 0.9955X-0.00498
A78: Vout | B78: 0.08327 | C78: voltage output (Voltage#1)
A79: Eo | B79: =B78-B76*B74*B77*LN(10)/B75 -> -0.3702238127
C81: 2016-02-10 | D81: Installed new pH sensor in SV3 Tiny | G81: fet: 1508Y200000063189
A83: Calibration data | C83: 2016-03-07
A84: R | B84: 8.31451 | E84: Batch 152 | G84: fet: 1508Y200000063189
A85: F | B85: 96487
A86: pH_Standard | B86: 7.92651844 | C86: pH of standard | F86: 21.23
A87: Ts | B87: =273.15+F87 -> 294.279485 | C87: temperature of calibration | F87: =0.9955*F86-0.00498 -> 21.129485 | G87: temp= 0.9955X-0.00498
A88: Vout | B88: 0.08327 | C88: voltage output (Voltage#1)
A89: Eo | B89: =B88-B86*B84*B87*LN(10)/B85 -> -0.3795648014
A92: Calibration data | C92: 2017-06-26
A93: R | B93: 8.31451 | E93: Batch 163 | G93: fet: 1633Y200000076201
A94: F | B94: 96487
A95: pH_Standard | B95: 7.88772385 | C95: pH of standard | F95: 20.96
A96: Ts | B96: =273.15+F96 -> 294.0107 | C96: temperature of calibration | F96: =0.9955*F95-0.00498 -> 20.8607 | G96: temp= 0.9955X-0.00498
A97: Vout | B97: 0.07075 | C97: voltage output (Voltage#1)
A98: Eo | B98: =B97-B95*B93*B96*LN(10)/B94 -> -0.3893988901
A99: For wgTiny June 30 2017
A102: Calibration data | C102: 2018-03-22
A103: R | B103: 8.31451 | E103: Batch 171 | G103: fet: 1633Y200000076201
A104: F | B104: 96487
A105: pH_Standard | B105: 7.901241122 | C105: pH of standard | F105: 22.16
A106: Ts | B106: =273.15+F106 -> 295.2053 | C106: temperature of calibration | F106: =0.9955*F105-0.00498 -> 22.0553 | G106: temp= 0.9955X-0.00498
A107: Vout | B107: 0.06563 | C107: voltage output (Voltage#1)
A108: Eo | B108: =B107-B105*B103*B106*LN(10)/B104 -> -0.3971802949
A109: For wgTiny March 21 2018
A114: Calibration data | C114: 2018-05-14
A115: R | B115: 8.31451 | E115: Batch 173 | G115: fet: 1633Y200000076201
A116: F | B116: 96487
A117: pH_Standard | B117: 7.894466172 | C117: pH of standard | F117: 19.56
A118: Ts | B118: =273.15+F118 -> 292.617 | C118: temperature of calibration | F118: =0.9955*F117-0.00498 -> 19.467 | G118: temp= 0.9955X-0.00498
A119: Vout | B119: 0.07126 | C119: voltage output (Voltage#1)
A120: Eo | B120: =B119-B117*B115*B118*LN(10)/B116 -> -0.3870991093

Sheet Batch115
A1: Salinity | B1: t(oC) in | C1: P (dbars) in | D1: Total P (mmol/kgSW) | E1: Total Si (mmol/kgSW) | F1: TA in (mmol/kgSW) | G1: TCO2 in (mmol/kgSW) | H1: pH in | I1: fCO2 in (matm) | J1: pCO2 in (matm) | K1: HCO3 in (mmol/kgSW) | L1: CO3 in (mmol/kgSW) | M1: CO2 in (mmol/kgSW) | N1: B Alk in (mmol/kgSW) | O1: OH in (mmol/kgSW) | P1: P Alk in (mmol/kgSW) | Q1: Si Alk in (mmol/kgSW) | R1: Revelle in | S1: WCa in | T1: WAr in | U1: xCO2 in (dry at 1 atm) (ppm)
A2: 33.5719986 | B2: 18 | C2: 0 | D2: 0.3799999888 | E2: 0.8000000093 | F2: 2242.840088 | G2: 2007.449951 | H2: 8.048799515 | I2: 380.2357483 | J2: 381.5625 | K2: 1825.429419 | L2: 168.8806509 | M2: 13.13990768 | N2: 75.68508009 | O2: 3.52608951 | P2: 0.4201434182 | Q2: 0.02721573 | R2: 10.91947221 | S2: 4.073149612 | T2: 2.627250971 | U2: 389.342605
A3: 33.5719986 | B3: 18.01000023 | C3: 0 | D3: 0.3799999888 | E3: 0.8000000093 | F3: 2242.840088 | G3: 2007.449951 | H3: 8.048646927 | I3: 380.393158 | J3: 381.7202759 | K3: 1825.423722 | L3: 168.8846889 | M3: 13.14156634 | N3: 75.68058998 | O3: 3.528195521 | P3: 0.4201496988 | Q3: 0.02721743464 | R3: 10.91929729 | S3: 4.073285747 | T3: 2.62740228 | U3: 389.5085923
A4: 33.5719986 | B4: 18.02000046 | C4: 0 | D4: 0.3799999888 | E4: 0.8000000093 | F4: 2242.840088 | G4: 2007.449951 | H4: 8.048494339 | I4: 380.5505981 | J4: 381.8781128 | K4: 1825.418026 | L4: 168.888726 | M4: 13.1432255 | N4: 75.67610022 | O4: 3.530302557 | P4: 0.4201559796 | Q4: 0.02721913855 | R4: 10.91912232 | S4: 4.073421912 | T4: 2.627553636 | U4: 389.6746459
A5: 33.5719986 | B5: 18.03000069 | C5: 0 | D5: 0.3799999888 | E5: 0.8000000093 | F5: 2242.840088 | G5: 2007.449951 | H5: 8.048341751 | I5: 380.7080688 | J5: 382.0360107 | K5: 1825.41233 | L5: 168.8927623 | M5: 13.14488515 | N5: 75.67161079 | O5: 3.532410619 | P5: 0.4201622604 | Q5: 0.02722084174 | R5: 10.91894731 | S5: 4.073558109 | T5: 2.627705041 | U5: 389.840766
A6: 33.5719986 | B6: 18.04000092 | C6: 0 | D6: 0.3799999888 | E6: 0.8000000093 | F6: 2242.840088 | G6: 2007.449951 | H6: 8.04818821 | I6: 380.8656311 | J6: 382.1939087 | K6: 1825.406634 | L6: 168.8967977 | M6: 13.1465453 | N6: 75.66712171 | O6: 3.534519707 | P6: 0.4201685414 | Q6: 0.02722254421 | R6: 10.91877225 | S6: 4.073694337 | T6: 2.627856494 | U6: 390.0069228
A7: 33.5719986 | B7: 18.04999924 | C7: 0 | D7: 0.3799999888 | E7: 0.8000000093 | F7: 2242.840088 | G7: 2007.449951 | H7: 8.048035622 | I7: 381.0231934 | J7: 382.3518677 | K7: 1825.40094 | L7: 168.9008315 | M7: 13.14820563 | N7: 75.66263382 | O7: 3.53662942 | P7: 0.4201748214 | Q7: 0.02722424564 | R7: 10.91859717 | S7: 4.073830569 | T7: 2.628007967 | U7: 390.1731154
A8: 33.5719986 | B8: 18.05999947 | C8: 0 | D8: 0.3799999888 | E8: 0.8000000093 | F8: 2242.840088 | G8: 2007.449951 | H8: 8.047883034 | I8: 381.1808472 | J8: 382.5098877 | K8: 1825.395245 | L8: 168.9048652 | M8: 13.14986678 | N8: 75.65814541 | O8: 3.538740562 | P8: 0.4201811026 | Q8: 0.02722594667 | R8: 10.91842202 | S8: 4.073966859 | T8: 2.628159516 | U8: 390.3394051
A9: 33.5719986 | B9: 18.06999969 | C9: 0 | D9: 0.3799999888 | E9: 0.8000000093 | F9: 2242.840088 | G9: 2007.449951 | H9: 8.047730446 | I9: 381.338562 | J9: 382.6679993 | K9: 1825.389551 | L9: 168.908898 | M9: 13.15152842 | N9: 75.65365734 | O9: 3.540852731 | P9: 0.420187384 | Q9: 0.02722764698 | R9: 10.91824682 | S9: 4.07410318 | T9: 2.628311114 | U9: 390.5057612
A10: 33.5719986 | B10: 18.07999992 | C10: 0 | D10: 0.3799999888 | E10: 0.8000000093 | F10: 2242.840088 | G10: 2007.449951 | H10: 8.047577858 | I10: 381.4963074 | J10: 382.8261108 | K10: 1825.383857 | L10: 168.9129299 | M10: 13.15319057 | N10: 75.64916962 | O10: 3.542965928 | P10: 0.4201936656 | Q10: 0.02722934657 | R10: 10.91807157 | S10: 4.074239532 | T10: 2.628462761 | U10: 390.6721541
A11: 33.5719986 | B11: 18.09000015 | C11: 0 | D11: 0.3799999888 | E11: 0.8000000093 | F11: 2242.840088 | G11: 2007.449951 | H11: 8.04742527 | I11: 381.6541138 | J11: 382.984314 | K11: 1825.378163 | L11: 168.916961 | M11: 13.15485321 | N11: 75.64468223 | O11: 3.545080154 | P11: 0.4201999473 | Q11: 0.02723104544 | R11: 10.91789628 | S11: 4.074375915 | T11: 2.628614455 | U11: 390.8386432
A12: 33.5719986 | B12: 18.10000038 | C12: 0 | D12: 0.3799999888 | E12: 0.8000000093 | F12: 2242.840088 | G12: 2007.449951 | H12: 8.047271729 | I12: 381.8119812 | J12: 383.1425781 | K12: 1825.37247 | L12: 168.9209912 | M12: 13.15651635 | N12: 75.64019518 | O12: 3.547195407 | P12: 0.4202062291 | Q12: 0.02723274359 | R12: 10.91772094 | S12: 4.074512329 | T12: 2.628766198 | U12: 391.0051987
A13: 33.5719986 | B13: 18.11000061 | C13: 0 | D13: 0.3799999888 | E13: 0.8000000093 | F13: 2242.840088 | G13: 2007.449951 | H13: 8.047119141 | I13: 381.9699402 | J13: 383.3009033 | K13: 1825.366777 | L13: 168.9250205 | M13: 13.15817999 | N13: 75.63570848 | O13: 3.54931169 | P13: 0.420212511 | Q13: 0.02723444102 | R13: 10.91754555 | S13: 4.074648774 | T13: 2.62891799 | U13: 391.1718208
A14: 33.5719986 | B14: 18.12000084 | C14: 0 | D14: 0.3799999888 | E14: 0.8000000093 | F14: 2242.840088 | G14: 2007.449951 | H14: 8.046966553 | I14: 382.1278992 | J14: 383.459259 | K14: 1825.361084 | L14: 168.9290489 | M14: 13.15984413 | N14: 75.63122212 | O14: 3.551429002 | P14: 0.4202187931 | Q14: 0.02723613773 | R14: 10.91737011 | S14: 4.07478525 | T14: 2.629069829 | U14: 391.3384796
A15: 33.5719986 | B15: 18.12999916 | C15: 0 | D15: 0.3799999888 | E15: 0.8000000093 | F15: 2242.840088 | G15: 2007.449951 | H15: 8.046813965 | I15: 382.2858887 | J15: 383.6176147 | K15: 1825.355393 | L15: 168.9330758 | M15: 13.16150845 | N15: 75.62673695 | O15: 3.553546939 | P15: 0.4202250741 | Q15: 0.0272378334 | R15: 10.91719467 | S15: 4.074921731 | T15: 2.629221688 | U15: 391.5051445
A16: 33.5719986 | B16: 18.13999939 | C16: 0 | D16: 0.3799999888 | E16: 0.8000000093 | F16: 2242.840088 | G16: 2007.449951 | H16: 8.046661377 | I16: 382.4439697 | J16: 383.7760925 | K16: 1825.349701 | L16: 168.9371025 | M16: 13.16317359 | N16: 75.62225127 | O16: 3.55566631 | P16: 0.4202313564 | Q16: 0.02723952866 | R16: 10.91701914 | S16: 4.075058269 | T16: 2.629373624 | U16: 391.6719363
A17: 33.5719986 | B17: 18.14999962 | C17: 0 | D17: 0.3799999888 | E17: 0.8000000093 | F17: 2242.840088 | G17: 2007.449951 | H17: 8.046508789 | I17: 382.6021423 | J17: 383.9346313 | K17: 1825.34401 | L17: 168.9411283 | M17: 13.16483922 | N17: 75.61776593 | O17: 3.557786711 | P17: 0.4202376389 | Q17: 0.02724122321 | R17: 10.91684356 | S17: 4.075194838 | T17: 2.629525609 | U17: 391.8388243
A18: 33.5719986 | B18: 18.15999985 | C18: 0 | D18: 0.3799999888 | E18: 0.8000000093 | F18: 2242.840088 | G18: 2007.449951 | H18: 8.046356201 | I18: 382.7603149 | J18: 384.0932007 | K18: 1825.338318 | L18: 168.9451533 | M18: 13.16650536 | N18: 75.61328094 | O18: 3.559908142 | P18: 0.4202439215 | Q18: 0.02724291703 | R18: 10.91666794 | S18: 4.075331439 | T18: 2.629677642 | U18: 392.0057194
A19: 33.5719986 | B19: 18.17000008 | C19: 0 | D19: 0.3799999888 | E19: 0.8000000093 | F19: 2242.840088 | G19: 2007.449951 | H19: 8.046203613 | I19: 382.9185791 | J19: 384.2518616 | K19: 1825.332628 | L19: 168.9491774 | M19: 13.168172 | N19: 75.60879628 | O19: 3.562030605 | P19: 0.4202502042 | Q19: 0.02724461013 | R19: 10.91649227 | S19: 4.07546807 | T19: 2.629829723 | U19: 392.1727108
A20: 33.5719986 | B20: 18.18000031 | C20: 0 | D20: 0.3799999888 | E20: 0.8000000093 | F20: 2242.840088 | G20: 2007.449951 | H20: 8.046051025 | I20: 383.0768738 | J20: 384.4105225 | K20: 1825.326937 | L20: 168.9532006 | M20: 13.16983914 | N20: 75.60431197 | O20: 3.564154099 | P20: 0.420256487 | Q20: 0.02724630251 | R20: 10.91631656 | S20: 4.075604732 | T20: 2.629981853 | U20: 392.3397389
A21: 33.5719986 | B21: 18.19000053 | C21: 0 | D21: 0.3799999888 | E21: 0.8000000093 | F21: 2242.840088 | G21: 2007.449951 | H21: 8.045898438 | I21: 383.2352295 | J21: 384.5692444 | K21: 1825.321247 | L21: 168.957223 | M21: 13.17150677 | N21: 75.599828 | O21: 3.566278625 | P21: 0.42026277 | Q21: 0.02724799417 | R21: 10.91614079 | S21: 4.075741426 | T21: 2.630134031 | U21: 392.5068336
A22: 33.5719986 | B22: 18.20000076 | C22: 0 | D22: 0.3799999888 | E22: 0.8000000093 | F22: 2242.840088 | G22: 2007.449951 | H22: 8.04574585 | I22: 383.3936462 | J22: 384.7280579 | K22: 1825.315558 | L22: 168.9612445 | M22: 13.17317491 | N22: 75.59534438 | O22: 3.568404182 | P22: 0.4202690531 | Q22: 0.02724968511 | R22: 10.91596498 | S22: 4.07587815 | T22: 2.630286258 | U22: 392.6739949
A23: 33.5719986 | B23: 18.20999908 | C23: 0 | D23: 0.3799999888 | E23: 0.8000000093 | F23: 2242.840088 | G23: 2007.449951 | H23: 8.045593262 | I23: 383.552063 | J23: 384.8869019 | K23: 1825.30987 | L23: 168.9652643 | M23: 13.17484323 | N23: 75.59086195 | O23: 3.570530366 | P23: 0.4202753352 | Q23: 0.027251375 | R23: 10.91578916 | S23: 4.07601488 | T23: 2.630438503 | U23: 392.8412217
A24: 33.5719986 | B24: 18.21999931 | C24: 0 | D24: 0.3799999888 | E24: 0.8000000093 | F24: 2242.840088 | G24: 2007.449951 | H24: 8.045440674 | I24: 383.7105713 | J24: 385.0457764 | K24: 1825.304181 | L24: 168.9692841 | M24: 13.17651237 | N24: 75.58637901 | O24: 3.572657989 | P24: 0.4202816186 | Q24: 0.0272530645 | R24: 10.91561326 | S24: 4.076151667 | T24: 2.630590826 | U24: 393.0084864
A25: 33.5719986 | B25: 18.22999954 | C25: 0 | D25: 0.3799999888 | E25: 0.8000000093 | F25: 2242.840088 | G25: 2007.449951 | H25: 8.045288086 | I25: 383.8691711 | J25: 385.2047424 | K25: 1825.298492 | L25: 168.9733029 | M25: 13.178182 | N25: 75.58189642 | O25: 3.574786644 | P25: 0.4202879021 | Q25: 0.02725475327 | R25: 10.91543731 | S25: 4.076288484 | T25: 2.630743198 | U25: 393.1758473
A26: 33.5719986 | B26: 18.23999977 | C26: 0 | D26: 0.3799999888 | E26: 0.8000000093 | F26: 2242.840088 | G26: 2007.449951 | H26: 8.045135498 | I26: 384.027771 | J26: 385.363739 | K26: 1825.292804 | L26: 168.9773209 | M26: 13.17985214 | N26: 75.57741416 | O26: 3.576916333 | P26: 0.4202941857 | Q26: 0.02725644132 | R26: 10.91526131 | S26: 4.076425333 | T26: 2.630895618 | U26: 393.3432451
A27: 33.5719986 | B27: 18.25 | C27: 0 | D27: 0.3799999888 | E27: 0.8000000093 | F27: 2242.840088 | G27: 2007.449951 | H27: 8.04498291 | I27: 384.1864929 | J27: 385.5228271 | K27: 1825.287116 | L27: 168.981338 | M27: 13.18152278 | N27: 75.57293226 | O27: 3.579047055 | P27: 0.4203004695 | Q27: 0.02725812864 | R27: 10.91508526 | S27: 4.076562213 | T27: 2.631048086 | U27: 393.5107392
A28: 33.5719986 | B28: 18.26000023 | C28: 0 | D28: 0.3799999888 | E28: 0.8000000093 | F28: 2242.840088 | G28: 2007.449951 | H28: 8.044830322 | I28: 384.3452148 | J28: 385.6819458 | K28: 1825.281429 | L28: 168.9853543 | M28: 13.18319392 | N28: 75.56845069 | O28: 3.581178812 | P28: 0.4203067533 | Q28: 0.02725981525 | R28: 10.91490917 | S28: 4.076699124 | T28: 2.631200603 | U28: 393.6782999
A29: 33.5719986 | B29: 18.27000046 | C29: 0 | D29: 0.3799999888 | E29: 0.8000000093 | F29: 2242.840088 | G29: 2007.449951 | H29: 8.044677734 | I29: 384.5039978 | J29: 385.8411255 | K29: 1825.275742 | L29: 168.9893696 | M29: 13.18486557 | N29: 75.56396947 | O29: 3.583311603 | P29: 0.4203130374 | Q29: 0.02726150113 | R29: 10.91473303 | S29: 4.076836066 | T29: 2.631353168 | U29: 393.8458975
A30: 33.5719986 | B30: 18.28000069 | C30: 0 | D30: 0.3799999888 | E30: 0.8000000093 | F30: 2242.840088 | G30: 2007.449951 | H30: 8.044525146 | I30: 384.6628418 | J30: 386.0003357 | K30: 1825.270055 | L30: 168.9933841 | M30: 13.18653771 | N30: 75.5594886 | O30: 3.585445429 | P30: 0.4203193215 | Q30: 0.02726318629 | R30: 10.91455685 | S30: 4.076973039 | T30: 2.631505781 | U30: 394.0135616
A31: 33.5719986 | B31: 18.29000092 | C31: 0 | D31: 0.3799999888 | E31: 0.8000000093 | F31: 2242.840088 | G31: 2007.449951 | H31: 8.044372559 | I31: 384.8217163 | J31: 386.1596069 | K31: 1825.264369 | L31: 168.9973977 | M31: 13.18821035 | N31: 75.55500807 | O31: 3.58758029 | P31: 0.4203256058 | Q31: 0.02726487072 | R31: 10.91438061 | S31: 4.077110043 | T31: 2.631658443 | U31: 394.1812627
A32: 33.5719986 | B32: 18.29999924 | C32: 0 | D32: 0.3799999888 | E32: 0.8000000093 | F32: 2242.840088 | G32: 2007.449951 | H32: 8.044219971 | I32: 384.9806824 | J32: 386.3189392 | K32: 1825.258684 | L32: 169.0014097 | M32: 13.18988318 | N32: 75.55052874 | O32: 3.589715779 | P32: 0.420331889 | Q32: 0.02726655411 | R32: 10.91420437 | S32: 4.077247052 | T32: 2.631811124 | U32: 394.3490591
A33: 33.5719986 | B33: 18.30999947 | C33: 0 | D33: 0.3799999888 | E33: 0.8000000093 | F33: 2242.840088 | G33: 2007.449951 | H33: 8.044067383 | I33: 385.139679 | J33: 386.478363 | K33: 1825.252999 | L33: 169.0054215 | M33: 13.19155683 | N33: 75.5460489 | O33: 3.591852711 | P33: 0.4203381735 | Q33: 0.0272682371 | R33: 10.91402804 | S33: 4.077384118 | T33: 2.631963883 | U33: 394.5169232
A34: 33.5719986 | B34: 18.31999969 | C34: 0 | D34: 0.3799999888 | E34: 0.8000000093 | F34: 2242.840088 | G34: 2007.449951 | H34: 8.043914795 | I34: 385.2987366 | J34: 386.6377869 | K34: 1825.247314 | L34: 169.0094325 | M34: 13.19323098 | N34: 75.54156941 | O34: 3.593990679 | P34: 0.4203444582 | Q34: 0.02726991937 | R34: 10.91385167 | S34: 4.077521216 | T34: 2.63211669 | U34: 394.6848241
A35: 33.5719986 | B35: 18.32999992 | C35: 0 | D35: 0.3799999888 | E35: 0.8000000093 | F35: 2242.840088 | G35: 2007.449951 | H35: 8.043762207 | I35: 385.4578552 | J35: 386.7972717 | K35: 1825.241629 | L35: 169.0134426 | M35: 13.19490563 | N35: 75.53709026 | O35: 3.596129684 | P35: 0.4203507429 | Q35: 0.02727160092 | R35: 10.91367525 | S35: 4.077658344 | T35: 2.632269545 | U35: 394.8527917
A36: 33.5719986 | B36: 18.34000015 | C36: 0 | D36: 0.3799999888 | E36: 0.8000000093 | F36: 2242.840088 | G36: 2007.449951 | H36: 8.043609619 | I36: 385.6170349 | J36: 386.9568176 | K36: 1825.235945 | L36: 169.0174518 | M36: 13.19658078 | N36: 75.53261146 | O36: 3.598269726 | P36: 0.4203570279 | Q36: 0.02727328174 | R36: 10.91349878 | S36: 4.077795503 | T36: 2.632422449 | U36: 395.020826
A37: 33.5719986 | B37: 18.35000038 | C37: 0 | D37: 0.3799999888 | E37: 0.8000000093 | F37: 2242.840088 | G37: 2007.449951 | H37: 8.043457031 | I37: 385.7762451 | J37: 387.1164551 | K37: 1825.230261 | L37: 169.0214601 | M37: 13.19825644 | N37: 75.528133 | O37: 3.600410805 | P37: 0.4203633129 | Q37: 0.02727496183 | R37: 10.91332226 | S37: 4.077932694 | T37: 2.632575401 | U37: 395.1889566
A38: 33.5719986 | B38: 18.36000061 | C38: 0 | D38: 0.3799999888 | E38: 0.8000000093 | F38: 2242.840088 | G38: 2007.449951 | H38: 8.043304443 | I38: 385.9355469 | J38: 387.276123 | K38: 1825.224577 | L38: 169.0254676 | M38: 13.1999326 | N38: 75.52365489 | O38: 3.602552922 | P38: 0.420369598 | Q38: 0.02727664121 | R38: 10.9131457 | S38: 4.078069915 | T38: 2.632728402 | U38: 395.3571242
A39: 33.5719986 | B39: 18.37000084 | C39: 0 | D39: 0.3799999888 | E39: 0.8000000093 | F39: 2242.840088 | G39: 2007.449951 | H39: 8.043152809 | I39: 386.0948792 | J39: 387.4358521 | K39: 1825.218894 | L39: 169.0294742 | M39: 13.20160926 | N39: 75.51917713 | O39: 3.604696076 | P39: 0.4203758833 | Q39: 0.02727831985 | R39: 10.91296909 | S39: 4.078207168 | T39: 2.632881451 | U39: 395.5253584
A40: 33.5719986 | B40: 18.37999916 | C40: 0 | D40: 0.3799999888 | E40: 0.8000000093 | F40: 2242.840088 | G40: 2007.449951 | H40: 8.043000221 | I40: 386.2542114 | J40: 387.5955505 | K40: 1825.213212 | L40: 169.0334791 | M40: 13.2032861 | N40: 75.51470057 | O40: 3.60683986 | P40: 0.4203821675 | Q40: 0.02727999746 | R40: 10.91279247 | S40: 4.078344426 | T40: 2.633034519 | U40: 395.6935989
A41: 33.5719986 | B41: 18.38999939 | C41: 0 | D41: 0.3799999888 | E41: 0.8000000093 | F41: 2242.840088 | G41: 2007.449951 | H41: 8.042847633 | I41: 386.4136963 | J41: 387.7554321 | K41: 1825.207529 | L41: 169.0374839 | M41: 13.20496377 | N41: 75.5102235 | O41: 3.608985092 | P41: 0.4203884531 | Q41: 0.02728167466 | R41: 10.91261576 | S41: 4.07848174 | T41: 2.633187665 | U41: 395.8619963
A42: 33.5719986 | B42: 18.39999962 | C42: 0 | D42: 0.3799999888 | E42: 0.8000000093 | F42: 2242.840088 | G42: 2007.449951 | H42: 8.042695045 | I42: 386.5731812 | J42: 387.9152832 | K42: 1825.201847 | L42: 169.0414878 | M42: 13.20664194 | N42: 75.50574678 | O42: 3.611131362 | P42: 0.4203947387 | Q42: 0.02728335114 | R42: 10.91243901 | S42: 4.078619086 | T42: 2.633340859 | U42: 396.0304008
A43: 33.5719986 | B43: 18.40999985 | C43: 0 | D43: 0.3799999888 | E43: 0.8000000093 | F43: 2242.840088 | G43: 2007.449951 | H43: 8.042542458 | I43: 386.7327271 | J43: 388.0752258 | K43: 1825.196166 | L43: 169.0454909 | M43: 13.20832061 | N43: 75.50127041 | O43: 3.613278672 | P43: 0.4204010245 | Q43: 0.02728502689 | R43: 10.91226221 | S43: 4.078756463 | T43: 2.633494102 | U43: 396.1988721
A44: 33.5719986 | B44: 18.42000008 | C44: 0 | D44: 0.3799999888 | E44: 0.8000000093 | F44: 2242.840088 | G44: 2007.449951 | H44: 8.04238987 | I44: 386.892334 | J44: 388.235199 | K44: 1825.190484 | L44: 169.0494931 | M44: 13.20999978 | N44: 75.49679438 | O44: 3.615427022 | P44: 0.4204073104 | Q44: 0.02728670192 | R44: 10.91208537 | S44: 4.078893871 | T44: 2.633647393 | U44: 396.3674101
A45: 33.5719986 | B45: 18.43000031 | C45: 0 | D45: 0.3799999888 | E45: 0.8000000093 | F45: 2242.840088 | G45: 2007.449951 | H45: 8.042237282 | I45: 387.052002 | J45: 388.3952637 | K45: 1825.184803 | L45: 169.0534943 | M45: 13.21167946 | N45: 75.4923187 | O45: 3.617576411 | P45: 0.4204135964 | Q45: 0.02728837623 | R45: 10.91190848 | S45: 4.07903131 | T45: 2.633800733 | U45: 396.5360446
A46: 33.5719986 | B46: 18.44000053 | C46: 0 | D46: 0.3799999888 | E46: 0.8000000093 | F46: 2242.840088 | G46: 2007.449951 | H46: 8.042085648 | I46: 387.2117004 | J46: 388.5553894 | K46: 1825.179123 | L46: 169.0574947 | M46: 13.21335964 | N46: 75.48784337 | O46: 3.619726841 | P46: 0.4204198826 | Q46: 0.02729004981 | R46: 10.91173154 | S46: 4.07916878 | T46: 2.633954121 | U46: 396.704716
A47: 33.5719986 | B47: 18.45000076 | C47: 0 | D47: 0.3799999888 | E47: 0.8000000093 | F47: 2242.840088 | G47: 2007.449951 | H47: 8.04193306 | I47: 387.3714905 | J47: 388.7155457 | K47: 1825.173443 | L47: 169.0614943 | M47: 13.21504033 | N47: 75.48336839 | O47: 3.621878312 | P47: 0.4204261689 | Q47: 0.02729172266 | R47: 10.91155455 | S47: 4.079306282 | T47: 2.634107558 | U47: 396.8734542
A48: 33.5719986 | B48: 18.45999908 | C48: 0 | D48: 0.3799999888 | E48: 0.8000000093 | F48: 2242.840088 | G48: 2007.449951 | H48: 8.041780472 | I48: 387.5312805 | J48: 388.8757019 | K48: 1825.167764 | L48: 169.0654921 | M48: 13.2167212 | N48: 75.47889461 | O48: 3.624030414 | P48: 0.4204324541 | Q48: 0.02729339447 | R48: 10.91137755 | S48: 4.079443788 | T48: 2.634261013 | U48: 397.0421987
A49: 33.5719986 | B49: 18.46999931 | C49: 0 | D49: 0.3799999888 | E49: 0.8000000093 | F49: 2242.840088 | G49: 2007.449951 | H49: 8.041627884 | I49: 387.6911621 | J49: 389.0359802 | K49: 1825.162084 | L49: 169.0694899 | M49: 13.21840289 | N49: 75.47442033 | O49: 3.626183967 | P49: 0.4204387406 | Q49: 0.02729506588 | R49: 10.91120047 | S49: 4.079581351 | T49: 2.634414547 | U49: 397.2111
A50: 33.5719986 | B50: 18.47999954 | C50: 0 | D50: 0.3799999888 | E50: 0.8000000093 | F50: 2242.840088 | G50: 2007.449951 | H50: 8.04147625 | I50: 387.8511047 | J50: 389.1962891 | K50: 1825.156405 | L50: 169.0734867 | M50: 13.22008509 | N50: 75.46994639 | O50: 3.628338562 | P50: 0.4204450272 | Q50: 0.02729673656 | R50: 10.91102334 | S50: 4.079718946 | T50: 2.634568129 | U50: 397.3800087
A51: 33.5719986 | B51: 18.48999977 | C51: 0 | D51: 0.3799999888 | E51: 0.8000000093 | F51: 2242.840088 | G51: 2007.449951 | H51: 8.041323662 | I51: 388.0110779 | J51: 389.3566589 | K51: 1825.150727 | L51: 169.0774827 | M51: 13.22176779 | N51: 75.4654728 | O51: 3.6304942 | P51: 0.420451314 | Q51: 0.02729840652 | R51: 10.91084616 | S51: 4.079856571 | T51: 2.634721759 | U51: 397.5489842
A52: 33.5719986 | B52: 18.5 | C52: 0 | D52: 0.3799999888 | E52: 0.8000000093 | F52: 2242.840088 | G52: 2007.449951 | H52: 8.041171074 | I52: 388.1711426 | J52: 389.5171509 | K52: 1825.145048 | L52: 169.0814778 | M52: 13.223451 | N52: 75.46099957 | O52: 3.632650879 | P52: 0.4204576009 | Q52: 0.02730007575 | R52: 10.91066894 | S52: 4.079994228 | T52: 2.634875438 | U52: 397.7180859
A53: 33.5719986 | B53: 18.51000023 | C53: 0 | D53: 0.3799999888 | E53: 0.8000000093 | F53: 2242.840088 | G53: 2007.449951 | H53: 8.041018486 | I53: 388.3312378 | J53: 389.6776123 | K53: 1825.13937 | L53: 169.085472 | M53: 13.22513471 | N53: 75.45652668 | O53: 3.634808602 | P53: 0.4204638879 | Q53: 0.02730174425 | R53: 10.91049166 | S53: 4.080131915 | T53: 2.635029165 | U53: 397.8871949
A54: 33.5719986 | B54: 18.52000046 | C54: 0 | D54: 0.3799999888 | E54: 0.8000000093 | F54: 2242.840088 | G54: 2007.449951 | H54: 8.040865898 | I54: 388.4913635 | J54: 389.8381348 | K54: 1825.133693 | L54: 169.0894653 | M54: 13.22681892 | N54: 75.45205414 | O54: 3.636967368 | P54: 0.420470175 | Q54: 0.02730341203 | R54: 10.91031435 | S54: 4.080269634 | T54: 2.635182941 | U54: 398.0563409
A55: 33.5719986 | B55: 18.53000069 | C55: 0 | D55: 0.3799999888 | E55: 0.8000000093 | F55: 2242.840088 | G55: 2007.449951 | H55: 8.040714264 | I55: 388.6515808 | J55: 389.9987183 | K55: 1825.128016 | L55: 169.0934577 | M55: 13.22850364 | N55: 75.44758196 | O55: 3.639127178 | P55: 0.4204764623 | Q55: 0.02730507909 | R55: 10.91013698 | S55: 4.080407384 | T55: 2.635336766 | U55: 398.2255835
A56: 33.5719986 | B56: 18.54000092 | C56: 0 | D56: 0.3799999888 | E56: 0.8000000093 | F56: 2242.840088 | G56: 2007.449951 | H56: 8.040561676 | I56: 388.8118591 | J56: 390.1593933 | K56: 1825.122339 | L56: 169.0974493 | M56: 13.23018886 | N56: 75.44311012 | O56: 3.641288032 | P56: 0.4204827497 | Q56: 0.02730674542 | R56: 10.90995957 | S56: 4.080545165 | T56: 2.635490638 | U56: 398.3949226
A57: 33.5719986 | B57: 18.54999924 | C57: 0 | D57: 0.3799999888 | E57: 0.8000000093 | F57: 2242.840088 | G57: 2007.449951 | H57: 8.040409088 | I57: 388.9721375 | J57: 390.3200684 | K57: 1825.116664 | L57: 169.1014392 | M57: 13.23187427 | N57: 75.43863949 | O57: 3.643449517 | P57: 0.420489036 | Q57: 0.0273084107 | R57: 10.90978214 | S57: 4.080682951 | T57: 2.63564453 | U57: 398.5642384
A58: 33.5719986 | B58: 18.55999947 | C58: 0 | D58: 0.3799999888 | E58: 0.8000000093 | F58: 2242.840088 | G58: 2007.449951 | H58: 8.040257454 | I58: 389.1325378 | J58: 390.480835 | K58: 1825.110988 | L58: 169.1054289 | M58: 13.23356051 | N58: 75.43416835 | O58: 3.64561246 | P58: 0.4204953236 | Q58: 0.02731007558 | R58: 10.90960463 | S58: 4.080820794 | T58: 2.6357985 | U58: 398.7336814
A59: 33.5719986 | B59: 18.56999969 | C59: 0 | D59: 0.3799999888 | E59: 0.8000000093 | F59: 2242.840088 | G59: 2007.449951 | H59: 8.040104866 | I59: 389.2929382 | J59: 390.6416626 | K59: 1825.105312 | L59: 169.1094178 | M59: 13.23524725 | N59: 75.42969757 | O59: 3.647776447 | P59: 0.4205016113 | Q59: 0.02731173973 | R59: 10.90942708 | S59: 4.080958668 | T59: 2.635952518 | U59: 398.9031912
A60: 33.5719986 | B60: 18.57999992 | C60: 0 | D60: 0.3799999888 | E60: 0.8000000093 | F60: 2242.840088 | G60: 2007.449951 | H60: 8.039952278 | I60: 389.4534302 | J60: 390.8025208 | K60: 1825.099637 | L60: 169.1134058 | M60: 13.23693449 | N60: 75.42522713 | O60: 3.64994148 | P60: 0.4205078992 | Q60: 0.02731340316 | R60: 10.90924947 | S60: 4.081096573 | T60: 2.636106585 | U60: 399.0727381
A61: 33.5719986 | B61: 18.59000015 | C61: 0 | D61: 0.3799999888 | E61: 0.8000000093 | F61: 2242.840088 | G61: 2007.449951 | H61: 8.039800644 | I61: 389.6139526 | J61: 390.9634399 | K61: 1825.093962 | L61: 169.1173929 | M61: 13.23862224 | N61: 75.42075705 | O61: 3.652107559 | P61: 0.4205141871 | Q61: 0.02731506586 | R61: 10.90907182 | S61: 4.08123451 | T61: 2.6362607 | U61: 399.2423519
A62: 33.5719986 | B62: 18.60000038 | C62: 0 | D62: 0.3799999888 | E62: 0.8000000093 | F62: 2242.840088 | G62: 2007.449951 | H62: 8.039648056 | I62: 389.7745667 | J62: 391.1243896 | K62: 1825.088288 | L62: 169.1213791 | M62: 13.2403105 | N62: 75.41628732 | O62: 3.654274683 | P62: 0.4205204752 | Q62: 0.02731672783 | R62: 10.90889412 | S62: 4.081372477 | T62: 2.636414864 | U62: 399.4120325
A63: 33.5719986 | B63: 18.61000061 | C63: 0 | D63: 0.3799999888 | E63: 0.8000000093 | F63: 2242.840088 | G63: 2007.449951 | H63: 8.039495468 | I63: 389.9352112 | J63: 391.2854614 | K63: 1825.082613 | L63: 169.1253644 | M63: 13.24199926 | N63: 75.41181794 | O63: 3.656442854 | P63: 0.4205267634 | Q63: 0.02731838908 | R63: 10.90871638 | S63: 4.081510476 | T63: 2.636569076 | U63: 399.5818097
A64: 33.5719986 | B64: 18.62000084 | C64: 0 | D64: 0.3799999888 | E64: 0.8000000093 | F64: 2242.840088 | G64: 2007.449951 | H64: 8.039343834 | I64: 390.0959167 | J64: 391.4465637 | K64: 1825.07694 | L64: 169.1293488 | M64: 13.24368853 | N64: 75.40734892 | O64: 3.658612072 | P64: 0.4205330517 | Q64: 0.02732004959 | R64: 10.90853859 | S64: 4.081648505 | T64: 2.636723337 | U64: 399.751624
A65: 33.5719986 | B65: 18.62999916 | C65: 0 | D65: 0.3799999888 | E65: 0.8000000093 | F65: 2242.840088 | G65: 2007.449951 | H65: 8.039191246 | I65: 390.2566528 | J65: 391.6076355 | K65: 1825.071268 | L65: 169.1333316 | M65: 13.24537798 | N65: 75.40288109 | O65: 3.660781923 | P65: 0.420539339 | Q65: 0.02732170907 | R65: 10.90836078 | S65: 4.08178654 | T65: 2.636877617 | U65: 399.9214448
A66: 33.5719986 | B66: 18.63999939 | C66: 0 | D66: 0.3799999888 | E66: 0.8000000093 | F66: 2242.840088 | G66: 2007.449951 | H66: 8.039038658 | I66: 390.4174805 | J66: 391.7688599 | K66: 1825.065595 | L66: 169.1373142 | M66: 13.24706826 | N66: 75.39841277 | O66: 3.662953236 | P66: 0.4205456276 | Q66: 0.02732336814 | R66: 10.90818289 | S66: 4.081924631 | T66: 2.637031975 | U66: 400.0914226
A67: 33.5719986 | B67: 18.64999962 | C67: 0 | D67: 0.3799999888 | E67: 0.8000000093 | F67: 2242.840088 | G67: 2007.449951 | H67: 8.038887024 | I67: 390.5783081 | J67: 391.9301147 | K67: 1825.059922 | L67: 169.141296 | M67: 13.24875904 | N67: 75.3939448 | O67: 3.665125596 | P67: 0.4205519162 | Q67: 0.02732502648 | R67: 10.90800496 | S67: 4.082062754 | T67: 2.637186381 | U67: 400.2614078
A68: 33.5719986 | B68: 18.65999985 | C68: 0 | D68: 0.3799999888 | E68: 0.8000000093 | F68: 2242.840088 | G68: 2007.449951 | H68: 8.038734436 | I68: 390.7392273 | J68: 392.0914001 | K68: 1825.05425 | L68: 169.1452768 | M68: 13.25045034 | N68: 75.38947719 | O68: 3.667299004 | P68: 0.420558205 | Q68: 0.02732668409 | R68: 10.90782697 | S68: 4.082200908 | T68: 2.637340836 | U68: 400.4314599
A69: 33.5719986 | B69: 18.67000008 | C69: 0 | D69: 0.3799999888 | E69: 0.8000000093 | F69: 2242.840088 | G69: 2007.449951 | H69: 8.038581848 | I69: 390.9002075 | J69: 392.2527771 | K69: 1825.048578 | L69: 169.1492568 | M69: 13.25214214 | N69: 75.38500992 | O69: 3.669473461 | P69: 0.420564494 | Q69: 0.02732834098 | R69: 10.90764894 | S69: 4.082339093 | T69: 2.63749534 | U69: 400.6016087
A70: 33.5719986 | B70: 18.68000031 | C70: 0 | D70: 0.3799999888 | E70: 0.8000000093 | F70: 2242.840088 | G70: 2007.449951 | H70: 8.038430214 | I70: 391.0612488 | J70: 392.4141846 | K70: 1825.042907 | L70: 169.1532358 | M70: 13.25383444 | N70: 75.38054301 | O70: 3.671648967 | P70: 0.420570783 | Q70: 0.02732999713 | R70: 10.90747086 | S70: 4.08247731 | T70: 2.637649892 | U70: 400.7717946
A71: 33.5719986 | B71: 18.69000053 | C71: 0 | D71: 0.3799999888 | E71: 0.8000000093 | F71: 2242.840088 | G71: 2007.449951 | H71: 8.038277626 | I71: 391.2223206 | J71: 392.5756531 | K71: 1825.037236 | L71: 169.157214 | M71: 13.25552726 | N71: 75.37607646 | O71: 3.673825522 | P71: 0.4205770721 | Q71: 0.02733165256 | R71: 10.90729274 | S71: 4.082615557 | T71: 2.637804492 | U71: 400.9420475
A72: 33.5719986 | B72: 18.70000076 | C72: 0 | D72: 0.3799999888 | E72: 0.8000000093 | F72: 2242.840088 | G72: 2007.449951 | H72: 8.038125992 | I72: 391.3834839 | J72: 392.7372131 | K72: 1825.031565 | L72: 169.1611913 | M72: 13.25722058 | N72: 75.37161026 | O72: 3.676003127 | P72: 0.4205833614 | Q72: 0.02733330727 | R72: 10.90711457 | S72: 4.082753835 | T72: 2.637959141 | U72: 401.1123969
A73: 33.5719986 | B73: 18.70999908 | C73: 0 | D73: 0.3799999888 | E73: 0.8000000093 | F73: 2242.840088 | G73: 2007.449951 | H73: 8.037973404 | I73: 391.5446472 | J73: 392.8987732 | K73: 1825.025896 | L73: 169.1651669 | M73: 13.25891408 | N73: 75.36714526 | O73: 3.678181366 | P73: 0.4205896496 | Q73: 0.02733496093 | R73: 10.90693638 | S73: 4.082892118 | T73: 2.638113809 | U73: 401.2827529
A74: 33.5719986 | B74: 18.71999931 | C74: 0 | D74: 0.3799999888 | E74: 0.8000000093 | F74: 2242.840088 | G74: 2007.449951 | H74: 8.03782177 | I74: 391.7059021 | J74: 393.0603943 | K74: 1825.020226 | L74: 169.1691424 | M74: 13.26060841 | N74: 75.36267976 | O74: 3.680361071 | P74: 0.4205959391 | Q74: 0.02733661418 | R74: 10.90675811 | S74: 4.083030459 | T74: 2.638268555 | U74: 401.4531768
A75: 33.5719986 | B75: 18.72999954 | C75: 0 | D75: 0.3799999888 | E75: 0.8000000093 | F75: 2242.840088 | G75: 2007.449951 | H75: 8.037669182 | I75: 391.867218 | J75: 393.2221069 | K75: 1825.014557 | L75: 169.173117 | M75: 13.26230326 | N75: 75.35821462 | O75: 3.682541826 | P75: 0.4206022287 | Q75: 0.0273382667 | R75: 10.90657979 | S75: 4.08316883 | T75: 2.63842335 | U75: 401.6237271
A76: 33.5719986 | B76: 18.73999977 | C76: 0 | D76: 0.3799999888 | E76: 0.8000000093 | F76: 2242.840088 | G76: 2007.449951 | H76: 8.037516594 | I76: 392.0285645 | J76: 393.3838501 | K76: 1825.008888 | L76: 169.1770907 | M76: 13.26399861 | N76: 75.35374984 | O76: 3.684723633 | P76: 0.4206085184 | Q76: 0.02733991849 | R76: 10.90640143 | S76: 4.083307233 | T76: 2.638578193 | U76: 401.7942849
A77: 33.5719986 | B77: 18.75 | C77: 0 | D77: 0.3799999888 | E77: 0.8000000093 | F77: 2242.840088 | G77: 2007.449951 | H77: 8.03736496 | I77: 392.1899719 | J77: 393.5456238 | K77: 1825.003219 | L77: 169.1810634 | M77: 13.26569446 | N77: 75.34928541 | O77: 3.686906491 | P77: 0.4206148083 | Q77: 0.02734156956 | R77: 10.90622302 | S77: 4.083445667 | T77: 2.638733085 | U77: 401.9649097
A78: 33.5719986 | B78: 18.76000023 | C78: 0 | D78: 0.3799999888 | E78: 0.8000000093 | F78: 2242.840088 | G78: 2007.449951 | H78: 8.037212372 | I78: 392.3514709 | J78: 393.70755 | K78: 1824.997551 | L78: 169.1850353 | M78: 13.26739083 | N78: 75.34482133 | O78: 3.689090401 | P78: 0.4206210982 | Q78: 0.02734321989 | R78: 10.90604456 | S78: 4.083584132 | T78: 2.638888026 | U78: 402.1356609
A79: 33.5719986 | B79: 18.77000046 | C79: 0 | D79: 0.3799999888 | E79: 0.8000000093 | F79: 2242.840088 | G79: 2007.449951 | H79: 8.037060738 | I79: 392.5130005 | J79: 393.8694458 | K79: 1824.991883 | L79: 169.1890063 | M79: 13.2690877 | N79: 75.34035761 | O79: 3.691275362 | P79: 0.4206273883 | Q79: 0.0273448695 | R79: 10.90586605 | S79: 4.083722628 | T79: 2.639043015 | U79: 402.3064196
A80: 33.5719986 | B80: 18.78000069 | C80: 0 | D80: 0.3799999888 | E80: 0.8000000093 | F80: 2242.840088 | G80: 2007.449951 | H80: 8.03690815 | I80: 392.6745911 | J80: 394.0314026 | K80: 1824.986216 | L80: 169.1929764 | M80: 13.27078508 | N80: 75.33589425 | O80: 3.693461376 | P80: 0.4206336785 | Q80: 0.02734651838 | R80: 10.9056875 | S80: 4.083861155 | T80: 2.639198052 | U80: 402.4772453
A81: 33.5719986 | B81: 18.79000092 | C81: 0 | D81: 0.3799999888 | E81: 0.8000000093 | F81: 2242.840088 | G81: 2007.449951 | H81: 8.036756516 | I81: 392.8362122 | J81: 394.1934204 | K81: 1824.980548 | L81: 169.1969456 | M81: 13.27248297 | N81: 75.33143124 | O81: 3.695648444 | P81: 0.4206399688 | Q81: 0.02734816653 | R81: 10.9055089 | S81: 4.083999713 | T81: 2.639353138 | U81: 402.648138
A82: 33.5719986 | B82: 18.79999924 | C82: 0 | D82: 0.3799999888 | E82: 0.8000000093 | F82: 2242.840088 | G82: 2007.449951 | H82: 8.036603928 | I82: 392.9978638 | J82: 394.3554688 | K82: 1824.974883 | L82: 169.2009132 | M82: 13.27418105 | N82: 75.32696943 | O82: 3.697836146 | P82: 0.420646258 | Q82: 0.02734981364 | R82: 10.90533028 | S82: 4.084138276 | T82: 2.639508243 | U82: 402.8190669
A83: 33.5719986 | B83: 18.80999947 | C83: 0 | D83: 0.3799999888 | E83: 0.8000000093 | F83: 2242.840088 | G83: 2007.449951 | H83: 8.036452293 | I83: 393.1596375 | J83: 394.5176086 | K83: 1824.969217 | L83: 169.2048806 | M83: 13.27587995 | N83: 75.32250714 | O83: 3.70002532 | P83: 0.4206525485 | Q83: 0.02735146034 | R83: 10.90515158 | S83: 4.084276897 | T83: 2.639663427 | U83: 402.9900936
A84: 33.5719986 | B84: 18.81999969 | C84: 0 | D84: 0.3799999888 | E84: 0.8000000093 | F84: 2242.840088 | G84: 2007.449951 | H84: 8.036299706 | I84: 393.3214111 | J84: 394.6798096 | K84: 1824.963551 | L84: 169.2088471 | M84: 13.27757937 | N84: 75.3180452 | O84: 3.702215547 | P84: 0.4206588392 | Q84: 0.0273531063 | R84: 10.90497284 | S84: 4.084415548 | T84: 2.639818659 | U84: 403.1611873
A85: 33.5719986 | B85: 18.82999992 | C85: 0 | D85: 0.3799999888 | E85: 0.8000000093 | F85: 2242.840088 | G85: 2007.449951 | H85: 8.036148071 | I85: 393.4833069 | J85: 394.8420715 | K85: 1824.957885 | L85: 169.2128127 | M85: 13.27927929 | N85: 75.31358361 | O85: 3.704406829 | P85: 0.4206651299 | Q85: 0.02735475154 | R85: 10.90479404 | S85: 4.084554231 | T85: 2.639973939 | U85: 403.332348
A86: 33.5719986 | B86: 18.84000015 | C86: 0 | D86: 0.3799999888 | E86: 0.8000000093 | F86: 2242.840088 | G86: 2007.449951 | H86: 8.035995483 | I86: 393.6452026 | J86: 395.0043335 | K86: 1824.95222 | L86: 169.2167774 | M86: 13.28097973 | N86: 75.30912238 | O86: 3.706599165 | P86: 0.4206714208 | Q86: 0.02735639605 | R86: 10.9046152 | S86: 4.084692944 | T86: 2.640129268 | U86: 403.503546
A87: 33.5719986 | B87: 18.85000038 | C87: 0 | D87: 0.3799999888 | E87: 0.8000000093 | F87: 2242.840088 | G87: 2007.449951 | H87: 8.035843849 | I87: 393.8071594 | J87: 395.1667175 | K87: 1824.946555 | L87: 169.2207412 | M87: 13.28268067 | N87: 75.30466151 | O87: 3.708792556 | P87: 0.4206777118 | Q87: 0.02735803983 | R87: 10.90443631 | S87: 4.084831689 | T87: 2.640284646 | U87: 403.6748408
A88: 33.5719986 | B88: 18.86000061 | C88: 0 | D88: 0.3799999888 | E88: 0.8000000093 | F88: 2242.840088 | G88: 2007.449951 | H88: 8.035692215 | I88: 393.9691772 | J88: 395.3291016 | K88: 1824.940891 | L88: 169.2247041 | M88: 13.28438212 | N88: 75.300201 | O88: 3.710987002 | P88: 0.4206840028 | Q88: 0.02735968288 | R88: 10.90425738 | S88: 4.084970465 | T88: 2.640440072 | U88: 403.8461729
A89: 33.5719986 | B89: 18.87000084 | C89: 0 | D89: 0.3799999888 | E89: 0.8000000093 | F89: 2242.840088 | G89: 2007.449951 | H89: 8.035539627 | I89: 394.1312561 | J89: 395.4916077 | K89: 1824.935227 | L89: 169.2286661 | M89: 13.28608408 | N89: 75.29574084 | O89: 3.713182504 | P89: 0.420690294 | Q89: 0.0273613252 | R89: 10.90407839 | S89: 4.085109272 | T89: 2.640595547 | U89: 404.0176018
A90: 33.5719986 | B90: 18.87999916 | C90: 0 | D90: 0.3799999888 | E90: 0.8000000093 | F90: 2242.840088 | G90: 2007.449951 | H90: 8.035387993 | I90: 394.2933655 | J90: 395.6540833 | K90: 1824.929564 | L90: 169.2326265 | M90: 13.28778623 | N90: 75.29128189 | O90: 3.715378643 | P90: 0.4206965842 | Q90: 0.02736296647 | R90: 10.90389939 | S90: 4.085248084 | T90: 2.640751041 | U90: 404.1890373
A91: 33.5719986 | B91: 18.88999939 | C91: 0 | D91: 0.3799999888 | E91: 0.8000000093 | F91: 2242.840088 | G91: 2007.449951 | H91: 8.035235405 | I91: 394.4555664 | J91: 395.8166504 | K91: 1824.923901 | L91: 169.2365866 | M91: 13.28948921 | N91: 75.28682245 | O91: 3.717576257 | P91: 0.4207028756 | Q91: 0.02736460734 | R91: 10.90372031 | S91: 4.085386953 | T91: 2.640906613 | U91: 404.3605706
A92: 33.5719986 | B92: 18.89999962 | C92: 0 | D92: 0.3799999888 | E92: 0.8000000093 | F92: 2242.840088 | G92: 2007.449951 | H92: 8.035083771 | I92: 394.6178284 | J92: 395.9793396 | K92: 1824.918238 | L92: 169.2405459 | M92: 13.2911927 | N92: 75.28236337 | O92: 3.719774928 | P92: 0.4207091671 | Q92: 0.02736624747 | R92: 10.90354119 | S92: 4.085525854 | T92: 2.641062234 | U92: 404.5322007
A93: 33.5719986 | B93: 18.90999985 | C93: 0 | D93: 0.3799999888 | E93: 0.8000000093 | F93: 2242.840088 | G93: 2007.449951 | H93: 8.034932137 | I93: 394.7800903 | J93: 396.1419983 | K93: 1824.912576 | L93: 169.2445043 | M93: 13.2928967 | N93: 75.27790465 | O93: 3.721974656 | P93: 0.4207154587 | Q93: 0.02736788687 | R93: 10.90336201 | S93: 4.085664785 | T93: 2.641217903 | U93: 404.7038384
A94: 33.5719986 | B94: 18.92000008 | C94: 0 | D94: 0.3799999888 | E94: 0.8000000093 | F94: 2242.840088 | G94: 2007.449951 | H94: 8.034779549 | I94: 394.9424744 | J94: 396.3047791 | K94: 1824.906914 | L94: 169.2484618 | M94: 13.29460121 | N94: 75.27344628 | O94: 3.724175441 | P94: 0.4207217505 | Q94: 0.02736952554 | R94: 10.90318279 | S94: 4.085803748 | T94: 2.641373621 | U94: 404.8756027
A95: 33.5719986 | B95: 18.93000031 | C95: 0 | D95: 0.3799999888 | E95: 0.8000000093 | F95: 2242.840088 | G95: 2007.449951 | H95: 8.034627914 | I95: 395.1048584 | J95: 396.4675293 | K95: 1824.901252 | L95: 169.2524184 | M95: 13.29630623 | N95: 75.26898827 | O95: 3.726377284 | P95: 0.4207280424 | Q95: 0.02737116349 | R95: 10.90300351 | S95: 4.085942741 | T95: 2.641529388 | U95: 405.0473746
A96: 33.5719986 | B96: 18.94000053 | C96: 0 | D96: 0.3799999888 | E96: 0.8000000093 | F96: 2242.840088 | G96: 2007.449951 | H96: 8.034475327 | I96: 395.2673645 | J96: 396.6304016 | K96: 1824.895591 | L96: 169.2563741 | M96: 13.29801176 | N96: 75.26453062 | O96: 3.728580185 | P96: 0.4207343343 | Q96: 0.0273728007 | R96: 10.90282419 | S96: 4.086081766 | T96: 2.641685203 | U96: 405.2192433
A97: 33.5719986 | B97: 18.95000076 | C97: 0 | D97: 0.3799999888 | E97: 0.8000000093 | F97: 2242.840088 | G97: 2007.449951 | H97: 8.034323692 | I97: 395.4298706 | J97: 396.793335 | K97: 1824.88993 | L97: 169.2603288 | M97: 13.2997178 | N97: 75.26007333 | O97: 3.730784144 | P97: 0.4207406264 | Q97: 0.02737443718 | R97: 10.90264483 | S97: 4.086220822 | T97: 2.641841067 | U97: 405.3911792
A98: 33.5719986 | B98: 18.95999908 | C98: 0 | D98: 0.3799999888 | E98: 0.8000000093 | F98: 2242.840088 | G98: 2007.449951 | H98: 8.034172058 | I98: 395.5924072 | J98: 396.9562683 | K98: 1824.884271 | L98: 169.2642819 | M98: 13.30142402 | N98: 75.25561725 | O98: 3.732988742 | P98: 0.4207469174 | Q98: 0.02737607262 | R98: 10.90246544 | S98: 4.086359883 | T98: 2.64199695 | U98: 405.5631217
A99: 33.5719986 | B99: 18.96999931 | C99: 0 | D99: 0.3799999888 | E99: 0.8000000093 | F99: 2242.840088 | G99: 2007.449951 | H99: 8.03401947 | I99: 395.7550659 | J99: 397.1192932 | K99: 1824.878611 | L99: 169.2682349 | M99: 13.30313109 | N99: 75.25116068 | O99: 3.735194819 | P99: 0.4207532097 | Q99: 0.02737770764 | R99: 10.90228598 | S99: 4.086499001 | T99: 2.642152911 | U99: 405.7351918
A100: 33.5719986 | B100: 18.97999954 | C100: 0 | D100: 0.3799999888 | E100: 0.8000000093 | F100: 2242.840088 | G100: 2007.449951 | H100: 8.033867836 | I100: 395.9177551 | J100: 397.2823486 | K100: 1824.872952 | L100: 169.2721869 | M100: 13.30483866 | N100: 75.24670447 | O100: 3.737401956 | P100: 0.4207595021 | Q100: 0.02737934193 | R100: 10.90210647 | S100: 4.08663815 | T100: 2.642308921 | U100: 405.9072993
A101: 33.5719986 | B101: 18.98999977 | C101: 0 | D101: 0.3799999888 | E101: 0.8000000093 | F101: 2242.840088 | G101: 2007.449951 | H101: 8.033716202 | I101: 396.0804749 | J101: 397.4454956 | K101: 1824.867292 | L101: 169.2761381 | M101: 13.30654674 | N101: 75.24224862 | O101: 3.739610153 | P101: 0.4207657946 | Q101: 0.02738097549 | R101: 10.90192691 | S101: 4.08677733 | T101: 2.64246498 | U101: 406.079474
A102: 33.5719986 | B102: 19 | C102: 0 | D102: 0.3799999888 | E102: 0.8000000093 | F102: 2242.840088 | G102: 2007.449951 | H102: 8.033563614 | I102: 396.2432556 | J102: 397.6086731 | K102: 1824.861633 | L102: 169.2800883 | M102: 13.30825534 | N102: 75.23779313 | O102: 3.74181941 | P102: 0.4207720873 | Q102: 0.02738260832 | R102: 10.9017473 | S102: 4.086916542 | T102: 2.642621087 | U102: 406.2517158
A103: 33.5719986 | B103: 19.01000023 | C103: 0 | D103: 0.3799999888 | E103: 0.8000000093 | F103: 2242.840088 | G103: 2007.449951 | H103: 8.03341198 | I103: 396.4061279 | J103: 397.7719116 | K103: 1824.855975 | L103: 169.2840376 | M103: 13.30996444 | N103: 75.233338 | O103: 3.744029728 | P103: 0.42077838 | Q103: 0.02738424042 | R103: 10.90156765 | S103: 4.087055785 | T103: 2.642777243 | U103: 406.4240248
A104: 33.5719986 | B104: 19.02000046 | C104: 0 | D104: 0.3799999888 | E104: 0.8000000093 | F104: 2242.840088 | G104: 2007.449951 | H104: 8.033260345 | I104: 396.5690613 | J104: 397.9352417 | K104: 1824.850317 | L104: 169.287986 | M104: 13.31167406 | N104: 75.22888323 | O104: 3.746241106 | P104: 0.4207846728 | Q104: 0.02738587179 | R104: 10.90138794 | S104: 4.087195058 | T104: 2.642933447 | U104: 406.5964307
A105: 33.5719986 | B105: 19.03000069 | C105: 0 | D105: 0.3799999888 | E105: 0.8000000093 | F105: 2242.840088 | G105: 2007.449951 | H105: 8.033108711 | I105: 396.7319946 | J105: 398.0985718 | K105: 1824.844659 | L105: 169.2919336 | M105: 13.31338419 | N105: 75.22442882 | O105: 3.748453546 | P105: 0.4207909658 | Q105: 0.02738750243 | R105: 10.90120819 | S105: 4.087334363 | T105: 2.6430897 | U105: 406.7688443
A106: 33.5719986 | B106: 19.04000092 | C106: 0 | D106: 0.3799999888 | E106: 0.8000000093 | F106: 2242.840088 | G106: 2007.449951 | H106: 8.032956123 | I106: 396.89505 | J106: 398.2619934 | K106: 1824.839002 | L106: 169.2958802 | M106: 13.31509484 | N106: 75.21997477 | O106: 3.750667048 | P106: 0.4207972588 | Q106: 0.02738913233 | R106: 10.90102839 | S106: 4.087473699 | T106: 2.643246002 | U106: 406.9413549
A107: 33.5719986 | B107: 19.04999924 | C107: 0 | D107: 0.3799999888 | E107: 0.8000000093 | F107: 2242.840088 | G107: 2007.449951 | H107: 8.032804489 | I107: 397.058075 | J107: 398.4254456 | K107: 1824.833346 | L107: 169.2998251 | M107: 13.31680566 | N107: 75.21552193 | O107: 3.752881189 | P107: 0.4208035508 | Q107: 0.0273907612 | R107: 10.90084858 | S107: 4.08761304 | T107: 2.643402323 | U107: 407.1139018
A108: 33.5719986 | B108: 19.05999947 | C108: 0 | D108: 0.3799999888 | E108: 0.8000000093 | F108: 2242.840088 | G108: 2007.449951 | H108: 8.032652855 | I108: 397.2212219 | J108: 398.5889587 | K108: 1824.82769 | L108: 169.3037699 | M108: 13.31851733 | N108: 75.2110686 | O108: 3.755096814 | P108: 0.4208098441 | Q108: 0.02739238964 | R108: 10.90066868 | S108: 4.087752438 | T108: 2.643558722 | U108: 407.286517
A109: 33.5719986 | B109: 19.06999969 | C109: 0 | D109: 0.3799999888 | E109: 0.8000000093 | F109: 2242.840088 | G109: 2007.449951 | H109: 8.032500267 | I109: 397.3843994 | J109: 398.752533 | K109: 1824.822034 | L109: 169.3077137 | M109: 13.32022951 | N109: 75.20661564 | O109: 3.757313503 | P109: 0.4208161374 | Q109: 0.02739401735 | R109: 10.90048874 | S109: 4.087891867 | T109: 2.64371517 | U109: 407.4592291
A110: 33.5719986 | B110: 19.07999992 | C110: 0 | D110: 0.3799999888 | E110: 0.8000000093 | F110: 2242.840088 | G110: 2007.449951 | H110: 8.032348633 | I110: 397.5476379 | J110: 398.9161682 | K110: 1824.816378 | L110: 169.3116567 | M110: 13.3219422 | N110: 75.20216304 | O110: 3.759531254 | P110: 0.4208224309 | Q110: 0.02739564433 | R110: 10.90030875 | S110: 4.088031328 | T110: 2.643871667 | U110: 407.6319788
A111: 33.5719986 | B111: 19.09000015 | C111: 0 | D111: 0.3799999888 | E111: 0.8000000093 | F111: 2242.840088 | G111: 2007.449951 | H111: 8.032196999 | I111: 397.7109375 | J111: 399.0798645 | K111: 1824.810723 | L111: 169.3155987 | M111: 13.3236554 | N111: 75.1977108 | O111: 3.761750069 | P111: 0.4208287245 | Q111: 0.02739727058 | R111: 10.90012871 | S111: 4.088170819 | T111: 2.644028212 | U111: 407.8048254
A112: 33.5719986 | B112: 19.10000038 | C112: 0 | D112: 0.3799999888 | E112: 0.8000000093 | F112: 2242.840088 | G112: 2007.449951 | H112: 8.032045364 | I112: 397.8742981 | J112: 399.2436218 | K112: 1824.805068 | L112: 169.3195399 | M112: 13.32536911 | N112: 75.19325892 | O112: 3.763969948 | P112: 0.4208350182 | Q112: 0.0273988961 | R112: 10.89994862 | S112: 4.088310342 | T112: 2.644184806 | U112: 407.9777094
A113: 33.5719986 | B113: 19.11000061 | C113: 0 | D113: 0.3799999888 | E113: 0.8000000093 | F113: 2242.840088 | G113: 2007.449951 | H113: 8.03189373 | I113: 398.0377197 | J113: 399.4074097 | K113: 1824.799414 | L113: 169.3234801 | M113: 13.32708334 | N113: 75.1888074 | O113: 3.76619089 | P113: 0.420841312 | Q113: 0.02740052088 | R113: 10.89976848 | S113: 4.088449896 | T113: 2.644341449 | U113: 408.1506608
A114: 33.5719986 | B114: 19.12000084 | C114: 0 | D114: 0.3799999888 | E114: 0.8000000093 | F114: 2242.840088 | G114: 2007.449951 | H114: 8.031741142 | I114: 398.2011719 | J114: 399.5712585 | K114: 1824.79376 | L114: 169.3274194 | M114: 13.32879808 | N114: 75.18435625 | O114: 3.768412898 | P114: 0.4208476059 | Q114: 0.02740214493 | R114: 10.8995883 | S114: 4.088589481 | T114: 2.64449814 | U114: 408.3236793
A115: 33.5719986 | B115: 19.12999916 | C115: 0 | D115: 0.3799999888 | E115: 0.8000000093 | F115: 2242.840088 | G115: 2007.449951 | H115: 8.031589508 | I115: 398.3646851 | J115: 399.7351379 | K115: 1824.788107 | L115: 169.3313571 | M115: 13.33051301 | N115: 75.17990631 | O115: 3.770635546 | P115: 0.4208538987 | Q115: 0.02740376794 | R115: 10.8994081 | S115: 4.08872907 | T115: 2.64465485 | U115: 408.4967344
A116: 33.5719986 | B116: 19.13999939 | C116: 0 | D116: 0.3799999888 | E116: 0.8000000093 | F116: 2242.840088 | G116: 2007.449951 | H116: 8.031437874 | I116: 398.5282288 | J116: 399.8991089 | K116: 1824.782454 | L116: 169.3352945 | M116: 13.33222878 | N116: 75.17545588 | O116: 3.772859683 | P116: 0.4208601928 | Q116: 0.02740539053 | R116: 10.89922782 | S116: 4.088868717 | T116: 2.644811639 | U116: 408.6698875
A117: 33.5719986 | B117: 19.14999962 | C117: 0 | D117: 0.3799999888 | E117: 0.8000000093 | F117: 2242.840088 | G117: 2007.449951 | H117: 8.03128624 | I117: 398.6918945 | J117: 400.0631409 | K117: 1824.776801 | L117: 169.3392311 | M117: 13.33394506 | N117: 75.17100582 | O117: 3.775084886 | P117: 0.420866487 | Q117: 0.02740701239 | R117: 10.89904749 | S117: 4.089008395 | T117: 2.644968477 | U117: 408.8431078
A118: 33.5719986 | B118: 19.15999985 | C118: 0 | D118: 0.3799999888 | E118: 0.8000000093 | F118: 2242.840088 | G118: 2007.449951 | H118: 8.031134605 | I118: 398.8555603 | J118: 400.2272339 | K118: 1824.771148 | L118: 169.3431668 | M118: 13.33566185 | N118: 75.16655612 | O118: 3.777311154 | P118: 0.4208727813 | Q118: 0.02740863351 | R118: 10.89886711 | S118: 4.089148105 | T118: 2.645125363 | U118: 409.0163955
A119: 33.5719986 | B119: 19.17000008 | C119: 0 | D119: 0.3799999888 | E119: 0.8000000093 | F119: 2242.840088 | G119: 2007.449951 | H119: 8.030982018 | I119: 399.0193176 | J119: 400.3913574 | K119: 1824.765496 | L119: 169.3471015 | M119: 13.33737916 | N119: 75.16210678 | O119: 3.779538489 | P119: 0.4208790757 | Q119: 0.0274102539 | R119: 10.89868669 | S119: 4.089287845 | T119: 2.645282298 | U119: 409.1897207
A120: 33.5719986 | B120: 19.18000031 | C120: 0 | D120: 0.3799999888 | E120: 0.8000000093 | F120: 2242.840088 | G120: 2007.449951 | H120: 8.030830383 | I120: 399.1831055 | J120: 400.555542 | K120: 1824.759845 | L120: 169.3510353 | M120: 13.33909698 | N120: 75.15765781 | O120: 3.781766891 | P120: 0.4208853703 | Q120: 0.02741187356 | R120: 10.89850621 | S120: 4.089427617 | T120: 2.645439282 | U120: 409.3631429
A121: 33.5719986 | B121: 19.19000053 | C121: 0 | D121: 0.3799999888 | E121: 0.8000000093 | F121: 2242.840088 | G121: 2007.449951 | H121: 8.030678749 | I121: 399.3469849 | J121: 400.7198181 | K121: 1824.754194 | L121: 169.3549682 | M121: 13.34081531 | N121: 75.1532092 | O121: 3.783996359 | P121: 0.4208916649 | Q121: 0.02741349249 | R121: 10.89832569 | S121: 4.08956742 | T121: 2.645596314 | U121: 409.5366325
A122: 33.5719986 | B122: 19.20000076 | C122: 0 | D122: 0.3799999888 | E122: 0.8000000093 | F122: 2242.840088 | G122: 2007.449951 | H122: 8.030527115 | I122: 399.5108643 | J122: 400.8840942 | K122: 1824.748543 | L122: 169.3589002 | M122: 13.34253416 | N122: 75.14876095 | O122: 3.786226895 | P122: 0.4208979596 | Q122: 0.02741511068 | R122: 10.89814512 | S122: 4.089707254 | T122: 2.645753396 | U122: 409.7101596
A123: 33.5719986 | B123: 19.20999908 | C123: 0 | D123: 0.3799999888 | E123: 0.8000000093 | F123: 2242.840088 | G123: 2007.449951 | H123: 8.030375481 | I123: 399.6748047 | J123: 401.0484314 | K123: 1824.742893 | L123: 169.3628306 | M123: 13.3442532 | N123: 75.14431392 | O123: 3.788458073 | P123: 0.4209042532 | Q123: 0.02741672783 | R123: 10.89796454 | S123: 4.089847092 | T123: 2.645910496 | U123: 409.8837232
A124: 33.5719986 | B124: 19.21999931 | C124: 0 | D124: 0.3799999888 | E124: 0.8000000093 | F124: 2242.840088 | G124: 2007.449951 | H124: 8.030223846 | I124: 399.8388367 | J124: 401.2128296 | K124: 1824.737243 | L124: 169.3667607 | M124: 13.34597307 | N124: 75.13986641 | O124: 3.790690744 | P124: 0.4209105482 | Q124: 0.02741834456 | R124: 10.89778387 | S124: 4.089986989 | T124: 2.646067674 | U124: 410.057385
A125: 33.5719986 | B125: 19.22999954 | C125: 0 | D125: 0.3799999888 | E125: 0.8000000093 | F125: 2242.840088 | G125: 2007.449951 | H125: 8.030072212 | I125: 400.0029297 | J125: 401.3773193 | K125: 1824.731594 | L125: 169.37069 | M125: 13.34769347 | N125: 75.13541926 | O125: 3.792924484 | P125: 0.4209168432 | Q125: 0.02741996055 | R125: 10.89760315 | S125: 4.090126916 | T125: 2.646224902 | U125: 410.2311439
A126: 33.5719986 | B126: 19.23999977 | C126: 0 | D126: 0.3799999888 | E126: 0.8000000093 | F126: 2242.840088 | G126: 2007.449951 | H126: 8.029920578 | I126: 400.1670837 | J126: 401.5418396 | K126: 1824.725944 | L126: 169.3746183 | M126: 13.34941437 | N126: 75.13097247 | O126: 3.795159292 | P126: 0.4209231383 | Q126: 0.02742157581 | R126: 10.89742239 | S126: 4.090266875 | T126: 2.646382178 | U126: 410.4049403
A127: 33.5719986 | B127: 19.25 | C127: 0 | D127: 0.3799999888 | E127: 0.8000000093 | F127: 2242.840088 | G127: 2007.449951 | H127: 8.029768944 | I127: 400.3312378 | J127: 401.7064209 | K127: 1824.720296 | L127: 169.3785457 | M127: 13.35113579 | N127: 75.12652605 | O127: 3.79739517 | P127: 0.4209294336 | Q127: 0.02742319034 | R127: 10.89724158 | S127: 4.090406864 | T127: 2.646539503 | U127: 410.5788041
A128: 33.5719986 | B128: 19.26000023 | C128: 0 | D128: 0.3799999888 | E128: 0.8000000093 | F128: 2242.840088 | G128: 2007.449951 | H128: 8.029616356 | I128: 400.4955139 | J128: 401.8710632 | K128: 1824.714647 | L128: 169.3824722 | M128: 13.35285773 | N128: 75.12208 | O128: 3.799632117 | P128: 0.4209357289 | Q128: 0.02742480413 | R128: 10.89706072 | S128: 4.090546885 | T128: 2.646696877 | U128: 410.7527353
A129: 33.5719986 | B129: 19.27000046 | C129: 0 | D129: 0.3799999888 | E129: 0.8000000093 | F129: 2242.840088 | G129: 2007.449951 | H129: 8.029464722 | I129: 400.65979 | J129: 402.0357666 | K129: 1824.708999 | L129: 169.3863977 | M129: 13.35458018 | N129: 75.11763431 | O129: 3.801870134 | P129: 0.4209420243 | Q129: 0.02742641719 | R129: 10.89687981 | S129: 4.090686937 | T129: 2.646854299 | U129: 410.9267338
A130: 33.5719986 | B130: 19.28000069 | C130: 0 | D130: 0.3799999888 | E130: 0.8000000093 | F130: 2242.840088 | G130: 2007.449951 | H130: 8.029313087 | I130: 400.8241577 | J130: 402.2005005 | K130: 1824.703352 | L130: 169.3903224 | M130: 13.35630315 | N130: 75.11318899 | O130: 3.804109221 | P130: 0.4209483199 | Q130: 0.02742802951 | R130: 10.89669885 | S130: 4.09082702 | T130: 2.64701177 | U130: 411.10077
A131: 33.5719986 | B131: 19.29000092 | C131: 0 | D131: 0.3799999888 | E131: 0.8000000093 | F131: 2242.840088 | G131: 2007.449951 | H131: 8.029161453 | I131: 400.9885864 | J131: 402.3653564 | K131: 1824.697704 | L131: 169.3942461 | M131: 13.35802663 | N131: 75.10874403 | O131: 3.806349379 | P131: 0.4209546155 | Q131: 0.02742964111 | R131: 10.89651785 | S131: 4.090967134 | T131: 2.64716929 | U131: 411.2749331
A132: 33.5719986 | B132: 19.29999924 | C132: 0 | D132: 0.3799999888 | E132: 0.8000000093 | F132: 2242.840088 | G132: 2007.449951 | H132: 8.029009819 | I132: 401.1530151 | J132: 402.5301514 | K132: 1824.692059 | L132: 169.3981682 | M132: 13.35975029 | N132: 75.10430029 | O132: 3.80859018 | P132: 0.4209609101 | Q132: 0.02743125166 | R132: 10.89633683 | S132: 4.091107253 | T132: 2.647326829 | U132: 411.4490732
A133: 33.5719986 | B133: 19.30999947 | C133: 0 | D133: 0.3799999888 | E133: 0.8000000093 | F133: 2242.840088 | G133: 2007.449951 | H133: 8.028858185 | I133: 401.3175354 | J133: 402.6950989 | K133: 1824.686412 | L133: 169.4020901 | M133: 13.36147481 | N133: 75.09985607 | O133: 3.810832479 | P133: 0.4209672059 | Q133: 0.02743286178 | R133: 10.89615573 | S133: 4.091247429 | T133: 2.647484447 | U133: 411.6233413
A134: 33.5719986 | B134: 19.31999969 | C134: 0 | D134: 0.3799999888 | E134: 0.8000000093 | F134: 2242.840088 | G134: 2007.449951 | H134: 8.028706551 | I134: 401.4821167 | J134: 402.8600464 | K134: 1824.680766 | L134: 169.406011 | M134: 13.36319983 | N134: 75.09541221 | O134: 3.81307585 | P134: 0.4209735018 | Q134: 0.02743447117 | R134: 10.89597458 | S134: 4.091387637 | T134: 2.647642113 | U134: 411.7976471
A135: 33.5719986 | B135: 19.32999992 | C135: 0 | D135: 0.3799999888 | E135: 0.8000000093 | F135: 2242.840088 | G135: 2007.449951 | H135: 8.028554916 | I135: 401.646759 | J135: 403.0250854 | K135: 1824.675121 | L135: 169.4099311 | M135: 13.36492538 | N135: 75.09096872 | O135: 3.815320293 | P135: 0.4209797979 | Q135: 0.02743607983 | R135: 10.89579338 | S135: 4.091527875 | T135: 2.647799828 | U135: 411.97205
A136: 33.5719986 | B136: 19.34000015 | C136: 0 | D136: 0.3799999888 | E136: 0.8000000093 | F136: 2242.840088 | G136: 2007.449951 | H136: 8.028403282 | I136: 401.8114624 | J136: 403.1901855 | K136: 1824.669475 | L136: 169.4138502 | M136: 13.36665144 | N136: 75.0865256 | O136: 3.817565809 | P136: 0.420986094 | Q136: 0.02743768775 | R136: 10.89561213 | S136: 4.091668145 | T136: 2.647957592 | U136: 412.1464906
A137: 33.5719986 | B137: 19.35000038 | C137: 0 | D137: 0.3799999888 | E137: 0.8000000093 | F137: 2242.840088 | G137: 2007.449951 | H137: 8.028251648 | I137: 401.9762268 | J137: 403.3553467 | K137: 1824.663831 | L137: 169.4177684 | M137: 13.36837801 | N137: 75.08208285 | O137: 3.819812397 | P137: 0.4209923902 | Q137: 0.02743929493 | R137: 10.89543083 | S137: 4.091808446 | T137: 2.648115405 | U137: 412.3210284
A138: 33.5719986 | B138: 19.36000061 | C138: 0 | D138: 0.3799999888 | E138: 0.8000000093 | F138: 2242.840088 | G138: 2007.449951 | H138: 8.028100014 | I138: 402.1410217 | J138: 403.5205078 | K138: 1824.658186 | L138: 169.4216857 | M138: 13.37010511 | N138: 75.07764046 | O138: 3.822060058 | P138: 0.4209986865 | Q138: 0.02744090139 | R138: 10.89524949 | S138: 4.091948779 | T138: 2.648273267 | U138: 412.4955742
A139: 33.5719986 | B139: 19.37000084 | C139: 0 | D139: 0.3799999888 | E139: 0.8000000093 | F139: 2242.840088 | G139: 2007.449951 | H139: 8.02794838 | I139: 402.3058777 | J139: 403.685791 | K139: 1824.652542 | L139: 169.425602 | M139: 13.37183271 | N139: 75.07319844 | O139: 3.824308792 | P139: 0.421004983 | Q139: 0.0274425071 | R139: 10.8950681 | S139: 4.092089142 | T139: 2.648431177 | U139: 412.6702469
A140: 33.5719986 | B140: 19.37999916 | C140: 0 | D140: 0.3799999888 | E140: 0.8000000093 | F140: 2242.840088 | G140: 2007.449951 | H140: 8.027796745 | I140: 402.4707947 | J140: 403.8510742 | K140: 1824.6469 | L140: 169.4295167 | M140: 13.37356051 | N140: 75.06875764 | O140: 3.826558171 | P140: 0.4210112783 | Q140: 0.02744411178 | R140: 10.89488669 | S140: 4.09222951 | T140: 2.648589106 | U140: 412.8449264
A141: 33.5719986 | B141: 19.38999939 | C141: 0 | D141: 0.3799999888 | E141: 0.8000000093 | F141: 2242.840088 | G141: 2007.449951 | H141: 8.027645111 | I141: 402.6357422 | J141: 404.016449 | K141: 1824.641257 | L141: 169.4334312 | M141: 13.37528915 | N141: 75.06431636 | O141: 3.828809053 | P141: 0.4210175749 | Q141: 0.02744571603 | R141: 10.8947052 | S141: 4.092369935 | T141: 2.648747114 | U141: 413.0197043
A142: 33.5719986 | B142: 19.39999962 | C142: 0 | D142: 0.3799999888 | E142: 0.8000000093 | F142: 2242.840088 | G142: 2007.449951 | H142: 8.027493477 | I142: 402.8007812 | J142: 404.1818237 | K142: 1824.635614 | L142: 169.4373448 | M142: 13.37701831 | N142: 75.05987544 | O142: 3.83106101 | P142: 0.4210238716 | Q142: 0.02744731954 | R142: 10.89452366 | S142: 4.092510392 | T142: 2.648905171 | U142: 413.1945199
A143: 33.5719986 | B143: 19.40999985 | C143: 0 | D143: 0.3799999888 | E143: 0.8000000093 | F143: 2242.840088 | G143: 2007.449951 | H143: 8.027341843 | I143: 402.9658813 | J143: 404.3473511 | K143: 1824.629972 | L143: 169.4412575 | M143: 13.37874798 | N143: 75.0554349 | O143: 3.833314041 | P143: 0.4210301684 | Q143: 0.02744892232 | R143: 10.89434207 | S143: 4.09265088 | T143: 2.649063277 | U143: 413.3694625
A144: 33.5719986 | B144: 19.42000008 | C144: 0 | D144: 0.3799999888 | E144: 0.8000000093 | F144: 2242.840088 | G144: 2007.449951 | H144: 8.027190208 | I144: 403.131012 | J144: 404.5128479 | K144: 1824.62433 | L144: 169.4451692 | M144: 13.38047818 | N144: 75.05099472 | O144: 3.835568148 | P144: 0.4210364654 | Q144: 0.02745052436 | R144: 10.89416044 | S144: 4.092791399 | T144: 2.649221431 | U144: 413.5444131
A145: 33.5719986 | B145: 19.43000031 | C145: 0 | D145: 0.3799999888 | E145: 0.8000000093 | F145: 2242.840088 | G145: 2007.449951 | H145: 8.027038574 | I145: 403.2962036 | J145: 404.6784668 | K145: 1824.618688 | L145: 169.44908 | M145: 13.38220889 | N145: 75.04655492 | O145: 3.83782333 | P145: 0.4210427624 | Q145: 0.02745212567 | R145: 10.89397875 | S145: 4.092931949 | T145: 2.649379634 | U145: 413.7194609
A146: 33.5719986 | B146: 19.44000053 | C146: 0 | D146: 0.3799999888 | E146: 0.8000000093 | F146: 2242.840088 | G146: 2007.449951 | H146: 8.026887894 | I146: 403.4614868 | J146: 404.8441162 | K146: 1824.613047 | L146: 169.4529899 | M146: 13.38394011 | N146: 75.04211548 | O146: 3.840079587 | P146: 0.4210490595 | Q146: 0.02745372624 | R146: 10.89379702 | S146: 4.09307253 | T146: 2.649537886 | U146: 413.8945762
A147: 33.5719986 | B147: 19.45000076 | C147: 0 | D147: 0.3799999888 | E147: 0.8000000093 | F147: 2242.840088 | G147: 2007.449951 | H147: 8.026736259 | I147: 403.6268005 | J147: 405.0098267 | K147: 1824.607406 | L147: 169.4568989 | M147: 13.38567186 | N147: 75.03767641 | O147: 3.842336922 | P147: 0.4210553567 | Q147: 0.02745532607 | R147: 10.89361524 | S147: 4.093213143 | T147: 2.649696187 | U147: 414.0697591
A148: 33.5719986 | B148: 19.45999908 | C148: 0 | D148: 0.3799999888 | E148: 0.8000000093 | F148: 2242.840088 | G148: 2007.449951 | H148: 8.026584625 | I148: 403.7921448 | J148: 405.1755676 | K148: 1824.601767 | L148: 169.4608061 | M148: 13.38740379 | N148: 75.03323856 | O148: 3.844594901 | P148: 0.4210616527 | Q148: 0.02745692487 | R148: 10.89343344 | S148: 4.09335376 | T148: 2.649854507 | U148: 414.2449786
A149: 33.5719986 | B149: 19.46999931 | C149: 0 | D149: 0.3799999888 | E149: 0.8000000093 | F149: 2242.840088 | G149: 2007.449951 | H149: 8.026432991 | I149: 403.95755 | J149: 405.3414001 | K149: 1824.596127 | L149: 169.4647132 | M149: 13.38913657 | N149: 75.02880023 | O149: 3.846854389 | P149: 0.4210679501 | Q149: 0.02745852323 | R149: 10.89325156 | S149: 4.093494435 | T149: 2.650012906 | U149: 414.4202667
A150: 33.5719986 | B150: 19.47999954 | C150: 0 | D150: 0.3799999888 | E150: 0.8000000093 | F150: 2242.840088 | G150: 2007.449951 | H150: 8.026281357 | I150: 404.1230164 | J150: 405.5072632 | K150: 1824.590488 | L150: 169.4686194 | M150: 13.39086987 | N150: 75.02436228 | O150: 3.849114953 | P150: 0.4210742476 | Q150: 0.02746012086 | R150: 10.89306964 | S150: 4.09363514 | T150: 2.650171353 | U150: 414.5956224
A151: 33.5719986 | B151: 19.48999977 | C151: 0 | D151: 0.3799999888 | E151: 0.8000000093 | F151: 2242.840088 | G151: 2007.449951 | H151: 8.026129723 | I151: 404.2885437 | J151: 405.6731567 | K151: 1824.584849 | L151: 169.4725246 | M151: 13.39260368 | N151: 75.01992469 | O151: 3.851376596 | P151: 0.4210805452 | Q151: 0.02746171775 | R151: 10.89288766 | S151: 4.093775878 | T151: 2.65032985 | U151: 414.7710457
A152: 33.5719986 | B152: 19.5 | C152: 0 | D152: 0.3799999888 | E152: 0.8000000093 | F152: 2242.840088 | G152: 2007.449951 | H152: 8.025978088 | I152: 404.4541626 | J152: 405.8391724 | K152: 1824.57921 | L152: 169.476429 | M152: 13.39433802 | N152: 75.01548747 | O152: 3.853639316 | P152: 0.4210868429 | Q152: 0.02746331391 | R152: 10.89270564 | S152: 4.093916646 | T152: 2.650488395 | U152: 414.9465662
A153: 33.5719986 | B153: 19.51000023 | C153: 0 | D153: 0.3799999888 | E153: 0.8000000093 | F153: 2242.840088 | G153: 2007.449951 | H153: 8.025826454 | I153: 404.619812 | J153: 406.0052185 | K153: 1824.573572 | L153: 169.4803323 | M153: 13.39607287 | N153: 75.01105063 | O153: 3.855903114 | P153: 0.4210931406 | Q153: 0.02746490933 | R153: 10.89252356 | S153: 4.094057445 | T153: 2.650646989 | U153: 415.1221246
A154: 33.5719986 | B154: 19.52000046 | C154: 0 | D154: 0.3799999888 | E154: 0.8000000093 | F154: 2242.840088 | G154: 2007.449951 | H154: 8.02567482 | I154: 404.7854919 | J154: 406.1713257 | K154: 1824.567934 | L154: 169.4842348 | M154: 13.39780824 | N154: 75.00661415 | O154: 3.858167992 | P154: 0.4210994385 | Q154: 0.02746650402 | R154: 10.89234144 | S154: 4.094198276 | T154: 2.650805632 | U154: 415.2977506
A155: 33.5719986 | B155: 19.53000069 | C155: 0 | D155: 0.3799999888 | E155: 0.8000000093 | F155: 2242.840088 | G155: 2007.449951 | H155: 8.025524139 | I155: 404.9512939 | J155: 406.3374634 | K155: 1824.562297 | L155: 169.4881363 | M155: 13.39954413 | N155: 75.00217805 | O155: 3.860433948 | P155: 0.4211057364 | Q155: 0.02746809796 | R155: 10.89215927 | S155: 4.094339138 | T155: 2.650964324 | U155: 415.4734441
A156: 33.5719986 | B156: 19.54000092 | C156: 0 | D156: 0.3799999888 | E156: 0.8000000093 | F156: 2242.840088 | G156: 2007.449951 | H156: 8.025372505 | I156: 405.1170959 | J156: 406.5036621 | K156: 1824.55666 | L156: 169.4920369 | M156: 13.40128054 | N156: 74.99774232 | O156: 3.862700984 | P156: 0.4211120345 | Q156: 0.02746969117 | R156: 10.89197705 | S156: 4.094480031 | T156: 2.651123064 | U156: 415.6492052
A157: 33.5719986 | B157: 19.54999924 | C157: 0 | D157: 0.3799999888 | E157: 0.8000000093 | F157: 2242.840088 | G157: 2007.449951 | H157: 8.025220871 | I157: 405.282959 | J157: 406.6699524 | K157: 1824.551024 | L157: 169.4959358 | M157: 13.40301714 | N157: 74.9933078 | O157: 3.864968667 | P157: 0.4211183314 | Q157: 0.02747128334 | R157: 10.89179482 | S157: 4.094620928 | T157: 2.651281824 | U157: 415.8250328
A158: 33.5719986 | B158: 19.55999947 | C158: 0 | D158: 0.3799999888 | E158: 0.8000000093 | F158: 2242.840088 | G158: 2007.449951 | H158: 8.025069237 | I158: 405.4488525 | J158: 406.8362427 | K158: 1824.545388 | L158: 169.4998346 | M158: 13.40475458 | N158: 74.98887281 | O158: 3.867237862 | P158: 0.4211246296 | Q158: 0.02747287508 | R158: 10.8916125 | S158: 4.094761883 | T158: 2.651440662 | U158: 416.0008994
A159: 33.5719986 | B159: 19.56999969 | C159: 0 | D159: 0.3799999888 | E159: 0.8000000093 | F159: 2242.840088 | G159: 2007.449951 | H159: 8.024917603 | I159: 405.6148376 | J159: 407.0026245 | K159: 1824.539752 | L159: 169.5037324 | M159: 13.40649255 | N159: 74.9844382 | O159: 3.869508139 | P159: 0.421130928 | Q159: 0.02747446608 | R159: 10.89143013 | S159: 4.094902869 | T159: 2.651599549 | U159: 416.1768633
A160: 33.5719986 | B160: 19.57999992 | C160: 0 | D160: 0.3799999888 | E160: 0.8000000093 | F160: 2242.840088 | G160: 2007.449951 | H160: 8.024766922 | I160: 405.7809143 | J160: 407.1690674 | K160: 1824.534117 | L160: 169.5076293 | M160: 13.40823104 | N160: 74.98000395 | O160: 3.871779495 | P160: 0.4211372264 | Q160: 0.02747605635 | R160: 10.89124772 | S160: 4.095043887 | T160: 2.651758486 | U160: 416.3528949
A161: 33.5719986 | B161: 19.59000015 | C161: 0 | D161: 0.3799999888 | E161: 0.8000000093 | F161: 2242.840088 | G161: 2007.449951 | H161: 8.024615288 | I161: 405.9470215 | J161: 407.3355713 | K161: 1824.528482 | L161: 169.5115252 | M161: 13.40997004 | N161: 74.97557008 | O161: 3.874051933 | P161: 0.4211435249 | Q161: 0.02747764588 | R161: 10.89106526 | S161: 4.095184936 | T161: 2.651917471 | U161: 416.5289941
A162: 33.5719986 | B162: 19.60000038 | C162: 0 | D162: 0.3799999888 | E162: 0.8000000093 | F162: 2242.840088 | G162: 2007.449951 | H162: 8.024463654 | I162: 406.1131592 | J162: 407.5021057 | K162: 1824.522847 | L162: 169.5154202 | M162: 13.41170956 | N162: 74.97113658 | O162: 3.876325453 | P162: 0.4211498235 | Q162: 0.02747923467 | R162: 10.89088274 | S162: 4.095326015 | T162: 2.652076505 | U162: 416.7051311
A163: 33.5719986 | B163: 19.61000061 | C163: 0 | D163: 0.3799999888 | E163: 0.8000000093 | F163: 2242.840088 | G163: 2007.449951 | H163: 8.024312019 | I163: 406.2793884 | J163: 407.6687317 | K163: 1824.517213 | L163: 169.5193143 | M163: 13.41344961 | N163: 74.96670346 | O163: 3.878600055 | P163: 0.4211561222 | Q163: 0.02748082272 | R163: 10.89070018 | S163: 4.095467126 | T163: 2.652235588 | U163: 416.8813656
A164: 33.5719986 | B164: 19.62000084 | C164: 0 | D164: 0.3799999888 | E164: 0.8000000093 | F164: 2242.840088 | G164: 2007.449951 | H164: 8.024160385 | I164: 406.4456482 | J164: 407.8354187 | K164: 1824.51158 | L164: 169.5232074 | M164: 13.41519017 | N164: 74.9622707 | O164: 3.880875739 | P164: 0.4211624209 | Q164: 0.02748241003 | R164: 10.89051757 | S164: 4.095608269 | T164: 2.652394719 | U164: 417.0576678
A165: 33.5719986 | B165: 19.62999916 | C165: 0 | D165: 0.3799999888 | E165: 0.8000000093 | F165: 2242.840088 | G165: 2007.449951 | H165: 8.024009705 | I165: 406.6119385 | J165: 408.0020752 | K165: 1824.505947 | L165: 169.5270989 | M165: 13.41693093 | N165: 74.95783917 | O165: 3.883152071 | P165: 0.4211687186 | Q165: 0.02748399631 | R165: 10.89033495 | S165: 4.095749415 | T165: 2.65255387 | U165: 417.2339769
A166: 33.5719986 | B166: 19.63999939 | C166: 0 | D166: 0.3799999888 | E166: 0.8000000093 | F166: 2242.840088 | G166: 2007.449951 | H166: 8.02385807 | I166: 406.7783203 | J166: 408.1688843 | K166: 1824.500314 | L166: 169.5309901 | M166: 13.41867253 | N166: 74.95340716 | O166: 3.88542992 | P166: 0.4211750176 | Q166: 0.02748558215 | R166: 10.89015224 | S166: 4.09589062 | T166: 2.652713099 | U166: 417.4104144
A167: 33.5719986 | B167: 19.64999962 | C167: 0 | D167: 0.3799999888 | E167: 0.8000000093 | F167: 2242.840088 | G167: 2007.449951 | H167: 8.023706436 | I167: 406.9447327 | J167: 408.3356628 | K167: 1824.494682 | L167: 169.5348805 | M167: 13.42041465 | N167: 74.94897553 | O167: 3.887708852 | P167: 0.4211813166 | Q167: 0.02748716725 | R167: 10.88996949 | S167: 4.096031855 | T167: 2.652872378 | U167: 417.58686
A168: 33.5719986 | B168: 19.65999985 | C168: 0 | D168: 0.3799999888 | E168: 0.8000000093 | F168: 2242.840088 | G168: 2007.449951 | H168: 8.023555756 | I168: 407.1112366 | J168: 408.502594 | K168: 1824.48905 | L168: 169.5387699 | M168: 13.4221573 | N168: 74.94454427 | O168: 3.889988869 | P168: 0.4211876157 | Q168: 0.02748875162 | R168: 10.88978668 | S168: 4.096173122 | T168: 2.653031705 | U168: 417.7634329
A169: 33.5719986 | B169: 19.67000008 | C169: 0 | D169: 0.3799999888 | E169: 0.8000000093 | F169: 2242.840088 | G169: 2007.449951 | H169: 8.023404121 | I169: 407.2778015 | J169: 408.6695251 | K169: 1824.483418 | L169: 169.5426583 | M169: 13.42390047 | N169: 74.94011339 | O169: 3.892269969 | P169: 0.421193915 | Q169: 0.02749033524 | R169: 10.88960383 | S169: 4.09631442 | T169: 2.653191082 | U169: 417.9400437
A170: 33.5719986 | B170: 19.68000031 | C170: 0 | D170: 0.3799999888 | E170: 0.8000000093 | F170: 2242.840088 | G170: 2007.449951 | H170: 8.023252487 | I170: 407.4444275 | J170: 408.8365479 | K170: 1824.477787 | L170: 169.5465458 | M170: 13.42564415 | N170: 74.93568288 | O170: 3.894552154 | P170: 0.4212002143 | Q170: 0.02749191813 | R170: 10.88942092 | S170: 4.096455749 | T170: 2.653350507 | U170: 418.1167519
A171: 33.5719986 | B171: 19.69000053 | C171: 0 | D171: 0.3799999888 | E171: 0.8000000093 | F171: 2242.840088 | G171: 2007.449951 | H171: 8.023100853 | I171: 407.611084 | J171: 409.0036011 | K171: 1824.472156 | L171: 169.5504324 | M171: 13.42738836 | N171: 74.93125274 | O171: 3.896835423 | P171: 0.4212065137 | Q171: 0.02749350029 | R171: 10.88923797 | S171: 4.09659711 | T171: 2.653509981 | U171: 418.2934981
A172: 33.5719986 | B172: 19.70000076 | C172: 0 | D172: 0.3799999888 | E172: 0.8000000093 | F172: 2242.840088 | G172: 2007.449951 | H172: 8.022950172 | I172: 407.7778015 | J172: 409.1707153 | K172: 1824.466526 | L172: 169.5543181 | M172: 13.42913309 | N172: 74.92682298 | O172: 3.899119778 | P172: 0.4212128132 | Q172: 0.0274950817 | R172: 10.88905497 | S172: 4.096738501 | T172: 2.653669505 | U172: 418.4703121
A173: 33.5719986 | B173: 19.70999908 | C173: 0 | D173: 0.3799999888 | E173: 0.8000000093 | F173: 2242.840088 | G173: 2007.449951 | H173: 8.022798538 | I173: 407.9445496 | J173: 409.3378601 | K173: 1824.460897 | L173: 169.5582021 | M173: 13.43087801 | N173: 74.92239444 | O173: 3.901404782 | P173: 0.4212191116 | Q173: 0.02749666207 | R173: 10.88887196 | S173: 4.096879897 | T173: 2.653829046 | U173: 418.6471628
A174: 33.5719986 | B174: 19.71999931 | C174: 0 | D174: 0.3799999888 | E174: 0.8000000093 | F174: 2242.840088 | G174: 2007.449951 | H174: 8.022646904 | I174: 408.1113892 | J174: 409.5050964 | K174: 1824.455267 | L174: 169.5620858 | M174: 13.43262378 | N174: 74.91796543 | O174: 3.903691308 | P174: 0.4212254112 | Q174: 0.02749824201 | R174: 10.88868886 | S174: 4.097021351 | T174: 2.653988667 | U174: 418.8241123
A175: 33.5719986 | B175: 19.72999954 | C175: 0 | D175: 0.3799999888 | E175: 0.8000000093 | F175: 2242.840088 | G175: 2007.449951 | H175: 8.022496223 | I175: 408.2782898 | J175: 409.6723938 | K175: 1824.449638 | L175: 169.5659687 | M175: 13.43437007 | N175: 74.9135368 | O175: 3.90597892 | P175: 0.421231711 | Q175: 0.02749982121 | R175: 10.88850571 | S175: 4.097162836 | T175: 2.654148338 | U175: 419.0011294
A176: 33.5719986 | B176: 19.73999977 | C176: 0 | D176: 0.3799999888 | E176: 0.8000000093 | F176: 2242.840088 | G176: 2007.449951 | H176: 8.022344589 | I176: 408.4452209 | J176: 409.8397217 | K176: 1824.44401 | L176: 169.5698506 | M176: 13.43611689 | N176: 74.90910854 | O176: 3.908267618 | P176: 0.4212380108 | Q176: 0.02750139967 | R176: 10.88832251 | S176: 4.097304352 | T176: 2.654308057 | U176: 419.1782143
A177: 33.5719986 | B177: 19.75 | C177: 0 | D177: 0.3799999888 | E177: 0.8000000093 | F177: 2242.840088 | G177: 2007.449951 | H177: 8.022192955 | I177: 408.6122131 | J177: 410.0071106 | K177: 1824.438381 | L177: 169.5737315 | M177: 13.43786422 | N177: 74.90468065 | O177: 3.910557404 | P177: 0.4212443108 | Q177: 0.02750297739 | R177: 10.88813927 | S177: 4.0974459 | T177: 2.654467824 | U177: 419.3553372
A178: 33.5719986 | B178: 19.76000023 | C178: 0 | D178: 0.3799999888 | E178: 0.8000000093 | F178: 2242.840088 | G178: 2007.449951 | H178: 8.022042274 | I178: 408.7792969 | J178: 410.1745911 | K178: 1824.432753 | L178: 169.5776116 | M178: 13.43961208 | N178: 74.90025315 | O178: 3.912848276 | P178: 0.4212506108 | Q178: 0.02750455437 | R178: 10.88795597 | S178: 4.097587478 | T178: 2.654627641 | U178: 419.5325874
A179: 33.5719986 | B179: 19.77000046 | C179: 0 | D179: 0.3799999888 | E179: 0.8000000093 | F179: 2242.840088 | G179: 2007.449951 | H179: 8.02189064 | I179: 408.9464111 | J179: 410.3421326 | K179: 1824.427126 | L179: 169.5814906 | M179: 13.44136046 | N179: 74.89582602 | O179: 3.915140237 | P179: 0.4212569109 | Q179: 0.02750613061 | R179: 10.88777263 | S179: 4.097729088 | T179: 2.654787507 | U179: 419.7098757
A180: 33.5719986 | B180: 19.78000069 | C180: 0 | D180: 0.3799999888 | E180: 0.8000000093 | F180: 2242.840088 | G180: 2007.449951 | H180: 8.02173996 | I180: 409.1135864 | J180: 410.5096741 | K180: 1824.421499 | L180: 169.5853688 | M180: 13.44310936 | N180: 74.89139926 | O180: 3.917433285 | P180: 0.4212632111 | Q180: 0.02750770611 | R180: 10.88758923 | S180: 4.097870729 | T180: 2.654947422 | U180: 419.8872019
A181: 33.5719986 | B181: 19.79000092 | C181: 0 | D181: 0.3799999888 | E181: 0.8000000093 | F181: 2242.840088 | G181: 2007.449951 | H181: 8.021588326 | I181: 409.2808228 | J181: 410.6773071 | K181: 1824.415872 | L181: 169.589246 | M181: 13.44485879 | N181: 74.88697288 | O181: 3.919727421 | P181: 0.4212695113 | Q181: 0.02750928088 | R181: 10.88740579 | S181: 4.098012401 | T181: 2.655107386 | U181: 420.0646258
A182: 33.5719986 | B182: 19.79999924 | C182: 0 | D182: 0.3799999888 | E182: 0.8000000093 | F182: 2242.840088 | G182: 2007.449951 | H182: 8.021436691 | I182: 409.4480896 | J182: 410.8449402 | K182: 1824.410247 | L182: 169.5931215 | M182: 13.4466084 | N182: 74.88254773 | O182: 3.922022209 | P182: 0.4212758105 | Q182: 0.0275108546 | R182: 10.88722234 | S182: 4.098154078 | T182: 2.655267368 | U182: 420.2420567
A183: 33.5719986 | B183: 19.80999947 | C183: 0 | D183: 0.3799999888 | E183: 0.8000000093 | F183: 2242.840088 | G183: 2007.449951 | H183: 8.021286011 | I183: 409.6154175 | J183: 411.0126953 | K183: 1824.404621 | L183: 169.5969968 | M183: 13.44835887 | N183: 74.8781221 | O183: 3.924318523 | P183: 0.421282111 | Q183: 0.02751242789 | R183: 10.8870388 | S183: 4.098295812 | T183: 2.65542743 | U183: 420.4196162
A184: 33.5719986 | B184: 19.81999969 | C184: 0 | D184: 0.3799999888 | E184: 0.8000000093 | F184: 2242.840088 | G184: 2007.449951 | H184: 8.021134377 | I184: 409.7828369 | J184: 411.1805115 | K184: 1824.398996 | L184: 169.6008712 | M184: 13.45010987 | N184: 74.87369685 | O184: 3.926615927 | P184: 0.4212884115 | Q184: 0.02751400044 | R184: 10.88685521 | S184: 4.098437578 | T184: 2.655587541 | U184: 420.5972434
A185: 33.5719986 | B185: 19.82999992 | C185: 0 | D185: 0.3799999888 | E185: 0.8000000093 | F185: 2242.840088 | G185: 2007.449951 | H185: 8.020983696 | I185: 409.9502869 | J185: 411.3483582 | K185: 1824.393371 | L185: 169.6047446 | M185: 13.45186138 | N185: 74.86927198 | O185: 3.92891442 | P185: 0.4212947121 | Q185: 0.02751557225 | R185: 10.88667157 | S185: 4.098579375 | T185: 2.655747701 | U185: 420.7749088
A186: 33.5719986 | B186: 19.84000015 | C186: 0 | D186: 0.3799999888 | E186: 0.8000000093 | F186: 2242.840088 | G186: 2007.449951 | H186: 8.020832062 | I186: 410.1177979 | J186: 411.5162659 | K186: 1824.387747 | L186: 169.6086171 | M186: 13.45361342 | N186: 74.86484749 | O186: 3.931214003 | P186: 0.4213010128 | Q186: 0.02751714331 | R186: 10.88648788 | S186: 4.098721203 | T186: 2.65590791 | U186: 420.9526419
A187: 33.5719986 | B187: 19.85000038 | C187: 0 | D187: 0.3799999888 | E187: 0.8000000093 | F187: 2242.840088 | G187: 2007.449951 | H187: 8.020680428 | I187: 410.2853699 | J187: 411.6842346 | K187: 1824.382122 | L187: 169.6124886 | M187: 13.45536598 | N187: 74.86042338 | O187: 3.933514677 | P187: 0.4213073136 | Q187: 0.02751871364 | R187: 10.88630414 | S187: 4.098863062 | T187: 2.656068167 | U187: 421.1304727
A188: 33.5719986 | B188: 19.86000061 | C188: 0 | D188: 0.3799999888 | E188: 0.8000000093 | F188: 2242.840088 | G188: 2007.449951 | H188: 8.020529747 | I188: 410.4530029 | J188: 411.8522644 | K188: 1824.376499 | L188: 169.6163592 | M188: 13.45711907 | N188: 74.85599964 | O188: 3.935816442 | P188: 0.4213136145 | Q188: 0.02752028323 | R188: 10.88612036 | S188: 4.099004952 | T188: 2.656228474 | U188: 421.3083416
A189: 33.5719986 | B189: 19.87000084 | C189: 0 | D189: 0.3799999888 | E189: 0.8000000093 | F189: 2242.840088 | G189: 2007.449951 | H189: 8.020378113 | I189: 410.620697 | J189: 412.0203552 | K189: 1824.370876 | L189: 169.6202289 | M189: 13.45887268 | N189: 74.85157628 | O189: 3.938119298 | P189: 0.4213199154 | Q189: 0.02752185208 | R189: 10.88593652 | S189: 4.099146874 | T189: 2.65638883 | U189: 421.4863081
A190: 33.5719986 | B190: 19.87999916 | C190: 0 | D190: 0.3799999888 | E190: 0.8000000093 | F190: 2242.840088 | G190: 2007.449951 | H190: 8.020227432 | I190: 410.7883911 | J190: 412.1884766 | K190: 1824.365254 | L190: 169.6240969 | M190: 13.46062648 | N190: 74.84715415 | O190: 3.940422806 | P190: 0.4213262153 | Q190: 0.02752341989 | R190: 10.88575267 | S190: 4.0992888 | T190: 2.656549204 | U190: 421.6642818
A191: 33.5719986 | B191: 19.88999939 | C191: 0 | D191: 0.3799999888 | E191: 0.8000000093 | F191: 2242.840088 | G191: 2007.449951 | H191: 8.020075798 | I191: 410.9562073 | J191: 412.3566589 | K191: 1824.359631 | L191: 169.6279646 | M191: 13.46238113 | N191: 74.84273155 | O191: 3.942727845 | P191: 0.4213325164 | Q191: 0.02752498726 | R191: 10.88556874 | S191: 4.099430784 | T191: 2.656709658 | U191: 421.8423544
A192: 33.5719986 | B192: 19.89999962 | C192: 0 | D192: 0.3799999888 | E192: 0.8000000093 | F192: 2242.840088 | G192: 2007.449951 | H192: 8.019925117 | I192: 411.124054 | J192: 412.5249023 | K192: 1824.354009 | L192: 169.6318315 | M192: 13.46413631 | N192: 74.83830932 | O192: 3.945033976 | P192: 0.4213388176 | Q192: 0.02752655388 | R192: 10.88538476 | S192: 4.099572799 | T192: 2.656870161 | U192: 422.0204948
A193: 33.5719986 | B193: 19.90999985 | C193: 0 | D193: 0.3799999888 | E193: 0.8000000093 | F193: 2242.840088 | G193: 2007.449951 | H193: 8.019773483 | I193: 411.2919922 | J193: 412.6932373 | K193: 1824.348388 | L193: 169.6356973 | M193: 13.46589202 | N193: 74.83388748 | O193: 3.9473412 | P193: 0.4213451189 | Q193: 0.02752811977 | R193: 10.88520072 | S193: 4.099714845 | T193: 2.657030713 | U193: 422.1987328
A194: 33.5719986 | B194: 19.92000008 | C194: 0 | D194: 0.3799999888 | E194: 0.8000000093 | F194: 2242.840088 | G194: 2007.449951 | H194: 8.019622803 | I194: 411.4599304 | J194: 412.8615723 | K194: 1824.342767 | L194: 169.6395623 | M194: 13.46764825 | N194: 74.82946602 | O194: 3.949649517 | P194: 0.4213514202 | Q194: 0.02752968492 | R194: 10.88501664 | S194: 4.099856923 | T194: 2.657191313 | U194: 422.3769793
A195: 33.5719986 | B195: 19.93000031 | C195: 0 | D195: 0.3799999888 | E195: 0.8000000093 | F195: 2242.840088 | G195: 2007.449951 | H195: 8.019471169 | I195: 411.6279907 | J195: 413.0300293 | K195: 1824.337146 | L195: 169.6434262 | M195: 13.469405 | N195: 74.82504493 | O195: 3.951958927 | P195: 0.4213577217 | Q195: 0.02753124932 | R195: 10.88483251 | S195: 4.099999032 | T195: 2.657351963 | U195: 422.5553532
A196: 33.5719986 | B196: 19.94000053 | C196: 0 | D196: 0.3799999888 | E196: 0.8000000093 | F196: 2242.840088 | G196: 2007.449951 | H196: 8.019320488 | I196: 411.796051 | J196: 413.1985168 | K196: 1824.331526 | L196: 169.6472893 | M196: 13.47116228 | N196: 74.82062423 | O196: 3.954269431 | P196: 0.4213640232 | Q196: 0.02753281299 | R196: 10.88464833 | S196: 4.100141172 | T196: 2.657512662 | U196: 422.7337652
A197: 33.5719986 | B197: 19.95000076 | C197: 0 | D197: 0.3799999888 | E197: 0.8000000093 | F197: 2242.840088 | G197: 2007.449951 | H197: 8.019168854 | I197: 411.9642029 | J197: 413.3670349 | K197: 1824.325906 | L197: 169.6511514 | M197: 13.47292008 | N197: 74.8162039 | O197: 3.95658103 | P197: 0.4213703248 | Q197: 0.02753437592 | R197: 10.8844641 | S197: 4.100283343 | T197: 2.65767341 | U197: 422.9122154
A198: 33.5719986 | B198: 19.95999908 | C198: 0 | D198: 0.3799999888 | E198: 0.8000000093 | F198: 2242.840088 | G198: 2007.449951 | H198: 8.019018173 | I198: 412.1323547 | J198: 413.535614 | K198: 1824.320287 | L198: 169.6550118 | M198: 13.47467807 | N198: 74.8117848 | O198: 3.958893281 | P198: 0.4213766253 | Q198: 0.0275359378 | R198: 10.88427986 | S198: 4.100425518 | T198: 2.657834177 | U198: 423.0907324
A199: 33.5719986 | B199: 19.96999931 | C199: 0 | D199: 0.3799999888 | E199: 0.8000000093 | F199: 2242.840088 | G199: 2007.449951 | H199: 8.018866539 | I199: 412.3006287 | J199: 413.7042847 | K199: 1824.314668 | L199: 169.658872 | M199: 13.47643692 | N199: 74.80736524 | O199: 3.961207068 | P199: 0.4213829271 | Q199: 0.02753749925 | R199: 10.88409553 | S199: 4.100567752 | T199: 2.657995023 | U199: 423.2693781
A200: 33.5719986 | B200: 19.97999954 | C200: 0 | D200: 0.3799999888 | E200: 0.8000000093 | F200: 2242.840088 | G200: 2007.449951 | H200: 8.018715858 | I200: 412.4689331 | J200: 413.8729858 | K200: 1824.30905 | L200: 169.6627312 | M200: 13.4781963 | N200: 74.80294606 | O200: 3.96352195 | P200: 0.4213892289 | Q200: 0.02753905995 | R200: 10.88391116 | S200: 4.100710016 | T200: 2.658155918 | U200: 423.4480322
... 252 more rows

Sheet Batch111
A1: Salinity | B1: t(oC) in | C1: P (dbars) in | D1: Total P (mmol/kgSW) | E1: Total Si (mmol/kgSW) | F1: TA in (mmol/kgSW) | G1: TCO2 in (mmol/kgSW) | H1: pH in | I1: fCO2 in (matm) | J1: pCO2 in (matm) | K1: HCO3 in (mmol/kgSW) | L1: CO3 in (mmol/kgSW) | M1: CO2 in (mmol/kgSW) | N1: B Alk in (mmol/kgSW) | O1: OH in (mmol/kgSW) | P1: P Alk in (mmol/kgSW) | Q1: Si Alk in (mmol/kgSW) | R1: Revelle in | S1: WCa in | T1: WAr in
A2: 33.26399994 | B2: 18 | C2: 0 | D2: 0.870000008 | E2: 5.300000339 | F2: 2222.800049 | G2: 2045.660034 | H2: 7.928802967 | I2: 521.1209106 | J2: 522.93927 | K2: 1895.576259 | L2: 132.0448212 | M2: 18.03896626 | N2: 59.41036334 | O2: 2.660721458 | P2: 0.9375207517 | Q2: 0.1376750016 | R2: 12.56180359 | S2: 3.191530671 | T2: 2.05728716
A3: 33.26399994 | B3: 18.01000023 | C3: 0 | D3: 0.870000008 | E3: 5.300000339 | F3: 2222.800049 | G3: 2045.660034 | H3: 7.928652763 | I3: 521.3334961 | J3: 523.1523438 | K3: 1895.570149 | L3: 132.048766 | M3: 18.04113201 | N3: 59.40696388 | O3: 2.662325204 | P3: 0.9375320215 | Q3: 0.1376844994 | R3: 12.56151974 | S3: 3.191657823 | T3: 2.057418782
A4: 33.26399994 | B4: 18.02000046 | C4: 0 | D4: 0.870000008 | E4: 5.300000339 | F4: 2222.800049 | G4: 2045.660034 | H4: 7.92850256 | I4: 521.5460815 | J4: 523.3654785 | K4: 1895.564038 | L4: 132.0527104 | M4: 18.04329838 | N4: 59.40356474 | O4: 2.663929745 | P4: 0.9375432917 | Q4: 0.1376939938 | R4: 12.56123582 | S4: 3.191785004 | T4: 2.057550447
A5: 33.26399994 | B5: 18.03000069 | C5: 0 | D5: 0.870000008 | E5: 5.300000339 | F5: 2222.800049 | G5: 2045.660034 | H5: 7.928352833 | I5: 521.758728 | J5: 523.5786133 | K5: 1895.557927 | L5: 132.0566542 | M5: 18.04546539 | N5: 59.40016595 | O5: 2.665535081 | P5: 0.9375545622 | Q5: 0.1377034848 | R5: 12.56095183 | S5: 3.191912215 | T5: 2.057682153
A6: 33.26399994 | B6: 18.04000092 | C6: 0 | D6: 0.870000008 | E6: 5.300000339 | F6: 2222.800049 | G6: 2045.660034 | H6: 7.928202629 | I6: 521.9714966 | J6: 523.7918701 | K6: 1895.551816 | L6: 132.0605976 | M6: 18.04763302 | N6: 59.39676748 | O6: 2.667141212 | P6: 0.9375658331 | Q6: 0.1377129725 | R6: 12.56066778 | S6: 3.192039455 | T6: 2.0578139
A7: 33.26399994 | B7: 18.04999924 | C7: 0 | D7: 0.870000008 | E7: 5.300000339 | F7: 2222.800049 | G7: 2045.660034 | H7: 7.928052425 | I7: 522.1843262 | J7: 524.005188 | K7: 1895.545706 | L7: 132.0645397 | M7: 18.04980086 | N7: 59.39337 | O7: 2.668747833 | P7: 0.9375771022 | Q7: 0.1377224549 | R7: 12.56038371 | S7: 3.192166701 | T7: 2.057945665
A8: 33.26399994 | B8: 18.05999947 | C8: 0 | D8: 0.870000008 | E8: 5.300000339 | F8: 2222.800049 | G8: 2045.660034 | H8: 7.927902222 | I8: 522.3971558 | J8: 524.2186279 | K8: 1895.539595 | L8: 132.0684821 | M8: 18.05196974 | N8: 59.3899722 | O8: 2.670355557 | P8: 0.9375883739 | Q8: 0.1377319358 | R8: 12.56009951 | S8: 3.192294 | T8: 2.058077495
A9: 33.26399994 | B9: 18.06999969 | C9: 0 | D9: 0.870000008 | E9: 5.300000339 | F9: 2222.800049 | G9: 2045.660034 | H9: 7.927752018 | I9: 522.6101685 | J9: 524.4321289 | K9: 1895.533484 | L9: 132.0724239 | M9: 18.05413926 | N9: 59.38657474 | O9: 2.671964077 | P9: 0.9375996459 | Q9: 0.1377414133 | R9: 12.55981525 | S9: 3.192421328 | T9: 2.058209368
A10: 33.26399994 | B10: 18.07999992 | C10: 0 | D10: 0.870000008 | E10: 5.300000339 | F10: 2222.800049 | G10: 2045.660034 | H10: 7.927602291 | I10: 522.8231812 | J10: 524.6456909 | K10: 1895.527372 | L10: 132.0763653 | M10: 18.0563094 | N10: 59.38317761 | O10: 2.673573393 | P10: 0.9376109183 | Q10: 0.1377508873 | R10: 12.55953092 | S10: 3.192548686 | T10: 2.058341282
A11: 33.26399994 | B11: 18.09000015 | C11: 0 | D11: 0.870000008 | E11: 5.300000339 | F11: 2222.800049 | G11: 2045.660034 | H11: 7.927452087 | I11: 523.0363159 | J11: 524.8592529 | K11: 1895.521261 | L11: 132.0803062 | M11: 18.05848017 | N11: 59.37978082 | O11: 2.675183507 | P11: 0.9376221911 | Q11: 0.1377603581 | R11: 12.55924652 | S11: 3.192676074 | T11: 2.058473238
A12: 33.26399994 | B12: 18.10000038 | C12: 0 | D12: 0.870000008 | E12: 5.300000339 | F12: 2222.800049 | G12: 2045.660034 | H12: 7.927301884 | I12: 523.2494507 | J12: 525.072937 | K12: 1895.515149 | L12: 132.0842465 | M12: 18.06065157 | N12: 59.37638436 | O12: 2.676794417 | P12: 0.9376334643 | Q12: 0.1377698254 | R12: 12.55896205 | S12: 3.192803491 | T12: 2.058605236
A13: 33.26399994 | B13: 18.11000061 | C13: 0 | D13: 0.870000008 | E13: 5.300000339 | F13: 2222.800049 | G13: 2045.660034 | H13: 7.92715168 | I13: 523.4627075 | J13: 525.2866821 | K13: 1895.509037 | L13: 132.0881864 | M13: 18.0628236 | N13: 59.37298824 | O13: 2.678406126 | P13: 0.9376447378 | Q13: 0.1377792893 | R13: 12.55867751 | S13: 3.192930937 | T13: 2.058737275
A14: 33.26399994 | B14: 18.12000084 | C14: 0 | D14: 0.870000008 | E14: 5.300000339 | F14: 2222.800049 | G14: 2045.660034 | H14: 7.927001953 | I14: 523.6759644 | J14: 525.5004883 | K14: 1895.502925 | L14: 132.0921258 | M14: 18.06499625 | N14: 59.36959245 | O14: 2.680018632 | P14: 0.9376560117 | Q14: 0.1377887499 | R14: 12.55839291 | S14: 3.193058413 | T14: 2.058869356
A15: 33.26399994 | B15: 18.12999916 | C15: 0 | D15: 0.870000008 | E15: 5.300000339 | F15: 2222.800049 | G15: 2045.660034 | H15: 7.926851749 | I15: 523.8894043 | J15: 525.7144165 | K15: 1895.496814 | L15: 132.0960639 | M15: 18.06716913 | N15: 59.36619765 | O15: 2.681631628 | P15: 0.9376672838 | Q15: 0.1377982052 | R15: 12.55810829 | S15: 3.193185894 | T15: 2.059001454
A16: 33.26399994 | B16: 18.13999939 | C16: 0 | D16: 0.870000008 | E16: 5.300000339 | F16: 2222.800049 | G16: 2045.660034 | H16: 7.926701546 | I16: 524.1028442 | J16: 525.9284058 | K16: 1895.490702 | L16: 132.1000022 | M16: 18.06934304 | N16: 59.36280253 | O16: 2.68324573 | P16: 0.9376785584 | Q16: 0.137807659 | R16: 12.55782354 | S16: 3.193313428 | T16: 2.059133618
A17: 33.26399994 | B17: 18.14999962 | C17: 0 | D17: 0.870000008 | E17: 5.300000339 | F17: 2222.800049 | G17: 2045.660034 | H17: 7.926551819 | I17: 524.3163452 | J17: 526.142395 | K17: 1895.484589 | L17: 132.1039401 | M17: 18.07151758 | N17: 59.35940775 | O17: 2.684860631 | P17: 0.9376898335 | Q17: 0.1378171094 | R17: 12.55753873 | S17: 3.193440992 | T17: 2.059265824
A18: 33.26399994 | B18: 18.15999985 | C18: 0 | D18: 0.870000008 | E18: 5.300000339 | F18: 2222.800049 | G18: 2045.660034 | H18: 7.926401615 | I18: 524.5299683 | J18: 526.3565063 | K18: 1895.478477 | L18: 132.1078775 | M18: 18.07369276 | N18: 59.3560133 | O18: 2.686476331 | P18: 0.9377011088 | Q18: 0.1378265564 | R18: 12.55725385 | S18: 3.193568586 | T18: 2.059398072
A19: 33.26399994 | B19: 18.17000008 | C19: 0 | D19: 0.870000008 | E19: 5.300000339 | F19: 2222.800049 | G19: 2045.660034 | H19: 7.926251888 | I19: 524.7436523 | J19: 526.5707397 | K19: 1895.472364 | L19: 132.1118143 | M19: 18.07586856 | N19: 59.3526192 | O19: 2.68809283 | P19: 0.9377123846 | Q19: 0.137836 | R19: 12.5569689 | S19: 3.193696209 | T19: 2.059530362
A20: 33.26399994 | B20: 18.18000031 | C20: 0 | D20: 0.870000008 | E20: 5.300000339 | F20: 2222.800049 | G20: 2045.660034 | H20: 7.926101685 | I20: 524.9573975 | J20: 526.7849731 | K20: 1895.466251 | L20: 132.1157507 | M20: 18.078045 | N20: 59.34922542 | O20: 2.689710129 | P20: 0.9377236607 | Q20: 0.1378454402 | R20: 12.55668388 | S20: 3.193823861 | T20: 2.059662693
A21: 33.26399994 | B21: 18.19000053 | C21: 0 | D21: 0.870000008 | E21: 5.300000339 | F21: 2222.800049 | G21: 2045.660034 | H21: 7.925951958 | I21: 525.1711426 | J21: 526.9992676 | K21: 1895.460138 | L21: 132.1196866 | M21: 18.08022206 | N21: 59.34583199 | O21: 2.691328228 | P21: 0.9377349372 | Q21: 0.137854877 | R21: 12.55639879 | S21: 3.193951543 | T21: 2.059795066
A22: 33.26399994 | B22: 18.20000076 | C22: 0 | D22: 0.870000008 | E22: 5.300000339 | F22: 2222.800049 | G22: 2045.660034 | H22: 7.925801754 | I22: 525.3850098 | J22: 527.2136841 | K22: 1895.454025 | L22: 132.1236219 | M22: 18.08239975 | N22: 59.34243889 | O22: 2.692947126 | P22: 0.9377462141 | Q22: 0.1378643104 | R22: 12.55611363 | S22: 3.194079255 | T22: 2.05992748
A23: 33.26399994 | B23: 18.20999908 | C23: 0 | D23: 0.870000008 | E23: 5.300000339 | F23: 2222.800049 | G23: 2045.660034 | H23: 7.925652027 | I23: 525.598999 | J23: 527.4281616 | K23: 1895.447913 | L23: 132.127556 | M23: 18.08457766 | N23: 59.33904677 | O23: 2.694566516 | P23: 0.9377574892 | Q23: 0.1378737386 | R23: 12.55582846 | S23: 3.194206971 | T23: 2.060059912
A24: 33.26399994 | B24: 18.21999931 | C24: 0 | D24: 0.870000008 | E24: 5.300000339 | F24: 2222.800049 | G24: 2045.660034 | H24: 7.925501823 | I24: 525.8129883 | J24: 527.6426392 | K24: 1895.4418 | L24: 132.1314904 | M24: 18.08675662 | N24: 59.33565435 | O24: 2.696187016 | P24: 0.9377687668 | Q24: 0.1378831653 | R24: 12.55554317 | S24: 3.194334742 | T24: 2.06019241
A25: 33.26399994 | B25: 18.22999954 | C25: 0 | D25: 0.870000008 | E25: 5.300000339 | F25: 2222.800049 | G25: 2045.660034 | H25: 7.925352097 | I25: 526.0270996 | J25: 527.8572998 | K25: 1895.435686 | L25: 132.1354242 | M25: 18.0889362 | N25: 59.33226226 | O25: 2.697808316 | P25: 0.9377800447 | Q25: 0.1378925885 | R25: 12.55525781 | S25: 3.194462541 | T25: 2.06032495
A26: 33.26399994 | B26: 18.23999977 | C26: 0 | D26: 0.870000008 | E26: 5.300000339 | F26: 2222.800049 | G26: 2045.660034 | H26: 7.925201893 | I26: 526.241272 | J26: 528.0719604 | K26: 1895.429573 | L26: 132.1393576 | M26: 18.09111642 | N26: 59.32887051 | O26: 2.699430418 | P26: 0.9377913231 | Q26: 0.1379020083 | R26: 12.55497237 | S26: 3.194590371 | T26: 2.060457531
A27: 33.26399994 | B27: 18.25 | C27: 0 | D27: 0.870000008 | E27: 5.300000339 | F27: 2222.800049 | G27: 2045.660034 | H27: 7.925052166 | I27: 526.4555054 | J27: 528.2867432 | K27: 1895.423459 | L27: 132.1432904 | M27: 18.09329726 | N27: 59.3254791 | O27: 2.701053321 | P27: 0.9378026018 | Q27: 0.1379114248 | R27: 12.55468687 | S27: 3.194718229 | T27: 2.060590154
A28: 33.26399994 | B28: 18.26000023 | C28: 0 | D28: 0.870000008 | E28: 5.300000339 | F28: 2222.800049 | G28: 2045.660034 | H28: 7.924901962 | I28: 526.6697998 | J28: 528.5015259 | K28: 1895.417345 | L28: 132.1472227 | M28: 18.09547874 | N28: 59.32208802 | O28: 2.702677026 | P28: 0.9378138808 | Q28: 0.1379208378 | R28: 12.5544013 | S28: 3.194846118 | T28: 2.06072282
A29: 33.26399994 | B29: 18.27000046 | C29: 0 | D29: 0.870000008 | E29: 5.300000339 | F29: 2222.800049 | G29: 2045.660034 | H29: 7.924752235 | I29: 526.8841553 | J29: 528.7164307 | K29: 1895.411231 | L29: 132.1511546 | M29: 18.09766085 | N29: 59.31869729 | O29: 2.704301533 | P29: 0.9378251603 | Q29: 0.1379302475 | R29: 12.55411566 | S29: 3.194974035 | T29: 2.060855526
A30: 33.26399994 | B30: 18.28000069 | C30: 0 | D30: 0.870000008 | E30: 5.300000339 | F30: 2222.800049 | G30: 2045.660034 | H30: 7.924602509 | I30: 527.0986328 | J30: 528.9314575 | K30: 1895.405117 | L30: 132.1550859 | M30: 18.09984359 | N30: 59.31530689 | O30: 2.705926843 | P30: 0.9378364401 | Q30: 0.1379396538 | R30: 12.55382995 | S30: 3.195101983 | T30: 2.060988275
A31: 33.26399994 | B31: 18.29000092 | C31: 0 | D31: 0.870000008 | E31: 5.300000339 | F31: 2222.800049 | G31: 2045.660034 | H31: 7.924452305 | I31: 527.3131714 | J31: 529.1464233 | K31: 1895.399003 | L31: 132.1590167 | M31: 18.10202696 | N31: 59.31191683 | O31: 2.707552955 | P31: 0.9378477202 | Q31: 0.1379490566 | R31: 12.55354418 | S31: 3.195229959 | T31: 2.061121065
A32: 33.26399994 | B32: 18.29999924 | C32: 0 | D32: 0.870000008 | E32: 5.300000339 | F32: 2222.800049 | G32: 2045.660034 | H32: 7.924302578 | I32: 527.52771 | J32: 529.3615112 | K32: 1895.39289 | L32: 132.1629463 | M32: 18.10421055 | N32: 59.30852775 | O32: 2.709179559 | P32: 0.9378589986 | Q32: 0.1379584543 | R32: 12.55325839 | S32: 3.195357941 | T32: 2.061253872
A33: 33.26399994 | B33: 18.30999947 | C33: 0 | D33: 0.870000008 | E33: 5.300000339 | F33: 2222.800049 | G33: 2045.660034 | H33: 7.924152851 | I33: 527.7423706 | J33: 529.5766602 | K33: 1895.386776 | L33: 132.1668761 | M33: 18.10639519 | N33: 59.30513837 | O33: 2.710807278 | P33: 0.9378702795 | Q33: 0.1379678503 | R33: 12.55297247 | S33: 3.195485977 | T33: 2.061386746
A34: 33.26399994 | B34: 18.31999969 | C34: 0 | D34: 0.870000008 | E34: 5.300000339 | F34: 2222.800049 | G34: 2045.660034 | H34: 7.924002647 | I34: 527.9570923 | J34: 529.7919312 | K34: 1895.380661 | L34: 132.1708054 | M34: 18.10858046 | N34: 59.30174932 | O34: 2.712435799 | P34: 0.9378815607 | Q34: 0.137977243 | R34: 12.55268649 | S34: 3.195614042 | T34: 2.061519662
A35: 33.26399994 | B35: 18.32999992 | C35: 0 | D35: 0.870000008 | E35: 5.300000339 | F35: 2222.800049 | G35: 2045.660034 | H35: 7.923852921 | I35: 528.171875 | J35: 530.0072632 | K35: 1895.374546 | L35: 132.1747342 | M35: 18.11076636 | N35: 59.29836062 | O35: 2.714065125 | P35: 0.9378928423 | Q35: 0.1379866323 | R35: 12.55240043 | S35: 3.195742137 | T35: 2.061652619
A36: 33.26399994 | B36: 18.34000015 | C36: 0 | D36: 0.870000008 | E36: 5.300000339 | F36: 2222.800049 | G36: 2045.660034 | H36: 7.923703194 | I36: 528.3867798 | J36: 530.2226562 | K36: 1895.368432 | L36: 132.1786625 | M36: 18.11295289 | N36: 59.29497225 | O36: 2.715695254 | P36: 0.9379041243 | Q36: 0.1379960181 | R36: 12.55211431 | S36: 3.195870261 | T36: 2.061785618
A37: 33.26399994 | B37: 18.35000038 | C37: 0 | D37: 0.870000008 | E37: 5.300000339 | F37: 2222.800049 | G37: 2045.660034 | H37: 7.923553467 | I37: 528.6017456 | J37: 530.4381714 | K37: 1895.362317 | L37: 132.1825902 | M37: 18.11514005 | N37: 59.29158422 | O37: 2.717326188 | P37: 0.9379154067 | Q37: 0.1380054006 | R37: 12.55182812 | S37: 3.195998414 | T37: 2.061918659
A38: 33.26399994 | B38: 18.36000061 | C38: 0 | D38: 0.870000008 | E38: 5.300000339 | F38: 2222.800049 | G38: 2045.660034 | H38: 7.923403263 | I38: 528.8167725 | J38: 530.6536865 | K38: 1895.356202 | L38: 132.1865175 | M38: 18.11732785 | N38: 59.28819654 | O38: 2.718957927 | P38: 0.9379266894 | Q38: 0.1380147796 | R38: 12.55154186 | S38: 3.196126598 | T38: 2.062051742
A39: 33.26399994 | B39: 18.37000084 | C39: 0 | D39: 0.870000008 | E39: 5.300000339 | F39: 2222.800049 | G39: 2045.660034 | H39: 7.923253536 | I39: 529.0318604 | J39: 530.8692627 | K39: 1895.350086 | L39: 132.1904443 | M39: 18.11951628 | N39: 59.28480919 | O39: 2.720590471 | P39: 0.9379379724 | Q39: 0.1380241553 | R39: 12.55125553 | S39: 3.19625481 | T39: 2.062184867
A40: 33.26399994 | B40: 18.37999916 | C40: 0 | D40: 0.870000008 | E40: 5.300000339 | F40: 2222.800049 | G40: 2045.660034 | H40: 7.923103809 | I40: 529.2470093 | J40: 531.0848999 | K40: 1895.343972 | L40: 132.1943698 | M40: 18.12170493 | N40: 59.28142283 | O40: 2.722223508 | P40: 0.9379492537 | Q40: 0.1380335258 | R40: 12.55096919 | S40: 3.196383028 | T40: 2.062318008
A41: 33.26399994 | B41: 18.38999939 | C41: 0 | D41: 0.870000008 | E41: 5.300000339 | F41: 2222.800049 | G41: 2045.660034 | H41: 7.922954082 | I41: 529.4621582 | J41: 531.3005981 | K41: 1895.337857 | L41: 132.1982955 | M41: 18.12389463 | N41: 59.27803616 | O41: 2.723857662 | P41: 0.9379605375 | Q41: 0.1380428946 | R41: 12.55068272 | S41: 3.1965113 | T41: 2.062451216
A42: 33.26399994 | B42: 18.39999962 | C42: 0 | D42: 0.870000008 | E42: 5.300000339 | F42: 2222.800049 | G42: 2045.660034 | H42: 7.922804356 | I42: 529.6774902 | J42: 531.5164185 | K42: 1895.331741 | L42: 132.2022208 | M42: 18.12608496 | N42: 59.27464983 | O42: 2.725492622 | P42: 0.9379718216 | Q42: 0.13805226 | R42: 12.55039618 | S42: 3.196639601 | T42: 2.062584466
A43: 33.26399994 | B43: 18.40999985 | C43: 0 | D43: 0.870000008 | E43: 5.300000339 | F43: 2222.800049 | G43: 2045.660034 | H43: 7.922654629 | I43: 529.8928833 | J43: 531.7323608 | K43: 1895.325625 | L43: 132.2061455 | M43: 18.12827592 | N43: 59.27126385 | O43: 2.727128388 | P43: 0.9379831061 | Q43: 0.1380616221 | R43: 12.55010957 | S43: 3.196767931 | T43: 2.062717758
A44: 33.26399994 | B44: 18.42000008 | C44: 0 | D44: 0.870000008 | E44: 5.300000339 | F44: 2222.800049 | G44: 2045.660034 | H44: 7.922504902 | I44: 530.1083374 | J44: 531.9483643 | K44: 1895.31951 | L44: 132.2100697 | M44: 18.13046752 | N44: 59.2678782 | O44: 2.728764961 | P44: 0.937994391 | Q44: 0.1380709807 | R44: 12.5498229 | S44: 3.196896292 | T44: 2.062851092
A45: 33.26399994 | B45: 18.43000031 | C45: 0 | D45: 0.870000008 | E45: 5.300000339 | F45: 2222.800049 | G45: 2045.660034 | H45: 7.922354698 | I45: 530.3238525 | J45: 532.1643677 | K45: 1895.313394 | L45: 132.2139934 | M45: 18.13265975 | N45: 59.2644929 | O45: 2.73040234 | P45: 0.9380056762 | Q45: 0.1380803359 | R45: 12.54953616 | S45: 3.197024681 | T45: 2.062984467
A46: 33.26399994 | B46: 18.44000053 | C46: 0 | D46: 0.870000008 | E46: 5.300000339 | F46: 2222.800049 | G46: 2045.660034 | H46: 7.922204971 | I46: 530.5394287 | J46: 532.3804932 | K46: 1895.307278 | L46: 132.2179166 | M46: 18.13485261 | N46: 59.26110793 | O46: 2.732040526 | P46: 0.9380169618 | Q46: 0.1380896878 | R46: 12.54924934 | S46: 3.197153101 | T46: 2.063117885
A47: 33.26399994 | B47: 18.45000076 | C47: 0 | D47: 0.870000008 | E47: 5.300000339 | F47: 2222.800049 | G47: 2045.660034 | H47: 7.922055244 | I47: 530.7550659 | J47: 532.5966187 | K47: 1895.301161 | L47: 132.2218393 | M47: 18.13704611 | N47: 59.25772331 | O47: 2.73367952 | P47: 0.9380282477 | Q47: 0.1380990362 | R47: 12.54896246 | S47: 3.197281549 | T47: 2.063251344
A48: 33.26399994 | B48: 18.45999908 | C48: 0 | D48: 0.870000008 | E48: 5.300000339 | F48: 2222.800049 | G48: 2045.660034 | H48: 7.921905518 | I48: 530.9708252 | J48: 532.8128662 | K48: 1895.295046 | L48: 132.2257607 | M48: 18.13923983 | N48: 59.25433968 | O48: 2.735319008 | P48: 0.9380395318 | Q48: 0.1381083794 | R48: 12.54867556 | S48: 3.197410003 | T48: 2.063384819
A49: 33.26399994 | B49: 18.46999931 | C49: 0 | D49: 0.870000008 | E49: 5.300000339 | F49: 2222.800049 | G49: 2045.660034 | H49: 7.921755791 | I49: 531.1865845 | J49: 533.0291748 | K49: 1895.28893 | L49: 132.2296824 | M49: 18.1414346 | N49: 59.25095574 | O49: 2.736959616 | P49: 0.9380508185 | Q49: 0.138117721 | R49: 12.54838854 | S49: 3.197538511 | T49: 2.063518362
A50: 33.26399994 | B50: 18.47999954 | C50: 0 | D50: 0.870000008 | E50: 5.300000339 | F50: 2222.800049 | G50: 2045.660034 | H50: 7.921606064 | I50: 531.4024658 | J50: 533.2455444 | K50: 1895.282813 | L50: 132.2336036 | M50: 18.14363 | N50: 59.24757214 | O50: 2.738601033 | P50: 0.9380621055 | Q50: 0.1381270592 | R50: 12.54810145 | S50: 3.197667048 | T50: 2.063651947
A51: 33.26399994 | B51: 18.48999977 | C51: 0 | D51: 0.870000008 | E51: 5.300000339 | F51: 2222.800049 | G51: 2045.660034 | H51: 7.921456337 | I51: 531.6184082 | J51: 533.4620361 | K51: 1895.276697 | L51: 132.2375242 | M51: 18.14582604 | N51: 59.24418888 | O51: 2.740243258 | P51: 0.9380733928 | Q51: 0.1381363939 | R51: 12.54781429 | S51: 3.197795615 | T51: 2.063785574
A52: 33.26399994 | B52: 18.5 | C52: 0 | D52: 0.870000008 | E52: 5.300000339 | F52: 2222.800049 | G52: 2045.660034 | H52: 7.921307087 | I52: 531.8344116 | J52: 533.6785889 | K52: 1895.27058 | L52: 132.2414443 | M52: 18.14802271 | N52: 59.24080597 | O52: 2.741886292 | P52: 0.9380846806 | Q52: 0.1381457253 | R52: 12.54752706 | S52: 3.197924211 | T52: 2.063919242
A53: 33.26399994 | B53: 18.51000023 | C53: 0 | D53: 0.870000008 | E53: 5.300000339 | F53: 2222.800049 | G53: 2045.660034 | H53: 7.92115736 | I53: 532.0505371 | J53: 533.8952026 | K53: 1895.264463 | L53: 132.245364 | M53: 18.15022002 | N53: 59.2374234 | O53: 2.743530135 | P53: 0.9380959686 | Q53: 0.1381550533 | R53: 12.54723976 | S53: 3.198052837 | T53: 2.064052952
A54: 33.26399994 | B54: 18.52000046 | C54: 0 | D54: 0.870000008 | E54: 5.300000339 | F54: 2222.800049 | G54: 2045.660034 | H54: 7.921007633 | I54: 532.2666626 | J54: 534.1118774 | K54: 1895.258346 | L54: 132.2492831 | M54: 18.15241796 | N54: 59.23404117 | O54: 2.745174787 | P54: 0.938107257 | Q54: 0.1381643778 | R54: 12.54695239 | S54: 3.198181493 | T54: 2.064186705
A55: 33.26399994 | B55: 18.53000069 | C55: 0 | D55: 0.870000008 | E55: 5.300000339 | F55: 2222.800049 | G55: 2045.660034 | H55: 7.920857906 | I55: 532.4829102 | J55: 534.3286133 | K55: 1895.252229 | L55: 132.2532017 | M55: 18.15461654 | N55: 59.23065928 | O55: 2.746820249 | P55: 0.9381185458 | Q55: 0.1381736989 | R55: 12.54666496 | S55: 3.198310178 | T55: 2.064320499
A56: 33.26399994 | B56: 18.54000092 | C56: 0 | D56: 0.870000008 | E56: 5.300000339 | F56: 2222.800049 | G56: 2045.660034 | H56: 7.920708179 | I56: 532.6992188 | J56: 534.5454712 | K56: 1895.246111 | L56: 132.2571197 | M56: 18.15681575 | N56: 59.22727774 | O56: 2.74846652 | P56: 0.9381298349 | Q56: 0.1381830166 | R56: 12.54637745 | S56: 3.198438892 | T56: 2.064454334
A57: 33.26399994 | B57: 18.54999924 | C57: 0 | D57: 0.870000008 | E57: 5.300000339 | F57: 2222.800049 | G57: 2045.660034 | H57: 7.920558453 | I57: 532.9155884 | J57: 534.7622681 | K57: 1895.239995 | L57: 132.2610366 | M57: 18.15901518 | N57: 59.22389718 | O57: 2.750113287 | P57: 0.9381411223 | Q57: 0.1381923292 | R57: 12.54608993 | S57: 3.198567612 | T57: 2.064588187
A58: 33.26399994 | B58: 18.55999947 | C58: 0 | D58: 0.870000008 | E58: 5.300000339 | F58: 2222.800049 | G58: 2045.660034 | H58: 7.920408726 | I58: 533.132019 | J58: 534.979248 | K58: 1895.233878 | L58: 132.2649536 | M58: 18.16121567 | N58: 59.22051633 | O58: 2.751761179 | P58: 0.9381524121 | Q58: 0.1382016401 | R58: 12.54580229 | S58: 3.198696385 | T58: 2.064722106
A59: 33.26399994 | B59: 18.56999969 | C59: 0 | D59: 0.870000008 | E59: 5.300000339 | F59: 2222.800049 | G59: 2045.660034 | H59: 7.920258999 | I59: 533.3485107 | J59: 535.1962891 | K59: 1895.22776 | L59: 132.2688702 | M59: 18.16341679 | N59: 59.21713581 | O59: 2.753409882 | P59: 0.9381637023 | Q59: 0.1382109475 | R59: 12.54551457 | S59: 3.198825188 | T59: 2.064856068
A60: 33.26399994 | B60: 18.57999992 | C60: 0 | D60: 0.870000008 | E60: 5.300000339 | F60: 2222.800049 | G60: 2045.660034 | H60: 7.920109749 | I60: 533.5651245 | J60: 535.4133911 | K60: 1895.221642 | L60: 132.2727862 | M60: 18.16561854 | N60: 59.21375564 | O60: 2.755059395 | P60: 0.9381749928 | Q60: 0.1382202516 | R60: 12.54522679 | S60: 3.198954021 | T60: 2.064990071
A61: 33.26399994 | B61: 18.59000015 | C61: 0 | D61: 0.870000008 | E61: 5.300000339 | F61: 2222.800049 | G61: 2045.660034 | H61: 7.919960022 | I61: 533.7817993 | J61: 535.6305542 | K61: 1895.215524 | L61: 132.2767017 | M61: 18.16782094 | N61: 59.21037582 | O61: 2.75670972 | P61: 0.9381862837 | Q61: 0.1382295523 | R61: 12.54493893 | S61: 3.199082883 | T61: 2.065124117
A62: 33.26399994 | B62: 18.60000038 | C62: 0 | D62: 0.870000008 | E62: 5.300000339 | F62: 2222.800049 | G62: 2045.660034 | H62: 7.919810295 | I62: 533.9985352 | J62: 535.8478394 | K62: 1895.209406 | L62: 132.2806167 | M62: 18.17002397 | N62: 59.20699633 | O62: 2.758360856 | P62: 0.9381975749 | Q62: 0.1382388495 | R62: 12.54465101 | S62: 3.199211775 | T62: 2.065258204
A63: 33.26399994 | B63: 18.61000061 | C63: 0 | D63: 0.870000008 | E63: 5.300000339 | F63: 2222.800049 | G63: 2045.660034 | H63: 7.919660568 | I63: 534.215332 | J63: 536.0651245 | K63: 1895.203288 | L63: 132.2845312 | M63: 18.17222764 | N63: 59.2036172 | O63: 2.760012804 | P63: 0.9382088665 | Q63: 0.1382481433 | R63: 12.54436302 | S63: 3.199340696 | T63: 2.065392333
A64: 33.26399994 | B64: 18.62000084 | C64: 0 | D64: 0.870000008 | E64: 5.300000339 | F64: 2222.800049 | G64: 2045.660034 | H64: 7.919511318 | I64: 534.4321899 | J64: 536.2825317 | K64: 1895.19717 | L64: 132.2884451 | M64: 18.17443194 | N64: 59.2002384 | O64: 2.761665564 | P64: 0.9382201585 | Q64: 0.1382574337 | R64: 12.54407496 | S64: 3.199469647 | T64: 2.065526504
A65: 33.26399994 | B65: 18.62999916 | C65: 0 | D65: 0.870000008 | E65: 5.300000339 | F65: 2222.800049 | G65: 2045.660034 | H65: 7.919361591 | I65: 534.6491089 | J65: 536.5 | K65: 1895.191053 | L65: 132.2923579 | M65: 18.17663646 | N65: 59.1968606 | O65: 2.763318822 | P65: 0.9382314486 | Q65: 0.1382667189 | R65: 12.54378688 | S65: 3.199598603 | T65: 2.065660692
A66: 33.26399994 | B66: 18.63999939 | C66: 0 | D66: 0.870000008 | E66: 5.300000339 | F66: 2222.800049 | G66: 2045.660034 | H66: 7.919211864 | I66: 534.8661499 | J66: 536.7175293 | K66: 1895.184934 | L66: 132.2962708 | M66: 18.17884204 | N66: 59.19348249 | O66: 2.764973207 | P66: 0.9382427412 | Q66: 0.1382760025 | R66: 12.54349868 | S66: 3.199727613 | T66: 2.065794947
A67: 33.26399994 | B67: 18.64999962 | C67: 0 | D67: 0.870000008 | E67: 5.300000339 | F67: 2222.800049 | G67: 2045.660034 | H67: 7.919062614 | I67: 535.083252 | J67: 536.9351807 | K67: 1895.178815 | L67: 132.3001832 | M67: 18.18104825 | N67: 59.19010473 | O67: 2.766628405 | P67: 0.9382540342 | Q67: 0.1382852826 | R67: 12.54321041 | S67: 3.199856652 | T67: 2.065929243
A68: 33.26399994 | B68: 18.65999985 | C68: 0 | D68: 0.870000008 | E68: 5.300000339 | F68: 2222.800049 | G68: 2045.660034 | H68: 7.918912888 | I68: 535.300415 | J68: 537.1528931 | K68: 1895.172697 | L68: 132.3040951 | M68: 18.1832551 | N68: 59.18672732 | O68: 2.768284417 | P68: 0.9382653275 | Q68: 0.1382945593 | R68: 12.54292207 | S68: 3.199985722 | T68: 2.066063582
A69: 33.26399994 | B69: 18.67000008 | C69: 0 | D69: 0.870000008 | E69: 5.300000339 | F69: 2222.800049 | G69: 2045.660034 | H69: 7.918763638 | I69: 535.5176392 | J69: 537.3705444 | K69: 1895.166578 | L69: 132.3080065 | M69: 18.18546259 | N69: 59.18335025 | O69: 2.769941242 | P69: 0.9382766212 | Q69: 0.1383038326 | R69: 12.54263366 | S69: 3.20011482 | T69: 2.066197963
A70: 33.26399994 | B70: 18.68000031 | C70: 0 | D70: 0.870000008 | E70: 5.300000339 | F70: 2222.800049 | G70: 2045.660034 | H70: 7.918613911 | I70: 535.7349243 | J70: 537.5883789 | K70: 1895.160459 | L70: 132.3119174 | M70: 18.18767072 | N70: 59.17997352 | O70: 2.77159888 | P70: 0.9382879152 | Q70: 0.1383131025 | R70: 12.54234518 | S70: 3.200243948 | T70: 2.066332386
A71: 33.26399994 | B71: 18.69000053 | C71: 0 | D71: 0.870000008 | E71: 5.300000339 | F71: 2222.800049 | G71: 2045.660034 | H71: 7.918464184 | I71: 535.9522705 | J71: 537.8062744 | K71: 1895.15434 | L71: 132.3158277 | M71: 18.18987949 | N71: 59.17659714 | O71: 2.773257334 | P71: 0.9382992096 | Q71: 0.138322369 | R71: 12.54205664 | S71: 3.200373106 | T71: 2.06646685
A72: 33.26399994 | B72: 18.70000076 | C72: 0 | D72: 0.870000008 | E72: 5.300000339 | F72: 2222.800049 | G72: 2045.660034 | H72: 7.918314934 | I72: 536.1697388 | J72: 538.024231 | K72: 1895.14822 | L72: 132.3197375 | M72: 18.19208889 | N72: 59.17322111 | O72: 2.774916601 | P72: 0.9383105043 | Q72: 0.138331632 | R72: 12.54176802 | S72: 3.200502294 | T72: 2.066601357
A73: 33.26399994 | B73: 18.70999908 | C73: 0 | D73: 0.870000008 | E73: 5.300000339 | F73: 2222.800049 | G73: 2045.660034 | H73: 7.918165207 | I73: 536.3872681 | J73: 538.2423096 | K73: 1895.142102 | L73: 132.3236461 | M73: 18.19429851 | N73: 59.16984607 | O73: 2.776576367 | P73: 0.9383217972 | Q73: 0.1383408899 | R73: 12.54147939 | S73: 3.200631486 | T73: 2.06673588
A74: 33.26399994 | B74: 18.71999931 | C74: 0 | D74: 0.870000008 | E74: 5.300000339 | F74: 2222.800049 | G74: 2045.660034 | H74: 7.918015957 | I74: 536.6048584 | J74: 538.4603882 | K74: 1895.135983 | L74: 132.3275549 | M74: 18.19650919 | N74: 59.16647072 | O74: 2.778237264 | P74: 0.9383330926 | Q74: 0.1383501461 | R74: 12.54119063 | S74: 3.200760732 | T74: 2.06687047
A75: 33.26399994 | B75: 18.72999954 | C75: 0 | D75: 0.870000008 | E75: 5.300000339 | F75: 2222.800049 | G75: 2045.660034 | H75: 7.91786623 | I75: 536.8225098 | J75: 538.6785278 | K75: 1895.129863 | L75: 132.3314632 | M75: 18.19872051 | N75: 59.16309573 | O75: 2.779898976 | P75: 0.9383443884 | Q75: 0.1383593988 | R75: 12.5409018 | S75: 3.200890009 | T75: 2.067005103
A76: 33.26399994 | B76: 18.73999977 | C76: 0 | D76: 0.870000008 | E76: 5.300000339 | F76: 2222.800049 | G76: 2045.660034 | H76: 7.91771698 | I76: 537.0402222 | J76: 538.8968506 | K76: 1895.123743 | L76: 132.3353709 | M76: 18.20093247 | N76: 59.15972108 | O76: 2.781561504 | P76: 0.9383556844 | Q76: 0.1383686482 | R76: 12.54061291 | S76: 3.201019314 | T76: 2.067139777
A77: 33.26399994 | B77: 18.75 | C77: 0 | D77: 0.870000008 | E77: 5.300000339 | F77: 2222.800049 | G77: 2045.660034 | H77: 7.917567253 | I77: 537.2580566 | J77: 539.1151733 | K77: 1895.117624 | L77: 132.3392782 | M77: 18.20314507 | N77: 59.15634678 | O77: 2.783224848 | P77: 0.9383669809 | Q77: 0.1383778941 | R77: 12.54032394 | S77: 3.20114865 | T77: 2.067274493
A78: 33.26399994 | B78: 18.76000023 | C78: 0 | D78: 0.870000008 | E78: 5.300000339 | F78: 2222.800049 | G78: 2045.660034 | H78: 7.917418003 | I78: 537.4758911 | J78: 539.3335571 | K78: 1895.111504 | L78: 132.3431849 | M78: 18.2053583 | N78: 59.15297282 | O78: 2.784889008 | P78: 0.9383782777 | Q78: 0.1383871366 | R78: 12.54003491 | S78: 3.201278014 | T78: 2.067409252
A79: 33.26399994 | B79: 18.77000046 | C79: 0 | D79: 0.870000008 | E79: 5.300000339 | F79: 2222.800049 | G79: 2045.660034 | H79: 7.917268276 | I79: 537.6939087 | J79: 539.552063 | K79: 1895.105384 | L79: 132.3470911 | M79: 18.20757218 | N79: 59.14959921 | O79: 2.786553984 | P79: 0.9383895748 | Q79: 0.1383963757 | R79: 12.5397458 | S79: 3.201407409 | T79: 2.067544052
A80: 33.26399994 | B80: 18.78000069 | C80: 0 | D80: 0.870000008 | E80: 5.300000339 | F80: 2222.800049 | G80: 2045.660034 | H80: 7.917119026 | I80: 537.9118652 | J80: 539.7705688 | K80: 1895.099263 | L80: 132.3509967 | M80: 18.20978669 | N80: 59.14622595 | O80: 2.788219777 | P80: 0.9384008722 | Q80: 0.1384056113 | R80: 12.53945663 | S80: 3.201536833 | T80: 2.067678894
A81: 33.26399994 | B81: 18.79000092 | C81: 0 | D81: 0.870000008 | E81: 5.300000339 | F81: 2222.800049 | G81: 2045.660034 | H81: 7.916969776 | I81: 538.1300049 | J81: 539.9891968 | K81: 1895.093143 | L81: 132.3549019 | M81: 18.21200184 | N81: 59.14285304 | O81: 2.789886387 | P81: 0.93841217 | Q81: 0.1384148435 | R81: 12.53916738 | S81: 3.201666286 | T81: 2.067813779
A82: 33.26399994 | B82: 18.79999924 | C82: 0 | D82: 0.870000008 | E82: 5.300000339 | F82: 2222.800049 | G82: 2045.660034 | H82: 7.916820049 | I82: 538.3481445 | J82: 540.2078857 | K82: 1895.087024 | L82: 132.3588058 | M82: 18.21421721 | N82: 59.13948112 | O82: 2.791553497 | P82: 0.938423466 | Q82: 0.1384240706 | R82: 12.53887812 | S82: 3.201795745 | T82: 2.067948679
A83: 33.26399994 | B83: 18.80999947 | C83: 0 | D83: 0.870000008 | E83: 5.300000339 | F83: 2222.800049 | G83: 2045.660034 | H83: 7.916670799 | I83: 538.5664062 | J83: 540.4266357 | K83: 1895.080903 | L83: 132.3627099 | M83: 18.21643365 | N83: 59.1361089 | O83: 2.793221742 | P83: 0.9384347645 | Q83: 0.1384332959 | R83: 12.53858874 | S83: 3.201925258 | T83: 2.068083647
A84: 33.26399994 | B84: 18.81999969 | C84: 0 | D84: 0.870000008 | E84: 5.300000339 | F84: 2222.800049 | G84: 2045.660034 | H84: 7.916521549 | I84: 538.784729 | J84: 540.6455078 | K84: 1895.074783 | L84: 132.3666135 | M84: 18.21865072 | N84: 59.13273703 | O84: 2.794890804 | P84: 0.9384460633 | Q84: 0.1384425179 | R84: 12.53829929 | S84: 3.2020548 | T84: 2.068218658
A85: 33.26399994 | B85: 18.82999992 | C85: 0 | D85: 0.870000008 | E85: 5.300000339 | F85: 2222.800049 | G85: 2045.660034 | H85: 7.916371822 | I85: 539.0030518 | J85: 540.8643799 | K85: 1895.068662 | L85: 132.3705166 | M85: 18.22086843 | N85: 59.1293655 | O85: 2.796560685 | P85: 0.9384573625 | Q85: 0.1384517364 | R85: 12.53800976 | S85: 3.202184372 | T85: 2.06835371
A86: 33.26399994 | B86: 18.84000015 | C86: 0 | D86: 0.870000008 | E86: 5.300000339 | F86: 2222.800049 | G86: 2045.660034 | H86: 7.916222572 | I86: 539.2214966 | J86: 541.083313 | K86: 1895.062541 | L86: 132.3744191 | M86: 18.22308679 | N86: 59.12599433 | O86: 2.798231385 | P86: 0.938468662 | Q86: 0.1384609515 | R86: 12.53772017 | S86: 3.202313974 | T86: 2.068488804
A87: 33.26399994 | B87: 18.85000038 | C87: 0 | D87: 0.870000008 | E87: 5.300000339 | F87: 2222.800049 | G87: 2045.660034 | H87: 7.916073322 | I87: 539.4400635 | J87: 541.3023682 | K87: 1895.05642 | L87: 132.3783211 | M87: 18.22530578 | N87: 59.1226235 | O87: 2.799902903 | P87: 0.9384799618 | Q87: 0.1384701631 | R87: 12.53743051 | S87: 3.202443605 | T87: 2.068623941
A88: 33.26399994 | B88: 18.86000061 | C88: 0 | D88: 0.870000008 | E88: 5.300000339 | F88: 2222.800049 | G88: 2045.660034 | H88: 7.915924072 | I88: 539.6586304 | J88: 541.5214844 | K88: 1895.050299 | L88: 132.3822226 | M88: 18.22752542 | N88: 59.11925302 | O88: 2.80157524 | P88: 0.938491262 | Q88: 0.1384793713 | R88: 12.53714078 | S88: 3.202573266 | T88: 2.068759119
A89: 33.26399994 | B89: 18.87000084 | C89: 0 | D89: 0.870000008 | E89: 5.300000339 | F89: 2222.800049 | G89: 2045.660034 | H89: 7.915774345 | I89: 539.8773193 | J89: 541.7406616 | K89: 1895.044178 | L89: 132.3861236 | M89: 18.22974569 | N89: 59.1158829 | O89: 2.803248397 | P89: 0.9385025625 | Q89: 0.1384885761 | R89: 12.53685097 | S89: 3.202702956 | T89: 2.06889434
A90: 33.26399994 | B90: 18.87999916 | C90: 0 | D90: 0.870000008 | E90: 5.300000339 | F90: 2222.800049 | G90: 2045.660034 | H90: 7.915625095 | I90: 540.0960083 | J90: 541.9598999 | K90: 1895.038057 | L90: 132.3900233 | M90: 18.23196619 | N90: 59.11251376 | O90: 2.804922054 | P90: 0.9385138612 | Q90: 0.1384977757 | R90: 12.53656116 | S90: 3.202832652 | T90: 2.069029576
A91: 33.26399994 | B91: 18.88999939 | C91: 0 | D91: 0.870000008 | E91: 5.300000339 | F91: 2222.800049 | G91: 2045.660034 | H91: 7.915475845 | I91: 540.3148804 | J91: 542.1792603 | K91: 1895.031936 | L91: 132.3939232 | M91: 18.23418774 | N91: 59.10914433 | O91: 2.806596849 | P91: 0.9385251624 | Q91: 0.1385069736 | R91: 12.53627122 | S91: 3.202962401 | T91: 2.069164881
A92: 33.26399994 | B92: 18.89999962 | C92: 0 | D92: 0.870000008 | E92: 5.300000339 | F92: 2222.800049 | G92: 2045.660034 | H92: 7.915326595 | I92: 540.5337524 | J92: 542.3986816 | K92: 1895.025814 | L92: 132.3978226 | M92: 18.23640994 | N92: 59.10577525 | O92: 2.808272466 | P92: 0.9385364639 | Q92: 0.1385161681 | R92: 12.5359812 | S92: 3.20309218 | T92: 2.069300227
A93: 33.26399994 | B93: 18.90999985 | C93: 0 | D93: 0.870000008 | E93: 5.300000339 | F93: 2222.800049 | G93: 2045.660034 | H93: 7.915177345 | I93: 540.7527466 | J93: 542.6181641 | K93: 1895.019693 | L93: 132.4017215 | M93: 18.23863278 | N93: 59.10240651 | O93: 2.809948902 | P93: 0.9385477658 | Q93: 0.1385253592 | R93: 12.53569112 | S93: 3.203221989 | T93: 2.069435616
A94: 33.26399994 | B94: 18.92000008 | C94: 0 | D94: 0.870000008 | E94: 5.300000339 | F94: 2222.800049 | G94: 2045.660034 | H94: 7.915028095 | I94: 540.9717407 | J94: 542.8377075 | K94: 1895.013571 | L94: 132.4056199 | M94: 18.24085627 | N94: 59.09903813 | O94: 2.81162616 | P94: 0.938559068 | Q94: 0.1385345468 | R94: 12.53540097 | S94: 3.203351828 | T94: 2.069571046
A95: 33.26399994 | B95: 18.93000031 | C95: 0 | D95: 0.870000008 | E95: 5.300000339 | F95: 2222.800049 | G95: 2045.660034 | H95: 7.914878368 | I95: 541.1908569 | J95: 543.057312 | K95: 1895.007449 | L95: 132.4095177 | M95: 18.24308039 | N95: 59.0956701 | O95: 2.813304238 | P95: 0.9385703705 | Q95: 0.138543731 | R95: 12.53511075 | S95: 3.203481696 | T95: 2.069706519
A96: 33.26399994 | B96: 18.94000053 | C96: 0 | D96: 0.870000008 | E96: 5.300000339 | F96: 2222.800049 | G96: 2045.660034 | H96: 7.914729118 | I96: 541.4100342 | J96: 543.2770996 | K96: 1895.001327 | L96: 132.413415 | M96: 18.24530515 | N96: 59.09230242 | O96: 2.814983138 | P96: 0.9385816734 | Q96: 0.1385529117 | R96: 12.53482046 | S96: 3.203611594 | T96: 2.069842034
A97: 33.26399994 | B97: 18.95000076 | C97: 0 | D97: 0.870000008 | E97: 5.300000339 | F97: 2222.800049 | G97: 2045.660034 | H97: 7.914579868 | I97: 541.6293335 | J97: 543.4968872 | K97: 1894.995205 | L97: 132.4173118 | M97: 18.24753056 | N97: 59.08893508 | O97: 2.816662859 | P97: 0.9385929766 | Q97: 0.1385620891 | R97: 12.5345301 | S97: 3.203741521 | T97: 2.06997759
A98: 33.26399994 | B98: 18.95999908 | C98: 0 | D98: 0.870000008 | E98: 5.300000339 | F98: 2222.800049 | G98: 2045.660034 | H98: 7.914430618 | I98: 541.8485718 | J98: 543.7166748 | K98: 1894.989083 | L98: 132.4212073 | M98: 18.24975619 | N98: 59.08556874 | O98: 2.818343082 | P98: 0.938604278 | Q98: 0.1385712612 | R98: 12.53423972 | S98: 3.203871453 | T98: 2.070113163
A99: 33.26399994 | B99: 18.96999931 | C99: 0 | D99: 0.870000008 | E99: 5.300000339 | F99: 2222.800049 | G99: 2045.660034 | H99: 7.914281368 | I99: 542.0679932 | J99: 543.9365845 | K99: 1894.982961 | L99: 132.425103 | M99: 18.25198288 | N99: 59.08220211 | O99: 2.820024447 | P99: 0.9386155818 | Q99: 0.1385804316 | R99: 12.53394922 | S99: 3.20400144 | T99: 2.070248804
A100: 33.26399994 | B100: 18.97999954 | C100: 0 | D100: 0.870000008 | E100: 5.300000339 | F100: 2222.800049 | G100: 2045.660034 | H100: 7.914132118 | I100: 542.2874146 | J100: 544.1565552 | K100: 1894.976838 | L100: 132.4289982 | M100: 18.25421022 | N100: 59.07883583 | O100: 2.821706635 | P100: 0.938626886 | Q100: 0.1385895986 | R100: 12.53365865 | S100: 3.204131456 | T100: 2.070384487
A101: 33.26399994 | B101: 18.98999977 | C101: 0 | D101: 0.870000008 | E101: 5.300000339 | F101: 2222.800049 | G101: 2045.660034 | H101: 7.913982868 | I101: 542.506958 | J101: 544.3765869 | K101: 1894.970716 | L101: 132.4328929 | M101: 18.25643819 | N101: 59.0754699 | O101: 2.823389646 | P101: 0.9386381906 | Q101: 0.1385987622 | R101: 12.53336801 | S101: 3.204261502 | T101: 2.070520213
A102: 33.26399994 | B102: 19 | C102: 0 | D102: 0.870000008 | E102: 5.300000339 | F102: 2222.800049 | G102: 2045.660034 | H102: 7.913833618 | I102: 542.7266235 | J102: 544.5967407 | K102: 1894.964593 | L102: 132.436787 | M102: 18.25866681 | N102: 59.07210432 | O102: 2.82507348 | P102: 0.9386494954 | Q102: 0.1386079223 | R102: 12.5330773 | S102: 3.204391578 | T102: 2.07065598
A103: 33.26399994 | B103: 19.01000023 | C103: 0 | D103: 0.870000008 | E103: 5.300000339 | F103: 2222.800049 | G103: 2045.660034 | H103: 7.913684368 | I103: 542.9462891 | J103: 544.8169556 | K103: 1894.95847 | L103: 132.4406807 | M103: 18.26089608 | N103: 59.06873909 | O103: 2.826758137 | P103: 0.9386608006 | Q103: 0.138617079 | R103: 12.53278652 | S103: 3.204521683 | T103: 2.070791789
A104: 33.26399994 | B104: 19.02000046 | C104: 0 | D104: 0.870000008 | E104: 5.300000339 | F104: 2222.800049 | G104: 2045.660034 | H104: 7.913535118 | I104: 543.1660767 | J104: 545.0372925 | K104: 1894.952347 | L104: 132.4445738 | M104: 18.26312598 | N104: 59.06537422 | O104: 2.828443618 | P104: 0.9386721062 | Q104: 0.1386262323 | R104: 12.53249567 | S104: 3.204651818 | T104: 2.07092764
A105: 33.26399994 | B105: 19.03000069 | C105: 0 | D105: 0.870000008 | E105: 5.300000339 | F105: 2222.800049 | G105: 2045.660034 | H105: 7.913385868 | I105: 543.3858643 | J105: 545.2575684 | K105: 1894.946224 | L105: 132.4484663 | M105: 18.26535653 | N105: 59.06200969 | O105: 2.830129922 | P105: 0.938683412 | Q105: 0.1386353821 | R105: 12.53220474 | S105: 3.204781982 | T105: 2.071063534
A106: 33.26399994 | B106: 19.04000092 | C106: 0 | D106: 0.870000008 | E106: 5.300000339 | F106: 2222.800049 | G106: 2045.660034 | H106: 7.913236618 | I106: 543.6057739 | J106: 545.4780273 | K106: 1894.940101 | L106: 132.4523584 | M106: 18.26758773 | N106: 59.05864552 | O106: 2.831817051 | P106: 0.9386947182 | Q106: 0.1386445285 | R106: 12.53191375 | S106: 3.204912176 | T106: 2.071199469
A107: 33.26399994 | B107: 19.04999924 | C107: 0 | D107: 0.870000008 | E107: 5.300000339 | F107: 2222.800049 | G107: 2045.660034 | H107: 7.913087845 | I107: 543.8257446 | J107: 545.6984863 | K107: 1894.933979 | L107: 132.4562491 | M107: 18.26981914 | N107: 59.05528234 | O107: 2.833504683 | P107: 0.9387060225 | Q107: 0.1386536697 | R107: 12.53162275 | S107: 3.205042375 | T107: 2.071335421
A108: 33.26399994 | B108: 19.05999947 | C108: 0 | D108: 0.870000008 | E108: 5.300000339 | F108: 2222.800049 | G108: 2045.660034 | H108: 7.912938595 | I108: 544.0457764 | J108: 545.9190674 | K108: 1894.927855 | L108: 132.4601401 | M108: 18.27205162 | N108: 59.05191887 | O108: 2.835193461 | P108: 0.9387173294 | Q108: 0.1386628091 | R108: 12.53133162 | S108: 3.205172628 | T108: 2.071471441
A109: 33.26399994 | B109: 19.06999969 | C109: 0 | D109: 0.870000008 | E109: 5.300000339 | F109: 2222.800049 | G109: 2045.660034 | H109: 7.912789345 | I109: 544.2659302 | J109: 546.1397095 | K109: 1894.921732 | L109: 132.4640305 | M109: 18.27428475 | N109: 59.04855575 | O109: 2.836883064 | P109: 0.9387286366 | Q109: 0.1386719452 | R109: 12.53104042 | S109: 3.205302911 | T109: 2.071607503
A110: 33.26399994 | B110: 19.07999992 | C110: 0 | D110: 0.870000008 | E110: 5.300000339 | F110: 2222.800049 | G110: 2045.660034 | H110: 7.912640095 | I110: 544.486084 | J110: 546.3604736 | K110: 1894.915608 | L110: 132.4679205 | M110: 18.27651852 | N110: 59.04519299 | O110: 2.838573493 | P110: 0.9387399441 | Q110: 0.1386810778 | R110: 12.53074915 | S110: 3.205433224 | T110: 2.071743607
A111: 33.26399994 | B111: 19.09000015 | C111: 0 | D111: 0.870000008 | E111: 5.300000339 | F111: 2222.800049 | G111: 2045.660034 | H111: 7.912490845 | I111: 544.7063599 | J111: 546.5812378 | K111: 1894.909484 | L111: 132.4718098 | M111: 18.27875293 | N111: 59.04183058 | O111: 2.840264747 | P111: 0.9387512519 | Q111: 0.1386902069 | R111: 12.5304578 | S111: 3.205563567 | T111: 2.071879753
A112: 33.26399994 | B112: 19.10000038 | C112: 0 | D112: 0.870000008 | E112: 5.300000339 | F112: 2222.800049 | G112: 2045.660034 | H112: 7.912341595 | I112: 544.9266968 | J112: 546.802063 | K112: 1894.90336 | L112: 132.4756987 | M112: 18.28098799 | N112: 59.03846852 | O112: 2.841956828 | P112: 0.93876256 | Q112: 0.1386993327 | R112: 12.53016639 | S112: 3.205693939 | T112: 2.072015942
A113: 33.26399994 | B113: 19.11000061 | C113: 0 | D113: 0.870000008 | E113: 5.300000339 | F113: 2222.800049 | G113: 2045.660034 | H113: 7.912192822 | I113: 545.1470947 | J113: 547.0230103 | K113: 1894.897236 | L113: 132.479587 | M113: 18.28322369 | N113: 59.03510681 | O113: 2.843649734 | P113: 0.9387738685 | Q113: 0.1387084549 | R113: 12.52987491 | S113: 3.20582434 | T113: 2.072152172
A114: 33.26399994 | B114: 19.12000084 | C114: 0 | D114: 0.870000008 | E114: 5.300000339 | F114: 2222.800049 | G114: 2045.660034 | H114: 7.912043571 | I114: 545.3676147 | J114: 547.2440186 | K114: 1894.891112 | L114: 132.4834748 | M114: 18.28546004 | N114: 59.03174546 | O114: 2.845343467 | P114: 0.9387851773 | Q114: 0.1387175738 | R114: 12.52958336 | S114: 3.205954772 | T114: 2.072288445
A115: 33.26399994 | B115: 19.12999916 | C115: 0 | D115: 0.870000008 | E115: 5.300000339 | F115: 2222.800049 | G115: 2045.660034 | H115: 7.911894321 | I115: 545.5880737 | J115: 547.4650269 | K115: 1894.884989 | L115: 132.4873613 | M115: 18.2876966 | N115: 59.0283851 | O115: 2.847037704 | P115: 0.9387964843 | Q115: 0.1387266874 | R115: 12.52929179 | S115: 3.206085208 | T115: 2.072424734
A116: 33.26399994 | B116: 19.13999939 | C116: 0 | D116: 0.870000008 | E116: 5.300000339 | F116: 2222.800049 | G116: 2045.660034 | H116: 7.911745548 | I116: 545.8087769 | J116: 547.6862183 | K116: 1894.878865 | L116: 132.4912481 | M116: 18.28993424 | N116: 59.02502445 | O116: 2.848733091 | P116: 0.9388077937 | Q116: 0.1387357993 | R116: 12.5290001 | S116: 3.206215698 | T116: 2.07256109
A117: 33.26399994 | B117: 19.14999962 | C117: 0 | D117: 0.870000008 | E117: 5.300000339 | F117: 2222.800049 | G117: 2045.660034 | H117: 7.911596298 | I117: 546.0294189 | J117: 547.9074097 | K117: 1894.87274 | L117: 132.4951343 | M117: 18.29217253 | N117: 59.02166416 | O117: 2.850429305 | P117: 0.9388191035 | Q117: 0.1387449078 | R117: 12.52870834 | S117: 3.206346219 | T117: 2.07269749
A118: 33.26399994 | B118: 19.15999985 | C118: 0 | D118: 0.870000008 | E118: 5.300000339 | F118: 2222.800049 | G118: 2045.660034 | H118: 7.911447048 | I118: 546.2501831 | J118: 548.1287231 | K118: 1894.866615 | L118: 132.49902 | M118: 18.29441145 | N118: 59.01830422 | O118: 2.852126347 | P118: 0.9388304136 | Q118: 0.1387540129 | R118: 12.52841651 | S118: 3.206476769 | T118: 2.072833931
A119: 33.26399994 | B119: 19.17000008 | C119: 0 | D119: 0.870000008 | E119: 5.300000339 | F119: 2222.800049 | G119: 2045.660034 | H119: 7.911297798 | I119: 546.4710693 | J119: 548.3500977 | K119: 1894.860491 | L119: 132.5029051 | M119: 18.29665103 | N119: 59.01494464 | O119: 2.853824217 | P119: 0.9388417241 | Q119: 0.1387631145 | R119: 12.5281246 | S119: 3.206607348 | T119: 2.072970414
A120: 33.26399994 | B120: 19.18000031 | C120: 0 | D120: 0.870000008 | E120: 5.300000339 | F120: 2222.800049 | G120: 2045.660034 | H120: 7.911149025 | I120: 546.6920166 | J120: 548.5715942 | K120: 1894.854366 | L120: 132.5067897 | M120: 18.29889125 | N120: 59.01158541 | O120: 2.855522916 | P120: 0.9388530348 | Q120: 0.1387722126 | R120: 12.52783263 | S120: 3.206737958 | T120: 2.07310694
A121: 33.26399994 | B121: 19.19000053 | C121: 0 | D121: 0.870000008 | E121: 5.300000339 | F121: 2222.800049 | G121: 2045.660034 | H121: 7.910999775 | I121: 546.9129639 | J121: 548.7930908 | K121: 1894.848241 | L121: 132.5106738 | M121: 18.30113211 | N121: 59.00822653 | O121: 2.857222443 | P121: 0.9388643459 | Q121: 0.1387813073 | R121: 12.52754059 | S121: 3.206868597 | T121: 2.073243508
A122: 33.26399994 | B122: 19.20000076 | C122: 0 | D122: 0.870000008 | E122: 5.300000339 | F122: 2222.800049 | G122: 2045.660034 | H122: 7.910851002 | I122: 547.1340332 | J122: 549.0146484 | K122: 1894.842116 | L122: 132.5145573 | M122: 18.30337363 | N122: 59.00486801 | O122: 2.858922798 | P122: 0.9388756573 | Q122: 0.1387903985 | R122: 12.52724847 | S122: 3.206999266 | T122: 2.073380118
A123: 33.26399994 | B123: 19.20999908 | C123: 0 | D123: 0.870000008 | E123: 5.300000339 | F123: 2222.800049 | G123: 2045.660034 | H123: 7.910701752 | I123: 547.3551025 | J123: 549.2362671 | K123: 1894.835992 | L123: 132.5184396 | M123: 18.30561536 | N123: 59.00151048 | O123: 2.860623659 | P123: 0.9388869668 | Q123: 0.1387994846 | R123: 12.52695635 | S123: 3.207129939 | T123: 2.073516744
A124: 33.26399994 | B124: 19.21999931 | C124: 0 | D124: 0.870000008 | E124: 5.300000339 | F124: 2222.800049 | G124: 2045.660034 | H124: 7.910552979 | I124: 547.576355 | J124: 549.4580078 | K124: 1894.829867 | L124: 132.522322 | M124: 18.30785816 | N124: 58.99815267 | O124: 2.862325673 | P124: 0.9388982789 | Q124: 0.1388085689 | R124: 12.52666409 | S124: 3.207260667 | T124: 2.073653438
A125: 33.26399994 | B125: 19.22999954 | C125: 0 | D125: 0.870000008 | E125: 5.300000339 | F125: 2222.800049 | G125: 2045.660034 | H125: 7.910403728 | I125: 547.7976074 | J125: 549.6798096 | K125: 1894.823741 | L125: 132.526204 | M125: 18.31010161 | N125: 58.99479522 | O125: 2.864028517 | P125: 0.9389095912 | Q125: 0.1388176498 | R125: 12.52637177 | S125: 3.207391425 | T125: 2.073790174
A126: 33.26399994 | B126: 19.23999977 | C126: 0 | D126: 0.870000008 | E126: 5.300000339 | F126: 2222.800049 | G126: 2045.660034 | H126: 7.910254478 | I126: 548.0189819 | J126: 549.9016724 | K126: 1894.817616 | L126: 132.5300854 | M126: 18.31234571 | N126: 58.99143811 | O126: 2.865732191 | P126: 0.9389209039 | Q126: 0.1388267273 | R126: 12.52607937 | S126: 3.207522212 | T126: 2.073926953
A127: 33.26399994 | B127: 19.25 | C127: 0 | D127: 0.870000008 | E127: 5.300000339 | F127: 2222.800049 | G127: 2045.660034 | H127: 7.910105705 | I127: 548.2403564 | J127: 550.1236572 | K127: 1894.81149 | L127: 132.5339662 | M127: 18.31459046 | N127: 58.98808137 | O127: 2.867436695 | P127: 0.9389322169 | Q127: 0.1388358013 | R127: 12.52578691 | S127: 3.20765303 | T127: 2.074063774
A128: 33.26399994 | B128: 19.26000023 | C128: 0 | D128: 0.870000008 | E128: 5.300000339 | F128: 2222.800049 | G128: 2045.660034 | H128: 7.909956455 | I128: 548.4619141 | J128: 550.3457031 | K128: 1894.805364 | L128: 132.5378466 | M128: 18.31683585 | N128: 58.98472498 | O128: 2.86914203 | P128: 0.9389435302 | Q128: 0.1388448718 | R128: 12.52549437 | S128: 3.207783876 | T128: 2.074200637
A129: 33.26399994 | B129: 19.27000046 | C129: 0 | D129: 0.870000008 | E129: 5.300000339 | F129: 2222.800049 | G129: 2045.660034 | H129: 7.909807682 | I129: 548.6834717 | J129: 550.567749 | K129: 1894.799239 | L129: 132.5417264 | M129: 18.31908189 | N129: 58.98136894 | O129: 2.870848196 | P129: 0.9389548439 | Q129: 0.1388539389 | R129: 12.52520177 | S129: 3.207914753 | T129: 2.074337543
A130: 33.26399994 | B130: 19.28000069 | C130: 0 | D130: 0.870000008 | E130: 5.300000339 | F130: 2222.800049 | G130: 2045.660034 | H130: 7.909658909 | I130: 548.9050903 | J130: 550.789917 | K130: 1894.793113 | L130: 132.5456056 | M130: 18.32132857 | N130: 58.97801327 | O130: 2.872555193 | P130: 0.9389661578 | Q130: 0.1388630025 | R130: 12.52490909 | S130: 3.208045659 | T130: 2.07447449
A131: 33.26399994 | B131: 19.29000092 | C131: 0 | D131: 0.870000008 | E131: 5.300000339 | F131: 2222.800049 | G131: 2045.660034 | H131: 7.909509659 | I131: 549.1268921 | J131: 551.012207 | K131: 1894.786987 | L131: 132.5494844 | M131: 18.32357591 | N131: 58.97465794 | O131: 2.874263022 | P131: 0.9389774721 | Q131: 0.1388720627 | R131: 12.52461635 | S131: 3.208176595 | T131: 2.07461148
A132: 33.26399994 | B132: 19.29999924 | C132: 0 | D132: 0.870000008 | E132: 5.300000339 | F132: 2222.800049 | G132: 2045.660034 | H132: 7.909360886 | I132: 549.3485718 | J132: 551.234436 | K132: 1894.780862 | L132: 132.5533618 | M132: 18.32582346 | N132: 58.97130362 | O132: 2.875971356 | P132: 0.9389887845 | Q132: 0.1388811177 | R132: 12.52432359 | S132: 3.208307536 | T132: 2.074748486
A133: 33.26399994 | B133: 19.30999947 | C133: 0 | D133: 0.870000008 | E133: 5.300000339 | F133: 2222.800049 | G133: 2045.660034 | H133: 7.909211636 | I133: 549.5704956 | J133: 551.4568481 | K133: 1894.774735 | L133: 132.5572395 | M133: 18.32807209 | N133: 58.96794901 | O133: 2.877680848 | P133: 0.9390000994 | Q133: 0.1388901709 | R133: 12.5240307 | S133: 3.208438531 | T133: 2.07488556
A134: 33.26399994 | B134: 19.31999969 | C134: 0 | D134: 0.870000008 | E134: 5.300000339 | F134: 2222.800049 | G134: 2045.660034 | H134: 7.909062862 | I134: 549.7924194 | J134: 551.6793213 | K134: 1894.768609 | L134: 132.5611166 | M134: 18.33032137 | N134: 58.96459475 | O134: 2.879391173 | P134: 0.9390114146 | Q134: 0.1388992208 | R134: 12.52373774 | S134: 3.208569556 | T134: 2.075022677
A135: 33.26399994 | B135: 19.32999992 | C135: 0 | D135: 0.870000008 | E135: 5.300000339 | F135: 2222.800049 | G135: 2045.660034 | H135: 7.908914089 | I135: 550.0144043 | J135: 551.9019165 | K135: 1894.762482 | L135: 132.5649931 | M135: 18.33257129 | N135: 58.96124086 | O135: 2.88110233 | P135: 0.9390227302 | Q135: 0.1389082671 | R135: 12.52344471 | S135: 3.208700611 | T135: 2.075159836
A136: 33.26399994 | B136: 19.34000015 | C136: 0 | D136: 0.870000008 | E136: 5.300000339 | F136: 2222.800049 | G136: 2045.660034 | H136: 7.908764839 | I136: 550.2365112 | J136: 552.1245117 | K136: 1894.756356 | L136: 132.5688692 | M136: 18.33482187 | N136: 58.95788732 | O136: 2.88281432 | P136: 0.939034046 | Q136: 0.13891731 | R136: 12.52315161 | S136: 3.208831696 | T136: 2.075297037
A137: 33.26399994 | B137: 19.35000038 | C137: 0 | D137: 0.870000008 | E137: 5.300000339 | F137: 2222.800049 | G137: 2045.660034 | H137: 7.908616066 | I137: 550.4586792 | J137: 552.347229 | K137: 1894.750229 | L137: 132.5727447 | M137: 18.33707309 | N137: 58.95453414 | O137: 2.884527143 | P137: 0.9390453622 | Q137: 0.1389263494 | R137: 12.52285845 | S137: 3.20896281 | T137: 2.07543428
A138: 33.26399994 | B138: 19.36000061 | C138: 0 | D138: 0.870000008 | E138: 5.300000339 | F138: 2222.800049 | G138: 2045.660034 | H138: 7.908467293 | I138: 550.6809082 | J138: 552.5700073 | K138: 1894.744102 | L138: 132.5766196 | M138: 18.33932496 | N138: 58.95118131 | O138: 2.8862408 | P138: 0.9390566787 | Q138: 0.1389353854 | R138: 12.52256521 | S138: 3.209093954 | T138: 2.075571565
A139: 33.26399994 | B139: 19.37000084 | C139: 0 | D139: 0.870000008 | E139: 5.300000339 | F139: 2222.800049 | G139: 2045.660034 | H139: 7.908318043 | I139: 550.9031982 | J139: 552.7927856 | K139: 1894.737975 | L139: 132.5804941 | M139: 18.34157748 | N139: 58.94782885 | O139: 2.88795529 | P139: 0.9390679955 | Q139: 0.1389444179 | R139: 12.5222719 | S139: 3.209225127 | T139: 2.075708893
A140: 33.26399994 | B140: 19.37999916 | C140: 0 | D140: 0.870000008 | E140: 5.300000339 | F140: 2222.800049 | G140: 2045.660034 | H140: 7.90816927 | I140: 551.1255493 | J140: 553.015686 | K140: 1894.731849 | L140: 132.5843672 | M140: 18.34383022 | N140: 58.94447738 | O140: 2.889670288 | P140: 0.9390793104 | Q140: 0.1389534453 | R140: 12.52197857 | S140: 3.209356306 | T140: 2.075846237
A141: 33.26399994 | B141: 19.38999939 | C141: 0 | D141: 0.870000008 | E141: 5.300000339 | F141: 2222.800049 | G141: 2045.660034 | H141: 7.908020496 | I141: 551.3479614 | J141: 553.2385864 | K141: 1894.725722 | L141: 132.5882406 | M141: 18.34608404 | N141: 58.94112563 | O141: 2.891386447 | P141: 0.9390906279 | Q141: 0.1389624709 | R141: 12.52168512 | S141: 3.209487539 | T141: 2.075983649
A142: 33.26399994 | B142: 19.39999962 | C142: 0 | D142: 0.870000008 | E142: 5.300000339 | F142: 2222.800049 | G142: 2045.660034 | H142: 7.907871723 | I142: 551.5704956 | J142: 553.4616699 | K142: 1894.719595 | L142: 132.5921134 | M142: 18.34833851 | N142: 58.93777423 | O142: 2.89310344 | P142: 0.9391019456 | Q142: 0.138971493 | R142: 12.5213916 | S142: 3.209618802 | T142: 2.076121104
A143: 33.26399994 | B143: 19.40999985 | C143: 0 | D143: 0.870000008 | E143: 5.300000339 | F143: 2222.800049 | G143: 2045.660034 | H143: 7.90772295 | I143: 551.7931519 | J143: 553.6848145 | K143: 1894.713468 | L143: 132.5959856 | M143: 18.35059363 | N143: 58.9344232 | O143: 2.894821269 | P143: 0.9391132636 | Q143: 0.1389805117 | R143: 12.52109801 | S143: 3.209750094 | T143: 2.076258601
A144: 33.26399994 | B144: 19.42000008 | C144: 0 | D144: 0.870000008 | E144: 5.300000339 | F144: 2222.800049 | G144: 2045.660034 | H144: 7.9075737 | I144: 552.0158081 | J144: 553.90802 | K144: 1894.70734 | L144: 132.5998574 | M144: 18.3528494 | N144: 58.93107252 | O144: 2.896539932 | P144: 0.939124582 | Q144: 0.1389895269 | R144: 12.52080434 | S144: 3.209881417 | T144: 2.07639614
A145: 33.26399994 | B145: 19.43000031 | C145: 0 | D145: 0.870000008 | E145: 5.300000339 | F145: 2222.800049 | G145: 2045.660034 | H145: 7.907424927 | I145: 552.2385254 | J145: 554.1312866 | K145: 1894.701212 | L145: 132.6037286 | M145: 18.35510581 | N145: 58.9277222 | O145: 2.898259432 | P145: 0.9391359007 | Q145: 0.1389985387 | R145: 12.52051061 | S145: 3.210012769 | T145: 2.076533722
A146: 33.26399994 | B146: 19.44000053 | C146: 0 | D146: 0.870000008 | E146: 5.300000339 | F146: 2222.800049 | G146: 2045.660034 | H146: 7.907276154 | I146: 552.4613647 | J146: 554.3546143 | K146: 1894.695085 | L146: 132.6075992 | M146: 18.35736288 | N146: 58.92437224 | O146: 2.899979767 | P146: 0.9391472197 | Q146: 0.139007547 | R146: 12.52021681 | S146: 3.21014415 | T146: 2.076671345
A147: 33.26399994 | B147: 19.45000076 | C147: 0 | D147: 0.870000008 | E147: 5.300000339 | F147: 2222.800049 | G147: 2045.660034 | H147: 7.90712738 | I147: 552.6842651 | J147: 554.5780029 | K147: 1894.688957 | L147: 132.6114693 | M147: 18.3596206 | N147: 58.92102264 | O147: 2.901700938 | P147: 0.939158539 | Q147: 0.1390165518 | R147: 12.51992293 | S147: 3.210275562 | T147: 2.076809012
A148: 33.26399994 | B148: 19.45999908 | C148: 0 | D148: 0.870000008 | E148: 5.300000339 | F148: 2222.800049 | G148: 2045.660034 | H148: 7.906978607 | I148: 552.9071655 | J148: 554.8015137 | K148: 1894.68283 | L148: 132.6153381 | M148: 18.36187853 | N148: 58.91767404 | O148: 2.903422617 | P148: 0.9391698564 | Q148: 0.1390255514 | R148: 12.51962904 | S148: 3.210406978 | T148: 2.076946694
A149: 33.26399994 | B149: 19.46999931 | C149: 0 | D149: 0.870000008 | E149: 5.300000339 | F149: 2222.800049 | G149: 2045.660034 | H149: 7.906829834 | I149: 553.130188 | J149: 555.0250244 | K149: 1894.676702 | L149: 132.6192072 | M149: 18.36413755 | N149: 58.91432516 | O149: 2.905145461 | P149: 0.9391811763 | Q149: 0.1390345493 | R149: 12.51933503 | S149: 3.210538449 | T149: 2.077084444
A150: 33.26399994 | B150: 19.47999954 | C150: 0 | D150: 0.870000008 | E150: 5.300000339 | F150: 2222.800049 | G150: 2045.660034 | H150: 7.906681061 | I150: 553.3532715 | J150: 555.2486572 | K150: 1894.670574 | L150: 132.6230757 | M150: 18.36639722 | N150: 58.91097664 | O150: 2.906869143 | P150: 0.9391924965 | Q150: 0.1390435438 | R150: 12.51904094 | S150: 3.21066995 | T150: 2.077222237
A151: 33.26399994 | B151: 19.48999977 | C151: 0 | D151: 0.870000008 | E151: 5.300000339 | F151: 2222.800049 | G151: 2045.660034 | H151: 7.906532288 | I151: 553.5765381 | J151: 555.4724121 | K151: 1894.664446 | L151: 132.6269436 | M151: 18.36865754 | N151: 58.90762847 | O151: 2.908593661 | P151: 0.9392038171 | Q151: 0.1390525348 | R151: 12.51874679 | S151: 3.21080148 | T151: 2.077360073
A152: 33.26399994 | B152: 19.5 | C152: 0 | D152: 0.870000008 | E152: 5.300000339 | F152: 2222.800049 | G152: 2045.660034 | H152: 7.906383514 | I152: 553.7997437 | J152: 555.696167 | K152: 1894.658317 | L152: 132.630811 | M152: 18.37091851 | N152: 58.90428067 | O152: 2.910319017 | P152: 0.9392151379 | Q152: 0.1390615223 | R152: 12.51845256 | S152: 3.21093304 | T152: 2.07749795
A153: 33.26399994 | B153: 19.51000023 | C153: 0 | D153: 0.870000008 | E153: 5.300000339 | F153: 2222.800049 | G153: 2045.660034 | H153: 7.906234741 | I153: 554.0230713 | J153: 555.9200439 | K153: 1894.652189 | L153: 132.6346778 | M153: 18.37318013 | N153: 58.90093323 | O153: 2.912045211 | P153: 0.939226459 | Q153: 0.1390705063 | R153: 12.51815826 | S153: 3.21106463 | T153: 2.07763587
A154: 33.26399994 | B154: 19.52000046 | C154: 0 | D154: 0.870000008 | E154: 5.300000339 | F154: 2222.800049 | G154: 2045.660034 | H154: 7.906085968 | I154: 554.24646 | J154: 556.1439819 | K154: 1894.64606 | L154: 132.6385442 | M154: 18.37544241 | N154: 58.89758615 | O154: 2.913772243 | P154: 0.9392377805 | Q154: 0.1390794869 | R154: 12.51786389 | S154: 3.21119625 | T154: 2.077773833
A155: 33.26399994 | B155: 19.53000069 | C155: 0 | D155: 0.870000008 | E155: 5.300000339 | F155: 2222.800049 | G155: 2045.660034 | H155: 7.905937195 | I155: 554.4699097 | J155: 556.367981 | K155: 1894.639932 | L155: 132.6424099 | M155: 18.37770533 | N155: 58.89423942 | O155: 2.915500113 | P155: 0.9392491023 | Q155: 0.139088464 | R155: 12.51756945 | S155: 3.211327899 | T155: 2.077911837
A156: 33.26399994 | B156: 19.54000092 | C156: 0 | D156: 0.870000008 | E156: 5.300000339 | F156: 2222.800049 | G156: 2045.660034 | H156: 7.905788422 | I156: 554.6935425 | J156: 556.5921021 | K156: 1894.633803 | L156: 132.6462751 | M156: 18.37996891 | N156: 58.89089306 | O156: 2.917228823 | P156: 0.9392604243 | Q156: 0.1390974376 | R156: 12.51727494 | S156: 3.211459579 | T156: 2.078049884
A157: 33.26399994 | B157: 19.54999924 | C157: 0 | D157: 0.870000008 | E157: 5.300000339 | F157: 2222.800049 | G157: 2045.660034 | H157: 7.905639648 | I157: 554.9171143 | J157: 556.8161621 | K157: 1894.627675 | L157: 132.6501391 | M157: 18.3822327 | N157: 58.8875477 | O157: 2.918958041 | P157: 0.9392717445 | Q157: 0.1391064061 | R157: 12.51698041 | S157: 3.211591263 | T157: 2.078187947
A158: 33.26399994 | B158: 19.55999947 | C158: 0 | D158: 0.870000008 | E158: 5.300000339 | F158: 2222.800049 | G158: 2045.660034 | H158: 7.905490875 | I158: 555.1408081 | J158: 557.0404053 | K158: 1894.621546 | L158: 132.6540032 | M158: 18.38449758 | N158: 58.88420206 | O158: 2.920688428 | P158: 0.9392830672 | Q158: 0.1391153728 | R158: 12.51668576 | S158: 3.211723001 | T158: 2.078326079
A159: 33.26399994 | B159: 19.56999969 | C159: 0 | D159: 0.870000008 | E159: 5.300000339 | F159: 2222.800049 | G159: 2045.660034 | H159: 7.905342102 | I159: 555.364563 | J159: 557.2647095 | K159: 1894.615417 | L159: 132.6578668 | M159: 18.38676311 | N159: 58.88085678 | O159: 2.922419656 | P159: 0.9392943902 | Q159: 0.139124336 | R159: 12.51639104 | S159: 3.21185477 | T159: 2.078464253
A160: 33.26399994 | B160: 19.57999992 | C160: 0 | D160: 0.870000008 | E160: 5.300000339 | F160: 2222.800049 | G160: 2045.660034 | H160: 7.905193329 | I160: 555.5883789 | J160: 557.4890747 | K160: 1894.609288 | L160: 132.6617299 | M160: 18.3890293 | N160: 58.87751186 | O160: 2.924151722 | P160: 0.9393057135 | Q160: 0.1391332958 | R160: 12.51609625 | S160: 3.211986568 | T160: 2.07860247
A161: 33.26399994 | B161: 19.59000015 | C161: 0 | D161: 0.870000008 | E161: 5.300000339 | F161: 2222.800049 | G161: 2045.660034 | H161: 7.905044556 | I161: 555.8123169 | J161: 557.713501 | K161: 1894.603158 | L161: 132.6655924 | M161: 18.39129613 | N161: 58.8741673 | O161: 2.92588463 | P161: 0.9393170371 | Q161: 0.1391422521 | R161: 12.51580138 | S161: 3.212118396 | T161: 2.078740729
A162: 33.26399994 | B162: 19.60000038 | C162: 0 | D162: 0.870000008 | E162: 5.300000339 | F162: 2222.800049 | G162: 2045.660034 | H162: 7.904895782 | I162: 556.0363159 | J162: 557.9379883 | K162: 1894.597029 | L162: 132.6694543 | M162: 18.39356362 | N162: 58.87082311 | O162: 2.927618377 | P162: 0.9393283609 | Q162: 0.1391512049 | R162: 12.51550645 | S162: 3.212250254 | T162: 2.07887903
A163: 33.26399994 | B163: 19.61000061 | C163: 0 | D163: 0.870000008 | E163: 5.300000339 | F163: 2222.800049 | G163: 2045.660034 | H163: 7.904747486 | I163: 556.260376 | J163: 558.1626587 | K163: 1894.590899 | L163: 132.6733157 | M163: 18.39583177 | N163: 58.86747927 | O163: 2.929352966 | P163: 0.9393396851 | Q163: 0.1391601542 | R163: 12.51521144 | S163: 3.212382142 | T163: 2.079017373
A164: 33.26399994 | B164: 19.62000084 | C164: 0 | D164: 0.870000008 | E164: 5.300000339 | F164: 2222.800049 | G164: 2045.660034 | H164: 7.904598713 | I164: 556.4844971 | J164: 558.3872681 | K164: 1894.58477 | L164: 132.6771766 | M164: 18.39810056 | N164: 58.8641358 | O164: 2.931088395 | P164: 0.9393510096 | Q164: 0.1391691001 | R164: 12.51491636 | S164: 3.212514059 | T164: 2.079155759
A165: 33.26399994 | B165: 19.62999916 | C165: 0 | D165: 0.870000008 | E165: 5.300000339 | F165: 2222.800049 | G165: 2045.660034 | H165: 7.90444994 | I165: 556.7086792 | J165: 558.6119995 | K165: 1894.578641 | L165: 132.6810362 | M165: 18.40036958 | N165: 58.86079333 | O165: 2.932824335 | P165: 0.9393623323 | Q165: 0.1391780408 | R165: 12.51462127 | S165: 3.212645981 | T165: 2.079294161
A166: 33.26399994 | B166: 19.63999939 | C166: 0 | D166: 0.870000008 | E166: 5.300000339 | F166: 2222.800049 | G166: 2045.660034 | H166: 7.904301167 | I166: 556.9329834 | J166: 558.836853 | K166: 1894.572511 | L166: 132.684896 | M166: 18.40263968 | N166: 58.85745058 | O166: 2.934561447 | P166: 0.9393736574 | Q166: 0.1391869797 | R166: 12.51432605 | S166: 3.212777958 | T166: 2.079432632
A167: 33.26399994 | B167: 19.64999962 | C167: 0 | D167: 0.870000008 | E167: 5.300000339 | F167: 2222.800049 | G167: 2045.660034 | H167: 7.904152393 | I167: 557.1573486 | J167: 559.0617065 | K167: 1894.566381 | L167: 132.6887552 | M167: 18.40491043 | N167: 58.8541082 | O167: 2.936299401 | P167: 0.9393849828 | Q167: 0.1391959152 | R167: 12.51403076 | S167: 3.212909965 | T167: 2.079571145
A168: 33.26399994 | B168: 19.65999985 | C168: 0 | D168: 0.870000008 | E168: 5.300000339 | F168: 2222.800049 | G168: 2045.660034 | H168: 7.904004097 | I168: 557.3817749 | J168: 559.2866821 | K168: 1894.560251 | L168: 132.6926139 | M168: 18.40718184 | N168: 58.85076617 | O168: 2.938038198 | P168: 0.9393963085 | Q168: 0.1392048472 | R168: 12.5137354 | S168: 3.213042001 | T168: 2.079709701
A169: 33.26399994 | B169: 19.67000008 | C169: 0 | D169: 0.870000008 | E169: 5.300000339 | F169: 2222.800049 | G169: 2045.660034 | H169: 7.903855324 | I169: 557.6062622 | J169: 559.5117188 | K169: 1894.554121 | L169: 132.696472 | M169: 18.4094539 | N169: 58.84742451 | O169: 2.939777837 | P169: 0.9394076345 | Q169: 0.1392137757 | R169: 12.51343997 | S169: 3.213174067 | T169: 2.079848299
A170: 33.26399994 | B170: 19.68000031 | C170: 0 | D170: 0.870000008 | E170: 5.300000339 | F170: 2222.800049 | G170: 2045.660034 | H170: 7.903706551 | I170: 557.8308716 | J170: 559.7368164 | K170: 1894.547991 | L170: 132.7003296 | M170: 18.41172662 | N170: 58.84408322 | O170: 2.941518318 | P170: 0.9394189608 | Q170: 0.1392227007 | R170: 12.51314447 | S170: 3.213306163 | T170: 2.079986939
A171: 33.26399994 | B171: 19.69000053 | C171: 0 | D171: 0.870000008 | E171: 5.300000339 | F171: 2222.800049 | G171: 2045.660034 | H171: 7.903558254 | I171: 558.055542 | J171: 559.9619751 | K171: 1894.54186 | L171: 132.7041866 | M171: 18.41399999 | N171: 58.84074228 | O171: 2.943259643 | P171: 0.9394302874 | Q171: 0.1392316222 | R171: 12.5128489 | S171: 3.213438289 | T171: 2.080125622
A172: 33.26399994 | B172: 19.70000076 | C172: 0 | D172: 0.870000008 | E172: 5.300000339 | F172: 2222.800049 | G172: 2045.660034 | H172: 7.903409481 | I172: 558.2802124 | J172: 560.1871948 | K172: 1894.53573 | L172: 132.7080431 | M172: 18.41627401 | N172: 58.83740171 | O172: 2.945001812 | P172: 0.9394416143 | Q172: 0.1392405403 | R172: 12.51255325 | S172: 3.213570445 | T172: 2.080264347
A173: 33.26399994 | B173: 19.70999908 | C173: 0 | D173: 0.870000008 | E173: 5.300000339 | F173: 2222.800049 | G173: 2045.660034 | H173: 7.903260708 | I173: 558.5050049 | J173: 560.4125366 | K173: 1894.5296 | L173: 132.7118983 | M173: 18.41854826 | N173: 58.83406214 | O173: 2.946744491 | P173: 0.9394529393 | Q173: 0.1392494532 | R173: 12.51225759 | S173: 3.213702605 | T173: 2.080403088
A174: 33.26399994 | B174: 19.71999931 | C174: 0 | D174: 0.870000008 | E174: 5.300000339 | F174: 2222.800049 | G174: 2045.660034 | H174: 7.903112411 | I174: 558.7298584 | J174: 560.6379395 | K174: 1894.52347 | L174: 132.7157537 | M174: 18.42082359 | N174: 58.8307223 | O174: 2.948488347 | P174: 0.9394642668 | Q174: 0.1392583643 | R174: 12.51196181 | S174: 3.213834821 | T174: 2.080541898
A175: 33.26399994 | B175: 19.72999954 | C175: 0 | D175: 0.870000008 | E175: 5.300000339 | F175: 2222.800049 | G175: 2045.660034 | H175: 7.902963638 | I175: 558.954834 | J175: 560.8634644 | K175: 1894.517339 | L175: 132.7196085 | M175: 18.42309958 | N175: 58.82738282 | O175: 2.950233047 | P175: 0.9394755946 | Q175: 0.139267272 | R175: 12.51166595 | S175: 3.213967066 | T175: 2.080680751
A176: 33.26399994 | B176: 19.73999977 | C176: 0 | D176: 0.870000008 | E176: 5.300000339 | F176: 2222.800049 | G176: 2045.660034 | H176: 7.902815342 | I176: 559.1798096 | J176: 561.0889893 | K176: 1894.511208 | L176: 132.7234628 | M176: 18.42537622 | N176: 58.8240437 | O176: 2.951978592 | P176: 0.9394869227 | Q176: 0.1392761762 | R176: 12.51137002 | S176: 3.21409934 | T176: 2.080819646
A177: 33.26399994 | B177: 19.75 | C177: 0 | D177: 0.870000008 | E177: 5.300000339 | F177: 2222.800049 | G177: 2045.660034 | H177: 7.902666569 | I177: 559.4049683 | J177: 561.3146362 | K177: 1894.505077 | L177: 132.7273166 | M177: 18.42765352 | N177: 58.82070495 | O177: 2.953724981 | P177: 0.939498251 | Q177: 0.1392850768 | R177: 12.51107402 | S177: 3.214231645 | T177: 2.080958583
A178: 33.26399994 | B178: 19.76000023 | C178: 0 | D178: 0.870000008 | E178: 5.300000339 | F178: 2222.800049 | G178: 2045.660034 | H178: 7.902518272 | I178: 559.630127 | J178: 561.5402832 | K178: 1894.498946 | L178: 132.7311698 | M178: 18.42993147 | N178: 58.81736657 | O178: 2.955472216 | P178: 0.9395095797 | Q178: 0.139293974 | R178: 12.51077795 | S178: 3.21436398 | T178: 2.081097563
A179: 33.26399994 | B179: 19.77000046 | C179: 0 | D179: 0.870000008 | E179: 5.300000339 | F179: 2222.800049 | G179: 2045.660034 | H179: 7.902369499 | I179: 559.8553467 | J179: 561.7661133 | K179: 1894.492814 | L179: 132.7350224 | M179: 18.43221008 | N179: 58.81402854 | O179: 2.957220296 | P179: 0.9395209087 | Q179: 0.1393028678 | R179: 12.51048181 | S179: 3.214496344 | T179: 2.081236585
A180: 33.26399994 | B180: 19.78000069 | C180: 0 | D180: 0.870000008 | E180: 5.300000339 | F180: 2222.800049 | G180: 2045.660034 | H180: 7.902221203 | I180: 560.0806885 | J180: 561.9919434 | K180: 1894.486683 | L180: 132.7388745 | M180: 18.43448934 | N180: 58.81069088 | O180: 2.958969222 | P180: 0.9395322379 | Q180: 0.139311758 | R180: 12.5101856 | S180: 3.214628738 | T180: 2.08137565
A181: 33.26399994 | B181: 19.79000092 | C181: 0 | D181: 0.870000008 | E181: 5.300000339 | F181: 2222.800049 | G181: 2045.660034 | H181: 7.90207243 | I181: 560.3060913 | J181: 562.2178345 | K181: 1894.480552 | L181: 132.742726 | M181: 18.43676926 | N181: 58.80735359 | O181: 2.960718993 | P181: 0.9395435675 | Q181: 0.1393206448 | R181: 12.50988931 | S181: 3.214761162 | T181: 2.081514758
A182: 33.26399994 | B182: 19.79999924 | C182: 0 | D182: 0.870000008 | E182: 5.300000339 | F182: 2222.800049 | G182: 2045.660034 | H182: 7.901924133 | I182: 560.5314331 | J182: 562.4437256 | K182: 1894.474421 | L182: 132.7465763 | M182: 18.43904941 | N182: 58.8040173 | O182: 2.962469278 | P182: 0.9395548952 | Q182: 0.1393295264 | R182: 12.50959302 | S182: 3.21489359 | T182: 2.081653881
A183: 33.26399994 | B183: 19.80999947 | C183: 0 | D183: 0.870000008 | E183: 5.300000339 | F183: 2222.800049 | G183: 2045.660034 | H183: 7.90177536 | I183: 560.757019 | J183: 562.6698608 | K183: 1894.46829 | L183: 132.7504267 | M183: 18.44133064 | N183: 58.80068074 | O183: 2.964220742 | P183: 0.9395662253 | Q183: 0.1393384062 | R183: 12.50929659 | S183: 3.215026074 | T183: 2.081793073
A184: 33.26399994 | B184: 19.81999969 | C184: 0 | D184: 0.870000008 | E184: 5.300000339 | F184: 2222.800049 | G184: 2045.660034 | H184: 7.901627064 | I184: 560.982605 | J184: 562.8959961 | K184: 1894.462158 | L184: 132.7542766 | M184: 18.44361252 | N184: 58.79734454 | O184: 2.965973054 | P184: 0.9395775558 | Q184: 0.1393472825 | R184: 12.50900009 | S184: 3.215158587 | T184: 2.081932308
A185: 33.26399994 | B185: 19.82999992 | C185: 0 | D185: 0.870000008 | E185: 5.300000339 | F185: 2222.800049 | G185: 2045.660034 | H185: 7.901478291 | I185: 561.208374 | J185: 563.1222534 | K185: 1894.456026 | L185: 132.7581259 | M185: 18.44589507 | N185: 58.7940087 | O185: 2.967726212 | P185: 0.9395888865 | Q185: 0.1393561553 | R185: 12.50870352 | S185: 3.215291131 | T185: 2.082071585
A186: 33.26399994 | B186: 19.84000015 | C186: 0 | D186: 0.870000008 | E186: 5.300000339 | F186: 2222.800049 | G186: 2045.660034 | H186: 7.901329994 | I186: 561.434082 | J186: 563.3485107 | K186: 1894.449894 | L186: 132.7619747 | M186: 18.44817827 | N186: 58.79067324 | O186: 2.969480219 | P186: 0.9396002175 | Q186: 0.1393650247 | R186: 12.50840689 | S186: 3.215423704 | T186: 2.082210904
A187: 33.26399994 | B187: 19.85000038 | C187: 0 | D187: 0.870000008 | E187: 5.300000339 | F187: 2222.800049 | G187: 2045.660034 | H187: 7.901181698 | I187: 561.6599121 | J187: 563.5748901 | K187: 1894.443762 | L187: 132.7658229 | M187: 18.45046213 | N187: 58.78733814 | O187: 2.971235073 | P187: 0.9396115488 | Q187: 0.1393738905 | R187: 12.50811018 | S187: 3.215556307 | T187: 2.082350267
A188: 33.26399994 | B188: 19.86000061 | C188: 0 | D188: 0.870000008 | E188: 5.300000339 | F188: 2222.800049 | G188: 2045.660034 | H188: 7.901032925 | I188: 561.8858032 | J188: 563.8013306 | K188: 1894.43763 | L188: 132.7696706 | M188: 18.45274664 | N188: 58.7840034 | O188: 2.972990775 | P188: 0.9396228804 | Q188: 0.1393827529 | R188: 12.50781339 | S188: 3.215688939 | T188: 2.082489671
A189: 33.26399994 | B189: 19.87000084 | C189: 0 | D189: 0.870000008 | E189: 5.300000339 | F189: 2222.800049 | G189: 2045.660034 | H189: 7.900884628 | I189: 562.1118164 | J189: 564.027832 | K189: 1894.431497 | L189: 132.7735177 | M189: 18.45503181 | N189: 58.78066903 | O189: 2.974747325 | P189: 0.9396342123 | Q189: 0.1393916118 | R189: 12.50751654 | S189: 3.215821602 | T189: 2.082629118
A190: 33.26399994 | B190: 19.87999916 | C190: 0 | D190: 0.870000008 | E190: 5.300000339 | F190: 2222.800049 | G190: 2045.660034 | H190: 7.900736332 | I190: 562.3378296 | J190: 564.2543335 | K190: 1894.425366 | L190: 132.7773636 | M190: 18.45731721 | N190: 58.77733567 | O190: 2.976504389 | P190: 0.9396455424 | Q190: 0.1394004655 | R190: 12.50721967 | S190: 3.215954269 | T190: 2.082768582
A191: 33.26399994 | B191: 19.88999939 | C191: 0 | D191: 0.870000008 | E191: 5.300000339 | F191: 2222.800049 | G191: 2045.660034 | H191: 7.900587559 | I191: 562.5639648 | J191: 564.4810791 | K191: 1894.419234 | L191: 132.7812096 | M191: 18.45960369 | N191: 58.77400203 | O191: 2.978262636 | P191: 0.9396568748 | Q191: 0.1394093175 | R191: 12.50692268 | S191: 3.216086991 | T191: 2.082908114
A192: 33.26399994 | B192: 19.89999962 | C192: 0 | D192: 0.870000008 | E192: 5.300000339 | F192: 2222.800049 | G192: 2045.660034 | H192: 7.900439262 | I192: 562.7901611 | J192: 564.7077637 | K192: 1894.413101 | L192: 132.785055 | M192: 18.46189084 | N192: 58.77066876 | O192: 2.980021733 | P192: 0.9396682076 | Q192: 0.1394181659 | R192: 12.50662561 | S192: 3.216219743 | T192: 2.083047688
A193: 33.26399994 | B193: 19.90999985 | C193: 0 | D193: 0.870000008 | E193: 5.300000339 | F193: 2222.800049 | G193: 2045.660034 | H193: 7.900290966 | I193: 563.0164795 | J193: 564.9346313 | K193: 1894.406968 | L193: 132.7888999 | M193: 18.46417864 | N193: 58.76733586 | O193: 2.98178168 | P193: 0.9396795406 | Q193: 0.1394270108 | R193: 12.50632847 | S193: 3.216352525 | T193: 2.083187306
A194: 33.26399994 | B194: 19.92000008 | C194: 0 | D194: 0.870000008 | E194: 5.300000339 | F194: 2222.800049 | G194: 2045.660034 | H194: 7.90014267 | I194: 563.2427979 | J194: 565.161499 | K194: 1894.400835 | L194: 132.7927443 | M194: 18.4664671 | N194: 58.76400332 | O194: 2.983542476 | P194: 0.939690874 | Q194: 0.1394358523 | R194: 12.50603126 | S194: 3.216485337 | T194: 2.083326965
A195: 33.26399994 | B195: 19.93000031 | C195: 0 | D195: 0.870000008 | E195: 5.300000339 | F195: 2222.800049 | G195: 2045.660034 | H195: 7.899993896 | I195: 563.4692383 | J195: 565.3884888 | K195: 1894.394703 | L195: 132.7965881 | M195: 18.46875621 | N195: 58.76067116 | O195: 2.985304123 | P195: 0.9397022076 | Q195: 0.1394446903 | R195: 12.50573398 | S195: 3.216618178 | T195: 2.083466668
A196: 33.26399994 | B196: 19.94000053 | C196: 0 | D196: 0.870000008 | E196: 5.300000339 | F196: 2222.800049 | G196: 2045.660034 | H196: 7.8998456 | I196: 563.6957397 | J196: 565.6154785 | K196: 1894.38857 | L196: 132.8004313 | M196: 18.47104599 | N196: 58.75733936 | O196: 2.98706662 | P196: 0.9397135415 | Q196: 0.1394535248 | R196: 12.50543663 | S196: 3.21675105 | T196: 2.083606413
A197: 33.26399994 | B197: 19.95000076 | C197: 0 | D197: 0.870000008 | E197: 5.300000339 | F197: 2222.800049 | G197: 2045.660034 | H197: 7.899697304 | I197: 563.9223022 | J197: 565.8425293 | K197: 1894.382436 | L197: 132.804274 | M197: 18.47333642 | N197: 58.75400792 | O197: 2.988829967 | P197: 0.9397248757 | Q197: 0.1394623557 | R197: 12.50513921 | S197: 3.216883951 | T197: 2.0837462
A198: 33.26399994 | B198: 19.95999908 | C198: 0 | D198: 0.870000008 | E198: 5.300000339 | F198: 2222.800049 | G198: 2045.660034 | H198: 7.899549007 | I198: 564.1488647 | J198: 566.0697632 | K198: 1894.376304 | L198: 132.8081154 | M198: 18.47562708 | N198: 58.75067749 | O198: 2.990593829 | P198: 0.939736208 | Q198: 0.1394711816 | R198: 12.50484177 | S198: 3.217016857 | T198: 2.083886003
A199: 33.26399994 | B199: 19.96999931 | C199: 0 | D199: 0.870000008 | E199: 5.300000339 | F199: 2222.800049 | G199: 2045.660034 | H199: 7.899400711 | I199: 564.3756714 | J199: 566.2970581 | K199: 1894.370171 | L199: 132.8119569 | M199: 18.47791883 | N199: 58.7473468 | O199: 2.992358879 | P199: 0.9397475428 | Q199: 0.1394800056 | R199: 12.50454421 | S199: 3.217149818 | T199: 2.084025876
A200: 33.26399994 | B200: 19.97999954 | C200: 0 | D200: 0.870000008 | E200: 5.300000339 | F200: 2222.800049 | G200: 2045.660034 | H200: 7.899252415 | I200: 564.602417 | J200: 566.524353 | K200: 1894.364038 | L200: 132.815798 | M200: 18.48021124 | N200: 58.74401647 | O200: 2.99412478 | P200: 0.9397588779 | Q200: 0.1394888261 | R200: 12.50424657 | S200: 3.217282809 | T200: 2.084165791
... 502 more rows

Sheet Batch_99
A1: Salinity | B1: t(oC) in | C1: P (dbars) in | D1: Total P (mmol/kgSW) | E1: Total Si (mmol/kgSW) | F1: TA in (mmol/kgSW) | G1: TCO2 in (mmol/kgSW) | H1: pH in | I1: fCO2 in (matm) | J1: pCO2 in (matm) | K1: HCO3 in (mmol/kgSW) | L1: CO3 in (mmol/kgSW) | M1: CO2 in (mmol/kgSW) | N1: B Alk in (mmol/kgSW) | O1: OH in (mmol/kgSW) | P1: P Alk in (mmol/kgSW) | Q1: Si Alk in (mmol/kgSW) | R1: Revelle in | S1: WCa in | T1: WAr in | U1: xCO2 in (dry at 1 atm) (ppm)
A2: 35.18500137 | B2: 18 | C2: 0 | D2: 0.3499999934 | E2: 1.500000053 | F2: 2356.780029 | G2: 2115.040039 | H2: 8.024926186 | I2: 421.4677734 | J2: 422.938385 | K2: 1925.432703 | L2: 175.1709198 | M2: 14.43646303 | N2: 77.15322131 | O2: 3.428655012 | P2: 0.3844236759 | Q2: 0.04879120433 | R2: 11.03762556 | S2: 4.176842494 | T2: 2.701744009 | U2: 431.554413
A3: 35.18500137 | B3: 18.01000023 | C3: 0 | D3: 0.3499999934 | E3: 1.500000053 | F3: 2356.780029 | G3: 2115.040039 | H3: 8.024773598 | I3: 421.6417542 | J3: 423.112793 | K3: 1925.426623 | L3: 175.1751848 | M3: 14.43827797 | N3: 77.14870592 | O3: 3.430714861 | P3: 0.3844294114 | Q3: 0.04879430681 | R3: 11.03744419 | S3: 4.176974146 | T3: 2.701894902 | U3: 431.7379208
A4: 35.18500137 | B4: 18.02000046 | C4: 0 | D4: 0.3499999934 | E4: 1.500000053 | F4: 2356.780029 | G4: 2115.040039 | H4: 8.02462101 | I4: 421.8157959 | J4: 423.287262 | K4: 1925.420544 | L4: 175.179449 | M4: 14.44009345 | N4: 77.14419091 | O4: 3.432775723 | P4: 0.384435147 | Q4: 0.04879740802 | R4: 11.03726276 | S4: 4.17710583 | T4: 2.702045845 | U4: 431.9214958
A5: 35.18500137 | B5: 18.03000069 | C5: 0 | D5: 0.3499999934 | E5: 1.500000053 | F5: 2356.780029 | G5: 2115.040039 | H5: 8.024468422 | I5: 421.9898987 | J5: 423.461792 | K5: 1925.414464 | L5: 175.1837124 | M5: 14.44190946 | N5: 77.13967629 | O5: 3.434837597 | P5: 0.3844408829 | Q5: 0.04880050795 | R5: 11.03708129 | S5: 4.177237543 | T5: 2.702196836 | U5: 432.1051083
A6: 35.18500137 | B6: 18.04000092 | C6: 0 | D6: 0.3499999934 | E6: 1.500000053 | F6: 2356.780029 | G6: 2115.040039 | H6: 8.024315834 | I6: 422.164032 | J6: 423.6363831 | K6: 1925.408385 | L6: 175.1879749 | M6: 14.44372602 | N6: 77.13516205 | O6: 3.436900485 | P6: 0.384446619 | Q6: 0.04880360661 | R6: 11.03689977 | S6: 4.177369287 | T6: 2.702347877 | U6: 432.2888177
A7: 35.18500137 | B7: 18.04999924 | C7: 0 | D7: 0.3499999934 | E7: 1.500000053 | F7: 2356.780029 | G7: 2115.040039 | H7: 8.024163246 | I7: 422.3382263 | J7: 423.8109741 | K7: 1925.402308 | L7: 175.1922357 | M7: 14.44554277 | N7: 77.13064905 | O7: 3.438963993 | P7: 0.3844523541 | Q7: 0.0488067034 | R7: 11.03671824 | S7: 4.177501036 | T7: 2.702498938 | U7: 432.4725337
A8: 35.18500137 | B8: 18.05999947 | C8: 0 | D8: 0.3499999934 | E8: 1.500000053 | F8: 2356.780029 | G8: 2115.040039 | H8: 8.024010658 | I8: 422.5125122 | J8: 423.9856873 | K8: 1925.396229 | L8: 175.1964965 | M8: 14.44736041 | N8: 77.12613558 | O8: 3.441028908 | P8: 0.3844580906 | Q8: 0.04880979951 | R8: 11.03653662 | S8: 4.177632841 | T8: 2.702650077 | U8: 432.6563774
A9: 35.18500137 | B9: 18.06999969 | C9: 0 | D9: 0.3499999934 | E9: 1.500000053 | F9: 2356.780029 | G9: 2115.040039 | H9: 8.02385807 | I9: 422.6868286 | J9: 424.1604309 | K9: 1925.390151 | L9: 175.2007564 | M9: 14.44917859 | N9: 77.1216225 | O9: 3.443094837 | P9: 0.3844638272 | Q9: 0.04881289434 | R9: 11.03635495 | S9: 4.177764676 | T9: 2.702801265 | U9: 432.8402586
A10: 35.18500137 | B10: 18.07999992 | C10: 0 | D10: 0.3499999934 | E10: 1.500000053 | F10: 2356.780029 | G10: 2115.040039 | H10: 8.023705482 | I10: 422.8612366 | J10: 424.3352356 | K10: 1925.384073 | L10: 175.2050155 | M10: 14.45099732 | N10: 77.1171098 | O10: 3.445161781 | P10: 0.3844695641 | Q10: 0.04881598789 | R10: 11.03617324 | S10: 4.177896541 | T10: 2.702952502 | U10: 433.0242367
A11: 35.18500137 | B11: 18.09000015 | C11: 0 | D11: 0.3499999934 | E11: 1.500000053 | F11: 2356.780029 | G11: 2115.040039 | H11: 8.023552895 | I11: 423.0357056 | J11: 424.5101318 | K11: 1925.377996 | L11: 175.2092737 | M11: 14.45281658 | N11: 77.11259749 | O11: 3.44722974 | P11: 0.3844753011 | Q11: 0.04881908017 | R11: 11.03599148 | S11: 4.178028437 | T11: 2.703103788 | U11: 433.208282
A12: 35.18500137 | B12: 18.10000038 | C12: 0 | D12: 0.3499999934 | E12: 1.500000053 | F12: 2356.780029 | G12: 2115.040039 | H12: 8.023400307 | I12: 423.2102051 | J12: 424.6850586 | K12: 1925.371919 | L12: 175.213531 | M12: 14.45463639 | N12: 77.10808557 | O12: 3.449298714 | P12: 0.3844810383 | Q12: 0.04882217117 | R12: 11.03580967 | S12: 4.178160363 | T12: 2.703255124 | U12: 433.3923945
A13: 35.18500137 | B13: 18.11000061 | C13: 0 | D13: 0.3499999934 | E13: 1.500000053 | F13: 2356.780029 | G13: 2115.040039 | H13: 8.023247719 | I13: 423.3847656 | J13: 424.8600464 | K13: 1925.365842 | L13: 175.2177875 | M13: 14.45645673 | N13: 77.10357403 | O13: 3.451368704 | P13: 0.3844867758 | Q13: 0.04882526089 | R13: 11.03562781 | S13: 4.178292319 | T13: 2.703406508 | U13: 433.5765446
A14: 35.18500137 | B14: 18.12000084 | C14: 0 | D14: 0.3499999934 | E14: 1.500000053 | F14: 2356.780029 | G14: 2115.040039 | H14: 8.023096085 | I14: 423.5593872 | J14: 425.0350952 | K14: 1925.359765 | L14: 175.2220431 | M14: 14.45827763 | N14: 77.09906288 | O14: 3.45343971 | P14: 0.3844925134 | Q14: 0.04882834933 | R14: 11.0354459 | S14: 4.178424306 | T14: 2.703557942 | U14: 433.7607916
A15: 35.18500137 | B15: 18.12999916 | C15: 0 | D15: 0.3499999934 | E15: 1.500000053 | F15: 2356.780029 | G15: 2115.040039 | H15: 8.022943497 | I15: 423.7340698 | J15: 425.2102051 | K15: 1925.35369 | L15: 175.2262971 | M15: 14.46009871 | N15: 77.09455298 | O15: 3.455511337 | P15: 0.3844982501 | Q15: 0.04883143591 | R15: 11.03526398 | S15: 4.178556298 | T15: 2.703709396 | U15: 433.945075
A16: 35.18500137 | B16: 18.13999939 | C16: 0 | D16: 0.3499999934 | E16: 1.500000053 | F16: 2356.780029 | G16: 2115.040039 | H16: 8.022790909 | I16: 423.9088135 | J16: 425.385376 | K16: 1925.347615 | L16: 175.230551 | M16: 14.46192068 | N16: 77.0900426 | O16: 3.457584376 | P16: 0.3845039881 | Q16: 0.0488345218 | R16: 11.03508198 | S16: 4.178688345 | T16: 2.703860929 | U16: 434.1294565
A17: 35.18500137 | B17: 18.14999962 | C17: 0 | D17: 0.3499999934 | E17: 1.500000053 | F17: 2356.780029 | G17: 2115.040039 | H17: 8.022638321 | I17: 424.0836182 | J17: 425.5605774 | K17: 1925.341539 | L17: 175.2348041 | M17: 14.4637432 | N17: 77.08553261 | O17: 3.459658432 | P17: 0.3845097263 | Q17: 0.04883760641 | R17: 11.03489992 | S17: 4.178820423 | T17: 2.70401251 | U17: 434.3138756
A18: 35.18500137 | B18: 18.15999985 | C18: 0 | D18: 0.3499999934 | E18: 1.500000053 | F18: 2356.780029 | G18: 2115.040039 | H18: 8.022485733 | I18: 424.2584839 | J18: 425.7359009 | K18: 1925.335464 | L18: 175.2390562 | M18: 14.46556626 | N18: 77.08102301 | O18: 3.461733506 | P18: 0.3845154646 | Q18: 0.04884068974 | R18: 11.03471782 | S18: 4.178952531 | T18: 2.70416414 | U18: 434.4984213
A19: 35.18500137 | B19: 18.17000008 | C19: 0 | D19: 0.3499999934 | E19: 1.500000053 | F19: 2356.780029 | G19: 2115.040039 | H19: 8.022333145 | I19: 424.4334106 | J19: 425.9112549 | K19: 1925.329389 | L19: 175.2433076 | M19: 14.46738986 | N19: 77.0765138 | O19: 3.463809597 | P19: 0.3845212032 | Q19: 0.04884377179 | R19: 11.03453567 | S19: 4.17908467 | T19: 2.70431582 | U19: 434.6830045
A20: 35.18500137 | B20: 18.18000031 | C20: 0 | D20: 0.3499999934 | E20: 1.500000053 | F20: 2356.780029 | G20: 2115.040039 | H20: 8.022180557 | I20: 424.6083984 | J20: 426.0866699 | K20: 1925.323314 | L20: 175.247558 | M20: 14.46921401 | N20: 77.07200498 | O20: 3.465886707 | P20: 0.384526942 | Q20: 0.04884685257 | R20: 11.03435348 | S20: 4.179216839 | T20: 2.704467549 | U20: 434.8676551
A21: 35.18500137 | B21: 18.19000053 | C21: 0 | D21: 0.3499999934 | E21: 1.500000053 | F21: 2356.780029 | G21: 2115.040039 | H21: 8.022028923 | I21: 424.7834778 | J21: 426.262146 | K21: 1925.31724 | L21: 175.2518076 | M21: 14.4710387 | N21: 77.06749654 | O21: 3.467964835 | P21: 0.3845326809 | Q21: 0.04884993206 | R21: 11.03417123 | S21: 4.179349038 | T21: 2.704619327 | U21: 435.0524026
A22: 35.18500137 | B22: 18.20000076 | C22: 0 | D22: 0.3499999934 | E22: 1.500000053 | F22: 2356.780029 | G22: 2115.040039 | H22: 8.021876335 | I22: 424.9585571 | J22: 426.4376526 | K22: 1925.311166 | L22: 175.2560564 | M22: 14.47286393 | N22: 77.06298849 | O22: 3.470043981 | P22: 0.3845384201 | Q22: 0.04885301028 | R22: 11.03398894 | S22: 4.179481268 | T22: 2.704771154 | U22: 435.2371581
A23: 35.18500137 | B23: 18.20999908 | C23: 0 | D23: 0.3499999934 | E23: 1.500000053 | F23: 2356.780029 | G23: 2115.040039 | H23: 8.021723747 | I23: 425.1336975 | J23: 426.6132202 | K23: 1925.305093 | L23: 175.2603035 | M23: 14.47468936 | N23: 77.05848169 | O23: 3.472123751 | P23: 0.3845441583 | Q23: 0.04885608663 | R23: 11.03380663 | S23: 4.179613503 | T23: 2.704923002 | U23: 435.4220095
A24: 35.18500137 | B24: 18.21999931 | C24: 0 | D24: 0.3499999934 | E24: 1.500000053 | F24: 2356.780029 | G24: 2115.040039 | H24: 8.021571159 | I24: 425.3089294 | J24: 426.7888794 | K24: 1925.29902 | L24: 175.2645505 | M24: 14.47651568 | N24: 77.05397442 | O24: 3.474204936 | P24: 0.3845498978 | Q24: 0.04885916229 | R24: 11.03362424 | S24: 4.179745793 | T24: 2.705074928 | U24: 435.6069292
A25: 35.18500137 | B25: 18.22999954 | C25: 0 | D25: 0.3499999934 | E25: 1.500000053 | F25: 2356.780029 | G25: 2115.040039 | H25: 8.021418571 | I25: 425.4841919 | J25: 426.9645691 | K25: 1925.292947 | L25: 175.2687966 | M25: 14.47834254 | N25: 77.04946754 | O25: 3.476287142 | P25: 0.3845556375 | Q25: 0.04886223667 | R25: 11.0334418 | S25: 4.179878114 | T25: 2.705226903 | U25: 435.7919163
A26: 35.18500137 | B26: 18.23999977 | C26: 0 | D26: 0.3499999934 | E26: 1.500000053 | F26: 2356.780029 | G26: 2115.040039 | H26: 8.021266937 | I26: 425.6595459 | J26: 427.1403503 | K26: 1925.286874 | L26: 175.2730419 | M26: 14.48016994 | N26: 77.04496105 | O26: 3.478370367 | P26: 0.3845613774 | Q26: 0.04886530977 | R26: 11.03325931 | S26: 4.180010465 | T26: 2.705378927 | U26: 435.9770004
A27: 35.18500137 | B27: 18.25 | C27: 0 | D27: 0.3499999934 | E27: 1.500000053 | F27: 2356.780029 | G27: 2115.040039 | H27: 8.021114349 | I27: 425.8349609 | J27: 427.3161621 | K27: 1925.280802 | L27: 175.2772864 | M27: 14.48199789 | N27: 77.04045495 | O27: 3.480454614 | P27: 0.3845671175 | Q27: 0.04886838158 | R27: 11.03307677 | S27: 4.180142846 | T27: 2.705531 | U27: 436.1621222
A28: 35.18500137 | B28: 18.26000023 | C28: 0 | D28: 0.3499999934 | E28: 1.500000053 | F28: 2356.780029 | G28: 2115.040039 | H28: 8.020961761 | I28: 426.010437 | J28: 427.4920654 | K28: 1925.27473 | L28: 175.2815299 | M28: 14.48382639 | N28: 77.03594925 | O28: 3.482539881 | P28: 0.3845728578 | Q28: 0.04887145212 | R28: 11.03289419 | S28: 4.180275258 | T28: 2.705683122 | U28: 436.347341
A29: 35.18500137 | B29: 18.27000046 | C29: 0 | D29: 0.3499999934 | E29: 1.500000053 | F29: 2356.780029 | G29: 2115.040039 | H29: 8.020809174 | I29: 426.1859436 | J29: 427.6679993 | K29: 1925.268658 | L29: 175.2857726 | M29: 14.48565543 | N29: 77.03144393 | O29: 3.48462617 | P29: 0.3845785983 | Q29: 0.04887452138 | R29: 11.03271155 | S29: 4.180407701 | T29: 2.705835294 | U29: 436.5325974
A30: 35.18500137 | B30: 18.28000069 | C30: 0 | D30: 0.3499999934 | E30: 1.500000053 | F30: 2356.780029 | G30: 2115.040039 | H30: 8.020657539 | I30: 426.3615417 | J30: 427.8440247 | K30: 1925.262587 | L30: 175.2900145 | M30: 14.48748501 | N30: 77.026939 | O30: 3.486713481 | P30: 0.3845843389 | Q30: 0.04887758935 | R30: 11.03252887 | S30: 4.180540173 | T30: 2.705987515 | U30: 436.717951
A31: 35.18500137 | B31: 18.29000092 | C31: 0 | D31: 0.3499999934 | E31: 1.500000053 | F31: 2356.780029 | G31: 2115.040039 | H31: 8.020504951 | I31: 426.5371704 | J31: 428.0201111 | K31: 1925.256516 | L31: 175.2942554 | M31: 14.48931514 | N31: 77.02243446 | O31: 3.488801813 | P31: 0.3845900798 | Q31: 0.04888065605 | R31: 11.03234614 | S31: 4.180672676 | T31: 2.706139785 | U31: 436.9033719
A32: 35.18500137 | B32: 18.29999924 | C32: 0 | D32: 0.3499999934 | E32: 1.500000053 | F32: 2356.780029 | G32: 2115.040039 | H32: 8.020352364 | I32: 426.7128601 | J32: 428.1961975 | K32: 1925.250446 | L32: 175.2984947 | M32: 14.49114546 | N32: 77.01793117 | O32: 3.490890769 | P32: 0.3845958197 | Q32: 0.04888372088 | R32: 11.0321634 | S32: 4.180805184 | T32: 2.706292076 | U32: 437.0887996
A33: 35.18500137 | B33: 18.30999947 | C33: 0 | D33: 0.3499999934 | E33: 1.500000053 | F33: 2356.780029 | G33: 2115.040039 | H33: 8.020199776 | I33: 426.8886108 | J33: 428.3723755 | K33: 1925.244376 | L33: 175.3027339 | M33: 14.49297668 | N33: 77.01342741 | O33: 3.492981147 | P33: 0.384601561 | Q33: 0.04888678501 | R33: 11.03198057 | S33: 4.180937748 | T33: 2.706444444 | U33: 437.2743553
A34: 35.18500137 | B34: 18.31999969 | C34: 0 | D34: 0.3499999934 | E34: 1.500000053 | F34: 2356.780029 | G34: 2115.040039 | H34: 8.020048141 | I34: 427.0644531 | J34: 428.548645 | K34: 1925.238305 | L34: 175.3069723 | M34: 14.49480844 | N34: 77.00892405 | O34: 3.495072548 | P34: 0.3846073024 | Q34: 0.04888984786 | R34: 11.03179769 | S34: 4.181070342 | T34: 2.706596862 | U34: 437.4599784
A35: 35.18500137 | B35: 18.32999992 | C35: 0 | D35: 0.3499999934 | E35: 1.500000053 | F35: 2356.780029 | G35: 2115.040039 | H35: 8.019895554 | I35: 427.2403259 | J35: 428.7249451 | K35: 1925.232236 | L35: 175.3112098 | M35: 14.49664075 | N35: 77.00442108 | O35: 3.497164972 | P35: 0.384613044 | Q35: 0.04889290943 | R35: 11.03161477 | S35: 4.181202967 | T35: 2.706749329 | U35: 437.6456688
A36: 35.18500137 | B36: 18.34000015 | C36: 0 | D36: 0.3499999934 | E36: 1.500000053 | F36: 2356.780029 | G36: 2115.040039 | H36: 8.019742966 | I36: 427.4162598 | J36: 428.9013062 | K36: 1925.226166 | L36: 175.3154464 | M36: 14.4984736 | N36: 76.9999185 | O36: 3.49925842 | P36: 0.3846187857 | Q36: 0.04889596972 | R36: 11.03143179 | S36: 4.181335622 | T36: 2.706901846 | U36: 437.8314267
A37: 35.18500137 | B37: 18.35000038 | C37: 0 | D37: 0.3499999934 | E37: 1.500000053 | F37: 2356.780029 | G37: 2115.040039 | H37: 8.019591331 | I37: 427.5922852 | J37: 429.0777283 | K37: 1925.220097 | L37: 175.3196822 | M37: 14.500307 | N37: 76.99541631 | O37: 3.501352892 | P37: 0.3846245277 | Q37: 0.04889902873 | R37: 11.03124877 | S37: 4.181468307 | T37: 2.707054411 | U37: 438.017252
A38: 35.18500137 | B38: 18.36000061 | C38: 0 | D38: 0.3499999934 | E38: 1.500000053 | F38: 2356.780029 | G38: 2115.040039 | H38: 8.019438744 | I38: 427.7683411 | J38: 429.2542419 | K38: 1925.214028 | L38: 175.3239171 | M38: 14.50214094 | N38: 76.99091451 | O38: 3.503448389 | P38: 0.3846302699 | Q38: 0.04890208645 | R38: 11.0310657 | S38: 4.181601023 | T38: 2.707207026 | U38: 438.2031447
A39: 35.18500137 | B39: 18.37000084 | C39: 0 | D39: 0.3499999934 | E39: 1.500000053 | F39: 2356.780029 | G39: 2115.040039 | H39: 8.019286156 | I39: 427.944458 | J39: 429.4307861 | K39: 1925.20796 | L39: 175.3281511 | M39: 14.50397543 | N39: 76.98641311 | O39: 3.505544911 | P39: 0.3846360122 | Q39: 0.04890514289 | R39: 11.03088258 | S39: 4.181733769 | T39: 2.707359691 | U39: 438.3891049
A40: 35.18500137 | B40: 18.37999916 | C40: 0 | D40: 0.3499999934 | E40: 1.500000053 | F40: 2356.780029 | G40: 2115.040039 | H40: 8.019134521 | I40: 428.1206055 | J40: 429.6073608 | K40: 1925.201893 | L40: 175.3323834 | M40: 14.50581012 | N40: 76.98191296 | O40: 3.507642057 | P40: 0.3846417537 | Q40: 0.04890819747 | R40: 11.03069944 | S40: 4.18186652 | T40: 2.707512375 | U40: 438.5751017
A41: 35.18500137 | B41: 18.38999939 | C41: 0 | D41: 0.3499999934 | E41: 1.500000053 | F41: 2356.780029 | G41: 2115.040039 | H41: 8.018981934 | I41: 428.2968445 | J41: 429.7840271 | K41: 1925.195825 | L41: 175.3366157 | M41: 14.5076457 | N41: 76.97741234 | O41: 3.50974063 | P41: 0.3846474964 | Q41: 0.04891125134 | R41: 11.03051623 | S41: 4.181999326 | T41: 2.707665137 | U41: 438.7612264
A42: 35.18500137 | B42: 18.39999962 | C42: 0 | D42: 0.3499999934 | E42: 1.500000053 | F42: 2356.780029 | G42: 2115.040039 | H42: 8.018829346 | I42: 428.4731445 | J42: 429.9607239 | K42: 1925.189757 | L42: 175.3408471 | M42: 14.50948182 | N42: 76.97291211 | O42: 3.511840228 | P42: 0.3846532393 | Q42: 0.04891430393 | R42: 11.03033296 | S42: 4.182132164 | T42: 2.707817949 | U42: 438.9473592
A43: 35.18500137 | B43: 18.40999985 | C43: 0 | D43: 0.3499999934 | E43: 1.500000053 | F43: 2356.780029 | G43: 2115.040039 | H43: 8.018677711 | I43: 428.6495056 | J43: 430.1375427 | K43: 1925.18369 | L43: 175.3450777 | M43: 14.5113185 | N43: 76.96841228 | O43: 3.513940853 | P43: 0.3846589824 | Q43: 0.04891735524 | R43: 11.03014965 | S43: 4.182265031 | T43: 2.707970811 | U43: 439.1336189
A44: 35.18500137 | B44: 18.42000008 | C44: 0 | D44: 0.3499999934 | E44: 1.500000053 | F44: 2356.780029 | G44: 2115.040039 | H44: 8.018525124 | I44: 428.8259277 | J44: 430.3143616 | K44: 1925.177623 | L44: 175.3493073 | M44: 14.51315572 | N44: 76.96391285 | O44: 3.516042504 | P44: 0.3846647256 | Q44: 0.04892040526 | R44: 11.02996628 | S44: 4.182397929 | T44: 2.708123721 | U44: 439.3199164
A45: 35.18500137 | B45: 18.43000031 | C45: 0 | D45: 0.3499999934 | E45: 1.500000053 | F45: 2356.780029 | G45: 2115.040039 | H45: 8.018373489 | I45: 429.0024109 | J45: 430.4913025 | K45: 1925.171557 | L45: 175.3535361 | M45: 14.51499348 | N45: 76.9594138 | O45: 3.518145182 | P45: 0.3846704691 | Q45: 0.04892345401 | R45: 11.02978287 | S45: 4.182530858 | T45: 2.708276681 | U45: 439.506311
A46: 35.18500137 | B46: 18.44000053 | C46: 0 | D46: 0.3499999934 | E46: 1.500000053 | F46: 2356.780029 | G46: 2115.040039 | H46: 8.018220901 | I46: 429.1789551 | J46: 430.6682739 | K46: 1925.16549 | L46: 175.357764 | M46: 14.5168318 | N46: 76.95491516 | O46: 3.520248888 | P46: 0.3846762127 | Q46: 0.04892650146 | R46: 11.02959941 | S46: 4.182663816 | T46: 2.70842969 | U46: 439.6927732
A47: 35.18500137 | B47: 18.45000076 | C47: 0 | D47: 0.3499999934 | E47: 1.500000053 | F47: 2356.780029 | G47: 2115.040039 | H47: 8.018068314 | I47: 429.3555603 | J47: 430.8452759 | K47: 1925.159424 | L47: 175.3619911 | M47: 14.51867066 | N47: 76.9504169 | O47: 3.522353622 | P47: 0.3846819566 | Q47: 0.04892954763 | R47: 11.0294159 | S47: 4.182796805 | T47: 2.708582748 | U47: 439.8792731
A48: 35.18500137 | B48: 18.45999908 | C48: 0 | D48: 0.3499999934 | E48: 1.500000053 | F48: 2356.780029 | G48: 2115.040039 | H48: 8.017916679 | I48: 429.532196 | J48: 431.0223389 | K48: 1925.15336 | L48: 175.3662164 | M48: 14.52050971 | N48: 76.9459199 | O48: 3.524458982 | P48: 0.3846876995 | Q48: 0.04893259194 | R48: 11.02923238 | S48: 4.1829298 | T48: 2.708735827 | U48: 440.0658394
A49: 35.18500137 | B49: 18.46999931 | C49: 0 | D49: 0.3499999934 | E49: 1.500000053 | F49: 2356.780029 | G49: 2115.040039 | H49: 8.017764091 | I49: 429.7089233 | J49: 431.1994934 | K49: 1925.147295 | L49: 175.3704417 | M49: 14.52234967 | N49: 76.94142243 | O49: 3.526565772 | P49: 0.3846934437 | Q49: 0.04893563555 | R49: 11.02904877 | S49: 4.183062849 | T49: 2.708888984 | U49: 440.2525041
A50: 35.18500137 | B50: 18.47999954 | C50: 0 | D50: 0.3499999934 | E50: 1.500000053 | F50: 2356.780029 | G50: 2115.040039 | H50: 8.017612457 | I50: 429.8856812 | J50: 431.3766785 | K50: 1925.14123 | L50: 175.3746662 | M50: 14.52419017 | N50: 76.93692537 | O50: 3.52867359 | P50: 0.3846991881 | Q50: 0.04893867787 | R50: 11.02886511 | S50: 4.18319593 | T50: 2.70904219 | U50: 440.4392066
A51: 35.18500137 | B51: 18.48999977 | C51: 0 | D51: 0.3499999934 | E51: 1.500000053 | F51: 2356.780029 | G51: 2115.040039 | H51: 8.017459869 | I51: 430.0625305 | J51: 431.5539551 | K51: 1925.135165 | L51: 175.3788897 | M51: 14.52603122 | N51: 76.93242869 | O51: 3.530782438 | P51: 0.3847049326 | Q51: 0.0489417189 | R51: 11.02868141 | S51: 4.18332904 | T51: 2.709195445 | U51: 440.6260063
A52: 35.18500137 | B52: 18.5 | C52: 0 | D52: 0.3499999934 | E52: 1.500000053 | F52: 2356.780029 | G52: 2115.040039 | H52: 8.017308235 | I52: 430.2394104 | J52: 431.7312927 | K52: 1925.129101 | L52: 175.3831124 | M52: 14.52787281 | N52: 76.92793241 | O52: 3.532892316 | P52: 0.3847106774 | Q52: 0.04894475865 | R52: 11.02849766 | S52: 4.183462181 | T52: 2.70934875 | U52: 440.8128736
A53: 35.18500137 | B53: 18.51000023 | C53: 0 | D53: 0.3499999934 | E53: 1.500000053 | F53: 2356.780029 | G53: 2115.040039 | H53: 8.017155647 | I53: 430.4164124 | J53: 431.9086609 | K53: 1925.123037 | L53: 175.3873342 | M53: 14.52971496 | N53: 76.92343653 | O53: 3.535003223 | P53: 0.3847164223 | Q53: 0.04894779711 | R53: 11.02831385 | S53: 4.183595353 | T53: 2.709502104 | U53: 440.9998085
A54: 35.18500137 | B54: 18.52000046 | C54: 0 | D54: 0.3499999934 | E54: 1.500000053 | F54: 2356.780029 | G54: 2115.040039 | H54: 8.017004013 | I54: 430.5934143 | J54: 432.0861206 | K54: 1925.116973 | L54: 175.3915551 | M54: 14.53155765 | N54: 76.91894104 | O54: 3.537115161 | P54: 0.3847221674 | Q54: 0.04895083429 | R54: 11.02813 | S54: 4.183728555 | T54: 2.709655508 | U54: 441.1868108
A55: 35.18500137 | B55: 18.53000069 | C55: 0 | D55: 0.3499999934 | E55: 1.500000053 | F55: 2356.780029 | G55: 2115.040039 | H55: 8.016851425 | I55: 430.7705078 | J55: 432.2636414 | K55: 1925.11091 | L55: 175.3957752 | M55: 14.53340089 | N55: 76.91444595 | O55: 3.539228129 | P55: 0.3847279127 | Q55: 0.04895387018 | R55: 11.0279461 | S55: 4.183861787 | T55: 2.709808961 | U55: 441.3739105
A56: 35.18500137 | B56: 18.54000092 | C56: 0 | D56: 0.3499999934 | E56: 1.500000053 | F56: 2356.780029 | G56: 2115.040039 | H56: 8.016699791 | I56: 430.9476318 | J56: 432.4411926 | K56: 1925.104847 | L56: 175.3999943 | M56: 14.53524468 | N56: 76.90995126 | O56: 3.541342128 | P56: 0.3847336582 | Q56: 0.04895690479 | R56: 11.02776215 | S56: 4.18399505 | T56: 2.709962463 | U56: 441.5610183
A57: 35.18500137 | B57: 18.54999924 | C57: 0 | D57: 0.3499999934 | E57: 1.500000053 | F57: 2356.780029 | G57: 2115.040039 | H57: 8.016547203 | I57: 431.1248169 | J57: 432.6188049 | K57: 1925.098786 | L57: 175.4042118 | M57: 14.53708867 | N57: 76.90545782 | O57: 3.543456755 | P57: 0.3847394028 | Q57: 0.04895993753 | R57: 11.02757819 | S57: 4.184128317 | T57: 2.710115985 | U57: 441.7482223
A58: 35.18500137 | B58: 18.55999947 | C58: 0 | D58: 0.3499999934 | E58: 1.500000053 | F58: 2356.780029 | G58: 2115.040039 | H58: 8.016395569 | I58: 431.302063 | J58: 432.7964783 | K58: 1925.092723 | L58: 175.4084292 | M58: 14.53893355 | N58: 76.90096392 | O58: 3.545572817 | P58: 0.3847451486 | Q58: 0.04896296956 | R58: 11.02739414 | S58: 4.184261641 | T58: 2.710269586 | U58: 441.935495
A59: 35.18500137 | B59: 18.56999969 | C59: 0 | D59: 0.3499999934 | E59: 1.500000053 | F59: 2356.780029 | G59: 2115.040039 | H59: 8.016242981 | I59: 431.4794006 | J59: 432.9742126 | K59: 1925.086661 | L59: 175.4126458 | M59: 14.54077899 | N59: 76.89647042 | O59: 3.547689911 | P59: 0.3847508946 | Q59: 0.04896600031 | R59: 11.02721005 | S59: 4.184394995 | T59: 2.710423236 | U59: 442.1228354
A60: 35.18500137 | B60: 18.57999992 | C60: 0 | D60: 0.3499999934 | E60: 1.500000053 | F60: 2356.780029 | G60: 2115.040039 | H60: 8.016091347 | I60: 431.6567688 | J60: 433.1520386 | K60: 1925.0806 | L60: 175.4168614 | M60: 14.54262497 | N60: 76.89197731 | O60: 3.549808037 | P60: 0.3847566408 | Q60: 0.04896902977 | R60: 11.0270259 | S60: 4.184528379 | T60: 2.710576935 | U60: 442.310273
A61: 35.18500137 | B61: 18.59000015 | C61: 0 | D61: 0.3499999934 | E61: 1.500000053 | F61: 2356.780029 | G61: 2115.040039 | H61: 8.015938759 | I61: 431.8342285 | J61: 433.3299255 | K61: 1925.074539 | L61: 175.4210762 | M61: 14.5444715 | N61: 76.8874846 | O61: 3.551927196 | P61: 0.3847623872 | Q61: 0.04897205794 | R61: 11.02684171 | S61: 4.184661794 | T61: 2.710730684 | U61: 442.4977782
A62: 35.18500137 | B62: 18.60000038 | C62: 0 | D62: 0.3499999934 | E62: 1.500000053 | F62: 2356.780029 | G62: 2115.040039 | H62: 8.015787125 | I62: 432.0117188 | J62: 433.507843 | K62: 1925.068478 | L62: 175.4252901 | M62: 14.54631858 | N62: 76.88299229 | O62: 3.554047388 | P62: 0.3847681338 | Q62: 0.04897508483 | R62: 11.02665746 | S62: 4.184795239 | T62: 2.710884482 | U62: 442.6853214
A63: 35.18500137 | B63: 18.61000061 | C63: 0 | D63: 0.3499999934 | E63: 1.500000053 | F63: 2356.780029 | G63: 2115.040039 | H63: 8.015634537 | I63: 432.1893005 | J63: 433.6858521 | K63: 1925.062417 | L63: 175.4295031 | M63: 14.54816621 | N63: 76.87850038 | O63: 3.556168614 | P63: 0.3847738806 | Q63: 0.04897811043 | R63: 11.02647317 | S63: 4.184928714 | T63: 2.71103833 | U63: 442.8729619
A64: 35.18500137 | B64: 18.62000084 | C64: 0 | D64: 0.3499999934 | E64: 1.500000053 | F64: 2356.780029 | G64: 2115.040039 | H64: 8.015482903 | I64: 432.3669128 | J64: 433.8638916 | K64: 1925.056357 | L64: 175.4337152 | M64: 14.55001439 | N64: 76.87400887 | O64: 3.558290873 | P64: 0.3847796275 | Q64: 0.04898113474 | R64: 11.02628883 | S64: 4.18506222 | T64: 2.711192226 | U64: 443.0606701
A65: 35.18500137 | B65: 18.62999916 | C65: 0 | D65: 0.3499999934 | E65: 1.500000053 | F65: 2356.780029 | G65: 2115.040039 | H65: 8.015330315 | I65: 432.5445557 | J65: 434.0419617 | K65: 1925.050298 | L65: 175.4379257 | M65: 14.55186277 | N65: 76.86951861 | O65: 3.560413761 | P65: 0.3847853735 | Q65: 0.04898415718 | R65: 11.02610448 | S65: 4.185195731 | T65: 2.711346143 | U65: 443.2483853
A66: 35.18500137 | B66: 18.63999939 | C66: 0 | D66: 0.3499999934 | E66: 1.500000053 | F66: 2356.780029 | G66: 2115.040039 | H66: 8.01517868 | I66: 432.72229 | J66: 434.2201233 | K66: 1925.044238 | L66: 175.4421361 | M66: 14.55371205 | N66: 76.86502789 | O66: 3.562538089 | P66: 0.3847911208 | Q66: 0.04898717892 | R66: 11.02592004 | S66: 4.185329297 | T66: 2.711500139 | U66: 443.4362288
A67: 35.18500137 | B67: 18.64999962 | C67: 0 | D67: 0.3499999934 | E67: 1.500000053 | F67: 2356.780029 | G67: 2115.040039 | H67: 8.015027046 | I67: 432.9000854 | J67: 434.3983459 | K67: 1925.038179 | L67: 175.4463455 | M67: 14.55556188 | N67: 76.86053757 | O67: 3.564663452 | P67: 0.3847968683 | Q67: 0.04899019937 | R67: 11.02573555 | S67: 4.185462894 | T67: 2.711654184 | U67: 443.6241399
A68: 35.18500137 | B68: 18.65999985 | C68: 0 | D68: 0.3499999934 | E68: 1.500000053 | F68: 2356.780029 | G68: 2115.040039 | H68: 8.014874458 | I68: 433.0779419 | J68: 434.5766602 | K68: 1925.03212 | L68: 175.4505542 | M68: 14.55741225 | N68: 76.85604766 | O68: 3.56678985 | P68: 0.3848026159 | Q68: 0.04899321853 | R68: 11.02555101 | S68: 4.185596522 | T68: 2.711808278 | U68: 443.8121187
A69: 35.18500137 | B69: 18.67000008 | C69: 0 | D69: 0.3499999934 | E69: 1.500000053 | F69: 2356.780029 | G69: 2115.040039 | H69: 8.014722824 | I69: 433.2558899 | J69: 434.7550049 | K69: 1925.026061 | L69: 175.4547619 | M69: 14.55926318 | N69: 76.85155814 | O69: 3.568917283 | P69: 0.3848083637 | Q69: 0.0489962364 | R69: 11.02536643 | S69: 4.18573018 | T69: 2.711962422 | U69: 444.0001652
A70: 35.18500137 | B70: 18.68000031 | C70: 0 | D70: 0.3499999934 | E70: 1.500000053 | F70: 2356.780029 | G70: 2115.040039 | H70: 8.014570236 | I70: 433.4338684 | J70: 434.9334106 | K70: 1925.020003 | L70: 175.4589687 | M70: 14.56111466 | N70: 76.84706902 | O70: 3.571045753 | P70: 0.3848141117 | Q70: 0.04899925298 | R70: 11.02518179 | S70: 4.185863868 | T70: 2.712116615 | U70: 444.1882794
A71: 35.18500137 | B71: 18.69000053 | C71: 0 | D71: 0.3499999934 | E71: 1.500000053 | F71: 2356.780029 | G71: 2115.040039 | H71: 8.014418602 | I71: 433.611908 | J71: 435.111908 | K71: 1925.013945 | L71: 175.4631747 | M71: 14.56296669 | N71: 76.8425803 | O71: 3.573175258 | P71: 0.3848198599 | Q71: 0.04900226827 | R71: 11.02499711 | S71: 4.185997587 | T71: 2.712270857 | U71: 444.376491
A72: 35.18500137 | B72: 18.70000076 | C72: 0 | D72: 0.3499999934 | E72: 1.500000053 | F72: 2356.780029 | G72: 2115.040039 | H72: 8.014266968 | I72: 433.7900391 | J72: 435.2904358 | K72: 1925.007887 | L72: 175.4673798 | M72: 14.56481927 | N72: 76.83809198 | O72: 3.575305801 | P72: 0.3848256083 | Q72: 0.04900528227 | R72: 11.02481237 | S72: 4.186131336 | T72: 2.712425149 | U72: 444.5647406
A73: 35.18500137 | B73: 18.70999908 | C73: 0 | D73: 0.3499999934 | E73: 1.500000053 | F73: 2356.780029 | G73: 2115.040039 | H73: 8.01411438 | I73: 433.9681396 | J73: 435.4689636 | K73: 1925.001831 | L73: 175.4715831 | M73: 14.56667205 | N73: 76.83360492 | O73: 3.577436973 | P73: 0.3848313557 | Q73: 0.04900829441 | R73: 11.02462763 | S73: 4.18626509 | T73: 2.71257946 | U73: 444.7530271
A74: 35.18500137 | B74: 18.71999931 | C74: 0 | D74: 0.3499999934 | E74: 1.500000053 | F74: 2356.780029 | G74: 2115.040039 | H74: 8.013962746 | I74: 434.1463928 | J74: 435.647644 | K74: 1924.995774 | L74: 175.4757864 | M74: 14.56852573 | N74: 76.8291174 | O74: 3.57956959 | P74: 0.3848371045 | Q74: 0.04901130584 | R74: 11.02444279 | S74: 4.1863989 | T74: 2.712733851 | U74: 444.9414418
A75: 35.18500137 | B75: 18.72999954 | C75: 0 | D75: 0.3499999934 | E75: 1.500000053 | F75: 2356.780029 | G75: 2115.040039 | H75: 8.013811111 | I75: 434.3246765 | J75: 435.826355 | K75: 1924.989717 | L75: 175.4799889 | M75: 14.57037996 | N75: 76.82463028 | O75: 3.581703244 | P75: 0.3848428534 | Q75: 0.04901431597 | R75: 11.02425791 | S75: 4.18653274 | T75: 2.712888291 | U75: 445.1299243
A76: 35.18500137 | B76: 18.73999977 | C76: 0 | D76: 0.3499999934 | E76: 1.500000053 | F76: 2356.780029 | G76: 2115.040039 | H76: 8.013658524 | I76: 434.5030212 | J76: 436.005127 | K76: 1924.983661 | L76: 175.4841904 | M76: 14.57223475 | N76: 76.82014357 | O76: 3.583837937 | P76: 0.3848486025 | Q76: 0.04901732481 | R76: 11.02407298 | S76: 4.186666611 | T76: 2.71304278 | U76: 445.3184448
A77: 35.18500137 | B77: 18.75 | C77: 0 | D77: 0.3499999934 | E77: 1.500000053 | F77: 2356.780029 | G77: 2115.040039 | H77: 8.013506889 | I77: 434.681427 | J77: 436.18396 | K77: 1924.977605 | L77: 175.4883911 | M77: 14.57409008 | N77: 76.81565725 | O77: 3.585973667 | P77: 0.3848543517 | Q77: 0.04902033237 | R77: 11.023888 | S77: 4.186800512 | T77: 2.713197319 | U77: 445.5070628
A78: 35.18500137 | B78: 18.76000023 | C78: 0 | D78: 0.3499999934 | E78: 1.500000053 | F78: 2356.780029 | G78: 2115.040039 | H78: 8.013355255 | I78: 434.8598938 | J78: 436.362854 | K78: 1924.971549 | L78: 175.4925908 | M78: 14.57594597 | N78: 76.81117134 | O78: 3.588110437 | P78: 0.3848601011 | Q78: 0.04902333863 | R78: 11.02370298 | S78: 4.186934444 | T78: 2.713351907 | U78: 445.6957486
A79: 35.18500137 | B79: 18.77000046 | C79: 0 | D79: 0.3499999934 | E79: 1.500000053 | F79: 2356.780029 | G79: 2115.040039 | H79: 8.013203621 | I79: 435.0384216 | J79: 436.5418091 | K79: 1924.965494 | L79: 175.4967897 | M79: 14.57780241 | N79: 76.80668583 | O79: 3.590248246 | P79: 0.3848658507 | Q79: 0.04902634361 | R79: 11.0235179 | S79: 4.187068406 | T79: 2.713506545 | U79: 445.8844724
A80: 35.18500137 | B80: 18.78000069 | C80: 0 | D80: 0.3499999934 | E80: 1.500000053 | F80: 2356.780029 | G80: 2115.040039 | H80: 8.013051033 | I80: 435.21698 | J80: 436.7208252 | K80: 1924.959439 | L80: 175.5009877 | M80: 14.5796594 | N80: 76.80220072 | O80: 3.592387094 | P80: 0.3848716005 | Q80: 0.04902934729 | R80: 11.02340357 | S80: 4.187202398 | T80: 2.713661232 | U80: 446.0732937
A81: 35.18500137 | B81: 18.79000092 | C81: 0 | D81: 0.3499999934 | E81: 1.500000053 | F81: 2356.780029 | G81: 2115.040039 | H81: 8.012899399 | I81: 435.3956604 | J81: 436.8999329 | K81: 1924.953384 | L81: 175.5051848 | M81: 14.58151694 | N81: 76.79771601 | O81: 3.594526982 | P81: 0.3848773505 | Q81: 0.04903234968 | R81: 11.02321703 | S81: 4.187336421 | T81: 2.713815968 | U81: 446.2622125
A82: 35.18500137 | B82: 18.79999924 | C82: 0 | D82: 0.3499999934 | E82: 1.500000053 | F82: 2356.780029 | G82: 2115.040039 | H82: 8.012747765 | I82: 435.5743408 | J82: 437.0790405 | K82: 1924.947331 | L82: 175.5093802 | M82: 14.58337468 | N82: 76.79323256 | O82: 3.596667502 | P82: 0.3848830995 | Q82: 0.04903535021 | R82: 11.02303047 | S82: 4.187470449 | T82: 2.713970725 | U82: 446.4511385
A83: 35.18500137 | B83: 18.80999947 | C83: 0 | D83: 0.3499999934 | E83: 1.500000053 | F83: 2356.780029 | G83: 2115.040039 | H83: 8.012595177 | I83: 435.7531128 | J83: 437.2582092 | K83: 1924.941277 | L83: 175.5135755 | M83: 14.58523332 | N83: 76.78874866 | O83: 3.59880947 | P83: 0.3848888499 | Q83: 0.04903835002 | R83: 11.02284381 | S83: 4.187604532 | T83: 2.71412556 | U83: 446.6401632
A84: 35.18500137 | B84: 18.81999969 | C84: 0 | D84: 0.3499999934 | E84: 1.500000053 | F84: 2356.780029 | G84: 2115.040039 | H84: 8.012443542 | I84: 435.9319153 | J84: 437.4374695 | K84: 1924.935224 | L84: 175.5177699 | M84: 14.58709252 | N84: 76.78426516 | O84: 3.60095248 | P84: 0.3848946003 | Q84: 0.04904134854 | R84: 11.0226571 | S84: 4.187738647 | T84: 2.714280444 | U84: 446.8292556
A85: 35.18500137 | B85: 18.82999992 | C85: 0 | D85: 0.3499999934 | E85: 1.500000053 | F85: 2356.780029 | G85: 2115.040039 | H85: 8.012291908 | I85: 436.1108398 | J85: 437.6168213 | K85: 1924.92917 | L85: 175.5219635 | M85: 14.58895227 | N85: 76.77978206 | O85: 3.603096531 | P85: 0.384900351 | Q85: 0.04904434576 | R85: 11.02247033 | S85: 4.187872791 | T85: 2.714435379 | U85: 447.0184457
A86: 35.18500137 | B86: 18.84000015 | C86: 0 | D86: 0.3499999934 | E86: 1.500000053 | F86: 2356.780029 | G86: 2115.040039 | H86: 8.012140274 | I86: 436.2897949 | J86: 437.7962036 | K86: 1924.923117 | L86: 175.5261561 | M86: 14.59081258 | N86: 76.77529937 | O86: 3.605241623 | P86: 0.3849061019 | Q86: 0.0490473417 | R86: 11.02228351 | S86: 4.188006966 | T86: 2.714590362 | U86: 447.2077035
A87: 35.18500137 | B87: 18.85000038 | C87: 0 | D87: 0.3499999934 | E87: 1.500000053 | F87: 2356.780029 | G87: 2115.040039 | H87: 8.01198864 | I87: 436.4687805 | J87: 437.9755859 | K87: 1924.917065 | L87: 175.5303479 | M87: 14.59267343 | N87: 76.77081708 | O87: 3.607387758 | P87: 0.3849118529 | Q87: 0.04905033634 | R87: 11.02209664 | S87: 4.188141171 | T87: 2.714745395 | U87: 447.3969698
A88: 35.18500137 | B88: 18.86000061 | C88: 0 | D88: 0.3499999934 | E88: 1.500000053 | F88: 2356.780029 | G88: 2115.040039 | H88: 8.011836052 | I88: 436.6478577 | J88: 438.1551208 | K88: 1924.911013 | L88: 175.5345388 | M88: 14.59453484 | N88: 76.76633519 | O88: 3.609534935 | P88: 0.3849176041 | Q88: 0.04905332969 | R88: 11.02190971 | S88: 4.188275407 | T88: 2.714900478 | U88: 447.5863633
A89: 35.18500137 | B89: 18.87000084 | C89: 0 | D89: 0.3499999934 | E89: 1.500000053 | F89: 2356.780029 | G89: 2115.040039 | H89: 8.011684418 | I89: 436.8269958 | J89: 438.3346863 | K89: 1924.904961 | L89: 175.5387288 | M89: 14.59639681 | N89: 76.76185371 | O89: 3.611683154 | P89: 0.3849233554 | Q89: 0.04905632174 | R89: 11.02172274 | S89: 4.188409674 | T89: 2.715055609 | U89: 447.7758247
A90: 35.18500137 | B90: 18.87999916 | C90: 0 | D90: 0.3499999934 | E90: 1.500000053 | F90: 2356.780029 | G90: 2115.040039 | H90: 8.011532784 | I90: 437.0061646 | J90: 438.5142822 | K90: 1924.89891 | L90: 175.542917 | M90: 14.59825897 | N90: 76.75737348 | O90: 3.613832007 | P90: 0.3849291059 | Q90: 0.04905931194 | R90: 11.02153574 | S90: 4.188543945 | T90: 2.715210761 | U90: 447.9653231
A91: 35.18500137 | B91: 18.88999939 | C91: 0 | D91: 0.3499999934 | E91: 1.500000053 | F91: 2356.780029 | G91: 2115.040039 | H91: 8.011381149 | I91: 437.1853943 | J91: 438.6939392 | K91: 1924.892859 | L91: 175.5471052 | M91: 14.60012204 | N91: 76.75289281 | O91: 3.615982313 | P91: 0.3849348576 | Q91: 0.04906230141 | R91: 11.02134867 | S91: 4.188678272 | T91: 2.715365992 | U91: 448.1548905
A92: 35.18500137 | B92: 18.89999962 | C92: 0 | D92: 0.3499999934 | E92: 1.500000053 | F92: 2356.780029 | G92: 2115.040039 | H92: 8.011229515 | I92: 437.3647461 | J92: 438.8737183 | K92: 1924.886808 | L92: 175.5512925 | M92: 14.60198566 | N92: 76.74841254 | O92: 3.618133663 | P92: 0.3849406095 | Q92: 0.04906528959 | R92: 11.02116154 | S92: 4.188812629 | T92: 2.715521272 | U92: 448.3445852
A93: 35.18500137 | B93: 18.90999985 | C93: 0 | D93: 0.3499999934 | E93: 1.500000053 | F93: 2356.780029 | G93: 2115.040039 | H93: 8.011076927 | I93: 437.5441284 | J93: 439.0535583 | K93: 1924.880766 | L93: 175.5554689 | M93: 14.60385081 | N93: 76.74392879 | O93: 3.620285832 | P93: 0.3849463592 | Q93: 0.04906827353 | R93: 11.02097437 | S93: 4.188946777 | T93: 2.715676447 | U93: 448.5343478
A94: 35.18500137 | B94: 18.92000008 | C94: 0 | D94: 0.3499999934 | E94: 1.500000053 | F94: 2356.780029 | G94: 2115.040039 | H94: 8.010925293 | I94: 437.7235718 | J94: 439.2333984 | K94: 1924.874716 | L94: 175.5596546 | M94: 14.60571552 | N94: 76.73944941 | O94: 3.622439275 | P94: 0.3849521115 | Q94: 0.04907125918 | R94: 11.02078715 | S94: 4.1890812 | T94: 2.715831829 | U94: 448.7241486
A95: 35.18500137 | B95: 18.93000031 | C95: 0 | D95: 0.3499999934 | E95: 1.500000053 | F95: 2356.780029 | G95: 2115.040039 | H95: 8.010773659 | I95: 437.9030762 | J95: 439.4133606 | K95: 1924.868666 | L95: 175.5638394 | M95: 14.60758079 | N95: 76.73497043 | O95: 3.624593762 | P95: 0.3849578639 | Q95: 0.04907424354 | R95: 11.02059989 | S95: 4.189215654 | T95: 2.71598726 | U95: 448.9140471
A96: 35.18500137 | B96: 18.94000053 | C96: 0 | D96: 0.3499999934 | E96: 1.500000053 | F96: 2356.780029 | G96: 2115.040039 | H96: 8.010622025 | I96: 438.0826111 | J96: 439.5932922 | K96: 1924.862616 | L96: 175.5680234 | M96: 14.60944661 | N96: 76.73049186 | O96: 3.626749295 | P96: 0.3849636166 | Q96: 0.0490772266 | R96: 11.02041258 | S96: 4.189350138 | T96: 2.716142742 | U96: 449.1039539
A97: 35.18500137 | B97: 18.95000076 | C97: 0 | D97: 0.3499999934 | E97: 1.500000053 | F97: 2356.780029 | G97: 2115.040039 | H97: 8.01047039 | I97: 438.2622375 | J97: 439.7733765 | K97: 1924.856567 | L97: 175.5722064 | M97: 14.61131298 | N97: 76.72601369 | O97: 3.628905873 | P97: 0.3849693694 | Q97: 0.04908020837 | R97: 11.02022523 | S97: 4.189484652 | T97: 2.716298272 | U97: 449.2939882
A98: 35.18500137 | B98: 18.95999908 | C98: 0 | D98: 0.3499999934 | E98: 1.500000053 | F98: 2356.780029 | G98: 2115.040039 | H98: 8.010318756 | I98: 438.4418945 | J98: 439.9534607 | K98: 1924.850519 | L98: 175.5763877 | M98: 14.61317955 | N98: 76.72153679 | O98: 3.631063086 | P98: 0.3849751212 | Q98: 0.04908318827 | R98: 11.02003787 | S98: 4.189619171 | T98: 2.716453823 | U98: 449.4840595
A99: 35.18500137 | B99: 18.96999931 | C99: 0 | D99: 0.3499999934 | E99: 1.500000053 | F99: 2356.780029 | G99: 2115.040039 | H99: 8.010167122 | I99: 438.6216431 | J99: 440.1336365 | K99: 1924.84447 | L99: 175.580569 | M99: 14.61504703 | N99: 76.71705944 | O99: 3.633221756 | P99: 0.3849808744 | Q99: 0.04908616745 | R99: 11.01985044 | S99: 4.189753747 | T99: 2.716609453 | U99: 449.6742296
A100: 35.18500137 | B100: 18.97999954 | C100: 0 | D100: 0.3499999934 | E100: 1.500000053 | F100: 2356.780029 | G100: 2115.040039 | H100: 8.010014534 | I100: 438.8014221 | J100: 440.3138733 | K100: 1924.838422 | L100: 175.5847493 | M100: 14.61691507 | N100: 76.71258249 | O100: 3.635381473 | P100: 0.3849866277 | Q100: 0.04908914534 | R100: 11.01966296 | S100: 4.189888352 | T100: 2.716765132 | U100: 449.8644379
A101: 35.18500137 | B101: 18.98999977 | C101: 0 | D101: 0.3499999934 | E101: 1.500000053 | F101: 2356.780029 | G101: 2115.040039 | H101: 8.0098629 | I101: 438.9813232 | J101: 440.4941711 | K101: 1924.832374 | L101: 175.5889288 | M101: 14.61878366 | N101: 76.70810595 | O101: 3.637542237 | P101: 0.3849923812 | Q101: 0.04909212193 | R101: 11.01947545 | S101: 4.190022989 | T101: 2.71692086 | U101: 450.054744
A102: 35.18500137 | B102: 19 | C102: 0 | D102: 0.3499999934 | E102: 1.500000053 | F102: 2356.780029 | G102: 2115.040039 | H102: 8.009711266 | I102: 439.1612244 | J102: 440.6744995 | K102: 1924.826326 | L102: 175.5931073 | M102: 14.62065281 | N102: 76.70362982 | O102: 3.639704049 | P102: 0.3849981348 | Q102: 0.04909509722 | R102: 11.01928789 | S102: 4.190157655 | T102: 2.717076639 | U102: 450.245118
A103: 35.18500137 | B103: 19.01000023 | C103: 0 | D103: 0.3499999934 | E103: 1.500000053 | F103: 2356.780029 | G103: 2115.040039 | H103: 8.009559631 | I103: 439.341217 | J103: 440.8549194 | K103: 1924.820279 | L103: 175.597285 | M103: 14.62252251 | N103: 76.69915409 | O103: 3.641866908 | P103: 0.3850038887 | Q103: 0.04909807122 | R103: 11.0191003 | S103: 4.190292352 | T103: 2.717232466 | U103: 450.4355599
A104: 35.18500137 | B104: 19.02000046 | C104: 0 | D104: 0.3499999934 | E104: 1.500000053 | F104: 2356.780029 | G104: 2115.040039 | H104: 8.009407997 | I104: 439.5212402 | J104: 441.0354004 | K104: 1924.814232 | L104: 175.6014617 | M104: 14.62439277 | N104: 76.69467877 | O104: 3.644030815 | P104: 0.3850096427 | Q104: 0.04910104393 | R104: 11.01891267 | S104: 4.19042708 | T104: 2.717388344 | U104: 450.6260699
A105: 35.18500137 | B105: 19.03000069 | C105: 0 | D105: 0.3499999934 | E105: 1.500000053 | F105: 2356.780029 | G105: 2115.040039 | H105: 8.009256363 | I105: 439.701355 | J105: 441.2159729 | K105: 1924.808185 | L105: 175.6056376 | M105: 14.62626358 | N105: 76.69020386 | O105: 3.646195771 | P105: 0.3850153968 | Q105: 0.04910401534 | R105: 11.018725 | S105: 4.190561838 | T105: 2.71754427 | U105: 450.8166776
A106: 35.18500137 | B106: 19.04000092 | C106: 0 | D106: 0.3499999934 | E106: 1.500000053 | F106: 2356.780029 | G106: 2115.040039 | H106: 8.009104729 | I106: 439.8815308 | J106: 441.3965149 | K106: 1924.802139 | L106: 175.6098126 | M106: 14.62813495 | N106: 76.68572936 | O106: 3.648361775 | P106: 0.3850211512 | Q106: 0.04910698545 | R106: 11.01846718 | S106: 4.190696626 | T106: 2.717700247 | U106: 451.0072938
A107: 35.18500137 | B107: 19.04999924 | C107: 0 | D107: 0.3499999934 | E107: 1.500000053 | F107: 2356.780029 | G107: 2115.040039 | H107: 8.008953094 | I107: 440.0617065 | J107: 441.5771484 | K107: 1924.796094 | L107: 175.6139858 | M107: 14.63000652 | N107: 76.68125611 | O107: 3.650528415 | P107: 0.3850269046 | Q107: 0.0491099537 | R107: 11.01828085 | S107: 4.190831419 | T107: 2.717856242 | U107: 451.1979768
A108: 35.18500137 | B108: 19.05999947 | C108: 0 | D108: 0.3499999934 | E108: 1.500000053 | F108: 2356.780029 | G108: 2115.040039 | H108: 8.00880146 | I108: 440.2420044 | J108: 441.7578735 | K108: 1924.790048 | L108: 175.618159 | M108: 14.631879 | N108: 76.67678243 | O108: 3.652696518 | P108: 0.3850326593 | Q108: 0.04911292122 | R108: 11.01809447 | S108: 4.190966269 | T108: 2.718012318 | U108: 451.3887885
A109: 35.18500137 | B109: 19.06999969 | C109: 0 | D109: 0.3499999934 | E109: 1.500000053 | F109: 2356.780029 | G109: 2115.040039 | H109: 8.008649826 | I109: 440.4223633 | J109: 441.9386597 | K109: 1924.784003 | L109: 175.6223312 | M109: 14.63375203 | N109: 76.67230915 | O109: 3.654865671 | P109: 0.3850384141 | Q109: 0.04911588744 | R109: 11.01790805 | S109: 4.191101148 | T109: 2.718168443 | U109: 451.5796682
A110: 35.18500137 | B110: 19.07999992 | C110: 0 | D110: 0.3499999934 | E110: 1.500000053 | F110: 2356.780029 | G110: 2115.040039 | H110: 8.008498192 | I110: 440.6027832 | J110: 442.1195068 | K110: 1924.777958 | L110: 175.6265026 | M110: 14.63562563 | N110: 76.66783628 | O110: 3.657035874 | P110: 0.3850441692 | Q110: 0.04911885237 | R110: 11.01772161 | S110: 4.191236058 | T110: 2.718324617 | U110: 451.770616
A111: 35.18500137 | B111: 19.09000015 | C111: 0 | D111: 0.3499999934 | E111: 1.500000053 | F111: 2356.780029 | G111: 2115.040039 | H111: 8.008346558 | I111: 440.7832336 | J111: 442.300415 | K111: 1924.771913 | L111: 175.6306731 | M111: 14.63749978 | N111: 76.66336381 | O111: 3.659207127 | P111: 0.3850499243 | Q111: 0.049121816 | R111: 11.01753515 | S111: 4.191370999 | T111: 2.718480841 | U111: 451.9616318
A112: 35.18500137 | B112: 19.10000038 | C112: 0 | D112: 0.3499999934 | E112: 1.500000053 | F112: 2356.780029 | G112: 2115.040039 | H112: 8.008194923 | I112: 440.9637756 | J112: 442.4813538 | K112: 1924.765869 | L112: 175.6348426 | M112: 14.63937448 | N112: 76.65889176 | O112: 3.661379432 | P112: 0.3850556797 | Q112: 0.04912477833 | R112: 11.01734865 | S112: 4.19150597 | T112: 2.718637114 | U112: 452.1526859
A113: 35.18500137 | B113: 19.11000061 | C113: 0 | D113: 0.3499999934 | E113: 1.500000053 | F113: 2356.780029 | G113: 2115.040039 | H113: 8.008043289 | I113: 441.1443787 | J113: 442.662384 | K113: 1924.759825 | L113: 175.6390113 | M113: 14.64124975 | N113: 76.65442011 | O113: 3.663552787 | P113: 0.3850614352 | Q113: 0.04912773937 | R113: 11.01716213 | S113: 4.191640971 | T113: 2.718793437 | U113: 452.3438378
A114: 35.18500137 | B114: 19.12000084 | C114: 0 | D114: 0.3499999934 | E114: 1.500000053 | F114: 2356.780029 | G114: 2115.040039 | H114: 8.007891655 | I114: 441.3250122 | J114: 442.8434753 | K114: 1924.753782 | L114: 175.643179 | M114: 14.64312557 | N114: 76.64994888 | O114: 3.665727195 | P114: 0.3850671909 | Q114: 0.04913069911 | R114: 11.01697557 | S114: 4.191776003 | T114: 2.718949809 | U114: 452.5350578
A115: 35.18500137 | B115: 19.12999916 | C115: 0 | D115: 0.3499999934 | E115: 1.500000053 | F115: 2356.780029 | G115: 2115.040039 | H115: 8.007740021 | I115: 441.5056763 | J115: 443.0245972 | K115: 1924.74774 | L115: 175.6473451 | M115: 14.64500158 | N115: 76.6454789 | O115: 3.667902239 | P115: 0.3850729457 | Q115: 0.04913365698 | R115: 11.01678903 | S115: 4.191911039 | T115: 2.719106201 | U115: 452.7263149
A116: 35.18500137 | B116: 19.13999939 | C116: 0 | D116: 0.3499999934 | E116: 1.500000053 | F116: 2356.780029 | G116: 2115.040039 | H116: 8.007588387 | I116: 441.6864929 | J116: 443.2058105 | K116: 1924.741697 | L116: 175.651511 | M116: 14.64687852 | N116: 76.64100848 | O116: 3.67007875 | P116: 0.3850787017 | Q116: 0.04913661412 | R116: 11.01660242 | S116: 4.192046132 | T116: 2.719262673 | U116: 452.9177008
A117: 35.18500137 | B117: 19.14999962 | C117: 0 | D117: 0.3499999934 | E117: 1.500000053 | F117: 2356.780029 | G117: 2115.040039 | H117: 8.007436752 | I117: 441.8673096 | J117: 443.387085 | K117: 1924.735654 | L117: 175.655676 | M117: 14.64875601 | N117: 76.63653847 | O117: 3.672256314 | P117: 0.3850844579 | Q117: 0.04913956996 | R117: 11.01641578 | S117: 4.192181255 | T117: 2.719419194 | U117: 453.109125
A118: 35.18500137 | B118: 19.15999985 | C118: 0 | D118: 0.3499999934 | E118: 1.500000053 | F118: 2356.780029 | G118: 2115.040039 | H118: 8.007285118 | I118: 442.0482178 | J118: 443.5683899 | K118: 1924.729612 | L118: 175.6598402 | M118: 14.65063406 | N118: 76.63206888 | O118: 3.674434932 | P118: 0.3850902143 | Q118: 0.04914252451 | R118: 11.0162291 | S118: 4.192316409 | T118: 2.719575764 | U118: 453.3006174
A119: 35.18500137 | B119: 19.17000008 | C119: 0 | D119: 0.3499999934 | E119: 1.500000053 | F119: 2356.780029 | G119: 2115.040039 | H119: 8.007133484 | I119: 442.229187 | J119: 443.7497864 | K119: 1924.72357 | L119: 175.6640034 | M119: 14.65251267 | N119: 76.62759969 | O119: 3.676614602 | P119: 0.3850959708 | Q119: 0.04914547775 | R119: 11.0160424 | S119: 4.192451592 | T119: 2.719732384 | U119: 453.4922076
A120: 35.18500137 | B120: 19.18000031 | C120: 0 | D120: 0.3499999934 | E120: 1.500000053 | F120: 2356.780029 | G120: 2115.040039 | H120: 8.00698185 | I120: 442.4102173 | J120: 443.9312744 | K120: 1924.717529 | L120: 175.6681657 | M120: 14.65439183 | N120: 76.62313091 | O120: 3.678795327 | P120: 0.3851017275 | Q120: 0.0491484297 | R120: 11.01585567 | S120: 4.192586807 | T120: 2.719889054 | U120: 453.6838659
A121: 35.18500137 | B121: 19.19000053 | C121: 0 | D121: 0.3499999934 | E121: 1.500000053 | F121: 2356.780029 | G121: 2115.040039 | H121: 8.006830215 | I121: 442.5912781 | J121: 444.112793 | K121: 1924.711488 | L121: 175.6723271 | M121: 14.65627156 | N121: 76.61866254 | O121: 3.680977105 | P121: 0.3851074844 | Q121: 0.04915138035 | R121: 11.0156689 | S121: 4.192722051 | T121: 2.720045773 | U121: 453.8755923
A122: 35.18500137 | B122: 19.20000076 | C122: 0 | D122: 0.3499999934 | E122: 1.500000053 | F122: 2356.780029 | G122: 2115.040039 | H122: 8.006679535 | I122: 442.7724304 | J122: 444.2943726 | K122: 1924.705447 | L122: 175.6764876 | M122: 14.65815184 | N122: 76.61419458 | O122: 3.683159938 | P122: 0.3851132414 | Q122: 0.04915432969 | R122: 11.0154821 | S122: 4.192857326 | T122: 2.720202542 | U122: 454.0673869
A123: 35.18500137 | B123: 19.20999908 | C123: 0 | D123: 0.3499999934 | E123: 1.500000053 | F123: 2356.780029 | G123: 2115.040039 | H123: 8.006527901 | I123: 442.9536133 | J123: 444.4759827 | K123: 1924.699407 | L123: 175.6806464 | M123: 14.66003232 | N123: 76.60972788 | O123: 3.685343409 | P123: 0.3851189975 | Q123: 0.04915727718 | R123: 11.01529531 | S123: 4.192992606 | T123: 2.72035933 | U123: 454.2592187
A124: 35.18500137 | B124: 19.21999931 | C124: 0 | D124: 0.3499999934 | E124: 1.500000053 | F124: 2356.780029 | G124: 2115.040039 | H124: 8.006376266 | I124: 443.1348572 | J124: 444.6576538 | K124: 1924.693367 | L124: 175.6848051 | M124: 14.66191372 | N124: 76.60526075 | O124: 3.687528352 | P124: 0.3851247549 | Q124: 0.04916022392 | R124: 11.01510845 | S124: 4.193127942 | T124: 2.720516198 | U124: 454.4511496
A125: 35.18500137 | B125: 19.22999954 | C125: 0 | D125: 0.3499999934 | E125: 1.500000053 | F125: 2356.780029 | G125: 2115.040039 | H125: 8.006224632 | I125: 443.3161926 | J125: 444.839386 | K125: 1924.687328 | L125: 175.6889629 | M125: 14.66379567 | N125: 76.60079402 | O125: 3.68971435 | P125: 0.3851305124 | Q125: 0.04916316937 | R125: 11.01492155 | S125: 4.193263308 | T125: 2.720673115 | U125: 454.6431189
A126: 35.18500137 | B126: 19.23999977 | C126: 0 | D126: 0.3499999934 | E126: 1.500000053 | F126: 2356.780029 | G126: 2115.040039 | H126: 8.006072998 | I126: 443.4975891 | J126: 445.0212402 | K126: 1924.681288 | L126: 175.6931197 | M126: 14.66567819 | N126: 76.59632771 | O126: 3.691901404 | P126: 0.3851362701 | Q126: 0.04916611352 | R126: 11.01473462 | S126: 4.193398705 | T126: 2.720830082 | U126: 454.8352158
A127: 35.18500137 | B127: 19.25 | C127: 0 | D127: 0.3499999934 | E127: 1.500000053 | F127: 2356.780029 | G127: 2115.040039 | H127: 8.005921364 | I127: 443.6790161 | J127: 445.2030945 | K127: 1924.675249 | L127: 175.6972757 | M127: 14.66756126 | N127: 76.5918618 | O127: 3.694089515 | P127: 0.3851420279 | Q127: 0.04916905636 | R127: 11.01454765 | S127: 4.193534132 | T127: 2.720987098 | U127: 455.0273512
A128: 35.18500137 | B128: 19.26000023 | C128: 0 | D128: 0.3499999934 | E128: 1.500000053 | F128: 2356.780029 | G128: 2115.040039 | H128: 8.00576973 | I128: 443.8605347 | J128: 445.3850708 | K128: 1924.669211 | L128: 175.7014307 | M128: 14.6694449 | N128: 76.58739631 | O128: 3.696278682 | P128: 0.385147786 | Q128: 0.04917199791 | R128: 11.01436066 | S128: 4.193669589 | T128: 2.721144164 | U128: 455.2195846
A129: 35.18500137 | B129: 19.27000046 | C129: 0 | D129: 0.3499999934 | E129: 1.500000053 | F129: 2356.780029 | G129: 2115.040039 | H129: 8.005618095 | I129: 444.0421143 | J129: 445.5670776 | K129: 1924.663172 | L129: 175.7055849 | M129: 14.67132909 | N129: 76.58293123 | O129: 3.698468906 | P129: 0.3851535441 | Q129: 0.04917493815 | R129: 11.01417362 | S129: 4.193805077 | T129: 2.72130128 | U129: 455.4118861
A130: 35.18500137 | B130: 19.28000069 | C130: 0 | D130: 0.3499999934 | E130: 1.500000053 | F130: 2356.780029 | G130: 2115.040039 | H130: 8.005467415 | I130: 444.2237549 | J130: 445.7491455 | K130: 1924.657134 | L130: 175.7097381 | M130: 14.67321385 | N130: 76.57846656 | O130: 3.700660187 | P130: 0.3851593025 | Q130: 0.0491778771 | R130: 11.01398655 | S130: 4.193940595 | T130: 2.721458445 | U130: 455.6042558
A131: 35.18500137 | B131: 19.29000092 | C131: 0 | D131: 0.3499999934 | E131: 1.500000053 | F131: 2356.780029 | G131: 2115.040039 | H131: 8.005315781 | I131: 444.4054565 | J131: 445.9312744 | K131: 1924.651097 | L131: 175.7138904 | M131: 14.67509916 | N131: 76.57400231 | O131: 3.702852526 | P131: 0.385165061 | Q131: 0.04918081474 | R131: 11.01379945 | S131: 4.194076144 | T131: 2.72161566 | U131: 455.7966938
A132: 35.18500137 | B132: 19.29999924 | C132: 0 | D132: 0.3499999934 | E132: 1.500000053 | F132: 2356.780029 | G132: 2115.040039 | H132: 8.005164146 | I132: 444.5871887 | J132: 446.1134338 | K132: 1924.645061 | L132: 175.718041 | M132: 14.67698467 | N132: 76.56953931 | O132: 3.705045505 | P132: 0.3851708186 | Q132: 0.04918375051 | R132: 11.01361234 | S132: 4.194211697 | T132: 2.721772894 | U132: 455.9891691
A133: 35.18500137 | B133: 19.30999947 | C133: 0 | D133: 0.3499999934 | E133: 1.500000053 | F133: 2356.780029 | G133: 2115.040039 | H133: 8.005012512 | I133: 444.7689819 | J133: 446.2956848 | K133: 1924.639024 | L133: 175.7221915 | M133: 14.6788711 | N133: 76.56507588 | O133: 3.70723996 | P133: 0.3851765774 | Q133: 0.04918668555 | R133: 11.01342517 | S133: 4.194347306 | T133: 2.721930208 | U133: 456.1817435
A134: 35.18500137 | B134: 19.31999969 | C134: 0 | D134: 0.3499999934 | E134: 1.500000053 | F134: 2356.780029 | G134: 2115.040039 | H134: 8.004860878 | I134: 444.9508667 | J134: 446.4779663 | K134: 1924.632987 | L134: 175.726341 | M134: 14.6807581 | N134: 76.56061286 | O134: 3.709435474 | P134: 0.3851823364 | Q134: 0.04918961929 | R134: 11.01323795 | S134: 4.194482946 | T134: 2.722087571 | U134: 456.3743564
A135: 35.18500137 | B135: 19.32999992 | C135: 0 | D135: 0.3499999934 | E135: 1.500000053 | F135: 2356.780029 | G135: 2115.040039 | H135: 8.004710197 | I135: 445.1328125 | J135: 446.6603699 | K135: 1924.626951 | L135: 175.7304897 | M135: 14.68264565 | N135: 76.55615026 | O135: 3.711632047 | P135: 0.3851880956 | Q135: 0.04919255172 | R135: 11.0130507 | S135: 4.194618616 | T135: 2.722244984 | U135: 456.5670971
A136: 35.18500137 | B136: 19.34000015 | C136: 0 | D136: 0.3499999934 | E136: 1.500000053 | F136: 2356.780029 | G136: 2115.040039 | H136: 8.004558563 | I136: 445.3148193 | J136: 446.842804 | K136: 1924.620915 | L136: 175.7346374 | M136: 14.68453376 | N136: 76.55168806 | O136: 3.713829679 | P136: 0.3851938549 | Q136: 0.04919548285 | R136: 11.01286341 | S136: 4.194754317 | T136: 2.722402447 | U136: 456.759906
A137: 35.18500137 | B137: 19.35000038 | C137: 0 | D137: 0.3499999934 | E137: 1.500000053 | F137: 2356.780029 | G137: 2115.040039 | H137: 8.004406929 | I137: 445.4968872 | J137: 447.0252991 | K137: 1924.61488 | L137: 175.7387842 | M137: 14.68642244 | N137: 76.54722629 | O137: 3.716028372 | P137: 0.3851996144 | Q137: 0.04919841268 | R137: 11.01267608 | S137: 4.194890048 | T137: 2.722559959 | U137: 456.9527534
A138: 35.18500137 | B138: 19.36000061 | C138: 0 | D138: 0.3499999934 | E138: 1.500000053 | F138: 2356.780029 | G138: 2115.040039 | H138: 8.004255295 | I138: 445.6790161 | J138: 447.2078552 | K138: 1924.608844 | L138: 175.7429301 | M138: 14.68831167 | N138: 76.54276492 | O138: 3.718228124 | P138: 0.3852053741 | Q138: 0.0492013412 | R138: 11.01248872 | S138: 4.195025809 | T138: 2.722717521 | U138: 457.1456989
A139: 35.18500137 | B139: 19.37000084 | C139: 0 | D139: 0.3499999934 | E139: 1.500000053 | F139: 2356.780029 | G139: 2115.040039 | H139: 8.004104614 | I139: 445.8612061 | J139: 447.3904724 | K139: 1924.60281 | L139: 175.7470751 | M139: 14.69020147 | N139: 76.53830397 | O139: 3.720428937 | P139: 0.3852111339 | Q139: 0.04920426842 | R139: 11.01230131 | S139: 4.195161601 | T139: 2.722875132 | U139: 457.3387127
A140: 35.18500137 | B140: 19.37999916 | C140: 0 | D140: 0.3499999934 | E140: 1.500000053 | F140: 2356.780029 | G140: 2115.040039 | H140: 8.00395298 | I140: 446.0434265 | J140: 447.5731506 | K140: 1924.596776 | L140: 175.7512184 | M140: 14.69209147 | N140: 76.53384428 | O140: 3.722630391 | P140: 0.3852168927 | Q140: 0.04920719378 | R140: 11.0121139 | S140: 4.195297397 | T140: 2.723032763 | U140: 457.5317638
A141: 35.18500137 | B141: 19.38999939 | C141: 0 | D141: 0.3499999934 | E141: 1.500000053 | F141: 2356.780029 | G141: 2115.040039 | H141: 8.003801346 | I141: 446.225708 | J141: 447.7558899 | K141: 1924.590742 | L141: 175.7553616 | M141: 14.69398238 | N141: 76.52938415 | O141: 3.724833326 | P141: 0.3852226529 | Q141: 0.0492101184 | R141: 11.01192642 | S141: 4.195433249 | T141: 2.723190474 | U141: 457.7249141
A142: 35.18500137 | B142: 19.39999962 | C142: 0 | D142: 0.3499999934 | E142: 1.500000053 | F142: 2356.780029 | G142: 2115.040039 | H142: 8.003649712 | I142: 446.4080811 | J142: 447.9386902 | K142: 1924.584709 | L142: 175.7595038 | M142: 14.69587386 | N142: 76.52492444 | O142: 3.727037323 | P142: 0.3852284132 | Q142: 0.04921304171 | R142: 11.0117389 | S142: 4.195569132 | T142: 2.723348234 | U142: 457.9181328
A143: 35.18500137 | B143: 19.40999985 | C143: 0 | D143: 0.3499999934 | E143: 1.500000053 | F143: 2356.780029 | G143: 2115.040039 | H143: 8.003499031 | I143: 446.5905457 | J143: 448.121582 | K143: 1924.578675 | L143: 175.7636451 | M143: 14.69776591 | N143: 76.52046515 | O143: 3.729242381 | P143: 0.3852341736 | Q143: 0.04921596371 | R143: 11.01155133 | S143: 4.195705046 | T143: 2.723506044 | U143: 458.1114496
A144: 35.18500137 | B144: 19.42000008 | C144: 0 | D144: 0.3499999934 | E144: 1.500000053 | F144: 2356.780029 | G144: 2115.040039 | H144: 8.003347397 | I144: 446.7730103 | J144: 448.3045044 | K144: 1924.572642 | L144: 175.7677855 | M144: 14.69965851 | N144: 76.51600627 | O144: 3.731448502 | P144: 0.3852399343 | Q144: 0.04921888441 | R144: 11.01136373 | S144: 4.195840989 | T144: 2.723663903 | U144: 458.3048049
A145: 35.18500137 | B145: 19.43000031 | C145: 0 | D145: 0.3499999934 | E145: 1.500000053 | F145: 2356.780029 | G145: 2115.040039 | H145: 8.003195763 | I145: 446.9555969 | J145: 448.4874573 | K145: 1924.56661 | L145: 175.771925 | M145: 14.70155167 | N145: 76.5115478 | O145: 3.733655686 | P145: 0.385245695 | Q145: 0.04922180381 | R145: 11.01117608 | S145: 4.195976963 | T145: 2.723821812 | U145: 458.4982286
A146: 35.18500137 | B146: 19.44000053 | C146: 0 | D146: 0.3499999934 | E146: 1.500000053 | F146: 2356.780029 | G146: 2115.040039 | H146: 8.003045082 | I146: 447.1381836 | J146: 448.6705017 | K146: 1924.560577 | L146: 175.7760635 | M146: 14.7034454 | N146: 76.50708975 | O146: 3.735863932 | P146: 0.385251456 | Q146: 0.0492247219 | R146: 11.01098839 | S146: 4.196112968 | T146: 2.723979771 | U146: 458.6917206
A147: 35.18500137 | B147: 19.45000076 | C147: 0 | D147: 0.3499999934 | E147: 1.500000053 | F147: 2356.780029 | G147: 2115.040039 | H147: 8.002893448 | I147: 447.3208618 | J147: 448.8536072 | K147: 1924.554545 | L147: 175.7802012 | M147: 14.70533969 | N147: 76.50263211 | O147: 3.738073242 | P147: 0.3852572171 | Q147: 0.04922763869 | R147: 11.01080066 | S147: 4.196249002 | T147: 2.724137779 | U147: 458.8853108
A148: 35.18500137 | B148: 19.45999908 | C148: 0 | D148: 0.3499999934 | E148: 1.500000053 | F148: 2356.780029 | G148: 2115.040039 | H148: 8.002741814 | I148: 447.5035706 | J148: 449.0367737 | K148: 1924.548515 | L148: 175.7843371 | M148: 14.70723418 | N148: 76.49817574 | O148: 3.740283194 | P148: 0.3852629772 | Q148: 0.04923055362 | R148: 11.01061292 | S148: 4.196385042 | T148: 2.724295806 | U148: 459.0789383
A149: 35.18500137 | B149: 19.46999931 | C149: 0 | D149: 0.3499999934 | E149: 1.500000053 | F149: 2356.780029 | G149: 2115.040039 | H149: 8.002591133 | I149: 447.6863708 | J149: 449.2200012 | K149: 1924.542484 | L149: 175.7884729 | M149: 14.7091296 | N149: 76.49371893 | O149: 3.742494632 | P149: 0.3852687386 | Q149: 0.04923346779 | R149: 11.0104251 | S149: 4.196521137 | T149: 2.724453914 | U149: 459.2726652
A150: 35.18500137 | B150: 19.47999954 | C150: 0 | D150: 0.3499999934 | E150: 1.500000053 | F150: 2356.780029 | G150: 2115.040039 | H150: 8.002439499 | I150: 447.8692322 | J150: 449.4033203 | K150: 1924.536453 | L150: 175.7926078 | M150: 14.71102557 | N150: 76.48926254 | O150: 3.744707134 | P150: 0.3852745002 | Q150: 0.04923638067 | R150: 11.01023724 | S150: 4.196657263 | T150: 2.724612071 | U150: 459.4664605
A151: 35.18500137 | B151: 19.48999977 | C151: 0 | D151: 0.3499999934 | E151: 1.500000053 | F151: 2356.780029 | G151: 2115.040039 | H151: 8.002287865 | I151: 448.0521851 | J151: 449.5867004 | K151: 1924.530422 | L151: 175.7967417 | M151: 14.71292211 | N151: 76.48480657 | O151: 3.746920701 | P151: 0.3852802619 | Q151: 0.04923929223 | R151: 11.01004934 | S151: 4.19679342 | T151: 2.724770278 | U151: 459.6603539
A152: 35.18500137 | B152: 19.5 | C152: 0 | D152: 0.3499999934 | E152: 1.500000053 | F152: 2356.780029 | G152: 2115.040039 | H152: 8.002137184 | I152: 448.2351685 | J152: 449.7701111 | K152: 1924.524392 | L152: 175.8008748 | M152: 14.71481922 | N152: 76.48035101 | O152: 3.749135333 | P152: 0.3852860238 | Q152: 0.04924220249 | R152: 11.00986139 | S152: 4.196929606 | T152: 2.724928534 | U152: 459.854286
A153: 35.18500137 | B153: 19.51000023 | C153: 0 | D153: 0.3499999934 | E153: 1.500000053 | F153: 2356.780029 | G153: 2115.040039 | H153: 8.00198555 | I153: 448.4182434 | J153: 449.9536133 | K153: 1924.518362 | L153: 175.8050069 | M153: 14.71671688 | N153: 76.47589587 | O153: 3.751351031 | P153: 0.3852917859 | Q153: 0.04924511145 | R153: 11.0095963 | S153: 4.197065823 | T153: 2.72508684 | U153: 460.0483162
A154: 35.18500137 | B154: 19.52000046 | C154: 0 | D154: 0.3499999934 | E154: 1.500000053 | F154: 2356.780029 | G154: 2115.040039 | H154: 8.001833916 | I154: 448.6013184 | J154: 450.1371155 | K154: 1924.512333 | L154: 175.809138 | M154: 14.71861511 | N154: 76.47144115 | O154: 3.753567795 | P154: 0.3852975481 | Q154: 0.0492480191 | R154: 11.00954506 | S154: 4.197202071 | T154: 2.725245196 | U154: 460.2423851
A155: 35.18500137 | B155: 19.53000069 | C155: 0 | D155: 0.3499999934 | E155: 1.500000053 | F155: 2356.780029 | G155: 2115.040039 | H155: 8.001683235 | I155: 448.7844849 | J155: 450.3207397 | K155: 1924.506304 | L155: 175.8132683 | M155: 14.7205139 | N155: 76.46698684 | O155: 3.755785625 | P155: 0.3853033104 | Q155: 0.04925092544 | R155: 11.00929728 | S155: 4.197338349 | T155: 2.725403601 | U155: 460.4365522
A156: 35.18500137 | B156: 19.54000092 | C156: 0 | D156: 0.3499999934 | E156: 1.500000053 | F156: 2356.780029 | G156: 2115.040039 | H156: 8.001531601 | I156: 448.9677429 | J156: 450.504425 | K156: 1924.500275 | L156: 175.8173976 | M156: 14.72241326 | N156: 76.46253295 | O156: 3.758004521 | P156: 0.385309073 | Q156: 0.04925383047 | R156: 11.00910915 | S156: 4.197474657 | T156: 2.725562056 | U156: 460.6307878
A157: 35.18500137 | B157: 19.54999924 | C157: 0 | D157: 0.3499999934 | E157: 1.500000053 | F157: 2356.780029 | G157: 2115.040039 | H157: 8.00138092 | I157: 449.151001 | J157: 450.6881104 | K157: 1924.494248 | L157: 175.8215253 | M157: 14.72431282 | N157: 76.45808033 | O157: 3.760224061 | P157: 0.3853148345 | Q157: 0.04925673365 | R157: 11.00892101 | S157: 4.19761097 | T157: 2.72572053 | U157: 460.8250608
A158: 35.18500137 | B158: 19.55999947 | C158: 0 | D158: 0.3499999934 | E158: 1.500000053 | F158: 2356.780029 | G158: 2115.040039 | H158: 8.001229286 | I158: 449.3343506 | J158: 450.8719177 | K158: 1924.48822 | L158: 175.8256527 | M158: 14.7262133 | N158: 76.45362727 | O158: 3.762445092 | P158: 0.3853205974 | Q158: 0.04925963607 | R158: 11.00873279 | S158: 4.197747339 | T158: 2.725879084 | U158: 461.0194332
A159: 35.18500137 | B159: 19.56999969 | C159: 0 | D159: 0.3499999934 | E159: 1.500000053 | F159: 2356.780029 | G159: 2115.040039 | H159: 8.001078606 | I159: 449.5177612 | J159: 451.0557556 | K159: 1924.482193 | L159: 175.8297793 | M159: 14.72811435 | N159: 76.44917464 | O159: 3.76466719 | P159: 0.3853263604 | Q159: 0.04926253718 | R159: 11.00854453 | S159: 4.197883738 | T159: 2.726037688 | U159: 461.2138741
A160: 35.18500137 | B160: 19.57999992 | C160: 0 | D160: 0.3499999934 | E160: 1.500000053 | F160: 2356.780029 | G160: 2115.040039 | H160: 8.000926971 | I160: 449.7012634 | J160: 451.2396851 | K160: 1924.476165 | L160: 175.8339049 | M160: 14.73001596 | N160: 76.44472242 | O160: 3.766890356 | P160: 0.3853321235 | Q160: 0.04926543699 | R160: 11.00835621 | S160: 4.198020168 | T160: 2.726196342 | U160: 461.4084132
A161: 35.18500137 | B161: 19.59000015 | C161: 0 | D161: 0.3499999934 | E161: 1.500000053 | F161: 2356.780029 | G161: 2115.040039 | H161: 8.000775337 | I161: 449.8847961 | J161: 451.4236755 | K161: 1924.470138 | L161: 175.8380296 | M161: 14.73191814 | N161: 76.44027061 | O161: 3.769114591 | P161: 0.3853378868 | Q161: 0.04926833548 | R161: 11.00816785 | S161: 4.198156628 | T161: 2.726355045 | U161: 461.6029911
A162: 35.18500137 | B162: 19.60000038 | C162: 0 | D162: 0.3499999934 | E162: 1.500000053 | F162: 2356.780029 | G162: 2115.040039 | H162: 8.000624657 | I162: 450.0684204 | J162: 451.6077271 | K162: 1924.464112 | L162: 175.8421534 | M162: 14.73382088 | N162: 76.43581923 | O162: 3.771339894 | P162: 0.3853436503 | Q162: 0.04927123268 | R162: 11.00797944 | S162: 4.198293118 | T162: 2.726513798 | U162: 461.7976672
A163: 35.18500137 | B163: 19.61000061 | C163: 0 | D163: 0.3499999934 | E163: 1.500000053 | F163: 2356.780029 | G163: 2115.040039 | H163: 8.000473022 | I163: 450.2520752 | J163: 451.7918396 | K163: 1924.458086 | L163: 175.8462763 | M163: 14.73572419 | N163: 76.43136827 | O163: 3.773566267 | P163: 0.3853494139 | Q163: 0.04927412856 | R163: 11.00779098 | S163: 4.198429639 | T163: 2.7266726 | U163: 461.9924119
A164: 35.18500137 | B164: 19.62000084 | C164: 0 | D164: 0.3499999934 | E164: 1.500000053 | F164: 2356.780029 | G164: 2115.040039 | H164: 8.000322342 | I164: 450.4358215 | J164: 451.9759827 | K164: 1924.45206 | L164: 175.8503982 | M164: 14.73762806 | N164: 76.42691772 | O164: 3.775793709 | P164: 0.3853551777 | Q164: 0.04927702313 | R164: 11.00760247 | S164: 4.198566191 | T164: 2.726831453 | U164: 462.187225
A165: 35.18500137 | B165: 19.62999916 | C165: 0 | D165: 0.3499999934 | E165: 1.500000053 | F165: 2356.780029 | G165: 2115.040039 | H165: 8.000170708 | I165: 450.6195984 | J165: 452.1601868 | K165: 1924.446036 | L165: 175.8545184 | M165: 14.73953213 | N165: 76.42246844 | O165: 3.778021796 | P165: 0.3853609405 | Q165: 0.04927991585 | R165: 11.00741395 | S165: 4.198702746 | T165: 2.726990324 | U165: 462.3820757
A166: 35.18500137 | B166: 19.63999939 | C166: 0 | D166: 0.3499999934 | E166: 1.500000053 | F166: 2356.780029 | G166: 2115.040039 | H166: 8.000020027 | I166: 450.8034363 | J166: 452.3444824 | K166: 1924.440008 | L166: 175.8586412 | M166: 14.74143687 | N166: 76.41801978 | O166: 3.780251441 | P166: 0.3853667052 | Q166: 0.0492828086 | R166: 11.00722534 | S166: 4.198839423 | T166: 2.727149318 | U166: 462.5770259
A167: 35.18500137 | B167: 19.64999962 | C167: 0 | D167: 0.3499999934 | E167: 1.500000053 | F167: 2356.780029 | G167: 2115.040039 | H167: 7.99986887 | I167: 450.9873352 | J167: 452.5288391 | K167: 1924.433986 | L167: 175.8627576 | M167: 14.7433427 | N167: 76.41356945 | O167: 3.782482031 | P167: 0.3853724688 | Q167: 0.04928569845 | R167: 11.00703669 | S167: 4.198976001 | T167: 2.727308277 | U167: 462.7720446
A168: 35.18500137 | B168: 19.65999985 | C168: 0 | D168: 0.3499999934 | E168: 1.500000053 | F168: 2356.780029 | G168: 2115.040039 | H168: 7.999717712 | I168: 451.1713257 | J168: 452.7132568 | K168: 1924.427962 | L168: 175.8668758 | M168: 14.74524883 | N168: 76.40912058 | O168: 3.784713754 | P168: 0.3853782332 | Q168: 0.04928858779 | R168: 11.00684798 | S168: 4.199112674 | T168: 2.727467328 | U168: 462.9671616
A169: 35.18500137 | B169: 19.67000008 | C169: 0 | D169: 0.3499999934 | E169: 1.500000053 | F169: 2356.780029 | G169: 2115.040039 | H169: 7.999566555 | I169: 451.3553467 | J169: 452.8977051 | K169: 1924.421938 | L169: 175.8709931 | M169: 14.74715553 | N169: 76.40467213 | O169: 3.786946549 | P169: 0.3853839977 | Q169: 0.04929147582 | R169: 11.00665922 | S169: 4.199249377 | T169: 2.727626429 | U169: 463.1623175
A170: 35.18500137 | B170: 19.68000031 | C170: 0 | D170: 0.3499999934 | E170: 1.500000053 | F170: 2356.780029 | G170: 2115.040039 | H170: 7.999415398 | I170: 451.5394592 | J170: 453.0822754 | K170: 1924.415914 | L170: 175.8751094 | M170: 14.74906279 | N170: 76.4002241 | O170: 3.789180416 | P170: 0.3853897624 | Q170: 0.04929436255 | R170: 11.00647041 | S170: 4.199386111 | T170: 2.727785579 | U170: 463.3575716
A171: 35.18500137 | B171: 19.69000053 | C171: 0 | D171: 0.3499999934 | E171: 1.500000053 | F171: 2356.780029 | G171: 2115.040039 | H171: 7.99926424 | I171: 451.7236328 | J171: 453.2668762 | K171: 1924.409891 | L171: 175.8792248 | M171: 14.75097062 | N171: 76.39577649 | O171: 3.791415354 | P171: 0.3853955273 | Q171: 0.04929724796 | R171: 11.00628155 | S171: 4.199522875 | T171: 2.727944779 | U171: 463.5528944
A172: 35.18500137 | B172: 19.70000076 | C172: 0 | D172: 0.3499999934 | E172: 1.500000053 | F172: 2356.780029 | G172: 2115.040039 | H172: 7.999113083 | I172: 451.9078674 | J172: 453.4515381 | K172: 1924.403868 | L172: 175.8833393 | M172: 14.75287901 | N172: 76.3913293 | O172: 3.793651365 | P172: 0.3854012923 | Q172: 0.04930013206 | R172: 11.00609264 | S172: 4.19965967 | T172: 2.728104029 | U172: 463.7482857
A173: 35.18500137 | B173: 19.70999908 | C173: 0 | D173: 0.3499999934 | E173: 1.500000053 | F173: 2356.780029 | G173: 2115.040039 | H173: 7.998961926 | I173: 452.0921326 | J173: 453.6362305 | K173: 1924.397847 | L173: 175.8874521 | M173: 14.75478761 | N173: 76.38688339 | O173: 3.795888022 | P173: 0.3854070563 | Q173: 0.0493030143 | R173: 11.00590371 | S173: 4.199796468 | T173: 2.728263298 | U173: 463.9437146
A174: 35.18500137 | B174: 19.71999931 | C174: 0 | D174: 0.3499999934 | E174: 1.500000053 | F174: 2356.780029 | G174: 2115.040039 | H174: 7.998810768 | I174: 452.2764587 | J174: 453.8210144 | K174: 1924.391824 | L174: 175.8915647 | M174: 14.75669714 | N174: 76.38243704 | O174: 3.798126178 | P174: 0.3854128216 | Q174: 0.04930589578 | R174: 11.00571469 | S174: 4.199933324 | T174: 2.728422648 | U174: 464.1392432
A175: 35.18500137 | B175: 19.72999954 | C175: 0 | D175: 0.3499999934 | E175: 1.500000053 | F175: 2356.780029 | G175: 2115.040039 | H175: 7.998659611 | I175: 452.4608765 | J175: 454.0058289 | K175: 1924.385803 | L175: 175.8956764 | M175: 14.75860723 | N175: 76.37799111 | O175: 3.800365408 | P175: 0.3854185871 | Q175: 0.04930877596 | R175: 11.00552562 | S175: 4.200070209 | T175: 2.728582047 | U175: 464.3348403
A176: 35.18500137 | B176: 19.73999977 | C176: 0 | D176: 0.3499999934 | E176: 1.500000053 | F176: 2356.780029 | G176: 2115.040039 | H176: 7.998508453 | I176: 452.6453552 | J176: 454.1907654 | K176: 1924.379781 | L176: 175.8997871 | M176: 14.76051789 | N176: 76.37354561 | O176: 3.802605712 | P176: 0.3854243527 | Q176: 0.04931165482 | R176: 11.0053365 | S176: 4.200207125 | T176: 2.728741495 | U176: 464.5305358
A177: 35.18500137 | B177: 19.75 | C177: 0 | D177: 0.3499999934 | E177: 1.500000053 | F177: 2356.780029 | G177: 2115.040039 | H177: 7.998357773 | I177: 452.8298645 | J177: 454.3757324 | K177: 1924.37376 | L177: 175.9038969 | M177: 14.76242912 | N177: 76.36910053 | O177: 3.804847089 | P177: 0.3854301185 | Q177: 0.04931453237 | R177: 11.00514732 | S177: 4.200344072 | T177: 2.728900994 | U177: 464.7262702
A178: 35.18500137 | B178: 19.76000023 | C178: 0 | D178: 0.3499999934 | E178: 1.500000053 | F178: 2356.780029 | G178: 2115.040039 | H178: 7.998206615 | I178: 453.0144653 | J178: 454.5607605 | K178: 1924.367739 | L178: 175.9080058 | M178: 14.76434092 | N178: 76.36465587 | O178: 3.807089542 | P178: 0.3854358844 | Q178: 0.04931740861 | R178: 11.00495809 | S178: 4.200481049 | T178: 2.729060542 | U178: 464.922103
A179: 35.18500137 | B179: 19.77000046 | C179: 0 | D179: 0.3499999934 | E179: 1.500000053 | F179: 2356.780029 | G179: 2115.040039 | H179: 7.998055458 | I179: 453.1991577 | J179: 454.7458801 | K179: 1924.361719 | L179: 175.9121138 | M179: 14.76625328 | N179: 76.36021163 | O179: 3.809333069 | P179: 0.3854416504 | Q179: 0.04932028354 | R179: 11.00473765 | S179: 4.200618056 | T179: 2.72922014 | U179: 465.1180045
A180: 35.18500137 | B180: 19.78000069 | C180: 0 | D180: 0.3499999934 | E180: 1.500000053 | F180: 2356.780029 | G180: 2115.040039 | H180: 7.997904301 | I180: 453.3838806 | J180: 454.9310303 | K180: 1924.355699 | L180: 175.9162208 | M180: 14.76816621 | N180: 76.35576781 | O180: 3.811577672 | P180: 0.3854474167 | Q180: 0.04932315716 | R180: 11.00457946 | S180: 4.200755094 | T180: 2.729379788 | U180: 465.3139746
A181: 35.18500137 | B181: 19.79000092 | C181: 0 | D181: 0.3499999934 | E181: 1.500000053 | F181: 2356.780029 | G181: 2115.040039 | H181: 7.997753143 | I181: 453.568634 | J181: 455.1162415 | K181: 1924.34968 | L181: 175.9203269 | M181: 14.7700797 | N181: 76.35132442 | O181: 3.81382335 | P181: 0.385453183 | Q181: 0.04932602946 | R181: 11.00439006 | S181: 4.200892162 | T181: 2.729539485 | U181: 465.5100133
A182: 35.18500137 | B182: 19.79999924 | C182: 0 | D182: 0.3499999934 | E182: 1.500000053 | F182: 2356.780029 | G182: 2115.040039 | H182: 7.997602463 | I182: 453.753479 | J182: 455.3015137 | K182: 1924.343662 | L182: 175.9244312 | M182: 14.7719934 | N182: 76.3468823 | O182: 3.816069675 | P182: 0.3854589485 | Q182: 0.04932889991 | R182: 11.00420064 | S182: 4.201029234 | T182: 2.729699202 | U182: 465.7061195
A183: 35.18500137 | B183: 19.80999947 | C183: 0 | D183: 0.3499999934 | E183: 1.500000053 | F183: 2356.780029 | G183: 2115.040039 | H183: 7.997451305 | I183: 453.938385 | J183: 455.4868469 | K183: 1924.337643 | L183: 175.9285354 | M183: 14.77390804 | N183: 76.34243975 | O183: 3.818317506 | P183: 0.3854647151 | Q183: 0.0493317696 | R183: 11.00401114 | S183: 4.201166363 | T183: 2.729858999 | U183: 465.9022957
A184: 35.18500137 | B184: 19.81999969 | C184: 0 | D184: 0.3499999934 | E184: 1.500000053 | F184: 2356.780029 | G184: 2115.040039 | H184: 7.997300148 | I184: 454.1233521 | J184: 455.6722717 | K184: 1924.331624 | L184: 175.9326387 | M184: 14.77582324 | N184: 76.33799763 | O184: 3.820566413 | P184: 0.385470482 | Q184: 0.04933463797 | R184: 11.00382157 | S184: 4.201303523 | T184: 2.730018845 | U184: 466.0985703
A185: 35.18500137 | B185: 19.82999992 | C185: 0 | D185: 0.3499999934 | E185: 1.500000053 | F185: 2356.780029 | G185: 2115.040039 | H185: 7.997149467 | I185: 454.3083801 | J185: 455.8577271 | K185: 1924.325606 | L185: 175.936741 | M185: 14.777739 | N185: 76.33355593 | O185: 3.822816397 | P185: 0.3854762489 | Q185: 0.04933750503 | R185: 11.00363195 | S185: 4.201440712 | T185: 2.730178742 | U185: 466.2948838
A186: 35.18500137 | B186: 19.84000015 | C186: 0 | D186: 0.3499999934 | E186: 1.500000053 | F186: 2356.780029 | G186: 2115.040039 | H186: 7.99699831 | I186: 454.4934692 | J186: 456.0432434 | K186: 1924.319588 | L186: 175.9408424 | M186: 14.77965534 | N186: 76.32911465 | O186: 3.825067458 | P186: 0.385482016 | Q186: 0.04934037077 | R186: 11.00344227 | S186: 4.201577933 | T186: 2.730338688 | U186: 466.4912958
A187: 35.18500137 | B187: 19.85000038 | C187: 0 | D187: 0.3499999934 | E187: 1.500000053 | F187: 2356.780029 | G187: 2115.040039 | H187: 7.996847153 | I187: 454.6786499 | J187: 456.2288513 | K187: 1924.313571 | L187: 175.9449429 | M187: 14.78157224 | N187: 76.3246738 | O187: 3.827319597 | P187: 0.3854877833 | Q187: 0.04934323521 | R187: 11.00325253 | S187: 4.201715183 | T187: 2.730498684 | U187: 466.6877766
A188: 35.18500137 | B188: 19.86000061 | C188: 0 | D188: 0.3499999934 | E188: 1.500000053 | F188: 2356.780029 | G188: 2115.040039 | H188: 7.996696472 | I188: 454.8638916 | J188: 456.4145203 | K188: 1924.307554 | L188: 175.9490424 | M188: 14.78348972 | N188: 76.32023337 | O188: 3.829572815 | P188: 0.3854935507 | Q188: 0.04934609833 | R188: 11.00306273 | S188: 4.201852464 | T188: 2.73065873 | U188: 466.8843558
A189: 35.18500137 | B189: 19.87000084 | C189: 0 | D189: 0.3499999934 | E189: 1.500000053 | F189: 2356.780029 | G189: 2115.040039 | H189: 7.996545315 | I189: 455.0491638 | J189: 456.6002502 | K189: 1924.301537 | L189: 175.953141 | M189: 14.78540776 | N189: 76.31579336 | O189: 3.831827111 | P189: 0.3854993183 | Q189: 0.04934896014 | R189: 11.00287288 | S189: 4.201989776 | T189: 2.730818826 | U189: 467.080974
A190: 35.18500137 | B190: 19.87999916 | C190: 0 | D190: 0.3499999934 | E190: 1.500000053 | F190: 2356.780029 | G190: 2115.040039 | H190: 7.996394634 | I190: 455.2344666 | J190: 456.7859802 | K190: 1924.295522 | L190: 175.9572379 | M190: 14.787326 | N190: 76.31135463 | O190: 3.834082055 | P190: 0.3855050849 | Q190: 0.04935182009 | R190: 11.002683 | S190: 4.202127092 | T190: 2.730978941 | U190: 467.2776299
A191: 35.18500137 | B191: 19.88999939 | C191: 0 | D191: 0.3499999934 | E191: 1.500000053 | F191: 2356.780029 | G191: 2115.040039 | H191: 7.996243477 | I191: 455.4198914 | J191: 456.9718628 | K191: 1924.289506 | L191: 175.9613346 | M191: 14.78924518 | N191: 76.30691547 | O191: 3.836338509 | P191: 0.3855108528 | Q191: 0.04935467928 | R191: 11.00249303 | S191: 4.202264464 | T191: 2.731139136 | U191: 467.4744452
A192: 35.18500137 | B192: 19.89999962 | C192: 0 | D192: 0.3499999934 | E192: 1.500000053 | F192: 2356.780029 | G192: 2115.040039 | H192: 7.996092319 | I192: 455.6053467 | J192: 457.1577759 | K192: 1924.283491 | L192: 175.9654303 | M192: 14.79116493 | N192: 76.30247674 | O192: 3.838596042 | P192: 0.3855166208 | Q192: 0.04935753715 | R192: 11.002303 | S192: 4.202401867 | T192: 2.731299381 | U192: 467.6712995
A193: 35.18500137 | B193: 19.90999985 | C193: 0 | D193: 0.3499999934 | E193: 1.500000053 | F193: 2356.780029 | G193: 2115.040039 | H193: 7.995941639 | I193: 455.790863 | J193: 457.3437195 | K193: 1924.277476 | L193: 175.9695252 | M193: 14.79308525 | N193: 76.29803844 | O193: 3.840854655 | P193: 0.385522389 | Q193: 0.04936039371 | R193: 11.00211291 | S193: 4.2025393 | T193: 2.731459676 | U193: 467.8681928
A194: 35.18500137 | B194: 19.92000008 | C194: 0 | D194: 0.3499999934 | E194: 1.500000053 | F194: 2356.780029 | G194: 2115.040039 | H194: 7.995790482 | I194: 455.9765015 | J194: 457.5297852 | K194: 1924.271461 | L194: 175.9736191 | M194: 14.79500613 | N194: 76.29360056 | O194: 3.843114349 | P194: 0.3855281573 | Q194: 0.04936324895 | R194: 11.00192276 | S194: 4.202676763 | T194: 2.73162002 | U194: 468.0652144
A195: 35.18500137 | B195: 19.93000031 | C195: 0 | D195: 0.3499999934 | E195: 1.500000053 | F195: 2356.780029 | G195: 2115.040039 | H195: 7.995639801 | I195: 456.1621399 | J195: 457.7158813 | K195: 1924.265447 | L195: 175.977712 | M195: 14.79692759 | N195: 76.28916311 | O195: 3.845375123 | P195: 0.3855339258 | Q195: 0.04936610288 | R195: 11.00173255 | S195: 4.202814258 | T195: 2.731780415 | U195: 468.262275
A196: 35.18500137 | B196: 19.94000053 | C196: 0 | D196: 0.3499999934 | E196: 1.500000053 | F196: 2356.780029 | G196: 2115.040039 | H196: 7.995488644 | I196: 456.3478699 | J196: 457.9020386 | K196: 1924.259433 | L196: 175.981804 | M196: 14.79884962 | N196: 76.28472608 | O196: 3.847636978 | P196: 0.3855396944 | Q196: 0.0493689555 | R196: 11.00154227 | S196: 4.202951782 | T196: 2.731940859 | U196: 468.4594044
A197: 35.18500137 | B197: 19.95000076 | C197: 0 | D197: 0.3499999934 | E197: 1.500000053 | F197: 2356.780029 | G197: 2115.040039 | H197: 7.995337963 | I197: 456.5336609 | J197: 458.0882568 | K197: 1924.253419 | L197: 175.9858951 | M197: 14.80077221 | N197: 76.28028948 | O197: 3.849899915 | P197: 0.3855454631 | Q197: 0.0493718068 | R197: 11.00135194 | S197: 4.203089337 | T197: 2.732101353 | U197: 468.6566325
A198: 35.18500137 | B198: 19.95999908 | C198: 0 | D198: 0.3499999934 | E198: 1.500000053 | F198: 2356.780029 | G198: 2115.040039 | H198: 7.995187283 | I198: 456.7194519 | J198: 458.2745056 | K198: 1924.247407 | L198: 175.9899844 | M198: 14.80269501 | N198: 76.27585415 | O198: 3.852163502 | P198: 0.3855512309 | Q198: 0.04937465624 | R198: 11.00116158 | S198: 4.203226896 | T198: 2.732261867 | U198: 468.8538685
A199: 35.18500137 | B199: 19.96999931 | C199: 0 | D199: 0.3499999934 | E199: 1.500000053 | F199: 2356.780029 | G199: 2115.040039 | H199: 7.995036125 | I199: 456.905365 | J199: 458.4608459 | K199: 1924.241394 | L199: 175.9940736 | M199: 14.80461875 | N199: 76.2714184 | O199: 3.854428602 | P199: 0.385557 | Q199: 0.04937750492 | R199: 11.00097112 | S199: 4.203364512 | T199: 2.73242246 | U199: 469.0512342
A200: 35.18500137 | B200: 19.97999954 | C200: 0 | D200: 0.3499999934 | E200: 1.500000053 | F200: 2356.780029 | G200: 2115.040039 | H200: 7.994885445 | I200: 457.0913391 | J200: 458.6472778 | K200: 1924.235381 | L200: 175.9981618 | M200: 14.80654306 | N200: 76.26698308 | O200: 3.856694785 | P200: 0.3855627692 | Q200: 0.04938035228 | R200: 11.0007806 | S200: 4.203502158 | T200: 2.732583104 | U200: 469.2486687
... 508 more rows

Sheet M1
A1: Calibration data | C1: 2011-04-06 | E1: Batch 99
A2: R | B2: 8.31451
A3: F | B3: 96487
A4: pH_Standard | B4: 7.972 | C4: pH of standard
A5: Ts | B5: =273.15+21.5 -> 294.65 | C5: temperature of calibration | F5: 21.5
A6: Vout | B6: 0.0495 | C6: voltage output (Voltage#1)
A7: Eo | B7: =B6-B4*B2*B5*LN(10)/B3 -> -0.4165765802
O10: temp | Q10: pH
A11: Calibration data | C11: 2012-03-23 | E11: Used an old used bottle of batch 99 | K11: pH of Old Batch 99 used for M1 calibration | O11: 20.58079169 | P11: 293.7307917 | Q11: 7.897168047
A12: R | B12: 8.31451 | E12: It wasintercalibrated with a fresh Batch of 111 on 03/29/2012
A13: F | B13: 96487
A14: pH_Standard | B14: 7.907 | C14: pH of standard | E14: (calculated using the measured pH at 20.58 deg and the salinity etc. of batch 99)
A15: Ts | B15: =273.15+F15 -> 293.099795 | C15: temperature of calibration | F15: =0.9955*20.09-0.0498 -> 19.949795
A16: Vout | B16: 0.04257 | C16: voltage output (Voltage#1)
A17: Eo | B17: =B16-B14*B12*B15*LN(10)/B13 -> -0.4172742907
A19: deployed at Hopkins OA1 mooring on 03/23/2012
A20: in the BOG lab FEB 2015
A23: Calibration data | C23: 2015-06-02 | E23: Batch 136 | G23: Durafet: | H23: 1511Y200000064485
A24: R | B24: 8.31451 | G24: cap: | H24: 1027Y087291800007
A25: F | B25: 96487
A26: pH_Standard | B26: 8.22692585 | C26: pH of standard | F26: 5.86
A27: Ts | B27: =273.15+F27 -> 278.97865 | C27: temperature of calibration | F27: =0.9955*F26-0.00498 -> 5.82865 | G27: temp= 0.9955X-0.00498
A28: Vout | B28: 0.09449 | C28: voltage output (Voltage#1)
A29: Eo | B29: =B28-B26*B24*B27*LN(10)/B25 -> -0.3609090252

Sheet M2
A1: Calibration data | C1: 2011-04-06 | E1: Batch 99
A2: R | B2: 8.31451
A3: F | B3: 96487
A4: pH_Standard | B4: 7.972 | C4: pH of standard
A5: Ts | B5: =273.15+21.5 -> 294.65 | C5: temperature of calibration | F5: 21.5
A6: Vout | B6: 0.0498 | C6: voltage output (Voltage#1)
A7: Eo | B7: =B6-B4*B2*B5*LN(10)/B3 -> -0.4162765802
A9: deployed at OA2 (terrace point) Apr-Aug 2011
A12: Calibration data | C12: 2012-03-21 | E12: Batch 111
A13: R | B13: 8.31451
A14: F | B14: 96487
A15: pH_Standard | B15: 7.895 | C15: pH of standard
A16: Ts | B16: =273.15+F16 -> 293.38849 | C16: temperature of calibration | F16: =0.9955*20.38-0.0498 -> 20.23849
A17: Vout | B17: 0.0442 | C17: voltage output (Voltage#1)
A18: Eo | B18: =B17-B15*B13*B16*LN(10)/B14 -> -0.4153986576
A20: broken during terrace point deployment on 03/23/2012

Sheet M3
A1: Calibration data | C1: 2011-08-29 | E1: Batch 111
A2: R | B2: 8.31451
A3: F | B3: 96487
A4: pH_Standard | B4: 7.9 | C4: pH of standard
A5: Ts | B5: =273.15+19.94 -> 293.09 | C5: temperature of calibration | F5: 19.94
A6: Vout | B6: 0.04094 | C6: voltage output (Voltage#1)
A7: Eo | B7: =B6-B4*B2*B5*LN(10)/B3 -> -0.4184818407
A10: deployed at OA1 (sand hill bluff)
A16: For Cabo Pulmo deployment
A17: Calibration data | C17: 2012-03-29 | E17: Batch 111
A18: R | B18: 8.31451
A19: F | B19: 96487
A20: pH_Standard | B20: 7.889 | C20: pH of standard
A21: Ts | B21: =273.15+20.69 -> 293.84 | C21: temperature of calibration | F21: 20.69
A22: Vout | B22: 0.03763 | C22: voltage output (Voltage#1)
A23: Eo | B23: =B22-B20*B18*B21*LN(10)/B19 -> -0.4223261358
A26: New Electrode 08/28/2013 | E26: Batch 126 | H26: Test tank pH
A27: Durafet | H27: voltage | I27: 0.06695
A28: Cap | H28: pH | I28: 7.961
A29: R | B29: 8.31451
A30: F | B30: 96487
A31: pH_Standard | B31: 8.01075 | C31: pH of standard
A32: Ts | B32: =273.15+19.9 -> 293.05 | C32: temperature of calibration | F32: 19.9
A33: Vout | B33: 0.06981 | C33: voltage output (Voltage#1)
A34: Eo | B34: =B33-B31*B29*B32*LN(10)/B30 -> -0.3959888902
A36: In the BOG lab FEB 2015
A39: For Ano Nuevo deployment 5/13/2015
A40: all new parts
A41: durafet | B41: 1511Y200000064477
A42: cap | B42: 1116Y191310800001
A43: calibrated | B43: 2015-05-06 | E43: batch 144
A44: R | B44: 8.31451
A45: F | B45: 96487
A46: pH_Standard | B46: 8.196 | C46: pH of standard
A47: Ts | B47: =273.15+F47 -> 278.67 | C47: temperature of calibration | F47: 5.52
A48: Vout | B48: 0.1208 | C48: voltage output (Voltage#1)
A49: Eo | B49: =B48-B46*B44*B47*LN(10)/B45 -> -0.332385194
A52: For Hopk(OA1)
A53: same parts
A54: calibrated | B54: 2016-05-03 | E54: batch 152
A55: R | B55: 8.31451
A56: F | B56: 96487
A57: pH_Standard | B57: 7.934546471 | C57: pH of standard | F57: 20.73
A58: Ts | B58: =273.15+F58 -> 293.736915 | C58: temperature of calibration | F58: =F57*0.9955-0.0498 -> 20.586915
A59: Vout | B59: 0.11061 | C59: voltage output (Voltage#1)
A60: Eo | B60: =B59-B57*B55*B58*LN(10)/B56 -> -0.3518393599

Sheet M4
A1: Calibration data | C1: 2011-08-29 | E1: Batch 111
A2: R | B2: 8.31451
A3: F | B3: 96487
A4: pH_Standard | B4: 7.9 | C4: pH of standard
A5: Ts | B5: =273.15+19.94 -> 293.09 | C5: temperature of calibration | F5: 19.94
A6: Vout | B6: 0.03215 | C6: voltage output (Voltage#1)
A7: Eo | B7: =B6-B4*B2*B5*LN(10)/B3 -> -0.4272718407
A10: deployed at OA2 (terrace point)
A13: Calibration data | C13: 2012-03-21 | E13: Batch 111
A14: R | B14: 8.31451
A15: F | B15: 96487
A16: pH_Standard | B16: 7.896 | C16: pH of standard
A17: Ts | B17: =273.15+F17 -> 293.3584 | C17: temperature of calibration | F17: =0.995*20.36-0.0498 -> 20.2084
A18: Vout | B18: 0.03125 | C18: voltage output (Voltage#1)
A19: Eo | B19: =B18-B16*B14*B17*LN(10)/B15 -> -0.428359729
A21: R | B21: 8.31451
A22: F | B22: 96487
A23: pH_Standard | B23: 7.896 | C23: pH of standard
A24: Ts | B24: =273.15+F24 -> 293.3783 | C24: temperature of calibration | F24: =0.995*20.38-0.0498 -> 20.2283
A25: Vout | B25: 0.03133 | C25: voltage output (Voltage#1)
A26: Eo | B26: =B25-B23*B21*B24*LN(10)/B22 -> -0.4283109066
A28: R | B28: 8.31451
A29: F | B29: 96487
A30: pH_Standard | B30: 7.895 | C30: pH of standard
A31: Ts | B31: =273.15+F31 -> 293.38825 | C31: temperature of calibration | F31: =0.995*20.39-0.0498 -> 20.23825
A32: Vout | B32: 0.03129 | C32: voltage output (Voltage#1)
A33: Eo | B33: =B32-B30*B28*B31*LN(10)/B29 -> -0.4283082816
A34: deployed at OA2 (terrace point on 03/23/2012)
A36: M4 | B36: pH | C36: cal | D36: done | E36: on | F36: 2013-12-18
A37: batch | B37: 133
A38: Fet | B38: SN:1246Y200000024436
A39: 78.04mV | B39: @9.21 | C39: C
A41: R | B41: 8.31451
A42: F | B42: 96487
A43: pH_Standard | B43: 8.132236481 | C43: pH of standard
A44: Ts | B44: =273.15+F44 -> 282.36 | C44: temperature of calibration | F44: 9.21
A45: Vout | B45: 0.07804 | C45: voltage output (Voltage#1)
A46: Eo | B46: =B45-B43*B41*B44*LN(10)/B42 -> -0.3775736403
A47: deployed on Ensenada mooring April 2014

Sheet M5
A1: Calibration data | C1: 2011-08-29 | E1: Batch 111
A2: R | B2: 8.31451
A3: F | B3: 96487
A4: pH_Standard | B4: 7.9 | C4: pH of standard
A5: Ts | B5: =273.15+19.94 -> 293.09 | C5: temperature of calibration | F5: 19.94
A6: Vout | B6: 0.05419 | C6: voltage output (Voltage#1)
A7: Eo | B7: =B6-B4*B2*B5*LN(10)/B3 -> -0.4052318407
A10: M5 pH cal 1/23/2014
A11: to be deployed on HOP mooring
A12: new electrode, cap adapter from M6
A13: 84.9 mV @7.51 C
A14: batch 133
A16: Calibration data | C16: 2014-01-23 | E16: Batch 133
A17: R | B17: 8.31451
A18: F | B18: 96487
A19: pH_Standard | B19: 8.159 | C19: pH of standard
A20: Ts | B20: =273.15+7.51 -> 280.66 | C20: temperature of calibration | F20: 7.51
A21: Vout | B21: 0.0849 | C21: voltage output (Voltage#1)
A22: Eo | B22: =B21-B19*B17*B20*LN(10)/B18 -> -0.3694609504
A24: In the BOG lab FEB 2015
A26: Calibration data | C26: 2016-01-14 | E26: Batch 144 (2)
A27: Cap Adapter | B27: Y200000013918
A28: Durafet | B28: 1507Y200000062026
A29: R | B29: 8.31451
A30: F | B30: 96487
A31: pH_Standard | B31: 7.931733 | C31: pH of standard
A32: Ts | B32: =21.02+273.15 -> 294.17 | C32: temperature of calibration
A33: Vout | B33: 0.07437 | C33: voltage output (Voltage#1)
A34: Eo | B34: =B33-B31*B29*B32*LN(10)/B30 -> -0.3885969748
A35: Deployed at Ano (OA2) 1/26/2016
A36: Replaced 'M3' whose batteries died after ~7 months

Sheet M6
A1: Calibration data | C1: 2013-04-22 | E1: Batch 126
A2: R | B2: 8.31451
A3: F | B3: 96487
A4: pH_Standard | B4: 8.159 | C4: pH of standard
A5: Ts | B5: =273.15+10.29 -> 283.44 | C5: temperature of calibration | F5: 10.34 | G5: adjust temp for therm calibration
A6: Vout | B6: 0.08576 | C6: voltage output (Voltage#1)
A7: Eo | B7: =B6-B4*B2*B5*LN(10)/B3 -> -0.3731014971
A9: Deployed at TPT
A10: 2014-11-01 | B10: Installed electrode noisy 1245Y200000023993, removed
A11: 2014-11-01 | B11: Installed electrode 1342Y20000042500 for use at OA1 HOP
A12: 2015-01-01 | B12: Deployed at OA1 HOP
A15: calibration data | C15: 2015-01-06 | E15: batch 136
A16: R | B16: 8.31451
A17: F | B17: 96487
A18: pH_Standard | B18: 8.222999573 | C18: pH of standard
A19: Ts | B19: =273.15+10.29 -> 283.44 | C19: temperature of calibration | F19: 6.1 | G19: adjust temp for therm calibration
A20: Vout | B20: =90.5/1000 -> 0.0905 | C20: voltage output (Voltage#1)
A21: Eo | B21: =B20-B18*B16*B19*LN(10)/B17 -> -0.3719608279
A24: calibration data | C24: 2019-06-26 | E24: batch 179
A25: R | B25: 8.31451
A26: F | B26: 96487
A27: pH_Standard | B27: 7.958264717 | C27: pH of standard | F27: 20.04
A28: Ts | B28: =273.16+F28 -> 293.076868 | C28: temperature of calibration | F28: =F27*0.9967-0.057 -> 19.916868 | G28: adjust temp for therm calibration
A29: Vout | B29: 0.06388 | C29: voltage output (Voltage#1)
A30: Eo | B30: =B29-B27*B25*B28*LN(10)/B26 -> -0.3989094693

Sheet M7
A1: Calibration data | C1: 2013-06-13 | E1: Batch 126
A2: R | B2: 8.31451
A3: F | B3: 96487
A4: pH_Standard | B4: 8.0997 | C4: pH of standard
A5: Ts | B5: =273.15+F5 -> 287.21 | C5: temperature of calibration | F5: 14.06
A6: Vout | B6: 0.0616 | C6: voltage output (Voltage#1)
A7: Eo | B7: =B6-B4*B2*B5*LN(10)/B3 -> -0.3999853705
A9: Deployed at HOP
A10: recovered JAN2015 from HOP
A11: shipped to CICESE Cabo Pulmo spare, not deployed and sensor failed
A12: 25AUG2015 installed durafet II 51205554-501 1527Y200000068235
A14: Calibration data | C14: 2015-09-15
A15: R | B15: 8.31451
A16: F | B16: 96487
A17: pH_Standard | B17: 8.187995911 | C17: pH of standard | F17: 6.01
A18: Ts | B18: =273.15+F18 -> 279.127975 | C18: temperature of calibration | F18: =0.9955*F17-0.00498 -> 5.977975 | G18: temp= 0.9955X-0.00498
A19: Vout | B19: 0.0795 | C19: voltage output (Voltage#1)
A20: Eo | B20: =B19-B17*B15*B18*LN(10)/B16 -> -0.3739866716
A22: Deployed at OA1 (Hopkins) 9/16/2015
A23: Electrode | B23: 1527Y200000068235
A24: Cap | B24: 1214Y200000010022
A27: Calibration data | C27: 2018-07-30
A28: R | B28: 8.31451
A29: F | B29: 96487
A30: pH_Standard | B30: 7.587361503 | C30: pH of standard | F30: 21.45
A31: Ts | B31: =273.15+F31 -> 294.472215 | C31: temperature of calibration | F31: =0.9967*F30-0.057 -> 21.322215 | G31: temp= 0.9967X-0.057
A32: Vout | B32: 0.05867 | C32: voltage output (Voltage#1)
A33: Eo | B33: =B32-B30*B28*B31*LN(10)/B29 -> -0.3846513479
A35: Deployed on M1 on 8/6/2018
A36: Electrode | B36: 1629Y200000075625

Sheet M8
A1: Calibration data | C1: 2016-14-2016 | E1: batch 152
A2: R | B2: 8.31451
A3: F | B3: 96487
A4: pH_Standard | B4: 7.927409172 | C4: pH of standard | F4: 21.07
A5: Ts | B5: =273.15+F5 -> 294.120205 | C5: temperature of calibration | F5: =0.9955*F4-0.00498 -> 20.970205 | G5: temp= 0.9955X-0.00498
A6: Vout | B6: 0.08488 | C6: voltage output (Voltage#1)
A7: Eo | B7: =B6-B4*B2*B5*LN(10)/B3 -> -0.3777562724
A9: Deployed at OA1 (Hopkins)7/20/2016
A10: Electrode | B10: 1336Y200000039711
A11: Cap | B11: 1221Y200000013922

Sheet NDBC
A1: Calibration data | C1: 2013-01-09 | E1: Batch 115 | G1: NEW ELECTRODE
A2: R | B2: 8.31451
A3: F | B3: 96487
A4: pH_Standard | B4: 8.012 | C4: pH of standard
A5: Ts | B5: =273.15+20.32 -> 293.47 | C5: temperature of calibration | F5: 20.42 | G5: temp= 0.9955X-0.00498
A6: Vout | B6: 0.085 | C6: voltage output (Voltage#1) | F6: =0.9955*F5-0.00498 -> 20.32313
A7: Eo | B7: =B6-B4*B2*B5*LN(10)/B3 -> -0.3815392619
A12: Calibration data | C12: 2013-02-13 | E12: Batch 120 | G12: NEW ELECTRODE | M12: Gernot,
A13: R | B13: 8.31451
A14: F | B14: 96487 | M14: I labelled this sensor NDBC Hybrid pH#1
A15: pH_Standard | B15: 7.951 | C15: pH of standard
A16: Ts | B16: =273.15+F17 -> 294.34917 | C16: temperature of calibration | F16: 21.3 | G16: temp= 0.9955X-0.00498 | M16: Durafet is model 51205554-502
A17: Vout | B17: 0.06805 | C17: voltage output (Voltage#1) | F17: =0.9955*F16-0.00498 -> 21.19917 | M17: Serial Number is 1236Y200000021311
A18: Eo | B18: =B17-B15*B13*B16*LN(10)/B14 -> -0.3963242335
M19: Dickenson Standard batch #120 bottled on 2/24/2012 used for the calibration. Calibration was performed on 2/13/13 at about ~1030.
A21: Calibration data | C21: 2013-04-22 | E21: Batch 126 | G21: new frit | M21: Rinse 1 T=21.32 C pH = 65.46 mV
A22: R | B22: 8.31451 | M22: Rinse 2 T=21.32 C pH = 66.71 mV
A23: F | B23: 96487 | M23: Rinse 3 T=21.32 C pH = 67.32 mV
A24: pH_std | B24: 8.149026871 | M24: Rinse 4 T=21.26 C pH = 67.81 mV
A25: Ts | B25: =(C25*0.9955-0.005)+273.15 -> 283.59775 | C25: 10.5 | M25: Rinse 5 T=21.30 C pH = 68.05 mV
A26: Vout | B26: 0.07455 | M26: Rinse 6 T=21.23 C pH = 68.21 mv
A27: Eo | B27: =B26-B24*B22*B25*LN(10)/B23 -> -0.3840056787
M28: Chris

Sheet Batch120
A1: Salinity | B1: t(oC) | C1: P (dbars) | D1: Total P (mmol/kgSW) | E1: Total Si (mmol/kgSW) | F1: TA in (mmol/kgSW) | G1: TCO2 in (mmol/kgSW) | H1: pH in | I1: fCO2 in (matm) | J1: pCO2 in (matm) | K1: HCO3 in (mmol/kgSW) | L1: CO3 in (mmol/kgSW) | M1: CO2 in (mmol/kgSW) | N1: B Alk in (mmol/kgSW) | O1: OH in (mmol/kgSW) | P1: P Alk in (mmol/kgSW) | Q1: Si Alk in (mmol/kgSW) | R1: Revelle in | S1: WCa in | T1: WAr in | U1: xCO2 in (dry at 1 atm) (ppm)
A2: 33.072 | B2: 18 | C2: 0 | D2: 0.31 | E2: 2.8 | F2: 2208.429932 | G2: 2002.609863 | H2: 7.99881506 | I2: 430.3820496 | J2: 431.8837891 | K2: 1837.969108 | L2: 149.7271088 | M2: 14.91367718 | N2: 67.47699095 | O2: 3.115795177 | P2: 0.3389958911 | Q2: 0.08497995025 | R2: 11.62002589 | S2: 3.623705958 | T2: 2.334912054 | U2: 440.6923846
A3: 33.072 | B3: 18.01 | C3: 0 | D3: 0.31 | E3: 2.8 | F3: 2208.429932 | G3: 2002.609863 | H3: 7.998663425 | I3: 430.5592041 | J3: 432.0613708 | K3: 1837.963318 | L3: 149.7310536 | M3: 14.91552252 | N3: 67.47301923 | O3: 3.117660844 | P3: 0.3390004896 | Q3: 0.08498548545 | R3: 11.61981164 | S3: 3.623838569 | T3: 2.335053816 | U3: 440.8792575
A4: 33.072 | B4: 18.02 | C4: 0 | D4: 0.31 | E4: 2.8 | F4: 2208.429932 | G4: 2002.609863 | H4: 7.998511791 | I4: 430.7363892 | J4: 432.2390137 | K4: 1837.957528 | L4: 149.7349977 | M4: 14.91736841 | N4: 67.46904783 | O4: 3.119527423 | P4: 0.3390050882 | Q4: 0.08499101845 | R4: 11.61959733 | S4: 3.623971211 | T4: 2.335195623 | U4: 441.066168
A5: 33.072 | B5: 18.03 | C5: 0 | D5: 0.31 | E5: 2.8 | F5: 2208.429932 | G5: 2002.609863 | H5: 7.998360157 | I5: 430.9136658 | J5: 432.4167175 | K5: 1837.951738 | L5: 149.7389411 | M5: 14.91921484 | N5: 67.46507676 | O5: 3.121394917 | P5: 0.3390096869 | Q5: 0.08499654927 | R5: 11.61938296 | S5: 3.624103883 | T5: 2.335337475 | U5: 441.2531755
A6: 33.072 | B6: 18.04 | C6: 0 | D6: 0.31 | E6: 2.8 | F6: 2208.429932 | G6: 2002.609863 | H6: 7.998208046 | I6: 431.0910034 | J6: 432.5944519 | K6: 1837.945948 | L6: 149.7428839 | M6: 14.92106183 | N6: 67.46110602 | O6: 3.123263325 | P6: 0.3390142858 | Q6: 0.08500207789 | R6: 11.61916853 | S6: 3.624236585 | T6: 2.335479372 | U6: 441.4402207
A7: 33.072 | B7: 18.05 | C7: 0 | D7: 0.31 | E7: 2.8 | F7: 2208.429932 | G7: 2002.609863 | H7: 7.998056412 | I7: 431.2683716 | J7: 432.7722473 | K7: 1837.94016 | L7: 149.7468251 | M7: 14.922909 | N7: 67.45713636 | O7: 3.12513229 | P7: 0.3390188838 | Q7: 0.08500760326 | R7: 11.61895408 | S7: 3.624369291 | T7: 2.335621286 | U7: 441.6273321
A8: 33.072 | B8: 18.06 | C8: 0 | D8: 0.31 | E8: 2.8 | F8: 2208.429932 | G8: 2002.609863 | H8: 7.997904778 | I8: 431.4458008 | J8: 432.9501343 | K8: 1837.93437 | L8: 149.7507664 | M8: 14.92475708 | N8: 67.45316627 | O8: 3.127002526 | P8: 0.3390234829 | Q8: 0.0850131275 | R8: 11.61882677 | S8: 3.624502054 | T8: 2.335763273 | U8: 441.8145416
A9: 33.072 | B9: 18.07 | C9: 0 | D9: 0.31 | E9: 2.8 | F9: 2208.429932 | G9: 2002.609863 | H9: 7.997753143 | I9: 431.6233215 | J9: 433.1280518 | K9: 1837.928581 | L9: 149.754707 | M9: 14.92660571 | N9: 67.4491965 | O9: 3.128873678 | P9: 0.3390280821 | Q9: 0.08501864954 | R9: 11.61842082 | S9: 3.624634846 | T9: 2.335905303 | U9: 442.0018185
A10: 33.072 | B10: 18.08 | C10: 0 | D10: 0.31 | E10: 2.8 | F10: 2208.429932 | G10: 2002.609863 | H10: 7.997601509 | I10: 431.8008728 | J10: 433.3060303 | K10: 1837.922792 | L10: 149.7586469 | M10: 14.92845488 | N10: 67.44522707 | O10: 3.130745744 | P10: 0.3390326813 | Q10: 0.08502416939 | R10: 11.61831026 | S10: 3.624767669 | T10: 2.336047379 | U10: 442.1891331
A11: 33.072 | B11: 18.09 | C11: 0 | D11: 0.31 | E11: 2.8 | F11: 2208.429932 | G11: 2002.609863 | H11: 7.997449875 | I11: 431.9784851 | J11: 433.4841003 | K11: 1837.917003 | L11: 149.7625862 | M11: 14.9303046 | N11: 67.44125796 | O11: 3.132618727 | P11: 0.3390372807 | Q11: 0.08502968704 | R11: 11.61809553 | S11: 3.624900521 | T11: 2.336189499 | U11: 442.3765447
A12: 33.072 | B12: 18.1 | C12: 0 | D12: 0.31 | E12: 2.8 | F12: 2208.429932 | G12: 2002.609863 | H12: 7.997298241 | I12: 432.1561584 | J12: 433.6622009 | K12: 1837.911214 | L12: 149.7665247 | M12: 14.93215487 | N12: 67.43728919 | O12: 3.134492625 | P12: 0.3390418802 | Q12: 0.08503520251 | R12: 11.61788074 | S12: 3.625033404 | T12: 2.336331665 | U12: 442.5640237
A13: 33.072 | B13: 18.11 | C13: 0 | D13: 0.31 | E13: 2.8 | F13: 2208.429932 | G13: 2002.609863 | H13: 7.997146606 | I13: 432.3339233 | J13: 433.8404236 | K13: 1837.905426 | L13: 149.7704625 | M13: 14.93400569 | N13: 67.43332074 | O13: 3.136367439 | P13: 0.3390464798 | Q13: 0.08504071577 | R13: 11.61766589 | S13: 3.625166318 | T13: 2.336473875 | U13: 442.7515998
A14: 33.072 | B14: 18.12 | C14: 0 | D14: 0.31 | E14: 2.8 | F14: 2208.429932 | G14: 2002.609863 | H14: 7.996994972 | I14: 432.5117188 | J14: 434.0186462 | K14: 1837.899637 | L14: 149.7743996 | M14: 14.93585706 | N14: 67.42935262 | O14: 3.138243171 | P14: 0.3390510795 | Q14: 0.08504622684 | R14: 11.61745097 | S14: 3.625299261 | T14: 2.336616129 | U14: 442.9392136
A15: 33.072 | B15: 18.13 | C15: 0 | D15: 0.31 | E15: 2.8 | F15: 2208.429932 | G15: 2002.609863 | H15: 7.996843338 | I15: 432.6895447 | J15: 434.1968689 | K15: 1837.89385 | L15: 149.7783352 | M15: 14.93770862 | N15: 67.42538558 | O15: 3.140119461 | P15: 0.3390556785 | Q15: 0.08505173467 | R15: 11.61723603 | S15: 3.625432209 | T15: 2.336758402 | U15: 443.1268343
A16: 33.072 | B16: 18.14 | C16: 0 | D16: 0.31 | E16: 2.8 | F16: 2208.429932 | G16: 2002.609863 | H16: 7.996691704 | I16: 432.8674927 | J16: 434.3752441 | K16: 1837.888062 | L16: 149.7822709 | M16: 14.93956108 | N16: 67.42141812 | O16: 3.141997026 | P16: 0.3390602784 | Q16: 0.08505724135 | R16: 11.61702099 | S16: 3.625565213 | T16: 2.336900746 | U16: 443.3146126
A17: 33.072 | B17: 18.15 | C17: 0 | D17: 0.31 | E17: 2.8 | F17: 2208.429932 | G17: 2002.609863 | H17: 7.99654007 | I17: 433.0454712 | J17: 434.5536499 | K17: 1837.882274 | L17: 149.7862059 | M17: 14.94141409 | N17: 67.41745098 | O17: 3.143875508 | P17: 0.3390648784 | Q17: 0.08506274584 | R17: 11.61680589 | S17: 3.625698246 | T17: 2.337043135 | U17: 443.5024287
A18: 33.072 | B18: 18.16 | C18: 0 | D18: 0.31 | E18: 2.8 | F18: 2208.429932 | G18: 2002.609863 | H18: 7.996388912 | I18: 433.2235107 | J18: 434.7321472 | K18: 1837.876486 | L18: 149.7901402 | M18: 14.94326766 | N18: 67.41348418 | O18: 3.145754908 | P18: 0.3390694786 | Q18: 0.08506824813 | R18: 11.61659072 | S18: 3.62583131 | T18: 2.337185569 | U18: 443.6903418
A19: 33.072 | B19: 18.17 | C19: 0 | D19: 0.31 | E19: 2.8 | F19: 2208.429932 | G19: 2002.609863 | H19: 7.996237278 | I19: 433.4016418 | J19: 434.9107056 | K19: 1837.870698 | L19: 149.7940738 | M19: 14.94512177 | N19: 67.40951771 | O19: 3.147635227 | P19: 0.3390740788 | Q19: 0.08507374822 | R19: 11.61637548 | S19: 3.625964405 | T19: 2.337328047 | U19: 443.8783224
A20: 33.072 | B20: 18.18 | C20: 0 | D20: 0.31 | E20: 2.8 | F20: 2208.429932 | G20: 2002.609863 | H20: 7.996085644 | I20: 433.5797729 | J20: 435.0892639 | K20: 1837.864911 | L20: 149.7980067 | M20: 14.94697643 | N20: 67.40555156 | O20: 3.149516464 | P20: 0.3390786792 | Q20: 0.08507924611 | R20: 11.61616019 | S20: 3.626097529 | T20: 2.337470571 | U20: 444.0663111
A21: 33.072 | B21: 18.19 | C21: 0 | D21: 0.31 | E21: 2.8 | F21: 2208.429932 | G21: 2002.609863 | H21: 7.99593401 | I21: 433.7580261 | J21: 435.2679138 | K21: 1837.859123 | L21: 149.8019388 | M21: 14.94883164 | N21: 67.40158575 | O21: 3.15139862 | P21: 0.3390832797 | Q21: 0.08508474181 | R21: 11.61594482 | S21: 3.626230684 | T21: 2.337613139 | U21: 444.2544266
A22: 33.072 | B22: 18.2 | C22: 0 | D22: 0.31 | E22: 2.8 | F22: 2208.429932 | G22: 2002.609863 | H22: 7.995782375 | I22: 433.9363098 | J22: 435.4466553 | K22: 1837.853336 | L22: 149.8058703 | M22: 14.9506874 | N22: 67.39762026 | O22: 3.153281695 | P22: 0.3390878802 | Q22: 0.08509023531 | R22: 11.61572939 | S22: 3.626363868 | T22: 2.337755752 | U22: 444.4426096
A23: 33.072 | B23: 18.21 | C23: 0 | D23: 0.31 | E23: 2.8 | F23: 2208.429932 | G23: 2002.609863 | H23: 7.995630741 | I23: 434.114624 | J23: 435.6253967 | K23: 1837.84755 | L23: 149.8098003 | M23: 14.95254335 | N23: 67.39365587 | O23: 3.15516533 | P23: 0.33909248 | Q23: 0.08509572557 | R23: 11.61551394 | S23: 3.626497058 | T23: 2.337898383 | U23: 444.6308292
A24: 33.072 | B24: 18.22 | C24: 0 | D24: 0.31 | E24: 2.8 | F24: 2208.429932 | G24: 2002.609863 | H24: 7.995479584 | I24: 434.2930298 | J24: 435.8042603 | K24: 1837.841763 | L24: 149.8137304 | M24: 14.95440021 | N24: 67.38969104 | O24: 3.157050244 | P24: 0.3390970808 | Q24: 0.08510121467 | R24: 11.61529838 | S24: 3.626630303 | T24: 2.338041085 | U24: 444.8191471
A25: 33.072 | B25: 18.23 | C25: 0 | D25: 0.31 | E25: 2.8 | F25: 2208.429932 | G25: 2002.609863 | H25: 7.99532795 | I25: 434.4714966 | J25: 435.9831238 | K25: 1837.835976 | L25: 149.8176597 | M25: 14.95625762 | N25: 67.38572655 | O25: 3.158936078 | P25: 0.3391016817 | Q25: 0.08510670158 | R25: 11.61508275 | S25: 3.626763579 | T25: 2.338183833 | U25: 445.0075028
A26: 33.072 | B26: 18.24 | C26: 0 | D26: 0.31 | E26: 2.8 | F26: 2208.429932 | G26: 2002.609863 | H26: 7.995176315 | I26: 434.6500549 | J26: 436.1621094 | K26: 1837.83019 | L26: 149.8215884 | M26: 14.95811558 | N26: 67.38176239 | O26: 3.160822832 | P26: 0.3391062827 | Q26: 0.08511218628 | R26: 11.61486705 | S26: 3.626896884 | T26: 2.338326625 | U26: 445.1959854
A27: 33.072 | B27: 18.25 | C27: 0 | D27: 0.31 | E27: 2.8 | F27: 2208.429932 | G27: 2002.609863 | H27: 7.995024681 | I27: 434.8286438 | J27: 436.3411255 | K27: 1837.824403 | L27: 149.8255163 | M27: 14.95997409 | N27: 67.37779856 | O27: 3.162710507 | P27: 0.3391108838 | Q27: 0.08511766879 | R27: 11.61465129 | S27: 3.62703022 | T27: 2.338469462 | U27: 445.3845058
A28: 33.072 | B28: 18.26 | C28: 0 | D28: 0.31 | E28: 2.8 | F28: 2208.429932 | G28: 2002.609863 | H28: 7.994873524 | I28: 435.0072632 | J28: 436.5202026 | K28: 1837.818617 | L28: 149.8294435 | M28: 14.96183315 | N28: 67.37383507 | O28: 3.164599104 | P28: 0.339115485 | Q28: 0.0851231491 | R28: 11.61443546 | S28: 3.627163586 | T28: 2.338612344 | U28: 445.5730937
A29: 33.072 | B29: 18.27 | C29: 0 | D29: 0.31 | E29: 2.8 | F29: 2208.429932 | G29: 2002.609863 | H29: 7.994721889 | I29: 435.1860046 | J29: 436.6993713 | K29: 1837.812831 | L29: 149.8333701 | M29: 14.96369276 | N29: 67.3698719 | O29: 3.166488621 | P29: 0.3391200863 | Q29: 0.08512862721 | R29: 11.61421956 | S29: 3.627296982 | T29: 2.338755271 | U29: 445.7617789
A30: 33.072 | B30: 18.28 | C30: 0 | D30: 0.31 | E30: 2.8 | F30: 2208.429932 | G30: 2002.609863 | H30: 7.994570255 | I30: 435.3647461 | J30: 436.8785706 | K30: 1837.807045 | L30: 149.8372959 | M30: 14.96555292 | N30: 67.36590907 | O30: 3.168379061 | P30: 0.3391246878 | Q30: 0.08513410312 | R30: 11.61400359 | S30: 3.627430409 | T30: 2.338898243 | U30: 445.9505018
A31: 33.072 | B31: 18.29 | C31: 0 | D31: 0.31 | E31: 2.8 | F31: 2208.429932 | G31: 2002.609863 | H31: 7.994419098 | I31: 435.5436096 | J31: 437.0578003 | K31: 1837.801259 | L31: 149.841221 | M31: 14.96741364 | N31: 67.36194657 | O31: 3.170270422 | P31: 0.3391292893 | Q31: 0.08513957682 | R31: 11.61378755 | S31: 3.627563865 | T31: 2.339041259 | U31: 446.1392923
A32: 33.072 | B32: 18.3 | C32: 0 | D32: 0.31 | E32: 2.8 | F32: 2208.429932 | G32: 2002.609863 | H32: 7.994267464 | I32: 435.7224426 | J32: 437.2370911 | K32: 1837.795474 | L32: 149.8451446 | M32: 14.96927455 | N32: 67.35798515 | O32: 3.172162344 | P32: 0.33913389 | Q32: 0.08514504729 | R32: 11.61357149 | S32: 3.627697327 | T32: 2.339184294 | U32: 446.3281195
A33: 33.072 | B33: 18.31 | C33: 0 | D33: 0.31 | E33: 2.8 | F33: 2208.429932 | G33: 2002.609863 | H33: 7.994115829 | I33: 435.9013977 | J33: 437.4164734 | K33: 1837.789689 | L33: 149.8490683 | M33: 14.97113636 | N33: 67.35402332 | O33: 3.17405555 | P33: 0.3391384918 | Q33: 0.08515051659 | R33: 11.61335531 | S33: 3.627830844 | T33: 2.3393274 | U33: 446.5170748
A34: 33.072 | B34: 18.32 | C34: 0 | D34: 0.31 | E34: 2.8 | F34: 2208.429932 | G34: 2002.609863 | H34: 7.993964672 | I34: 436.0804138 | J34: 437.5959473 | K34: 1837.783904 | L34: 149.8529913 | M34: 14.97299873 | N34: 67.35006182 | O34: 3.17594968 | P34: 0.3391430936 | Q34: 0.0851559837 | R34: 11.61313906 | S34: 3.627964391 | T34: 2.339470551 | U34: 446.7060977
A35: 33.072 | B35: 18.33 | C35: 0 | D35: 0.31 | E35: 2.8 | F35: 2208.429932 | G35: 2002.609863 | H35: 7.993813038 | I35: 436.259491 | J35: 437.7754517 | K35: 1837.778118 | L35: 149.8569136 | M35: 14.97486164 | N35: 67.34610065 | O35: 3.177844732 | P35: 0.3391476956 | Q35: 0.0851614486 | R35: 11.61292274 | S35: 3.628097969 | T35: 2.339613747 | U35: 446.8951881
A36: 33.072 | B36: 18.34 | C36: 0 | D36: 0.31 | E36: 2.8 | F36: 2208.429932 | G36: 2002.609863 | H36: 7.99366188 | I36: 436.4386292 | J36: 437.9550171 | K36: 1837.772333 | L36: 149.8608352 | M36: 14.97672511 | N36: 67.34213981 | O36: 3.179740708 | P36: 0.3391522976 | Q36: 0.0851669113 | R36: 11.61270635 | S36: 3.628231577 | T36: 2.339756988 | U36: 447.0843462
A37: 33.072 | B37: 18.35 | C37: 0 | D37: 0.31 | E37: 2.8 | F37: 2208.429932 | G37: 2002.609863 | H37: 7.993510246 | I37: 436.6178284 | J37: 438.134613 | K37: 1837.766549 | L37: 149.864756 | M37: 14.97858913 | N37: 67.33817931 | O37: 3.181637608 | P37: 0.3391568998 | Q37: 0.0851723718 | R37: 11.61248989 | S37: 3.628365215 | T37: 2.339900274 | U37: 447.273542
A38: 33.072 | B38: 18.36 | C38: 0 | D38: 0.31 | E38: 2.8 | F38: 2208.429932 | G38: 2002.609863 | H38: 7.993359089 | I38: 436.7970581 | J38: 438.3143005 | K38: 1837.760764 | L38: 149.8686762 | M38: 14.98045371 | N38: 67.33421914 | O38: 3.183535432 | P38: 0.339161502 | Q38: 0.08517783009 | R38: 11.61227336 | S38: 3.628498883 | T38: 2.340043604 | U38: 447.4628352
A39: 33.072 | B39: 18.37 | C39: 0 | D39: 0.31 | E39: 2.8 | F39: 2208.429932 | G39: 2002.609863 | H39: 7.993207455 | I39: 436.9764099 | J39: 438.4940796 | K39: 1837.754979 | L39: 149.8725956 | M39: 14.98231883 | N39: 67.33025931 | O39: 3.18543418 | P39: 0.3391661044 | Q39: 0.08518328619 | R39: 11.61205675 | S39: 3.628632581 | T39: 2.34018698 | U39: 447.6522257
A40: 33.072 | B40: 18.38 | C40: 0 | D40: 0.31 | E40: 2.8 | F40: 2208.429932 | G40: 2002.609863 | H40: 7.993056297 | I40: 437.1557312 | J40: 438.6738586 | K40: 1837.749196 | L40: 149.8765136 | M40: 14.98418415 | N40: 67.32630056 | O40: 3.187333491 | P40: 0.339170706 | Q40: 0.08518873903 | R40: 11.61184011 | S40: 3.628766285 | T40: 2.340330373 | U40: 447.8416233
A41: 33.072 | B41: 18.39 | C41: 0 | D41: 0.31 | E41: 2.8 | F41: 2208.429932 | G41: 2002.609863 | H41: 7.992904663 | I41: 437.3351746 | J41: 438.8537292 | K41: 1837.743412 | L41: 149.8804316 | M41: 14.98605038 | N41: 67.3223414 | O41: 3.18923409 | P41: 0.3391753086 | Q41: 0.08519419072 | R41: 11.61162336 | S41: 3.628900044 | T41: 2.340473838 | U41: 448.0311193
A42: 33.072 | B42: 18.4 | C42: 0 | D42: 0.31 | E42: 2.8 | F42: 2208.429932 | G42: 2002.609863 | H42: 7.992753506 | I42: 437.514679 | J42: 439.0336609 | K42: 1837.737628 | L42: 149.8843489 | M42: 14.98791716 | N42: 67.31838257 | O42: 3.191135614 | P42: 0.3391799112 | Q42: 0.0851996402 | R42: 11.61140654 | S42: 3.629033833 | T42: 2.340617348 | U42: 448.2207127
A43: 33.072 | B43: 18.41 | C43: 0 | D43: 0.31 | E43: 2.8 | F43: 2208.429932 | G43: 2002.609863 | H43: 7.992601871 | I43: 437.6942139 | J43: 439.2136536 | K43: 1837.731844 | L43: 149.8882655 | M43: 14.98978449 | N43: 67.31442407 | O43: 3.193038064 | P43: 0.339184514 | Q43: 0.08520508748 | R43: 11.61118964 | S43: 3.629167652 | T43: 2.340760904 | U43: 448.410344
A44: 33.072 | B44: 18.42 | C44: 0 | D44: 0.31 | E44: 2.8 | F44: 2208.429932 | G44: 2002.609863 | H44: 7.992450714 | I44: 437.8738403 | J44: 439.3937073 | K44: 1837.72606 | L44: 149.8921814 | M44: 14.99165238 | N44: 67.31046591 | O44: 3.19494144 | P44: 0.3391891169 | Q44: 0.08521053255 | R44: 11.61097266 | S44: 3.629301502 | T44: 2.340904504 | U44: 448.6000726
A45: 33.072 | B45: 18.43 | C45: 0 | D45: 0.31 | E45: 2.8 | F45: 2208.429932 | G45: 2002.609863 | H45: 7.992299557 | I45: 438.0535278 | J45: 439.573822 | K45: 1837.720276 | L45: 149.8960965 | M45: 14.99352082 | N45: 67.30650809 | O45: 3.196845742 | P45: 0.3391937199 | Q45: 0.08521597542 | R45: 11.61075562 | S45: 3.629435382 | T45: 2.341048149 | U45: 448.7898392
A46: 33.072 | B46: 18.44 | C46: 0 | D46: 0.31 | E46: 2.8 | F46: 2208.429932 | G46: 2002.609863 | H46: 7.992147923 | I46: 438.2332764 | J46: 439.7539978 | K46: 1837.714493 | L46: 149.900011 | M46: 14.99538981 | N46: 67.3025506 | O46: 3.198750972 | P46: 0.339198323 | Q46: 0.08522141608 | R46: 11.61053849 | S46: 3.629569292 | T46: 2.341191839 | U46: 448.9797031
A47: 33.072 | B47: 18.45 | C47: 0 | D47: 0.31 | E47: 2.8 | F47: 2208.429932 | G47: 2002.609863 | H47: 7.991996765 | I47: 438.4130859 | J47: 439.9342346 | K47: 1837.70871 | L47: 149.9039247 | M47: 14.99725936 | N47: 67.29859345 | O47: 3.200657128 | P47: 0.3392029261 | Q47: 0.08522685454 | R47: 11.61032129 | S47: 3.629703233 | T47: 2.341335573 | U47: 449.1696348
A48: 33.072 | B48: 18.46 | C48: 0 | D48: 0.31 | E48: 2.8 | F48: 2208.429932 | G48: 2002.609863 | H48: 7.991845608 | I48: 438.5928955 | J48: 440.1144714 | K48: 1837.702928 | L48: 149.907837 | M48: 14.9991291 | N48: 67.29463739 | O48: 3.202563848 | P48: 0.3392075286 | Q48: 0.08523228975 | R48: 11.61010406 | S48: 3.629837178 | T48: 2.341479326 | U48: 449.3595735
A49: 33.072 | B49: 18.47 | C49: 0 | D49: 0.31 | E49: 2.8 | F49: 2208.429932 | G49: 2002.609863 | H49: 7.991693974 | I49: 438.7727966 | J49: 440.2948303 | K49: 1837.697145 | L49: 149.9117493 | M49: 15.00099975 | N49: 67.29068091 | O49: 3.20447186 | P49: 0.3392121319 | Q49: 0.0852377238 | R49: 11.60988671 | S49: 3.629971179 | T49: 2.341623151 | U49: 449.5496405
A50: 33.072 | B50: 18.48 | C50: 0 | D50: 0.31 | E50: 2.8 | F50: 2208.429932 | G50: 2002.609863 | H50: 7.991542816 | I50: 438.9528198 | J50: 440.4752808 | K50: 1837.691362 | L50: 149.9156609 | M50: 15.00287096 | N50: 67.28672476 | O50: 3.206380799 | P50: 0.3392167354 | Q50: 0.08524315563 | R50: 11.60966928 | S50: 3.630105211 | T50: 2.34176702 | U50: 449.7398049
A51: 33.072 | B51: 18.49 | C51: 0 | D51: 0.31 | E51: 2.8 | F51: 2208.429932 | G51: 2002.609863 | H51: 7.991391659 | I51: 439.132843 | J51: 440.6557312 | K51: 1837.685579 | L51: 149.9195718 | M51: 15.00474271 | N51: 67.28276896 | O51: 3.208290668 | P51: 0.339221339 | Q51: 0.08524858527 | R51: 11.60945178 | S51: 3.630239272 | T51: 2.341910935 | U51: 449.9300073
A52: 33.072 | B52: 18.5 | C52: 0 | D52: 0.31 | E52: 2.8 | F52: 2208.429932 | G52: 2002.609863 | H52: 7.991240025 | I52: 439.3129578 | J52: 440.8362732 | K52: 1837.679797 | L52: 149.923482 | M52: 15.00661503 | N52: 67.27881349 | O52: 3.210201464 | P52: 0.3392259427 | Q52: 0.08525401269 | R52: 11.6092342 | S52: 3.630373364 | T52: 2.342054895 | U52: 450.1202774
A53: 33.072 | B53: 18.51 | C53: 0 | D53: 0.31 | E53: 2.8 | F53: 2208.429932 | G53: 2002.609863 | H53: 7.991088867 | I53: 439.4931335 | J53: 441.0168762 | K53: 1837.674014 | L53: 149.9273914 | M53: 15.00848789 | N53: 67.27485836 | O53: 3.21211319 | P53: 0.3392305465 | Q53: 0.08525943791 | R53: 11.60901654 | S53: 3.630507487 | T53: 2.342198899 | U53: 450.3106449
A54: 33.072 | B54: 18.52 | C54: 0 | D54: 0.31 | E54: 2.8 | F54: 2208.429932 | G54: 2002.609863 | H54: 7.99093771 | I54: 439.6733398 | J54: 441.1975098 | K54: 1837.668232 | L54: 149.9313002 | M54: 15.01036131 | N54: 67.27090356 | O54: 3.214025845 | P54: 0.3392351504 | Q54: 0.08526486092 | R54: 11.6087988 | S54: 3.630641639 | T54: 2.342342949 | U54: 450.5010207
A55: 33.072 | B55: 18.53 | C55: 0 | D55: 0.31 | E55: 2.8 | F55: 2208.429932 | G55: 2002.609863 | H55: 7.990786552 | I55: 439.8536377 | J55: 441.3782349 | K55: 1837.66245 | L55: 149.9352082 | M55: 15.01223529 | N55: 67.26694911 | O55: 3.21593943 | P55: 0.3392397544 | Q55: 0.08527028172 | R55: 11.60858098 | S55: 3.630775822 | T55: 2.342487043 | U55: 450.6915237
A56: 33.072 | B56: 18.54 | C56: 0 | D56: 0.31 | E56: 2.8 | F56: 2208.429932 | G56: 2002.609863 | H56: 7.990635395 | I56: 440.0339966 | J56: 441.5590515 | K56: 1837.656668 | L56: 149.9391155 | M56: 15.01410982 | N56: 67.26299499 | O56: 3.217853945 | P56: 0.3392443585 | Q56: 0.08527570031 | R56: 11.60836309 | S56: 3.630910035 | T56: 2.342631183 | U56: 450.8820945
A57: 33.072 | B57: 18.55 | C57: 0 | D57: 0.31 | E57: 2.8 | F57: 2208.429932 | G57: 2002.609863 | H57: 7.990483761 | I57: 440.2143555 | J57: 441.7398376 | K57: 1837.650888 | L57: 149.9430214 | M57: 15.01598454 | N57: 67.25904196 | O57: 3.219769025 | P57: 0.3392489619 | Q57: 0.08528111567 | R57: 11.60814515 | S57: 3.631044253 | T57: 2.34277534 | U57: 451.0726724
A58: 33.072 | B58: 18.56 | C58: 0 | D58: 0.31 | E58: 2.8 | F58: 2208.429932 | G58: 2002.609863 | H58: 7.990332603 | I58: 440.3948364 | J58: 441.9207458 | K58: 1837.645106 | L58: 149.9469272 | M58: 15.01786018 | N58: 67.25508852 | O58: 3.221685401 | P58: 0.3392535662 | Q58: 0.08528652984 | R58: 11.60781404 | S58: 3.631178527 | T58: 2.342919569 | U58: 451.2633786
A59: 33.072 | B59: 18.57 | C59: 0 | D59: 0.31 | E59: 2.8 | F59: 2208.429932 | G59: 2002.609863 | H59: 7.990181446 | I59: 440.5753479 | J59: 442.1017151 | K59: 1837.639325 | L59: 149.9508324 | M59: 15.01973637 | N59: 67.25113542 | O59: 3.223602708 | P59: 0.3392581706 | Q59: 0.08529194181 | R59: 11.60759342 | S59: 3.631312831 | T59: 2.343063844 | U59: 451.4541527
A60: 33.072 | B60: 18.58 | C60: 0 | D60: 0.31 | E60: 2.8 | F60: 2208.429932 | G60: 2002.609863 | H60: 7.990030289 | I60: 440.7559814 | J60: 442.2827759 | K60: 1837.633544 | L60: 149.9547369 | M60: 15.02161312 | N60: 67.24718265 | O60: 3.225520946 | P60: 0.3392627751 | Q60: 0.08529735157 | R60: 11.6073727 | S60: 3.631447165 | T60: 2.343208163 | U60: 451.6450242
A61: 33.072 | B61: 18.59 | C61: 0 | D61: 0.31 | E61: 2.8 | F61: 2208.429932 | G61: 2002.609863 | H61: 7.989879131 | I61: 440.936615 | J61: 442.4638367 | K61: 1837.627763 | L61: 149.9586406 | M61: 15.02349042 | N61: 67.24323023 | O61: 3.227440115 | P61: 0.3392673797 | Q61: 0.08530275912 | R61: 11.60715191 | S61: 3.63158153 | T61: 2.343352528 | U61: 451.8359338
A62: 33.072 | B62: 18.6 | C62: 0 | D62: 0.31 | E62: 2.8 | F62: 2208.429932 | G62: 2002.609863 | H62: 7.989727974 | I62: 441.1173401 | J62: 442.644989 | K62: 1837.621982 | L62: 149.9625436 | M62: 15.02536828 | N62: 67.23927815 | O62: 3.229360217 | P62: 0.3392719844 | Q62: 0.08530816446 | R62: 11.60693103 | S62: 3.631715925 | T62: 2.343496938 | U62: 452.0269112
A63: 33.072 | B63: 18.61 | C63: 0 | D63: 0.31 | E63: 2.8 | F63: 2208.429932 | G63: 2002.609863 | H63: 7.989576817 | I63: 441.2980957 | J63: 442.8262024 | K63: 1837.616201 | L63: 149.9664459 | M63: 15.02724669 | N63: 67.2353264 | O63: 3.231281251 | P63: 0.3392765892 | Q63: 0.08531356759 | R63: 11.60671006 | S63: 3.63185035 | T63: 2.343641392 | U63: 452.2179563
A64: 33.072 | B64: 18.62 | C64: 0 | D64: 0.31 | E64: 2.8 | F64: 2208.429932 | G64: 2002.609863 | H64: 7.989425659 | I64: 441.4789429 | J64: 443.0074768 | K64: 1837.610421 | L64: 149.9703475 | M64: 15.02912566 | N64: 67.231375 | O64: 3.233203217 | P64: 0.3392811941 | Q64: 0.0853189685 | R64: 11.60648902 | S64: 3.631984806 | T64: 2.343785892 | U64: 452.4090991
A65: 33.072 | B65: 18.63 | C65: 0 | D65: 0.31 | E65: 2.8 | F65: 2208.429932 | G65: 2002.609863 | H65: 7.989274502 | I65: 441.65979 | J65: 443.1887512 | K65: 1837.604641 | L65: 149.9742476 | M65: 15.03100482 | N65: 67.22742469 | O65: 3.23512575 | P65: 0.3392857982 | Q65: 0.08532436618 | R65: 11.60626793 | S65: 3.632119266 | T65: 2.343930409 | U65: 452.600249
A66: 33.072 | B66: 18.64 | C66: 0 | D66: 0.31 | E66: 2.8 | F66: 2208.429932 | G66: 2002.609863 | H66: 7.989123344 | I66: 441.8407593 | J66: 443.3701782 | K66: 1837.598861 | L66: 149.9781478 | M66: 15.0328849 | N66: 67.22347396 | O66: 3.237049582 | P66: 0.3392904033 | Q66: 0.08532976268 | R66: 11.60604672 | S66: 3.632253783 | T66: 2.344074999 | U66: 452.7915274
A67: 33.072 | B67: 18.65 | C67: 0 | D67: 0.31 | E67: 2.8 | F67: 2208.429932 | G67: 2002.609863 | H67: 7.988972187 | I67: 442.0217896 | J67: 443.5516357 | K67: 1837.593081 | L67: 149.9820472 | M67: 15.03476553 | N67: 67.21952358 | O67: 3.238974349 | P67: 0.3392950085 | Q67: 0.08533515697 | R67: 11.60582542 | S67: 3.632388329 | T67: 2.344219633 | U67: 452.9828736
A68: 33.072 | B68: 18.66 | C68: 0 | D68: 0.31 | E68: 2.8 | F68: 2208.429932 | G68: 2002.609863 | H68: 7.98882103 | I68: 442.2028809 | J68: 443.7331543 | K68: 1837.587301 | L68: 149.9859459 | M68: 15.03664673 | N68: 67.21557354 | O68: 3.240900049 | P68: 0.3392996138 | Q68: 0.08534054904 | R68: 11.60560405 | S68: 3.632522907 | T68: 2.344364313 | U68: 453.1742877
A69: 33.072 | B69: 18.67 | C69: 0 | D69: 0.31 | E69: 2.8 | F69: 2208.429932 | G69: 2002.609863 | H69: 7.988669872 | I69: 442.3840027 | J69: 443.9147034 | K69: 1837.581521 | L69: 149.9898439 | M69: 15.03852847 | N69: 67.21162384 | O69: 3.242826683 | P69: 0.3393042192 | Q69: 0.0853459389 | R69: 11.60538259 | S69: 3.632657514 | T69: 2.344509038 | U69: 453.3657399
A70: 33.072 | B70: 18.68 | C70: 0 | D70: 0.31 | E70: 2.8 | F70: 2208.429932 | G70: 2002.609863 | H70: 7.988518715 | I70: 442.5652161 | J70: 444.096344 | K70: 1837.575742 | L70: 149.9937412 | M70: 15.04041077 | N70: 67.20767448 | O70: 3.244754251 | P70: 0.3393088247 | Q70: 0.08535132655 | R70: 11.60516106 | S70: 3.632792152 | T70: 2.344653808 | U70: 453.5572896
A71: 33.072 | B71: 18.69 | C71: 0 | D71: 0.31 | E71: 2.8 | F71: 2208.429932 | G71: 2002.609863 | H71: 7.988367558 | I71: 442.74646 | J71: 444.2780457 | K71: 1837.569962 | L71: 149.9976377 | M71: 15.04229363 | N71: 67.20372546 | O71: 3.246682755 | P71: 0.3393134303 | Q71: 0.08535671199 | R71: 11.60493945 | S71: 3.63292682 | T71: 2.344798623 | U71: 453.7489073
A72: 33.072 | B72: 18.7 | C72: 0 | D72: 0.31 | E72: 2.8 | F72: 2208.429932 | G72: 2002.609863 | H72: 7.9882164 | I72: 442.9277954 | J72: 444.4597778 | K72: 1837.564183 | L72: 150.0015336 | M72: 15.04417705 | N72: 67.19977679 | O72: 3.248612194 | P72: 0.339318036 | Q72: 0.08536209521 | R72: 11.60471776 | S72: 3.633061518 | T72: 2.344943483 | U72: 453.9405928
A73: 33.072 | B73: 18.71 | C73: 0 | D73: 0.31 | E73: 2.8 | F73: 2208.429932 | G73: 2002.609863 | H73: 7.988065243 | I73: 443.1091003 | J73: 444.6415405 | K73: 1837.558392 | L73: 150.005443 | M73: 15.04605893 | N73: 67.19583521 | O73: 3.25054255 | P73: 0.3393226444 | Q73: 0.08536748412 | R73: 11.60449604 | S73: 3.633196587 | T73: 2.345088597 | U73: 454.1322856
A74: 33.072 | B74: 18.72 | C74: 0 | D74: 0.31 | E74: 2.8 | F74: 2208.429932 | G74: 2002.609863 | H74: 7.987914562 | I74: 443.2905273 | J74: 444.8234253 | K74: 1837.552613 | L74: 150.0093377 | M74: 15.04794342 | N74: 67.19188735 | O74: 3.252473868 | P74: 0.3393272503 | Q74: 0.08537286312 | R74: 11.6042742 | S74: 3.633331354 | T74: 2.345233552 | U74: 454.3241069
A75: 33.072 | B75: 18.73 | C75: 0 | D75: 0.31 | E75: 2.8 | F75: 2208.429932 | G75: 2002.609863 | H75: 7.987763405 | I75: 443.4720764 | J75: 445.0053711 | K75: 1837.546833 | L75: 150.0132317 | M75: 15.04982847 | N75: 67.18793983 | O75: 3.254406122 | P75: 0.3393318564 | Q75: 0.0853782399 | R75: 11.60405228 | S75: 3.633466152 | T75: 2.345378553 | U75: 454.5160259
A76: 33.072 | B76: 18.74 | C76: 0 | D76: 0.31 | E76: 2.8 | F76: 2208.429932 | G76: 2002.609863 | H76: 7.987612247 | I76: 443.6536255 | J76: 445.1873779 | K76: 1837.541055 | L76: 150.017125 | M76: 15.05171407 | N76: 67.18399266 | O76: 3.256339312 | P76: 0.3393364626 | Q76: 0.08538361446 | R76: 11.6038303 | S76: 3.63360098 | T76: 2.345523598 | U76: 454.7080127
A77: 33.072 | B77: 18.75 | C77: 0 | D77: 0.31 | E77: 2.8 | F77: 2208.429932 | G77: 2002.609863 | H77: 7.98746109 | I77: 443.8352356 | J77: 445.3694153 | K77: 1837.535276 | L77: 150.0210176 | M77: 15.05360023 | N77: 67.18004583 | O77: 3.25827344 | P77: 0.3393410688 | Q77: 0.08538898682 | R77: 11.60360823 | S77: 3.633735838 | T77: 2.345668689 | U77: 454.9000378
A78: 33.072 | B78: 18.76 | C78: 0 | D78: 0.31 | E78: 2.8 | F78: 2208.429932 | G78: 2002.609863 | H78: 7.987309933 | I78: 444.0169373 | J78: 445.5515442 | K78: 1837.529497 | L78: 150.0249094 | M78: 15.05548695 | N78: 67.17609934 | O78: 3.260208504 | P78: 0.3393456752 | Q78: 0.08539435696 | R78: 11.6033861 | S78: 3.633870727 | T78: 2.345813825 | U78: 455.0921605
A79: 33.072 | B79: 18.77 | C79: 0 | D79: 0.31 | E79: 2.8 | F79: 2208.429932 | G79: 2002.609863 | H79: 7.987159252 | I79: 444.1987 | J79: 445.7337341 | K79: 1837.523719 | L79: 150.0288006 | M79: 15.05737422 | N79: 67.1721532 | O79: 3.262144506 | P79: 0.3393502816 | Q79: 0.08539972488 | R79: 11.60316389 | S79: 3.634005646 | T79: 2.345959006 | U79: 455.2843512
A80: 33.072 | B80: 18.78 | C80: 0 | D80: 0.31 | E80: 2.8 | F80: 2208.429932 | G80: 2002.609863 | H80: 7.987008095 | I80: 444.3804932 | J80: 445.9159851 | K80: 1837.517941 | L80: 150.032691 | M80: 15.05926206 | N80: 67.1682074 | O80: 3.264081445 | P80: 0.3393548882 | Q80: 0.08540509059 | R80: 11.60294162 | S80: 3.634140596 | T80: 2.346104232 | U80: 455.4766098
A81: 33.072 | B81: 18.79 | C81: 0 | D81: 0.31 | E81: 2.8 | F81: 2208.429932 | G81: 2002.609863 | H81: 7.986856937 | I81: 444.5623779 | J81: 446.0982971 | K81: 1837.512163 | L81: 150.0365806 | M81: 15.06115045 | N81: 67.16426194 | O81: 3.266019323 | P81: 0.3393594948 | Q81: 0.08541045409 | R81: 11.60271927 | S81: 3.634275576 | T81: 2.346249504 | U81: 455.6689363
A82: 33.072 | B82: 18.8 | C82: 0 | D82: 0.31 | E82: 2.8 | F82: 2208.429932 | G82: 2002.609863 | H82: 7.98670578 | I82: 444.7442932 | J82: 446.2806702 | K82: 1837.506386 | L82: 150.0404689 | M82: 15.06303903 | N82: 67.16031758 | O82: 3.267957769 | P82: 0.3393641007 | Q82: 0.08541581434 | R82: 11.6024969 | S82: 3.634410561 | T82: 2.346394792 | U82: 455.8613297
A83: 33.072 | B83: 18.81 | C83: 0 | D83: 0.31 | E83: 2.8 | F83: 2208.429932 | G83: 2002.609863 | H83: 7.986555099 | I83: 444.9263 | J83: 446.4631042 | K83: 1837.500608 | L83: 150.0443571 | M83: 15.06492854 | N83: 67.15637282 | O83: 3.269897524 | P83: 0.3393687075 | Q83: 0.08542117341 | R83: 11.60227442 | S83: 3.634545602 | T83: 2.346540154 | U83: 456.0537922
A84: 33.072 | B84: 18.82 | C84: 0 | D84: 0.31 | E84: 2.8 | F84: 2208.429932 | G84: 2002.609863 | H84: 7.986403942 | I84: 445.1083374 | J84: 446.6455688 | K84: 1837.49483 | L84: 150.0482446 | M84: 15.0668186 | N84: 67.1524284 | O84: 3.271838218 | P84: 0.3393733144 | Q84: 0.08542653025 | R84: 11.60205187 | S84: 3.634680673 | T84: 2.346685561 | U84: 456.2463227
A85: 33.072 | B85: 18.83 | C85: 0 | D85: 0.31 | E85: 2.8 | F85: 2208.429932 | G85: 2002.609863 | H85: 7.986252785 | I85: 445.2904663 | J85: 446.8281555 | K85: 1837.489053 | L85: 150.0521314 | M85: 15.06870923 | N85: 67.14848432 | O85: 3.273779851 | P85: 0.3393779215 | Q85: 0.08543188488 | R85: 11.60182925 | S85: 3.634815775 | T85: 2.346831013 | U85: 456.4389509
A86: 33.072 | B86: 18.84 | C86: 0 | D86: 0.31 | E86: 2.8 | F86: 2208.429932 | G86: 2002.609863 | H86: 7.986102104 | I86: 445.4726562 | J86: 447.0107727 | K86: 1837.483276 | L86: 150.0560175 | M86: 15.07060041 | N86: 67.14454059 | O86: 3.275722424 | P86: 0.3393825286 | Q86: 0.0854372373 | R86: 11.60160657 | S86: 3.634950907 | T86: 2.34697651 | U86: 456.6316471
A87: 33.072 | B87: 18.85 | C87: 0 | D87: 0.31 | E87: 2.8 | F87: 2208.429932 | G87: 2002.609863 | H87: 7.985950947 | I87: 445.6549072 | J87: 447.1934509 | K87: 1837.477499 | L87: 150.0599028 | M87: 15.07249215 | N87: 67.1405972 | O87: 3.277665937 | P87: 0.3393871358 | Q87: 0.0854425875 | R87: 11.60149872 | S87: 3.635086069 | T87: 2.347122052 | U87: 456.8244113
A88: 33.072 | B88: 18.86 | C88: 0 | D88: 0.31 | E88: 2.8 | F88: 2208.429932 | G88: 2002.609863 | H88: 7.985800266 | I88: 445.8372192 | J88: 447.3761902 | K88: 1837.471722 | L88: 150.0637874 | M88: 15.07438444 | N88: 67.13665416 | O88: 3.27961039 | P88: 0.3393917431 | Q88: 0.08544793547 | R88: 11.60127842 | S88: 3.635221262 | T88: 2.347267639 | U88: 457.0172435
A89: 33.072 | B89: 18.87 | C89: 0 | D89: 0.31 | E89: 2.8 | F89: 2208.429932 | G89: 2002.609863 | H89: 7.985649109 | I89: 446.0195923 | J89: 447.5589905 | K89: 1837.465945 | L89: 150.0676713 | M89: 15.0762773 | N89: 67.13271146 | O89: 3.281555784 | P89: 0.3393963505 | Q89: 0.08545328124 | R89: 11.60105806 | S89: 3.635356485 | T89: 2.347413272 | U89: 457.2101438
A90: 33.072 | B90: 18.88 | C90: 0 | D90: 0.31 | E90: 2.8 | F90: 2208.429932 | G90: 2002.609863 | H90: 7.985498428 | I90: 446.2019653 | J90: 447.7418213 | K90: 1837.46017 | L90: 150.0715538 | M90: 15.07817035 | N90: 67.12876987 | O90: 3.283501747 | P90: 0.3394009572 | Q90: 0.08545862376 | R90: 11.60083769 | S90: 3.635491713 | T90: 2.347558922 | U90: 457.4030812
A91: 33.072 | B91: 18.89 | C91: 0 | D91: 0.31 | E91: 2.8 | F91: 2208.429932 | G91: 2002.609863 | H91: 7.985347271 | I91: 446.3844604 | J91: 447.9247437 | K91: 1837.454393 | L91: 150.0754362 | M91: 15.08006433 | N91: 67.12482786 | O91: 3.285449023 | P91: 0.3394055648 | Q91: 0.08546396508 | R91: 11.60061722 | S91: 3.635626998 | T91: 2.347704645 | U91: 457.5961175
A92: 33.072 | B92: 18.9 | C92: 0 | D92: 0.31 | E92: 2.8 | F92: 2208.429932 | G92: 2002.609863 | H92: 7.985196114 | I92: 446.5669861 | J92: 448.1077271 | K92: 1837.448617 | L92: 150.0793179 | M92: 15.08195886 | N92: 67.12088621 | O92: 3.287397241 | P92: 0.3394101724 | Q92: 0.08546930419 | R92: 11.60039669 | S92: 3.635762312 | T92: 2.347850413 | U92: 457.7892219
A93: 33.072 | B93: 18.91 | C93: 0 | D93: 0.31 | E93: 2.8 | F93: 2208.429932 | G93: 2002.609863 | H93: 7.985045433 | I93: 446.7496033 | J93: 448.2907715 | K93: 1837.442841 | L93: 150.0831989 | M93: 15.08385395 | N93: 67.1169449 | O93: 3.2893464 | P93: 0.3394147802 | Q93: 0.08547464108 | R93: 11.60017611 | S93: 3.635897657 | T93: 2.347996226 | U93: 457.9824241
A94: 33.072 | B94: 18.92 | C94: 0 | D94: 0.31 | E94: 2.8 | F94: 2208.429932 | G94: 2002.609863 | H94: 7.984894276 | I94: 446.9322815 | J94: 448.473877 | K94: 1837.437065 | L94: 150.0870792 | M94: 15.08574961 | N94: 67.11300393 | O94: 3.291296502 | P94: 0.3394193881 | Q94: 0.08547997574 | R94: 11.59995547 | S94: 3.636033033 | T94: 2.348142084 | U94: 458.1756646
A95: 33.072 | B95: 18.93 | C95: 0 | D95: 0.31 | E95: 2.8 | F95: 2208.429932 | G95: 2002.609863 | H95: 7.984743595 | I95: 447.1150208 | J95: 448.6570435 | K95: 1837.431289 | L95: 150.0909587 | M95: 15.08764582 | N95: 67.10906332 | O95: 3.293247547 | P95: 0.3394239961 | Q95: 0.08548530819 | R95: 11.59973477 | S95: 3.636168439 | T95: 2.348287988 | U95: 458.369003
A96: 33.072 | B96: 18.94 | C96: 0 | D96: 0.31 | E96: 2.8 | F96: 2208.429932 | G96: 2002.609863 | H96: 7.984592915 | I96: 447.297821 | J96: 448.8403015 | K96: 1837.425514 | L96: 150.0948376 | M96: 15.08954259 | N96: 67.10512305 | O96: 3.295199534 | P96: 0.3394286042 | Q96: 0.08549063842 | R96: 11.59951402 | S96: 3.636303875 | T96: 2.348433937 | U96: 458.5624094
A97: 33.072 | B97: 18.95 | C97: 0 | D97: 0.31 | E97: 2.8 | F97: 2208.429932 | G97: 2002.609863 | H97: 7.984441757 | I97: 447.4806824 | J97: 449.0235901 | K97: 1837.419738 | L97: 150.0987156 | M97: 15.09143992 | N97: 67.10118312 | O97: 3.297152464 | P97: 0.3394332123 | Q97: 0.08549596642 | R97: 11.59929321 | S97: 3.636439342 | T97: 2.348579931 | U97: 458.7558839
A98: 33.072 | B98: 18.96 | C98: 0 | D98: 0.31 | E98: 2.8 | F98: 2208.429932 | G98: 2002.609863 | H98: 7.984291077 | I98: 447.6635742 | J98: 449.2069092 | K98: 1837.413964 | L98: 150.1025923 | M98: 15.09333745 | N98: 67.0972443 | O98: 3.299105966 | P98: 0.3394378197 | Q98: 0.08550129119 | R98: 11.59907239 | S98: 3.636574813 | T98: 2.348725943 | U98: 458.9493956
A99: 33.072 | B99: 18.97 | C99: 0 | D99: 0.31 | E99: 2.8 | F99: 2208.429932 | G99: 2002.609863 | H99: 7.984139919 | I99: 447.8465271 | J99: 449.3903198 | K99: 1837.408189 | L99: 150.1064689 | M99: 15.0952359 | N99: 67.09330507 | O99: 3.301060783 | P99: 0.339442428 | Q99: 0.08550661476 | R99: 11.59885147 | S99: 3.636710341 | T99: 2.348872027 | U99: 459.1430064
A100: 33.072 | B100: 18.98 | C100: 0 | D100: 0.31 | E100: 2.8 | F100: 2208.429932 | G100: 2002.609863 | H100: 7.983989239 | I100: 448.0295715 | J100: 449.5737915 | K100: 1837.402414 | L100: 150.1103448 | M100: 15.09713492 | N100: 67.08936619 | O100: 3.303016545 | P100: 0.3394470365 | Q100: 0.0855119361 | R100: 11.59863049 | S100: 3.636845899 | T100: 2.349018157 | U100: 459.3366852
A101: 33.072 | B101: 18.99 | C101: 0 | D101: 0.31 | E101: 2.8 | F101: 2208.429932 | G101: 2002.609863 | H101: 7.983838558 | I101: 448.2127075 | J101: 449.7573547 | K101: 1837.396639 | L101: 150.11422 | M101: 15.09903449 | N101: 67.08542766 | O101: 3.304973252 | P101: 0.339451645 | Q101: 0.08551725522 | R101: 11.59840945 | S101: 3.636981487 | T101: 2.349164332 | U101: 459.5304619
A102: 33.072 | B102: 19 | C102: 0 | D102: 0.31 | E102: 2.8 | F102: 2208.429932 | G102: 2002.609863 | H102: 7.983687401 | I102: 448.3958435 | J102: 449.940979 | K102: 1837.390865 | L102: 150.1180944 | M102: 15.10093462 | N102: 67.08148948 | O102: 3.306930903 | P102: 0.3394562536 | Q102: 0.08552257212 | R102: 11.59818836 | S102: 3.637117106 | T102: 2.349310552 | U102: 459.7243068
A103: 33.072 | B103: 19.01 | C103: 0 | D103: 0.31 | E103: 2.8 | F103: 2208.429932 | G103: 2002.609863 | H103: 7.98353672 | I103: 448.579071 | J103: 450.1246338 | K103: 1837.38509 | L103: 150.1219681 | M103: 15.10283532 | N103: 67.07755164 | O103: 3.3088895 | P103: 0.3394608624 | Q103: 0.08552788679 | R103: 11.59796721 | S103: 3.637252756 | T103: 2.349456817 | U103: 459.9182198
A104: 33.072 | B104: 19.02 | C104: 0 | D104: 0.31 | E104: 2.8 | F104: 2208.429932 | G104: 2002.609863 | H104: 7.98338604 | I104: 448.7623901 | J104: 450.3083801 | K104: 1837.379316 | L104: 150.1258411 | M104: 15.10473657 | N104: 67.07361416 | O104: 3.310849042 | P104: 0.3394654712 | Q104: 0.08553319924 | R104: 11.597746 | S104: 3.637388435 | T104: 2.349603128 | U104: 460.112201
A105: 33.072 | B105: 19.03 | C105: 0 | D105: 0.31 | E105: 2.8 | F105: 2208.429932 | G105: 2002.609863 | H105: 7.983234882 | I105: 448.9457397 | J105: 450.492157 | K105: 1837.373542 | L105: 150.1297134 | M105: 15.10663839 | N105: 67.06967702 | O105: 3.312809529 | P105: 0.3394700801 | Q105: 0.08553850947 | R105: 11.59752474 | S105: 3.637524146 | T105: 2.349749484 | U105: 460.3062503
A106: 33.072 | B106: 19.04 | C106: 0 | D106: 0.31 | E106: 2.8 | F106: 2208.429932 | G106: 2002.609863 | H106: 7.983084202 | I106: 449.1291504 | J106: 450.6760254 | K106: 1837.367768 | L106: 150.1335849 | M106: 15.10854077 | N106: 67.06574023 | O106: 3.314770963 | P106: 0.3394746891 | Q106: 0.08554381748 | R106: 11.59730342 | S106: 3.637659886 | T106: 2.349895885 | U106: 460.5003679
A107: 33.072 | B107: 19.05 | C107: 0 | D107: 0.31 | E107: 2.8 | F107: 2208.429932 | G107: 2002.609863 | H107: 7.982933521 | I107: 449.3125916 | J107: 450.8598938 | K107: 1837.361995 | L107: 150.137455 | M107: 15.11044334 | N107: 67.06180454 | O107: 3.316732969 | P107: 0.3394792973 | Q107: 0.08554912225 | R107: 11.59708209 | S107: 3.637795632 | T107: 2.350042303 | U107: 460.6945226
A108: 33.072 | B108: 19.06 | C108: 0 | D108: 0.31 | E108: 2.8 | F108: 2208.429932 | G108: 2002.609863 | H108: 7.982782841 | I108: 449.4961243 | J108: 451.0438538 | K108: 1837.356222 | L108: 150.141325 | M108: 15.11234684 | N108: 67.05786845 | O108: 3.318696296 | P108: 0.3394839064 | Q108: 0.0855544258 | R108: 11.59686065 | S108: 3.637931433 | T108: 2.350188795 | U108: 460.8887765
A109: 33.072 | B109: 19.07 | C109: 0 | D109: 0.31 | E109: 2.8 | F109: 2208.429932 | G109: 2002.609863 | H109: 7.98263216 | I109: 449.679718 | J109: 451.2278748 | K109: 1837.350448 | L109: 150.1451944 | M109: 15.11425091 | N109: 67.05393271 | O109: 3.32066057 | P109: 0.3394885157 | Q109: 0.08555972713 | R109: 11.59663916 | S109: 3.638067265 | T109: 2.350335332 | U109: 461.0830986
A110: 33.072 | B110: 19.08 | C110: 0 | D110: 0.31 | E110: 2.8 | F110: 2208.429932 | G110: 2002.609863 | H110: 7.982481003 | I110: 449.8633728 | J110: 451.4119873 | K110: 1837.344675 | L110: 150.149063 | M110: 15.11615553 | N110: 67.04999732 | O110: 3.322625792 | P110: 0.3394931251 | Q110: 0.08556502624 | R110: 11.59641762 | S110: 3.638203128 | T110: 2.350481914 | U110: 461.2775187
A111: 33.072 | B111: 19.09 | C111: 0 | D111: 0.31 | E111: 2.8 | F111: 2208.429932 | G111: 2002.609863 | H111: 7.982330322 | I111: 450.0470886 | J111: 451.5961304 | K111: 1837.338902 | L111: 150.1529308 | M111: 15.11806072 | N111: 67.04606228 | O111: 3.324591961 | P111: 0.3394977345 | Q111: 0.08557032312 | R111: 11.59619601 | S111: 3.638339021 | T111: 2.350628541 | U111: 461.4719772
A112: 33.072 | B112: 19.1 | C112: 0 | D112: 0.31 | E112: 2.8 | F112: 2208.429932 | G112: 2002.609863 | H112: 7.982179642 | I112: 450.2308655 | J112: 451.780365 | K112: 1837.333129 | L112: 150.156798 | M112: 15.11996646 | N112: 67.04212759 | O112: 3.326559078 | P112: 0.339502344 | Q112: 0.08557561778 | R112: 11.59597435 | S112: 3.638474944 | T112: 2.350775214 | U112: 461.6665337
A113: 33.072 | B113: 19.11 | C113: 0 | D113: 0.31 | E113: 2.8 | F113: 2208.429932 | G113: 2002.609863 | H113: 7.982028961 | I113: 450.4147339 | J113: 451.9646606 | K113: 1837.327357 | L113: 150.1606644 | M113: 15.12187277 | N113: 67.03819325 | O113: 3.328527143 | P113: 0.3395069537 | Q113: 0.08558091021 | R113: 11.59575264 | S113: 3.638610898 | T113: 2.350921932 | U113: 461.8611584
A114: 33.072 | B114: 19.12 | C114: 0 | D114: 0.31 | E114: 2.8 | F114: 2208.429932 | G114: 2002.609863 | H114: 7.981878281 | I114: 450.5986328 | J114: 452.1489868 | K114: 1837.321584 | L114: 150.16453 | M114: 15.12377965 | N114: 67.03425926 | O114: 3.330496158 | P114: 0.3395115634 | Q114: 0.08558620041 | R114: 11.59553086 | S114: 3.638746882 | T114: 2.351068695 | U114: 462.0558514
A115: 33.072 | B115: 19.13 | C115: 0 | D115: 0.31 | E115: 2.8 | F115: 2208.429932 | G115: 2002.609863 | H115: 7.9817276 | I115: 450.7825623 | J115: 452.333374 | K115: 1837.315813 | L115: 150.1683942 | M115: 15.12568672 | N115: 67.03032638 | O115: 3.332465745 | P115: 0.3395161723 | Q115: 0.08559148738 | R115: 11.59530907 | S115: 3.638882871 | T115: 2.351215475 | U115: 462.2505816
A116: 33.072 | B116: 19.14 | C116: 0 | D116: 0.31 | E116: 2.8 | F116: 2208.429932 | G116: 2002.609863 | H116: 7.98157692 | I116: 450.9665833 | J116: 452.5178528 | K116: 1837.310041 | L116: 150.1722584 | M116: 15.12759472 | N116: 67.02639309 | O116: 3.334436658 | P116: 0.3395207822 | Q116: 0.08559677313 | R116: 11.59508719 | S116: 3.639018916 | T116: 2.351362329 | U116: 462.4454409
A117: 33.072 | B117: 19.15 | C117: 0 | D117: 0.31 | E117: 2.8 | F117: 2208.429932 | G117: 2002.609863 | H117: 7.981426239 | I117: 451.1506958 | J117: 452.7023926 | K117: 1837.304269 | L117: 150.1761219 | M117: 15.12950328 | N117: 67.02246015 | O117: 3.33640852 | P117: 0.3395253922 | Q117: 0.08560205665 | R117: 11.59486524 | S117: 3.639154992 | T117: 2.351509228 | U117: 462.6403684
A118: 33.072 | B118: 19.16 | C118: 0 | D118: 0.31 | E118: 2.8 | F118: 2208.429932 | G118: 2002.609863 | H118: 7.981275558 | I118: 451.3348389 | J118: 452.8869629 | K118: 1837.298497 | L118: 150.1799846 | M118: 15.1314124 | N118: 67.01852757 | O118: 3.338381332 | P118: 0.3395300023 | Q118: 0.08560733794 | R118: 11.59464324 | S118: 3.639291098 | T118: 2.351656173 | U118: 462.8353344
A119: 33.072 | B119: 19.17 | C119: 0 | D119: 0.31 | E119: 2.8 | F119: 2208.429932 | G119: 2002.609863 | H119: 7.981124878 | I119: 451.5190735 | J119: 453.0716248 | K119: 1837.292725 | L119: 150.1838466 | M119: 15.13332209 | N119: 67.01459533 | O119: 3.340355094 | P119: 0.3395346124 | Q119: 0.08561261701 | R119: 11.59442118 | S119: 3.639427234 | T119: 2.351803162 | U119: 463.0303985
A120: 33.072 | B120: 19.18 | C120: 0 | D120: 0.31 | E120: 2.8 | F120: 2208.429932 | G120: 2002.609863 | H120: 7.980974197 | I120: 451.7033386 | J120: 453.2563477 | K120: 1837.286953 | L120: 150.1877079 | M120: 15.13523234 | N120: 67.01066345 | O120: 3.342329807 | P120: 0.3395392227 | Q120: 0.08561789385 | R120: 11.59419907 | S120: 3.639563401 | T120: 2.351950197 | U120: 463.2255309
A121: 33.072 | B121: 19.19 | C121: 0 | D121: 0.31 | E121: 2.8 | F121: 2208.429932 | G121: 2002.609863 | H121: 7.980823517 | I121: 451.8876953 | J121: 453.4411316 | K121: 1837.281182 | L121: 150.1915684 | M121: 15.13714316 | N121: 67.00673192 | O121: 3.344305471 | P121: 0.339543833 | Q121: 0.08562316846 | R121: 11.59397689 | S121: 3.639699599 | T121: 2.352097277 | U121: 463.4207316
A122: 33.072 | B122: 19.2 | C122: 0 | D122: 0.31 | E122: 2.8 | F122: 2208.429932 | G122: 2002.609863 | H122: 7.980672836 | I122: 452.0720825 | J122: 453.6259766 | K122: 1837.275411 | L122: 150.1954282 | M122: 15.13905454 | N122: 67.00280074 | O122: 3.346282086 | P122: 0.3395484435 | Q122: 0.08562844084 | R122: 11.59375467 | S122: 3.639835827 | T122: 2.352244403 | U122: 463.6160006
A123: 33.072 | B123: 19.21 | C123: 0 | D123: 0.31 | E123: 2.8 | F123: 2208.429932 | G123: 2002.609863 | H123: 7.980522156 | I123: 452.2565308 | J123: 453.8108521 | K123: 1837.269641 | L123: 150.1992865 | M123: 15.14096611 | N123: 66.99887067 | O123: 3.348259276 | P123: 0.3395530531 | Q123: 0.08563370998 | R123: 11.59353242 | S123: 3.639972059 | T123: 2.352391546 | U123: 463.8113069
